Workbook

Sheet Kitchen
A1: Range | S1: Enter % | T1: Total Cost Ex Vat | U1: RRP Ex Vat | V1: Cash Margin | W1: Margin %
A2: Cabinet Colour | R2: My Furniture Discount | S2: 0.4 | T2: =SUM(T12:T1105) -> 75 | U2: =D9/1.2 -> 75 | V2: =U2-T2 -> 0 | W2: =V2/U2 -> 0
A3: Drawer Box | B3: Customer Name | R3: Add Retail Discount | S3: 0
A4: Rigid | B4: Order Ref
A5: Home Delivery | B5: Other Comments | R5: Additional Margin
R6: Lights | S6: 0.3
E7: =VLOOKUP('Data Validation Lists'!B1,'Data Validation Lists'!A2:D189,4,FALSE) -> 5 Week Lead Time | R7: Other | S7: 0.3
B8: Qty | C8: RRP | D8: Total RRP | E8: Part Code | H8: Drw Boxes
B9: 1 | D9: =SUM(D10:D1105) -> 90 | G9: Rigid | H9: STD | I9: Pan | J9: Low
A11: Base Units
A13: 150 HL Pull Out Base VS SUB | C13: =IF($E13="Not Available","",VLOOKUP(E13,'Prices Furniture'!A:F,6,FALSE)*(1-$S$3)) -> 471 | D13: =IF(B13="","",B13*C13) ->  | E13: =VLOOKUP(A13,Codes!$B:$CL,'Data Validation Lists'!$B$1+2,FALSE) -> @LK-FAG-BP15TY | G13: =IF(AND(B13>0,'Data Validation Lists'!$I$1=1),B13,"") ->  | M13: 0 | N13: =M13*B13 -> 0 | R13: Furniture | T13: =IF(B13="","",SUM(D13/1.2)*(1-$S$2)/(1-$S$3)) -> 
A14: 300 HL Pull Out Base VS SUB | C14: =IF($E14="Not Available","",VLOOKUP(E14,'Prices Furniture'!A:F,6,FALSE)*(1-$S$3)) -> 739 | D14: =IF(B14="","",B14*C14) ->  | E14: =VLOOKUP(A14,Codes!$B:$CL,'Data Validation Lists'!$B$1+2,FALSE) -> @LK-FAG-BP3TY | G14: =IF(AND(B14>0,'Data Validation Lists'!$I$1=1),B14,"") ->  | M14: 0 | N14: =M14*B14 -> 0 | R14: Furniture | T14: =IF(B14="","",SUM(D14/1.2)*(1-$S$2)/(1-$S$3)) -> 
A16: 150 HL Base Unit LHH | C16: =IF($E16="Not Available","",VLOOKUP(E16,'Prices Furniture'!A:F,6,FALSE)*(1-$S$3)) -> 291 | D16: =IF(B16="","",B16*C16) ->  | E16: =VLOOKUP(A16,Codes!$B:$CL,'Data Validation Lists'!$B$1+2,FALSE) -> @LK-FAG-BH15L | G16: =IF(AND(B16>0,'Data Validation Lists'!$I$1=1),B16,"") ->  | R16: Furniture | T16: =IF(B16="","",SUM(D16/1.2)*(1-$S$2)/(1-$S$3)) -> 
A17: 150 HL Base Unit RHH | C17: =IF($E17="Not Available","",VLOOKUP(E17,'Prices Furniture'!A:F,6,FALSE)*(1-$S$3)) -> 291 | E17: =VLOOKUP(A17,Codes!$B:$CL,'Data Validation Lists'!$B$1+2,FALSE) -> @LK-FAG-BH15R | G17: =IF(AND(B17>0,'Data Validation Lists'!$I$1=1),B17,"") ->  | R17: Furniture
A18: 300 HL Base Unit LHH | C18: =IF($E18="Not Available","",VLOOKUP(E18,'Prices Furniture'!A:F,6,FALSE)*(1-$S$3)) -> 343 | E18: =VLOOKUP(A18,Codes!$B:$CL,'Data Validation Lists'!$B$1+2,FALSE) -> @LK-FAG-BH30L | G18: =IF(AND(B18>0,'Data Validation Lists'!$I$1=1),B18,"") ->  | M18: 1 | N18: =M18*B18 -> 0 | R18: Furniture
A19: 300 HL Base Unit RHH | C19: =IF($E19="Not Available","",VLOOKUP(E19,'Prices Furniture'!A:F,6,FALSE)*(1-$S$3)) -> 343 | E19: =VLOOKUP(A19,Codes!$B:$CL,'Data Validation Lists'!$B$1+2,FALSE) -> @LK-FAG-BH30R | G19: =IF(AND(B19>0,'Data Validation Lists'!$I$1=1),B19,"") ->  | M19: 1 | N19: 0 | R19: Furniture
A20: 350 HL Base Unit LHH | C20: =IF($E20="Not Available","",VLOOKUP(E20,'Prices Furniture'!A:F,6,FALSE)*(1-$S$3)) -> 346 | E20: =VLOOKUP(A20,Codes!$B:$CL,'Data Validation Lists'!$B$1+2,FALSE) -> @LK-FAG-BH35L | G20: =IF(AND(B20>0,'Data Validation Lists'!$I$1=1),B20,"") ->  | R20: Furniture
A21: 350 HL Base Unit RHH | C21: =IF($E21="Not Available","",VLOOKUP(E21,'Prices Furniture'!A:F,6,FALSE)*(1-$S$3)) -> 346 | E21: =VLOOKUP(A21,Codes!$B:$CL,'Data Validation Lists'!$B$1+2,FALSE) -> @LK-FAG-BH35R | G21: =IF(AND(B21>0,'Data Validation Lists'!$I$1=1),B21,"") ->  | R21: Furniture
A22: 400 HL Base Unit LHH | C22: =IF($E22="Not Available","",VLOOKUP(E22,'Prices Furniture'!A:F,6,FALSE)*(1-$S$3)) -> 355 | E22: =VLOOKUP(A22,Codes!$B:$CL,'Data Validation Lists'!$B$1+2,FALSE) -> @LK-FAG-BH40L | G22: =IF(AND(B22>0,'Data Validation Lists'!$I$1=1),B22,"") ->  | M22: 1 | N22: =M22*B22 -> 0 | R22: Furniture
A23: 400 HL Base Unit RHH | C23: =IF($E23="Not Available","",VLOOKUP(E23,'Prices Furniture'!A:F,6,FALSE)*(1-$S$3)) -> 355 | E23: =VLOOKUP(A23,Codes!$B:$CL,'Data Validation Lists'!$B$1+2,FALSE) -> @LK-FAG-BH40R | G23: =IF(AND(B23>0,'Data Validation Lists'!$I$1=1),B23,"") ->  | M23: 1 | N23: 0 | R23: Furniture
A24: 450 HL Base Unit LHH | C24: =IF($E24="Not Available","",VLOOKUP(E24,'Prices Furniture'!A:F,6,FALSE)*(1-$S$3)) -> 369 | E24: =VLOOKUP(A24,Codes!$B:$CL,'Data Validation Lists'!$B$1+2,FALSE) -> @LK-FAG-BH45L | G24: =IF(AND(B24>0,'Data Validation Lists'!$I$1=1),B24,"") ->  | M24: 1 | N24: =M24*B24 -> 0 | R24: Furniture
A25: 450 HL Base Unit RHH | C25: =IF($E25="Not Available","",VLOOKUP(E25,'Prices Furniture'!A:F,6,FALSE)*(1-$S$3)) -> 369 | E25: =VLOOKUP(A25,Codes!$B:$CL,'Data Validation Lists'!$B$1+2,FALSE) -> @LK-FAG-BH45R | G25: =IF(AND(B25>0,'Data Validation Lists'!$I$1=1),B25,"") ->  | M25: 1 | N25: 0 | R25: Furniture
A26: 500 HL Base Unit LHH | C26: =IF($E26="Not Available","",VLOOKUP(E26,'Prices Furniture'!A:F,6,FALSE)*(1-$S$3)) -> 398 | E26: =VLOOKUP(A26,Codes!$B:$CL,'Data Validation Lists'!$B$1+2,FALSE) -> @LK-FAG-BH50L | G26: =IF(AND(B26>0,'Data Validation Lists'!$I$1=1),B26,"") ->  | M26: 1 | N26: 0 | R26: Furniture
A27: 500 HL Base Unit RHH | C27: =IF($E27="Not Available","",VLOOKUP(E27,'Prices Furniture'!A:F,6,FALSE)*(1-$S$3)) -> 398 | E27: =VLOOKUP(A27,Codes!$B:$CL,'Data Validation Lists'!$B$1+2,FALSE) -> @LK-FAG-BH50R | G27: =IF(AND(B27>0,'Data Validation Lists'!$I$1=1),B27,"") ->  | M27: 1 | N27: 0 | R27: Furniture
A28: 500 HL Sink Base Unit (Inc Liner) LHH | C28: =IF($E28="Not Available","",VLOOKUP(E28,'Prices Furniture'!A:F,6,FALSE)*(1-$S$3)) -> 428 | E28: =VLOOKUP(A28,Codes!$B:$CL,'Data Validation Lists'!$B$1+2,FALSE) -> @LK-FAG-BH50SL | G28: =IF(AND(B28>0,'Data Validation Lists'!$I$1=1),B28,"") ->  | R28: Furniture
A29: 500 HL Sink Base Unit (Inc Liner) RHH | C29: =IF($E29="Not Available","",VLOOKUP(E29,'Prices Furniture'!A:F,6,FALSE)*(1-$S$3)) -> 428 | E29: =VLOOKUP(A29,Codes!$B:$CL,'Data Validation Lists'!$B$1+2,FALSE) -> @LK-FAG-BH50SR | G29: =IF(AND(B29>0,'Data Validation Lists'!$I$1=1),B29,"") ->  | R29: Furniture
A30: 600 HL Base Unit LHH | C30: =IF($E30="Not Available","",VLOOKUP(E30,'Prices Furniture'!A:F,6,FALSE)*(1-$S$3)) -> 440 | E30: =VLOOKUP(A30,Codes!$B:$CL,'Data Validation Lists'!$B$1+2,FALSE) -> @LK-FAG-BH60L | G30: =IF(AND(B30>0,'Data Validation Lists'!$I$1=1),B30,"") ->  | M30: 1 | N30: =M30*B30 -> 0 | R30: Furniture
A31: 600 HL Base Unit RHH | C31: =IF($E31="Not Available","",VLOOKUP(E31,'Prices Furniture'!A:F,6,FALSE)*(1-$S$3)) -> 440 | E31: =VLOOKUP(A31,Codes!$B:$CL,'Data Validation Lists'!$B$1+2,FALSE) -> @LK-FAG-BH60R | G31: =IF(AND(B31>0,'Data Validation Lists'!$I$1=1),B31,"") ->  | M31: 1 | N31: 0 | R31: Furniture
A32: 600 HL Sink Base Unit (Inc Liner) LHH | C32: =IF($E32="Not Available","",VLOOKUP(E32,'Prices Furniture'!A:F,6,FALSE)*(1-$S$3)) -> 486 | D32: =IF(B32="","",B32*C32) ->  | E32: =VLOOKUP(A32,Codes!$B:$CL,'Data Validation Lists'!$B$1+2,FALSE) -> @LK-FAG-BH60SL | G32: =IF(AND(B32>0,'Data Validation Lists'!$I$1=1),B32,"") ->  | R32: Furniture | T32: =IF(B32="","",SUM(D32/1.2)*(1-$S$2)/(1-$S$3)) -> 
A33: 600 HL Sink Base Unit (Inc Liner) RHH | C33: =IF($E33="Not Available","",VLOOKUP(E33,'Prices Furniture'!A:F,6,FALSE)*(1-$S$3)) -> 486 | D33: =IF(B33="","",B33*C33) ->  | E33: =VLOOKUP(A33,Codes!$B:$CL,'Data Validation Lists'!$B$1+2,FALSE) -> @LK-FAG-BH60SR | G33: =IF(AND(B33>0,'Data Validation Lists'!$I$1=1),B33,"") ->  | R33: Furniture | T33: =IF(B33="","",SUM(D33/1.2)*(1-$S$2)/(1-$S$3)) -> 
A35: 300 HL Base Unit & Bin | C35: =IF($E35="Not Available","",VLOOKUP(E35,'Prices Furniture'!A:F,6,FALSE)*(1-$S$3)) -> 692 | D35: =IF(B35="","",B35*C35) ->  | E35: =VLOOKUP(A35,Codes!$B:$CL,'Data Validation Lists'!$B$1+2,FALSE) -> @LK-FAG-BH3B | G35: =IF(AND(B35>0,'Data Validation Lists'!$I$1=1),B35,"") ->  | M35: 0 | N35: =M35*B35 -> 0 | R35: Furniture | T35: =IF(B35="","",SUM(D35/1.2)*(1-$S$2)/(1-$S$3)) -> 
A36: 400 HL Base Unit & Bin | C36: =IF($E36="Not Available","",VLOOKUP(E36,'Prices Furniture'!A:F,6,FALSE)*(1-$S$3)) -> 766 | D36: =IF(B36="","",B36*C36) ->  | E36: =VLOOKUP(A36,Codes!$B:$CL,'Data Validation Lists'!$B$1+2,FALSE) -> @LK-FAG-BH4B | G36: =IF(AND(B36>0,'Data Validation Lists'!$I$1=1),B36,"") ->  | R36: Furniture
A37: 450 HL Base Unit & Bin | C37: =IF($E37="Not Available","",VLOOKUP(E37,'Prices Furniture'!A:F,6,FALSE)*(1-$S$3)) -> 785 | E37: =VLOOKUP(A37,Codes!$B:$CL,'Data Validation Lists'!$B$1+2,FALSE) -> @LK-FAG-BH45B | G37: =IF(AND(B37>0,'Data Validation Lists'!$I$1=1),B37,"") ->  | M37: 0 | N37: =M37*B37 -> 0 | R37: Furniture
A38: 500 HL Base Unit & Bin | C38: =IF($E38="Not Available","",VLOOKUP(E38,'Prices Furniture'!A:F,6,FALSE)*(1-$S$3)) -> 820 | D38: =IF(B38="","",B38*C38) ->  | E38: =VLOOKUP(A38,Codes!$B:$CL,'Data Validation Lists'!$B$1+2,FALSE) -> @LK-FAG-BH5B | G38: =IF(AND(B38>0,'Data Validation Lists'!$I$1=1),B38,"") ->  | M38: 0 | N38: =M38*B38 -> 0 | R38: Furniture
A39: 600 HL Base Unit & Bin (4 Bins) | C39: =IF($E39="Not Available","",VLOOKUP(E39,'Prices Furniture'!A:F,6,FALSE)*(1-$S$3)) -> 946 | E39: =VLOOKUP(A39,Codes!$B:$CL,'Data Validation Lists'!$B$1+2,FALSE) -> @LK-FAG-BH6B4 | G39: =IF(AND(B39>0,'Data Validation Lists'!$I$1=1),B39,"") ->  | M39: 0 | N39: =M39*B39 -> 0 | R39: Furniture
A40: 600 HL Base Unit & Bin (2 Bins) | C40: =IF($E40="Not Available","",VLOOKUP(E40,'Prices Furniture'!A:F,6,FALSE)*(1-$S$3)) -> 897 | D40: =IF(B40="","",B40*C40) ->  | E40: =VLOOKUP(A40,Codes!$B:$CL,'Data Validation Lists'!$B$1+2,FALSE) -> @LK-FAG-BH6B2 | G40: =IF(AND(B40>0,'Data Validation Lists'!$I$1=1),B40,"") ->  | M40: 0 | N40: =M40*B40 -> 0 | R40: Furniture
A42: 700 HL Base Unit | C42: =IF($E42="Not Available","",VLOOKUP(E42,'Prices Furniture'!A:F,6,FALSE)*(1-$S$3)) -> 590 | E42: =VLOOKUP(A42,Codes!$B:$CL,'Data Validation Lists'!$B$1+2,FALSE) -> @LK-FAG-BH70 | G42: =IF(AND(B42>0,'Data Validation Lists'!$I$1=1),B42,"") ->  | R42: Furniture | T42: =IF(B42="","",SUM(D42/1.2)*(1-$S$2)/(1-$S$3)) -> 
A43: 800 HL Base Unit | C43: =IF($E43="Not Available","",VLOOKUP(E43,'Prices Furniture'!A:F,6,FALSE)*(1-$S$3)) -> 606 | E43: =VLOOKUP(A43,Codes!$B:$CL,'Data Validation Lists'!$B$1+2,FALSE) -> @LK-FAG-BH80 | G43: =IF(AND(B43>0,'Data Validation Lists'!$I$1=1),B43,"") ->  | M43: 2 | N43: =M43*B43 -> 0 | R43: Furniture
A44: 800 HL Sink Base Unit (Inc Liner) | C44: =IF($E44="Not Available","",VLOOKUP(E44,'Prices Furniture'!A:F,6,FALSE)*(1-$S$3)) -> 652 | E44: =VLOOKUP(A44,Codes!$B:$CL,'Data Validation Lists'!$B$1+2,FALSE) -> @LK-FAG-BH80S | G44: =IF(AND(B44>0,'Data Validation Lists'!$I$1=1),B44,"") ->  | R44: Furniture
A45: 900 HL Base Unit | C45: =IF($E45="Not Available","",VLOOKUP(E45,'Prices Furniture'!A:F,6,FALSE)*(1-$S$3)) -> 612 | E45: =VLOOKUP(A45,Codes!$B:$CL,'Data Validation Lists'!$B$1+2,FALSE) -> @LK-FAG-BH90 | G45: =IF(AND(B45>0,'Data Validation Lists'!$I$1=1),B45,"") ->  | M45: 2 | N45: =M45*B45 -> 0 | R45: Furniture
A46: 900 HL Sink Base Unit (Inc Liner) | C46: =IF($E46="Not Available","",VLOOKUP(E46,'Prices Furniture'!A:F,6,FALSE)*(1-$S$3)) -> 658 | E46: =VLOOKUP(A46,Codes!$B:$CL,'Data Validation Lists'!$B$1+2,FALSE) -> @LK-FAG-BH90S | G46: =IF(AND(B46>0,'Data Validation Lists'!$I$1=1),B46,"") ->  | R46: Furniture
A47: 1000 HL Base Unit | C47: =IF($E47="Not Available","",VLOOKUP(E47,'Prices Furniture'!A:F,6,FALSE)*(1-$S$3)) -> 669 | E47: =VLOOKUP(A47,Codes!$B:$CL,'Data Validation Lists'!$B$1+2,FALSE) -> @LK-FAG-BH100 | G47: =IF(AND(B47>0,'Data Validation Lists'!$I$1=1),B47,"") ->  | M47: 2 | N47: =M47*B47 -> 0 | R47: Furniture
A48: 1000 HL Sink Base Unit (Inc Liner) | C48: =IF($E48="Not Available","",VLOOKUP(E48,'Prices Furniture'!A:F,6,FALSE)*(1-$S$3)) -> 715 | D48: =IF(B48="","",B48*C48) ->  | E48: =VLOOKUP(A48,Codes!$B:$CL,'Data Validation Lists'!$B$1+2,FALSE) -> @LK-FAG-BH10S | G48: =IF(AND(B48>0,'Data Validation Lists'!$I$1=1),B48,"") ->  | R48: Furniture
A50: 800 HL Cnr Base (300 Door) LHH | C50: =IF($E50="Not Available","",VLOOKUP(E50,'Prices Furniture'!A:F,6,FALSE)*(1-$S$3)) -> 620 | D50: =IF(B50="","",B50*C50) ->  | E50: =VLOOKUP(A50,Codes!$B:$CL,'Data Validation Lists'!$B$1+2,FALSE) -> @LK-FAG-BC83L | G50: =IF(AND(B50>0,'Data Validation Lists'!$I$1=1),B50,"") ->  | M50: 1 | N50: =M50*B50 -> 0 | R50: Furniture | T50: =IF(B50="","",SUM(D50/1.2)*(1-$S$2)/(1-$S$3)) -> 
A51: 800 HL Cnr Base (300 Door) RHH | C51: =IF($E51="Not Available","",VLOOKUP(E51,'Prices Furniture'!A:F,6,FALSE)*(1-$S$3)) -> 620 | E51: =VLOOKUP(A51,Codes!$B:$CL,'Data Validation Lists'!$B$1+2,FALSE) -> @LK-FAG-BC83R | G51: =IF(AND(B51>0,'Data Validation Lists'!$I$1=1),B51,"") ->  | M51: 1 | N51: 0 | R51: Furniture
A52: 800 HL Cnr Base Unit (400 Door) LHH | C52: =IF($E52="Not Available","",VLOOKUP(E52,'Prices Furniture'!A:F,6,FALSE)*(1-$S$3)) -> 628 | E52: =VLOOKUP(A52,Codes!$B:$CL,'Data Validation Lists'!$B$1+2,FALSE) -> @LK-FAG-BC84L | G52: =IF(AND(B52>0,'Data Validation Lists'!$I$1=1),B52,"") ->  | M52: 1 | N52: 0 | R52: Furniture
A53: 800 HL Cnr Base Unit (400 Door) RHH | C53: =IF($E53="Not Available","",VLOOKUP(E53,'Prices Furniture'!A:F,6,FALSE)*(1-$S$3)) -> 628 | E53: =VLOOKUP(A53,Codes!$B:$CL,'Data Validation Lists'!$B$1+2,FALSE) -> @LK-FAG-BC84R | G53: =IF(AND(B53>0,'Data Validation Lists'!$I$1=1),B53,"") ->  | M53: 1 | N53: 0 | R53: Furniture
A54: 800 HL Cnr Base (450 Door) LHH | C54: =IF($E54="Not Available","",VLOOKUP(E54,'Prices Furniture'!A:F,6,FALSE)*(1-$S$3)) -> 631 | E54: =VLOOKUP(A54,Codes!$B:$CL,'Data Validation Lists'!$B$1+2,FALSE) -> @LK-FAG-BC845L | G54: =IF(AND(B54>0,'Data Validation Lists'!$I$1=1),B54,"") ->  | M54: 1 | N54: 0 | R54: Furniture
A55: 800 HL Cnr Base (450 Door) RHH | C55: =IF($E55="Not Available","",VLOOKUP(E55,'Prices Furniture'!A:F,6,FALSE)*(1-$S$3)) -> 631 | E55: =VLOOKUP(A55,Codes!$B:$CL,'Data Validation Lists'!$B$1+2,FALSE) -> @LK-FAG-BC845R | G55: =IF(AND(B55>0,'Data Validation Lists'!$I$1=1),B55,"") ->  | M55: 1 | N55: 0 | R55: Furniture
A56: 900 HL Cnr Base (450 Door) LHH | C56: =IF($E56="Not Available","",VLOOKUP(E56,'Prices Furniture'!A:F,6,FALSE)*(1-$S$3)) -> 631 | E56: =VLOOKUP(A56,Codes!$B:$CL,'Data Validation Lists'!$B$1+2,FALSE) -> @LK-FAG-BC945L | G56: =IF(AND(B56>0,'Data Validation Lists'!$I$1=1),B56,"") ->  | M56: 1 | N56: 0 | R56: Furniture
A57: 900 HL Cnr Base (450 Door) RHH | C57: =IF($E57="Not Available","",VLOOKUP(E57,'Prices Furniture'!A:F,6,FALSE)*(1-$S$3)) -> 631 | E57: =VLOOKUP(A57,Codes!$B:$CL,'Data Validation Lists'!$B$1+2,FALSE) -> @LK-FAG-BC945R | G57: =IF(AND(B57>0,'Data Validation Lists'!$I$1=1),B57,"") ->  | M57: 1 | N57: 0 | R57: Furniture
A58: 1000 HL Cnr Base (450 Door) LHH | C58: =IF($E58="Not Available","",VLOOKUP(E58,'Prices Furniture'!A:F,6,FALSE)*(1-$S$3)) -> 636 | E58: =VLOOKUP(A58,Codes!$B:$CL,'Data Validation Lists'!$B$1+2,FALSE) -> @LK-FAG-BC145L | G58: =IF(AND(B58>0,'Data Validation Lists'!$I$1=1),B58,"") ->  | M58: 1 | N58: 0 | R58: Furniture
A59: 1000 HL Cnr Base (450 Door) RHH | C59: =IF($E59="Not Available","",VLOOKUP(E59,'Prices Furniture'!A:F,6,FALSE)*(1-$S$3)) -> 636 | E59: =VLOOKUP(A59,Codes!$B:$CL,'Data Validation Lists'!$B$1+2,FALSE) -> @LK-FAG-BC145R | G59: =IF(AND(B59>0,'Data Validation Lists'!$I$1=1),B59,"") ->  | M59: 1 | N59: 0 | R59: Furniture
A60: 1000 HL Cnr Base (500 Door) LHH | C60: =IF($E60="Not Available","",VLOOKUP(E60,'Prices Furniture'!A:F,6,FALSE)*(1-$S$3)) -> 662 | E60: =VLOOKUP(A60,Codes!$B:$CL,'Data Validation Lists'!$B$1+2,FALSE) -> @LK-FAG-BC15L | G60: =IF(AND(B60>0,'Data Validation Lists'!$I$1=1),B60,"") ->  | M60: 1 | N60: 0 | R60: Furniture
A61: 1000 HL Cnr Base (500 Door) RHH | C61: =IF($E61="Not Available","",VLOOKUP(E61,'Prices Furniture'!A:F,6,FALSE)*(1-$S$3)) -> 662 | E61: =VLOOKUP(A61,Codes!$B:$CL,'Data Validation Lists'!$B$1+2,FALSE) -> @LK-FAG-BC15R | G61: =IF(AND(B61>0,'Data Validation Lists'!$I$1=1),B61,"") ->  | M61: 1 | N61: 0 | R61: Furniture
A62: 1000 HL Cnr Base (600 Door) LHH | C62: =IF($E62="Not Available","",VLOOKUP(E62,'Prices Furniture'!A:F,6,FALSE)*(1-$S$3)) -> 684 | E62: =VLOOKUP(A62,Codes!$B:$CL,'Data Validation Lists'!$B$1+2,FALSE) -> @LK-FAG-BC16L | G62: =IF(AND(B62>0,'Data Validation Lists'!$I$1=1),B62,"") ->  | M62: 1 | N62: 0 | R62: Furniture
A63: 1000 HL Cnr Base (600 Door) RHH | C63: =IF($E63="Not Available","",VLOOKUP(E63,'Prices Furniture'!A:F,6,FALSE)*(1-$S$3)) -> 684 | E63: =VLOOKUP(A63,Codes!$B:$CL,'Data Validation Lists'!$B$1+2,FALSE) -> @LK-FAG-BC16R | G63: =IF(AND(B63>0,'Data Validation Lists'!$I$1=1),B63,"") ->  | M63: 1 | N63: 0 | R63: Furniture
A64: 1000 Cnr Base CORNERSTONE MAXX LH - 500 door | C64: =IF($E64="Not Available","",VLOOKUP(E64,'Prices Furniture'!A:F,6,FALSE)*(1-$S$3)) -> 1527 | E64: =VLOOKUP(A64,Codes!$B:$CL,'Data Validation Lists'!$B$1+2,FALSE) -> @LK-FAG-BCL15L | F64: Note: This unit is handed by the Wirework | G64: =IF(AND(B64>0,'Data Validation Lists'!$I$1=1),B64,"") ->  | R64: Furniture
A65: 1000 Cnr Base CORNERSTONE MAXX RH - 500 door | C65: =IF($E65="Not Available","",VLOOKUP(E65,'Prices Furniture'!A:F,6,FALSE)*(1-$S$3)) -> 1527 | E65: =VLOOKUP(A65,Codes!$B:$CL,'Data Validation Lists'!$B$1+2,FALSE) -> @LK-FAG-BCL15R | F65: Note: This unit is handed by the Wirework | G65: =IF(AND(B65>0,'Data Validation Lists'!$I$1=1),B65,"") ->  | R65: Furniture
A66: 1000 Cnr Base CORNERSTONE MAXX LH - 600 door | C66: =IF($E66="Not Available","",VLOOKUP(E66,'Prices Furniture'!A:F,6,FALSE)*(1-$S$3)) -> 1612 | E66: =VLOOKUP(A66,Codes!$B:$CL,'Data Validation Lists'!$B$1+2,FALSE) -> @LK-FAG-BCL16L | F66: Note: This unit is handed by the Wirework | G66: =IF(AND(B66>0,'Data Validation Lists'!$I$1=1),B66,"") ->  | M66: 1 | N66: =M66*B66 -> 0 | R66: Furniture
A67: 1000 Cnr Base CORNERSTONE MAXX RH - 600 door | C67: =IF($E67="Not Available","",VLOOKUP(E67,'Prices Furniture'!A:F,6,FALSE)*(1-$S$3)) -> 1612 | E67: =VLOOKUP(A67,Codes!$B:$CL,'Data Validation Lists'!$B$1+2,FALSE) -> @LK-FAG-BCL16R | F67: Note: This unit is handed by the Wirework | G67: =IF(AND(B67>0,'Data Validation Lists'!$I$1=1),B67,"") ->  | M67: 1 | N67: 0 | R67: Furniture
A68: 900 Corner Base VS COR FLEX - 450 door LHH | C68: =IF($E68="Not Available","",VLOOKUP(E68,'Prices Furniture'!A:F,6,FALSE)*(1-$S$3)) -> 1641 | E68: =VLOOKUP(A68,Codes!$B:$CL,'Data Validation Lists'!$B$1+2,FALSE) -> @LK-FAG-BCO945L | G68: =IF(AND(B68>0,'Data Validation Lists'!$I$1=1),B68,"") ->  | R68: Furniture
A69: 900 Corner Base VS COR FLEX - 450 door RHH | C69: =IF($E69="Not Available","",VLOOKUP(E69,'Prices Furniture'!A:F,6,FALSE)*(1-$S$3)) -> 1641 | E69: =VLOOKUP(A69,Codes!$B:$CL,'Data Validation Lists'!$B$1+2,FALSE) -> @LK-FAG-BCO945R | G69: =IF(AND(B69>0,'Data Validation Lists'!$I$1=1),B69,"") ->  | R69: Furniture
A70: 1000 Corner Base VS COR FLEX - 450 door LHH | C70: =IF($E70="Not Available","",VLOOKUP(E70,'Prices Furniture'!A:F,6,FALSE)*(1-$S$3)) -> 1646 | E70: =VLOOKUP(A70,Codes!$B:$CL,'Data Validation Lists'!$B$1+2,FALSE) -> @LK-FAG-BCO145L | G70: =IF(AND(B70>0,'Data Validation Lists'!$I$1=1),B70,"") ->  | R70: Furniture
A71: 1000 Corner Base VS COR FLEX - 450 door RHH | C71: =IF($E71="Not Available","",VLOOKUP(E71,'Prices Furniture'!A:F,6,FALSE)*(1-$S$3)) -> 1646 | E71: =VLOOKUP(A71,Codes!$B:$CL,'Data Validation Lists'!$B$1+2,FALSE) -> @LK-FAG-BCO145R | G71: =IF(AND(B71>0,'Data Validation Lists'!$I$1=1),B71,"") ->  | R71: Furniture
A72: 1000 Corner Base VS COR FLEX - 500 door LHH | C72: =IF($E72="Not Available","",VLOOKUP(E72,'Prices Furniture'!A:F,6,FALSE)*(1-$S$3)) -> 1672 | E72: =VLOOKUP(A72,Codes!$B:$CL,'Data Validation Lists'!$B$1+2,FALSE) -> @LK-FAG-BCO15L | G72: =IF(AND(B72>0,'Data Validation Lists'!$I$1=1),B72,"") ->  | M72: 1 | N72: =M72*B72 -> 0 | R72: Furniture
A73: 1000 Corner Base VS COR FLEX - 500 door RHH | C73: =IF($E73="Not Available","",VLOOKUP(E73,'Prices Furniture'!A:F,6,FALSE)*(1-$S$3)) -> 1672 | E73: =VLOOKUP(A73,Codes!$B:$CL,'Data Validation Lists'!$B$1+2,FALSE) -> @LK-FAG-BCO15R | G73: =IF(AND(B73>0,'Data Validation Lists'!$I$1=1),B73,"") ->  | M73: 1 | N73: 0 | R73: Furniture
A74: 1000 Corner Base VS COR FLEX - 600 door LHH | C74: =IF($E74="Not Available","",VLOOKUP(E74,'Prices Furniture'!A:F,6,FALSE)*(1-$S$3)) -> 1694 | E74: =VLOOKUP(A74,Codes!$B:$CL,'Data Validation Lists'!$B$1+2,FALSE) -> @LK-FAG-BCO16L | G74: =IF(AND(B74>0,'Data Validation Lists'!$I$1=1),B74,"") ->  | M74: 1 | N74: 0 | R74: Furniture
A75: 1000 Corner Base VS COR FLEX - 600 door RHH | C75: =IF($E75="Not Available","",VLOOKUP(E75,'Prices Furniture'!A:F,6,FALSE)*(1-$S$3)) -> 1694 | D75: =IF(B75="","",B75*C75) ->  | E75: =VLOOKUP(A75,Codes!$B:$CL,'Data Validation Lists'!$B$1+2,FALSE) -> @LK-FAG-BCO16R | G75: =IF(AND(B75>0,'Data Validation Lists'!$I$1=1),B75,"") ->  | M75: 1 | N75: 0 | R75: Furniture
A76: 950 HL Cnr L Base | C76: =IF($E76="Not Available","",VLOOKUP(E76,'Prices Furniture'!A:F,6,FALSE)*(1-$S$3)) -> 996 | E76: =VLOOKUP(A76,Codes!$B:$CL,'Data Validation Lists'!$B$1+2,FALSE) -> @LK-FAG-BCL9 | M76: 0 | N76: 0 | R76: Furniture
A78: Curved Base Unit LHH | C78: =IF($E78="Not Available","",VLOOKUP(E78,'Prices Furniture'!A:F,6,FALSE)*(1-$S$3)) ->  | D78: =IF(B78="","",B78*C78) ->  | E78: =VLOOKUP(A78,Codes!$B:$CL,'Data Validation Lists'!$B$1+2,FALSE) -> Not Available | G78: =IF(AND(B78>0,'Data Validation Lists'!$I$1=1),B78,"") ->  | M78: 2 | N78: =M78*B78 -> 0 | R78: Furniture | T78: =IF(B78="","",SUM(D78/1.2)*(1-$S$2)/(1-$S$3)) -> 
A79: Curved Base Unit RHH | C79: =IF($E79="Not Available","",VLOOKUP(E79,'Prices Furniture'!A:F,6,FALSE)*(1-$S$3)) ->  | E79: =VLOOKUP(A79,Codes!$B:$CL,'Data Validation Lists'!$B$1+2,FALSE) -> Not Available | G79: =IF(AND(B79>0,'Data Validation Lists'!$I$1=1),B79,"") ->  | M79: 2 | N79: 0 | R79: Furniture
A80: 600 Belfast Sink Unit (495mm High) LHH | C80: =IF($E80="Not Available","",VLOOKUP(E80,'Prices Furniture'!A:F,6,FALSE)*(1-$S$3)) -> 361 | E80: =VLOOKUP(A80,Codes!$B:$CL,'Data Validation Lists'!$B$1+2,FALSE) -> @LK-FAG-BSU6495L | M80: 1 | N80: 0 | R80: Furniture
A81: 600 Belfast Sink Unit (495mm High) RHH | C81: =IF($E81="Not Available","",VLOOKUP(E81,'Prices Furniture'!A:F,6,FALSE)*(1-$S$3)) -> 361 | E81: =VLOOKUP(A81,Codes!$B:$CL,'Data Validation Lists'!$B$1+2,FALSE) -> @LK-FAG-BSU6495R | M81: 1 | N81: 0 | R81: Furniture
A82: 600 Belfast Sink Unit (450mm High) LHH | C82: =IF($E82="Not Available","",VLOOKUP(E82,'Prices Furniture'!A:F,6,FALSE)*(1-$S$3)) -> 351 | E82: =VLOOKUP(A82,Codes!$B:$CL,'Data Validation Lists'!$B$1+2,FALSE) -> @LK-FAG-BSU6450L | M82: 1 | N82: 0 | R82: Furniture
A83: 600 Belfast Sink Unit (450mm High) RHH | C83: =IF($E83="Not Available","",VLOOKUP(E83,'Prices Furniture'!A:F,6,FALSE)*(1-$S$3)) -> 351 | E83: =VLOOKUP(A83,Codes!$B:$CL,'Data Validation Lists'!$B$1+2,FALSE) -> @LK-FAG-BSU6450R | M83: 1 | N83: 0 | R83: Furniture
A84: 800 Belfast Sink Unit (495mm High) | C84: =IF($E84="Not Available","",VLOOKUP(E84,'Prices Furniture'!A:F,6,FALSE)*(1-$S$3)) -> 484 | E84: =VLOOKUP(A84,Codes!$B:$CL,'Data Validation Lists'!$B$1+2,FALSE) -> @LK-FAG-BSU8495 | M84: 2 | N84: 0 | R84: Furniture
A86: 300 DL Base Unit LHH | C86: =IF($E86="Not Available","",VLOOKUP(E86,'Prices Furniture'!A:F,6,FALSE)*(1-$S$3)) -> 482 | D86: =IF(B86="","",B86*C86) ->  | E86: =VLOOKUP(A86,Codes!$B:$CL,'Data Validation Lists'!$B$1+2,FALSE) -> @LK-FAG-BDL3L | G86: =IF(AND(B86>0,'Data Validation Lists'!$I$1=1),B86,"") ->  | H86: =IF(AND(B86>0,'Data Validation Lists'!$I$10>1),B86,"") ->  | M86: 1 | N86: =M86*B86 -> 0 | R86: Furniture | T86: =IF(B86="","",SUM(D86/1.2)*(1-$S$2)/(1-$S$3)) -> 
A87: 300 DL Base Unit RHH | C87: =IF($E87="Not Available","",VLOOKUP(E87,'Prices Furniture'!A:F,6,FALSE)*(1-$S$3)) -> 482 | D87: =IF(B87="","",B87*C87) ->  | E87: =VLOOKUP(A87,Codes!$B:$CL,'Data Validation Lists'!$B$1+2,FALSE) -> @LK-FAG-BDL3R | G87: =IF(AND(B87>0,'Data Validation Lists'!$I$1=1),B87,"") ->  | H87: =IF(AND(B87>0,'Data Validation Lists'!$I$10>1),B87,"") ->  | M87: 1 | N87: 0 | R87: Furniture
A88: 400 DL Base Unit LHH | C88: =IF($E88="Not Available","",VLOOKUP(E88,'Prices Furniture'!A:F,6,FALSE)*(1-$S$3)) -> 533 | D88: =IF(B88="","",B88*C88) ->  | E88: =VLOOKUP(A88,Codes!$B:$CL,'Data Validation Lists'!$B$1+2,FALSE) -> @LK-FAG-BDL4L | G88: =IF(AND(B88>0,'Data Validation Lists'!$I$1=1),B88,"") ->  | H88: =IF(AND(B88>0,'Data Validation Lists'!$I$10>1),B88,"") ->  | M88: 1 | N88: =M88*B88 -> 0 | R88: Furniture
A89: 400 DL Base Unit RHH | C89: =IF($E89="Not Available","",VLOOKUP(E89,'Prices Furniture'!A:F,6,FALSE)*(1-$S$3)) -> 533 | D89: =IF(B89="","",B89*C89) ->  | E89: =VLOOKUP(A89,Codes!$B:$CL,'Data Validation Lists'!$B$1+2,FALSE) -> @LK-FAG-BDL4R | G89: =IF(AND(B89>0,'Data Validation Lists'!$I$1=1),B89,"") ->  | H89: =IF(AND(B89>0,'Data Validation Lists'!$I$10>1),B89,"") ->  | M89: 1 | N89: 0 | R89: Furniture
A90: 450 DL Base Unit LHH | C90: =IF($E90="Not Available","",VLOOKUP(E90,'Prices Furniture'!A:F,6,FALSE)*(1-$S$3)) ->  | E90: =VLOOKUP(A90,Codes!$B:$CL,'Data Validation Lists'!$B$1+2,FALSE) -> Not Available | G90: =IF(AND(B90>0,'Data Validation Lists'!$I$1=1),B90,"") ->  | H90: =IF(AND(B90>0,'Data Validation Lists'!$I$10>1),B90,"") ->  | M90: 1 | N90: =M90*B90 -> 0 | R90: Furniture
A91: 450 DL Base Unit RHH | C91: =IF($E91="Not Available","",VLOOKUP(E91,'Prices Furniture'!A:F,6,FALSE)*(1-$S$3)) ->  | E91: =VLOOKUP(A91,Codes!$B:$CL,'Data Validation Lists'!$B$1+2,FALSE) -> Not Available | G91: =IF(AND(B91>0,'Data Validation Lists'!$I$1=1),B91,"") ->  | H91: =IF(AND(B91>0,'Data Validation Lists'!$I$10>1),B91,"") ->  | M91: 1 | N91: 0 | R91: Furniture
A92: 500 DL Base Unit LHH | C92: =IF($E92="Not Available","",VLOOKUP(E92,'Prices Furniture'!A:F,6,FALSE)*(1-$S$3)) -> 584 | E92: =VLOOKUP(A92,Codes!$B:$CL,'Data Validation Lists'!$B$1+2,FALSE) -> @LK-FAG-BDL5L | G92: =IF(AND(B92>0,'Data Validation Lists'!$I$1=1),B92,"") ->  | H92: =IF(AND(B92>0,'Data Validation Lists'!$I$10>1),B92,"") ->  | M92: 1 | N92: 0 | R92: Furniture
A93: 500 DL Base Unit RHH | C93: =IF($E93="Not Available","",VLOOKUP(E93,'Prices Furniture'!A:F,6,FALSE)*(1-$S$3)) -> 584 | E93: =VLOOKUP(A93,Codes!$B:$CL,'Data Validation Lists'!$B$1+2,FALSE) -> @LK-FAG-BDL5R | G93: =IF(AND(B93>0,'Data Validation Lists'!$I$1=1),B93,"") ->  | H93: =IF(AND(B93>0,'Data Validation Lists'!$I$10>1),B93,"") ->  | M93: 1 | N93: 0 | R93: Furniture
A94: 600 DL Base Unit LHH | C94: =IF($E94="Not Available","",VLOOKUP(E94,'Prices Furniture'!A:F,6,FALSE)*(1-$S$3)) -> 594 | E94: =VLOOKUP(A94,Codes!$B:$CL,'Data Validation Lists'!$B$1+2,FALSE) -> @LK-FAG-BDL6L | G94: =IF(AND(B94>0,'Data Validation Lists'!$I$1=1),B94,"") ->  | H94: =IF(AND(B94>0,'Data Validation Lists'!$I$10>1),B94,"") ->  | M94: 1 | N94: 0 | R94: Furniture
A95: 600 DL Base Unit RHH | C95: =IF($E95="Not Available","",VLOOKUP(E95,'Prices Furniture'!A:F,6,FALSE)*(1-$S$3)) -> 594 | E95: =VLOOKUP(A95,Codes!$B:$CL,'Data Validation Lists'!$B$1+2,FALSE) -> @LK-FAG-BDL6R | G95: =IF(AND(B95>0,'Data Validation Lists'!$I$1=1),B95,"") ->  | H95: =IF(AND(B95>0,'Data Validation Lists'!$I$10>1),B95,"") ->  | M95: 1 | N95: 0 | R95: Furniture
A96: 800 DL Base Unit | C96: =IF($E96="Not Available","",VLOOKUP(E96,'Prices Furniture'!A:F,6,FALSE)*(1-$S$3)) -> 962 | E96: =VLOOKUP(A96,Codes!$B:$CL,'Data Validation Lists'!$B$1+2,FALSE) -> @LK-FAG-BDL8 | G96: =IF(AND(B96>0,'Data Validation Lists'!$I$1=1),B96,"") ->  | H96: =IF(AND(B96>0,'Data Validation Lists'!$I$10>1),B96*2,"") ->  | R96: Furniture
A97: 1000 DL Base Unit | C97: =IF($E97="Not Available","",VLOOKUP(E97,'Prices Furniture'!A:F,6,FALSE)*(1-$S$3)) -> 1041 | E97: =VLOOKUP(A97,Codes!$B:$CL,'Data Validation Lists'!$B$1+2,FALSE) -> @LK-FAG-BDL10 | G97: =IF(AND(B97>0,'Data Validation Lists'!$I$1=1),B97,"") ->  | H97: =IF(AND(B97>0,'Data Validation Lists'!$I$10>1),B97*2,"") ->  | R97: Furniture
A99: 800 DL Base Unit 1 Drawer 2 Doors | C99: =IF($E99="Not Available","",VLOOKUP(E99,'Prices Furniture'!A:F,6,FALSE)*(1-$S$3)) -> 839 | D99: =IF(B99="","",B99*C99) ->  | E99: =VLOOKUP(A99,Codes!$B:$CL,'Data Validation Lists'!$B$1+2,FALSE) -> @LK-FAG-BDL81DW | G99: =IF(AND(B99>0,'Data Validation Lists'!$I$1=1),B99,"") ->  | H99: =IF(AND(B99>0,'Data Validation Lists'!$I$10>1),B99,"") ->  | M99: 2 | N99: =M99*B99 -> 0 | R99: Furniture | T99: =IF(B99="","",SUM(D99/1.2)*(1-$S$2)/(1-$S$3)) -> 
A100: 900 DL Base Unit 1 Drawer 2 Doors | C100: =IF($E100="Not Available","",VLOOKUP(E100,'Prices Furniture'!A:F,6,FALSE)*(1-$S$3)) -> 886 | D100: =IF(B100="","",B100*C100) ->  | E100: =VLOOKUP(A100,Codes!$B:$CL,'Data Validation Lists'!$B$1+2,FALSE) -> @LK-FAG-BDL91DW | G100: =IF(AND(B100>0,'Data Validation Lists'!$I$1=1),B100,"") ->  | H100: =IF(AND(B100>0,'Data Validation Lists'!$I$10>1),B100,"") ->  | M100: 2 | N100: 0 | R100: Furniture | T100: =IF(B100="","",SUM(D100/1.2)*(1-$S$2)/(1-$S$3)) -> 
A101: 1000 DL Base Unit 1 Drawer 2 Doors | C101: =IF($E101="Not Available","",VLOOKUP(E101,'Prices Furniture'!A:F,6,FALSE)*(1-$S$3)) -> 933 | D101: =IF(B101="","",B101*C101) ->  | E101: =VLOOKUP(A101,Codes!$B:$CL,'Data Validation Lists'!$B$1+2,FALSE) -> @LK-FAG-BDL101DW | G101: =IF(AND(B101>0,'Data Validation Lists'!$I$1=1),B101,"") ->  | H101: =IF(AND(B101>0,'Data Validation Lists'!$I$10>1),B101,"") ->  | M101: 2 | N101: 0 | R101: Furniture | T101: =IF(B101="","",SUM(D101/1.2)*(1-$S$2)/(1-$S$3)) -> 
A103: 800 DL Cnr Base (300 Door) LHH | C103: =IF($E103="Not Available","",VLOOKUP(E103,'Prices Furniture'!A:F,6,FALSE)*(1-$S$3)) -> 759 | D103: =IF(B103="","",B103*C103) ->  | E103: =VLOOKUP(A103,Codes!$B:$CL,'Data Validation Lists'!$B$1+2,FALSE) -> @LK-FAG-BDLC83L | G103: =IF(AND(B103>0,'Data Validation Lists'!$I$1=1),B103,"") ->  | H103: =IF(AND(B103>0,'Data Validation Lists'!$I$10>1),B103,"") ->  | R103: Furniture | T103: =IF(B103="","",SUM(D103/1.2)*(1-$S$2)/(1-$S$3)) -> 
A104: 800 DL Cnr Base (300 Door) RHH | C104: =IF($E104="Not Available","",VLOOKUP(E104,'Prices Furniture'!A:F,6,FALSE)*(1-$S$3)) -> 759 | D104: =IF(B104="","",B104*C104) ->  | E104: =VLOOKUP(A104,Codes!$B:$CL,'Data Validation Lists'!$B$1+2,FALSE) -> @LK-FAG-BDLC83R | G104: =IF(AND(B104>0,'Data Validation Lists'!$I$1=1),B104,"") ->  | H104: =IF(AND(B104>0,'Data Validation Lists'!$I$10>1),B104,"") ->  | R104: Furniture
A105: 800 DL Cnr Base (400 Door) LHH | C105: =IF($E105="Not Available","",VLOOKUP(E105,'Prices Furniture'!A:F,6,FALSE)*(1-$S$3)) -> 806 | D105: =IF(B105="","",B105*C105) ->  | E105: =VLOOKUP(A105,Codes!$B:$CL,'Data Validation Lists'!$B$1+2,FALSE) -> @LK-FAG-BDLC84L | G105: =IF(AND(B105>0,'Data Validation Lists'!$I$1=1),B105,"") ->  | H105: =IF(AND(B105>0,'Data Validation Lists'!$I$10>1),B105,"") ->  | R105: Furniture
A106: 800 DL Cnr Base (400 Door) RHH | C106: =IF($E106="Not Available","",VLOOKUP(E106,'Prices Furniture'!A:F,6,FALSE)*(1-$S$3)) -> 806 | E106: =VLOOKUP(A106,Codes!$B:$CL,'Data Validation Lists'!$B$1+2,FALSE) -> @LK-FAG-BDLC84R | G106: =IF(AND(B106>0,'Data Validation Lists'!$I$1=1),B106,"") ->  | H106: =IF(AND(B106>0,'Data Validation Lists'!$I$10>1),B106,"") ->  | R106: Furniture
A107: 800 DL Cnr Base (500 Door) LHH | C107: =IF($E107="Not Available","",VLOOKUP(E107,'Prices Furniture'!A:F,6,FALSE)*(1-$S$3)) -> 843 | E107: =VLOOKUP(A107,Codes!$B:$CL,'Data Validation Lists'!$B$1+2,FALSE) -> @LK-FAG-BDLC85L | G107: =IF(AND(B107>0,'Data Validation Lists'!$I$1=1),B107,"") ->  | H107: =IF(AND(B107>0,'Data Validation Lists'!$I$10>1),B107,"") ->  | R107: Furniture
A108: 800 DL Cnr Base (500 Door) RHH | C108: =IF($E108="Not Available","",VLOOKUP(E108,'Prices Furniture'!A:F,6,FALSE)*(1-$S$3)) -> 843 | E108: =VLOOKUP(A108,Codes!$B:$CL,'Data Validation Lists'!$B$1+2,FALSE) -> @LK-FAG-BDLC85R | G108: =IF(AND(B108>0,'Data Validation Lists'!$I$1=1),B108,"") ->  | H108: =IF(AND(B108>0,'Data Validation Lists'!$I$10>1),B108,"") ->  | R108: Furniture
A109: 1000 DL Cnr Base (500 Door) LHH | C109: =IF($E109="Not Available","",VLOOKUP(E109,'Prices Furniture'!A:F,6,FALSE)*(1-$S$3)) -> 848 | D109: =IF(B109="","",B109*C109) ->  | E109: =VLOOKUP(A109,Codes!$B:$CL,'Data Validation Lists'!$B$1+2,FALSE) -> @LK-FAG-BDLC15L | G109: =IF(AND(B109>0,'Data Validation Lists'!$I$1=1),B109,"") ->  | H109: =IF(AND(B109>0,'Data Validation Lists'!$I$10>1),B109,"") ->  | R109: Furniture
A110: 1000 DL Cnr Base (500 Door) RHH | C110: =IF($E110="Not Available","",VLOOKUP(E110,'Prices Furniture'!A:F,6,FALSE)*(1-$S$3)) -> 848 | E110: =VLOOKUP(A110,Codes!$B:$CL,'Data Validation Lists'!$B$1+2,FALSE) -> @LK-FAG-BDLC15R | G110: =IF(AND(B110>0,'Data Validation Lists'!$I$1=1),B110,"") ->  | H110: =IF(AND(B110>0,'Data Validation Lists'!$I$10>1),B110,"") ->  | R110: Furniture
A111: 1000 DL Cnr Base (600 Door) LHH | C111: =IF($E111="Not Available","",VLOOKUP(E111,'Prices Furniture'!A:F,6,FALSE)*(1-$S$3)) -> 838 | D111: =IF(B111="","",B111*C111) ->  | E111: =VLOOKUP(A111,Codes!$B:$CL,'Data Validation Lists'!$B$1+2,FALSE) -> @LK-FAG-BDLC16L | G111: =IF(AND(B111>0,'Data Validation Lists'!$I$1=1),B111,"") ->  | H111: =IF(AND(B111>0,'Data Validation Lists'!$I$10>1),B111,"") ->  | R111: Furniture
A112: 1000 DL Cnr Base (600 Door) RHH | C112: =IF($E112="Not Available","",VLOOKUP(E112,'Prices Furniture'!A:F,6,FALSE)*(1-$S$3)) -> 838 | D112: =IF(B112="","",B112*C112) ->  | E112: =VLOOKUP(A112,Codes!$B:$CL,'Data Validation Lists'!$B$1+2,FALSE) -> @LK-FAG-BDLC16R | G112: =IF(AND(B112>0,'Data Validation Lists'!$I$1=1),B112,"") ->  | H112: =IF(AND(B112>0,'Data Validation Lists'!$I$10>1),B112,"") ->  | R112: Furniture
A114: 300 HL Pan Drawer Unit with 2 Internal Drawers | C114: =IF($E114="Not Available","",VLOOKUP(E114,'Prices Furniture'!A:F,6,FALSE)*(1-$S$3)) -> 732 | D114: =IF(B114="","",B114*C114) ->  | E114: =VLOOKUP(A114,Codes!$B:$CL,'Data Validation Lists'!$B$1+2,FALSE) -> @LK-FAG-BHD3 | G114: =IF(AND(B114>0,'Data Validation Lists'!$I$1=1),B114,"") ->  | H114: =IF(AND($B114>0,'Data Validation Lists'!$I$10>1),SUM($B114*2),"") ->  | I114: =IF(AND($B114>0,'Data Validation Lists'!$I$10>1),SUM($B114*1),"") ->  | N114: =M114*B114 -> 0 | R114: Furniture | T114: =IF(B114="","",SUM(D114/1.2)*(1-$S$2)/(1-$S$3)) -> 
A115: 400 HL Pan Drawer Unit with 2 Internal Drawers | C115: =IF($E115="Not Available","",VLOOKUP(E115,'Prices Furniture'!A:F,6,FALSE)*(1-$S$3)) -> 783 | D115: =IF(B115="","",B115*C115) ->  | E115: =VLOOKUP(A115,Codes!$B:$CL,'Data Validation Lists'!$B$1+2,FALSE) -> @LK-FAG-BHD4 | G115: =IF(AND(B115>0,'Data Validation Lists'!$I$1=1),B115,"") ->  | H115: =IF(AND($B115>0,'Data Validation Lists'!$I$10>1),SUM($B115*2),"") ->  | I115: =IF(AND($B115>0,'Data Validation Lists'!$I$10>1),SUM($B115*1),"") ->  | K115: =IF(AND($B115>0,'Data Validation Lists'!$I$10>1),SUM($B115*3),"") ->  | L115: =IF(AND($B115>0,'Data Validation Lists'!$I$10>1),SUM($B115*1),"") ->  | N115: =M115*B115 -> 0 | R115: Furniture | T115: =IF(B115="","",SUM(D115/1.2)*(1-$S$2)/(1-$S$3)) -> 
A116: 500 HL Pan Drawer Unit with 2 Internal Drawers | C116: =IF($E116="Not Available","",VLOOKUP(E116,'Prices Furniture'!A:F,6,FALSE)*(1-$S$3)) -> 855 | E116: =VLOOKUP(A116,Codes!$B:$CL,'Data Validation Lists'!$B$1+2,FALSE) -> @LK-FAG-BHD5 | G116: =IF(AND(B116>0,'Data Validation Lists'!$I$1=1),B116,"") ->  | H116: =IF(AND($B116>0,'Data Validation Lists'!$I$10>1),SUM($B116*2),"") ->  | I116: =IF(AND($B116>0,'Data Validation Lists'!$I$10>1),SUM($B116*1),"") ->  | K116: =IF(AND($B116>0,'Data Validation Lists'!$I$10>1),SUM($B116*3),"") ->  | L116: =IF(AND($B116>0,'Data Validation Lists'!$I$10>1),SUM($B116*1),"") ->  | N116: =M116*B116 -> 0 | R116: Furniture | T116: =IF(B116="","",SUM(D116/1.2)*(1-$S$2)/(1-$S$3)) -> 
A117: 600 HL Pan Drawer Unit with 2 Internal Drawers | C117: =IF($E117="Not Available","",VLOOKUP(E117,'Prices Furniture'!A:F,6,FALSE)*(1-$S$3)) -> 917 | D117: =IF(B117="","",B117*C117) ->  | E117: =VLOOKUP(A117,Codes!$B:$CL,'Data Validation Lists'!$B$1+2,FALSE) -> @LK-FAG-BHD6 | G117: =IF(AND(B117>0,'Data Validation Lists'!$I$1=1),B117,"") ->  | H117: =IF(AND($B117>0,'Data Validation Lists'!$I$10>1),SUM($B117*2),"") ->  | I117: =IF(AND($B117>0,'Data Validation Lists'!$I$10>1),SUM($B117*1),"") ->  | N117: 0 | R117: Furniture | T117: =IF(B117="","",SUM(D117/1.2)*(1-$S$2)/(1-$S$3)) -> 
A119: 500 4 Drw Base Unit | C119: =IF($E119="Not Available","",VLOOKUP(E119,'Prices Furniture'!A:F,6,FALSE)*(1-$S$3)) -> 1006 | D119: =IF(B119="","",B119*C119) ->  | E119: =VLOOKUP(A119,Codes!$B:$CL,'Data Validation Lists'!$B$1+2,FALSE) -> @LK-FAG-BD54 | G119: =IF(AND(B119>0,'Data Validation Lists'!$I$1=1),B119,"") ->  | H119: =IF(AND($B119>0,'Data Validation Lists'!$I$10>1),SUM($B119*3),"") ->  | I119: =IF(AND($B119>0,'Data Validation Lists'!$I$10>1),SUM($B119*1),"") ->  | K119: =IF(AND($B119>0,'Data Validation Lists'!$I$10>1),SUM($B119*3),"") ->  | L119: =IF(AND($B119>0,'Data Validation Lists'!$I$10>1),SUM($B119*1),"") ->  | M119: 1 | N119: =M119*B119 -> 0 | R119: Furniture | T119: =IF(B119="","",SUM(D119/1.2)*(1-$S$2)/(1-$S$3)) -> 
A121: 500 3 Drw Base Unit | C121: =IF($E121="Not Available","",VLOOKUP(E121,'Prices Furniture'!A:F,6,FALSE)*(1-$S$3)) -> 869 | D121: =IF(B121="","",B121*C121) ->  | E121: =VLOOKUP(A121,Codes!$B:$CL,'Data Validation Lists'!$B$1+2,FALSE) -> @LK-FAG-BD53 | G121: =IF(AND(B121>0,'Data Validation Lists'!$I$1=1),B121,"") ->  | H121: =IF(AND($B121>0,'Data Validation Lists'!$I$10>1),SUM($B121*1),"") ->  | I121: =IF(AND($B121>0,'Data Validation Lists'!$I$10>1),SUM($B121*2),"") ->  | M121: 1 | N121: =M121*B121 -> 0 | R121: Furniture | T121: =IF(B121="","",SUM(D121/1.2)*(1-$S$2)/(1-$S$3)) -> 
A122: 600 3 Drw Base Unit | C122: =IF($E122="Not Available","",VLOOKUP(E122,'Prices Furniture'!A:F,6,FALSE)*(1-$S$3)) -> 925 | E122: =VLOOKUP(A122,Codes!$B:$CL,'Data Validation Lists'!$B$1+2,FALSE) -> @LK-FAG-BD63 | G122: =IF(AND(B122>0,'Data Validation Lists'!$I$1=1),B122,"") ->  | H122: =IF(AND($B122>0,'Data Validation Lists'!$I$10>1),SUM($B122*1),"") ->  | I122: =IF(AND($B122>0,'Data Validation Lists'!$I$10>1),SUM($B122*2),"") ->  | M122: 1 | N122: 0 | R122: Furniture | T122: =IF(B122="","",SUM(D122/1.2)*(1-$S$2)/(1-$S$3)) -> 
A123: 800 3 Drw Base Unit | C123: =IF($E123="Not Available","",VLOOKUP(E123,'Prices Furniture'!A:F,6,FALSE)*(1-$S$3)) -> 1017 | E123: =VLOOKUP(A123,Codes!$B:$CL,'Data Validation Lists'!$B$1+2,FALSE) -> @LK-FAG-BD83 | G123: =IF(AND(B123>0,'Data Validation Lists'!$I$1=1),B123,"") ->  | H123: =IF(AND($B123>0,'Data Validation Lists'!$I$10>1),SUM($B123*1),"") ->  | I123: =IF(AND($B123>0,'Data Validation Lists'!$I$10>1),SUM($B123*2),"") ->  | M123: 1 | N123: 0 | R123: Furniture | T123: =IF(B123="","",SUM(D123/1.2)*(1-$S$2)/(1-$S$3)) -> 
A124: 900 3 Drw Base Unit | C124: =IF($E124="Not Available","",VLOOKUP(E124,'Prices Furniture'!A:F,6,FALSE)*(1-$S$3)) -> 1062 | E124: =VLOOKUP(A124,Codes!$B:$CL,'Data Validation Lists'!$B$1+2,FALSE) -> @LK-FAG-BD93 | G124: =IF(AND(B124>0,'Data Validation Lists'!$I$1=1),B124,"") ->  | H124: =IF(AND($B124>0,'Data Validation Lists'!$I$10>1),SUM($B124*1),"") ->  | I124: =IF(AND($B124>0,'Data Validation Lists'!$I$10>1),SUM($B124*2),"") ->  | M124: 1 | N124: 0 | R124: Furniture | T124: =IF(B124="","",SUM(D124/1.2)*(1-$S$2)/(1-$S$3)) -> 
A125: 1000 3 Drw Base Unit | C125: =IF($E125="Not Available","",VLOOKUP(E125,'Prices Furniture'!A:F,6,FALSE)*(1-$S$3)) -> 1114 | E125: =VLOOKUP(A125,Codes!$B:$CL,'Data Validation Lists'!$B$1+2,FALSE) -> @LK-FAG-BD13 | G125: =IF(AND(B125>0,'Data Validation Lists'!$I$1=1),B125,"") ->  | H125: =IF(AND($B125>0,'Data Validation Lists'!$I$10>1),SUM($B125*1),"") ->  | I125: =IF(AND($B125>0,'Data Validation Lists'!$I$10>1),SUM($B125*2),"") ->  | M125: 1 | N125: 0 | R125: Furniture | T125: =IF(B125="","",SUM(D125/1.2)*(1-$S$2)/(1-$S$3)) -> 
A127: 500 2 Pan Drw Unit | C127: =IF($E127="Not Available","",VLOOKUP(E127,'Prices Furniture'!A:F,6,FALSE)*(1-$S$3)) ->  | D127: =IF(B127="","",B127*C127) ->  | E127: =VLOOKUP(A127,Codes!$B:$CL,'Data Validation Lists'!$B$1+2,FALSE) -> Not Available | G127: =IF(AND(B127>0,'Data Validation Lists'!$I$1=1),B127,"") ->  | I127: =IF(AND($B127>0,'Data Validation Lists'!$I$10>1),SUM($B127*2),"") ->  | M127: 1 | N127: =M127*B127 -> 0 | R127: Furniture | T127: =IF(B127="","",SUM(D127/1.2)*(1-$S$2)/(1-$S$3)) -> 
A128: 600 2 Pan Drw Unit | C128: =IF($E128="Not Available","",VLOOKUP(E128,'Prices Furniture'!A:F,6,FALSE)*(1-$S$3)) -> 797 | D128: =IF(B128="","",B128*C128) ->  | E128: =VLOOKUP(A128,Codes!$B:$CL,'Data Validation Lists'!$B$1+2,FALSE) -> @LK-FAG-BD62 | G128: =IF(AND(B128>0,'Data Validation Lists'!$I$1=1),B128,"") ->  | I128: =IF(AND($B128>0,'Data Validation Lists'!$I$10>1),SUM($B128*2),"") ->  | M128: 1 | N128: 0 | R128: Furniture | T128: =IF(B128="","",SUM(D128/1.2)*(1-$S$2)/(1-$S$3)) -> 
A129: 800 2 Pan Drw Unit | C129: =IF($E129="Not Available","",VLOOKUP(E129,'Prices Furniture'!A:F,6,FALSE)*(1-$S$3)) -> 866 | E129: =VLOOKUP(A129,Codes!$B:$CL,'Data Validation Lists'!$B$1+2,FALSE) -> @LK-FAG-BD82 | G129: =IF(AND(B129>0,'Data Validation Lists'!$I$1=1),B129,"") ->  | I129: =IF(AND($B129>0,'Data Validation Lists'!$I$10>1),SUM($B129*2),"") ->  | M129: 1 | N129: 0 | R129: Furniture | T129: =IF(B129="","",SUM(D129/1.2)*(1-$S$2)/(1-$S$3)) -> 
A130: 900 2 Pan Drw Unit | C130: =IF($E130="Not Available","",VLOOKUP(E130,'Prices Furniture'!A:F,6,FALSE)*(1-$S$3)) -> 968 | E130: =VLOOKUP(A130,Codes!$B:$CL,'Data Validation Lists'!$B$1+2,FALSE) -> @LK-FAG-BD92 | G130: =IF(AND(B130>0,'Data Validation Lists'!$I$1=1),B130,"") ->  | I130: =IF(AND($B130>0,'Data Validation Lists'!$I$10>1),SUM($B130*2),"") ->  | M130: 1 | N130: 0 | R130: Furniture | T130: =IF(B130="","",SUM(D130/1.2)*(1-$S$2)/(1-$S$3)) -> 
A131: 1000 2 Pan Drw Unit | C131: =IF($E131="Not Available","",VLOOKUP(E131,'Prices Furniture'!A:F,6,FALSE)*(1-$S$3)) -> 992 | E131: =VLOOKUP(A131,Codes!$B:$CL,'Data Validation Lists'!$B$1+2,FALSE) -> @LK-FAG-BD12 | G131: =IF(AND(B131>0,'Data Validation Lists'!$I$1=1),B131,"") ->  | I131: =IF(AND($B131>0,'Data Validation Lists'!$I$10>1),SUM($B131*2),"") ->  | M131: 1 | N131: 0 | R131: Furniture | T131: =IF(B131="","",SUM(D131/1.2)*(1-$S$2)/(1-$S$3)) -> 
A133: 600 2 Pan Drw Unit + 1 Internal | C133: =IF($E133="Not Available","",VLOOKUP(E133,'Prices Furniture'!A:F,6,FALSE)*(1-$S$3)) -> 973 | D133: =IF(B133="","",B133*C133) ->  | E133: =VLOOKUP(A133,Codes!$B:$CL,'Data Validation Lists'!$B$1+2,FALSE) -> @LK-FAG-BD62I | G133: =IF(AND(B133>0,'Data Validation Lists'!$I$1=1),B133,"") ->  | H133: =IF(AND($B133>0,'Data Validation Lists'!$I$10>1),SUM($B133*1),"") ->  | I133: =IF(AND($B133>0,'Data Validation Lists'!$I$10>1),SUM($B133*2),"") ->  | R133: Furniture | T133: =IF(B133="","",SUM(D133/1.2)*(1-$S$2)/(1-$S$3)) -> 
A134: 800 2 Pan Drw Unit + 1 Internal | C134: =IF($E134="Not Available","",VLOOKUP(E134,'Prices Furniture'!A:F,6,FALSE)*(1-$S$3)) -> 1059 | D134: =IF(B134="","",B134*C134) ->  | E134: =VLOOKUP(A134,Codes!$B:$CL,'Data Validation Lists'!$B$1+2,FALSE) -> @LK-FAG-BD82I | G134: =IF(AND(B134>0,'Data Validation Lists'!$I$1=1),B134,"") ->  | H134: =IF(AND($B134>0,'Data Validation Lists'!$I$10>1),SUM($B134*1),"") ->  | I134: =IF(AND($B134>0,'Data Validation Lists'!$I$10>1),SUM($B134*2),"") ->  | R134: Furniture | T134: =IF(B134="","",SUM(D134/1.2)*(1-$S$2)/(1-$S$3)) -> 
A135: 900 2 Pan Drw Unit + 1 Internal | C135: =IF($E135="Not Available","",VLOOKUP(E135,'Prices Furniture'!A:F,6,FALSE)*(1-$S$3)) -> 1169 | D135: =IF(B135="","",B135*C135) ->  | E135: =VLOOKUP(A135,Codes!$B:$CL,'Data Validation Lists'!$B$1+2,FALSE) -> @LK-FAG-BD92I | G135: =IF(AND(B135>0,'Data Validation Lists'!$I$1=1),B135,"") ->  | H135: =IF(AND($B135>0,'Data Validation Lists'!$I$10>1),SUM($B135*1),"") ->  | I135: =IF(AND($B135>0,'Data Validation Lists'!$I$10>1),SUM($B135*2),"") ->  | R135: Furniture | T135: =IF(B135="","",SUM(D135/1.2)*(1-$S$2)/(1-$S$3)) -> 
A136: 1000 2 Pan Drw Unit + 1 Internal | C136: =IF($E136="Not Available","",VLOOKUP(E136,'Prices Furniture'!A:F,6,FALSE)*(1-$S$3)) -> 1198 | D136: =IF(B136="","",B136*C136) ->  | E136: =VLOOKUP(A136,Codes!$B:$CL,'Data Validation Lists'!$B$1+2,FALSE) -> @LK-FAG-BD12I | G136: =IF(AND(B136>0,'Data Validation Lists'!$I$1=1),B136,"") ->  | H136: =IF(AND($B136>0,'Data Validation Lists'!$I$10>1),SUM($B136*1),"") ->  | I136: =IF(AND($B136>0,'Data Validation Lists'!$I$10>1),SUM($B136*2),"") ->  | R136: Furniture | T136: =IF(B136="","",SUM(D136/1.2)*(1-$S$2)/(1-$S$3)) -> 
A138: 600 Low Single Drawer unit 360 high | C138: =IF($E138="Not Available","",VLOOKUP(E138,'Prices Furniture'!A:F,6,FALSE)*(1-$S$3)) -> 441 | D138: =IF(B138="","",B138*C138) ->  | E138: =VLOOKUP(A138,Codes!$B:$CL,'Data Validation Lists'!$B$1+2,FALSE) -> @LK-FAG-BD635L | G138: =IF(AND(B138>0,'Data Validation Lists'!$I$1=1),B138,"") ->  | J138: =IF(AND($B138>0,'Data Validation Lists'!$I$10>1),SUM($B138*1),"") ->  | R138: Furniture | T138: =IF(B138="","",SUM(D138/1.2)*(1-$S$2)/(1-$S$3)) -> 
A140: Wall Units (575mm High) | G140: =IF(AND(B140>0,'Data Validation Lists'!$I$1=1),B140,"") ->  | M140: 0 | N140: =M140*B140 -> 0 | R140: Furniture | T140: =IF(B140="","",SUM(D140/1.2)*(1-$S$2)/(1-$S$3)) -> 
G141: =IF(AND(B141>0,'Data Validation Lists'!$I$1=1),B141,"") ->  | M141: 0 | N141: 0 | R141: Furniture
A142: 300 Wall Unit (575mm High) LHH | C142: =IF($E142="Not Available","",VLOOKUP(E142,'Prices Furniture'!A:F,6,FALSE)*(1-$S$3)) -> 291 | D142: =IF(B142="","",B142*C142) ->  | E142: =VLOOKUP(A142,Codes!$B:$CL,'Data Validation Lists'!$B$1+2,FALSE) -> @LK-FAG-W357L | G142: =IF(AND(B142>0,'Data Validation Lists'!$I$1=1),B142,"") ->  | R142: Furniture
A143: 300 Wall Unit (575mm High) RHH | C143: =IF($E143="Not Available","",VLOOKUP(E143,'Prices Furniture'!A:F,6,FALSE)*(1-$S$3)) -> 291 | E143: =VLOOKUP(A143,Codes!$B:$CL,'Data Validation Lists'!$B$1+2,FALSE) -> @LK-FAG-W357R | G143: =IF(AND(B143>0,'Data Validation Lists'!$I$1=1),B143,"") ->  | R143: Furniture
A144: 400 Wall Unit (575mm High) LHH | C144: =IF($E144="Not Available","",VLOOKUP(E144,'Prices Furniture'!A:F,6,FALSE)*(1-$S$3)) -> 331 | E144: =VLOOKUP(A144,Codes!$B:$CL,'Data Validation Lists'!$B$1+2,FALSE) -> @LK-FAG-W457L | G144: =IF(AND(B144>0,'Data Validation Lists'!$I$1=1),B144,"") ->  | M144: 1 | N144: =M144*B144 -> 0 | R144: Furniture
A145: 400 Wall Unit (575mm High) RHH | C145: =IF($E145="Not Available","",VLOOKUP(E145,'Prices Furniture'!A:F,6,FALSE)*(1-$S$3)) -> 331 | E145: =VLOOKUP(A145,Codes!$B:$CL,'Data Validation Lists'!$B$1+2,FALSE) -> @LK-FAG-W457R | G145: =IF(AND(B145>0,'Data Validation Lists'!$I$1=1),B145,"") ->  | M145: 1 | N145: 0 | R145: Furniture
A146: 450 Wall Unit (575mm High) LHH | C146: =IF($E146="Not Available","",VLOOKUP(E146,'Prices Furniture'!A:F,6,FALSE)*(1-$S$3)) -> 349 | E146: =VLOOKUP(A146,Codes!$B:$CL,'Data Validation Lists'!$B$1+2,FALSE) -> @LK-FAG-W4557L | G146: =IF(AND(B146>0,'Data Validation Lists'!$I$1=1),B146,"") ->  | M146: 1 | N146: 0 | R146: Furniture
A147: 450 Wall Unit (575mm High) RHH | C147: =IF($E147="Not Available","",VLOOKUP(E147,'Prices Furniture'!A:F,6,FALSE)*(1-$S$3)) -> 349 | E147: =VLOOKUP(A147,Codes!$B:$CL,'Data Validation Lists'!$B$1+2,FALSE) -> @LK-FAG-W4557R | G147: =IF(AND(B147>0,'Data Validation Lists'!$I$1=1),B147,"") ->  | M147: 1 | N147: 0 | R147: Furniture
A148: 500 Wall Unit (575mm High) LHH | C148: =IF($E148="Not Available","",VLOOKUP(E148,'Prices Furniture'!A:F,6,FALSE)*(1-$S$3)) -> 370 | E148: =VLOOKUP(A148,Codes!$B:$CL,'Data Validation Lists'!$B$1+2,FALSE) -> @LK-FAG-W557L | G148: =IF(AND(B148>0,'Data Validation Lists'!$I$1=1),B148,"") ->  | R148: Furniture
A149: 500 Wall Unit (575mm High) RHH | C149: =IF($E149="Not Available","",VLOOKUP(E149,'Prices Furniture'!A:F,6,FALSE)*(1-$S$3)) -> 370 | E149: =VLOOKUP(A149,Codes!$B:$CL,'Data Validation Lists'!$B$1+2,FALSE) -> @LK-FAG-W557R | G149: =IF(AND(B149>0,'Data Validation Lists'!$I$1=1),B149,"") ->  | R149: Furniture
A150: 600 Wall Unit (575mm High) LHH | C150: =IF($E150="Not Available","",VLOOKUP(E150,'Prices Furniture'!A:F,6,FALSE)*(1-$S$3)) -> 367 | E150: =VLOOKUP(A150,Codes!$B:$CL,'Data Validation Lists'!$B$1+2,FALSE) -> @LK-FAG-W657L | G150: =IF(AND(B150>0,'Data Validation Lists'!$I$1=1),B150,"") ->  | M150: 1 | N150: =M150*B150 -> 0 | R150: Furniture
A151: 600 Wall Unit (575mm High) RHH | C151: =IF($E151="Not Available","",VLOOKUP(E151,'Prices Furniture'!A:F,6,FALSE)*(1-$S$3)) -> 367 | E151: =VLOOKUP(A151,Codes!$B:$CL,'Data Validation Lists'!$B$1+2,FALSE) -> @LK-FAG-W657R | G151: =IF(AND(B151>0,'Data Validation Lists'!$I$1=1),B151,"") ->  | M151: 1 | N151: 0 | R151: Furniture
A152: 800 Wall Unit (575mm High) | C152: =IF($E152="Not Available","",VLOOKUP(E152,'Prices Furniture'!A:F,6,FALSE)*(1-$S$3)) -> 581 | E152: =VLOOKUP(A152,Codes!$B:$CL,'Data Validation Lists'!$B$1+2,FALSE) -> @LK-FAG-W857 | G152: =IF(AND(B152>0,'Data Validation Lists'!$I$1=1),B152,"") ->  | M152: 1 | N152: 0 | R152: Furniture
A153: 900 Wall Unit (575mm High) | C153: =IF($E153="Not Available","",VLOOKUP(E153,'Prices Furniture'!A:F,6,FALSE)*(1-$S$3)) -> 603 | E153: =VLOOKUP(A153,Codes!$B:$CL,'Data Validation Lists'!$B$1+2,FALSE) -> @LK-FAG-W957 | G153: =IF(AND(B153>0,'Data Validation Lists'!$I$1=1),B153,"") ->  | M153: 1 | N153: 0 | R153: Furniture
A154: 1000 Wall Unit (575mm High) | C154: =IF($E154="Not Available","",VLOOKUP(E154,'Prices Furniture'!A:F,6,FALSE)*(1-$S$3)) -> 642 | D154: =IF(B154="","",B154*C154) ->  | E154: =VLOOKUP(A154,Codes!$B:$CL,'Data Validation Lists'!$B$1+2,FALSE) -> @LK-FAG-W157 | G154: =IF(AND(B154>0,'Data Validation Lists'!$I$1=1),B154,"") ->  | M154: 1 | N154: =M154*B154 -> 0 | R154: Furniture | T154: =IF(B154="","",SUM(D154/1.2)*(1-$S$2)/(1-$S$3)) -> 
A155: 600 Corner Wall Unit (575mm High) LHH | C155: =IF($E155="Not Available","",VLOOKUP(E155,'Prices Furniture'!A:F,6,FALSE)*(1-$S$3)) -> 441 | E155: =VLOOKUP(A155,Codes!$B:$CL,'Data Validation Lists'!$B$1+2,FALSE) -> @LK-FAG-WC657L | G155: =IF(AND(B155>0,'Data Validation Lists'!$I$1=1),B155,"") ->  | M155: 1 | N155: 0 | R155: Furniture
A156: 600 Corner Wall Unit (575mm High) RHH | C156: =IF($E156="Not Available","",VLOOKUP(E156,'Prices Furniture'!A:F,6,FALSE)*(1-$S$3)) -> 441 | E156: =VLOOKUP(A156,Codes!$B:$CL,'Data Validation Lists'!$B$1+2,FALSE) -> @LK-FAG-WC657R | G156: =IF(AND(B156>0,'Data Validation Lists'!$I$1=1),B156,"") ->  | M156: 1 | N156: 0 | R156: Furniture
A157: 900 Corner Wall Unit (575mm High) LHH | C157: =IF($E157="Not Available","",VLOOKUP(E157,'Prices Furniture'!A:F,6,FALSE)*(1-$S$3)) -> 510 | E157: =VLOOKUP(A157,Codes!$B:$CL,'Data Validation Lists'!$B$1+2,FALSE) -> @LK-FAG-WC957L | G157: =IF(AND(B157>0,'Data Validation Lists'!$I$1=1),B157,"") ->  | M157: 1 | N157: 0 | R157: Furniture
A158: 900 Corner Wall Unit (575mm High) RHH | C158: =IF($E158="Not Available","",VLOOKUP(E158,'Prices Furniture'!A:F,6,FALSE)*(1-$S$3)) -> 542 | E158: =VLOOKUP(A158,Codes!$B:$CL,'Data Validation Lists'!$B$1+2,FALSE) -> @LK-FAG-WC957R | G158: =IF(AND(B158>0,'Data Validation Lists'!$I$1=1),B158,"") ->  | M158: 1 | N158: 0 | R158: Furniture
A159: Wall Units (720mm High) | G159: =IF(AND(B159>0,'Data Validation Lists'!$I$1=1),B159,"") ->  | M159: 0 | N159: =M159*B159 -> 0 | R159: Furniture | T159: =IF(B159="","",SUM(D159/1.2)*(1-$S$2)/(1-$S$3)) -> 
G160: =IF(AND(B160>0,'Data Validation Lists'!$I$1=1),B160,"") ->  | M160: 0 | N160: 0 | R160: Furniture
A161: 150 Wall Unit (720mm High) LHH | C161: =IF($E161="Not Available","",VLOOKUP(E161,'Prices Furniture'!A:F,6,FALSE)*(1-$S$3)) -> 262 | D161: =IF(B161="","",B161*C161) ->  | E161: =VLOOKUP(A161,Codes!$B:$CL,'Data Validation Lists'!$B$1+2,FALSE) -> @LK-FAG-W15L | G161: =IF(AND(B161>0,'Data Validation Lists'!$I$1=1),B161,"") ->  | R161: Furniture
A162: 150 Wall Unit (720mm High) RHH | C162: =IF($E162="Not Available","",VLOOKUP(E162,'Prices Furniture'!A:F,6,FALSE)*(1-$S$3)) -> 262 | D162: =IF(B162="","",B162*C162) ->  | E162: =VLOOKUP(A162,Codes!$B:$CL,'Data Validation Lists'!$B$1+2,FALSE) -> @LK-FAG-W15R | G162: =IF(AND(B162>0,'Data Validation Lists'!$I$1=1),B162,"") ->  | R162: Furniture
A163: 260 Wall Unit (720mm High) LHH | C163: =IF($E163="Not Available","",VLOOKUP(E163,'Prices Furniture'!A:F,6,FALSE)*(1-$S$3)) -> 296 | E163: =VLOOKUP(A163,Codes!$B:$CL,'Data Validation Lists'!$B$1+2,FALSE) -> @LK-FAG-W26L | G163: =IF(AND(B163>0,'Data Validation Lists'!$I$1=1),B163,"") ->  | M163: 1 | N163: =M163*B163 -> 0 | R163: Furniture
A164: 260 Wall Unit (720mm High) RHH | C164: =IF($E164="Not Available","",VLOOKUP(E164,'Prices Furniture'!A:F,6,FALSE)*(1-$S$3)) -> 296 | E164: =VLOOKUP(A164,Codes!$B:$CL,'Data Validation Lists'!$B$1+2,FALSE) -> @LK-FAG-W26R | G164: =IF(AND(B164>0,'Data Validation Lists'!$I$1=1),B164,"") ->  | M164: 1 | N164: 0 | R164: Furniture
A165: 300 Wall Unit (720mm High) LHH | C165: =IF($E165="Not Available","",VLOOKUP(E165,'Prices Furniture'!A:F,6,FALSE)*(1-$S$3)) -> 325 | E165: =VLOOKUP(A165,Codes!$B:$CL,'Data Validation Lists'!$B$1+2,FALSE) -> @LK-FAG-W30L | G165: =IF(AND(B165>0,'Data Validation Lists'!$I$1=1),B165,"") ->  | M165: 1 | N165: 0 | R165: Furniture
A166: 300 Wall Unit (720mm High) RHH | C166: =IF($E166="Not Available","",VLOOKUP(E166,'Prices Furniture'!A:F,6,FALSE)*(1-$S$3)) -> 325 | E166: =VLOOKUP(A166,Codes!$B:$CL,'Data Validation Lists'!$B$1+2,FALSE) -> @LK-FAG-W30R | G166: =IF(AND(B166>0,'Data Validation Lists'!$I$1=1),B166,"") ->  | M166: 1 | N166: 0 | R166: Furniture
A167: 350 Wall Unit (720mm High) LHH | C167: =IF($E167="Not Available","",VLOOKUP(E167,'Prices Furniture'!A:F,6,FALSE)*(1-$S$3)) -> 328 | E167: =VLOOKUP(A167,Codes!$B:$CL,'Data Validation Lists'!$B$1+2,FALSE) -> @LK-FAG-W35L | G167: =IF(AND(B167>0,'Data Validation Lists'!$I$1=1),B167,"") ->  | R167: Furniture
A168: 350 Wall Unit (720mm High) RHH | C168: =IF($E168="Not Available","",VLOOKUP(E168,'Prices Furniture'!A:F,6,FALSE)*(1-$S$3)) -> 328 | E168: =VLOOKUP(A168,Codes!$B:$CL,'Data Validation Lists'!$B$1+2,FALSE) -> @LK-FAG-W35R | G168: =IF(AND(B168>0,'Data Validation Lists'!$I$1=1),B168,"") ->  | R168: Furniture
A169: 400 Wall Unit (720mm High) LHH | C169: =IF($E169="Not Available","",VLOOKUP(E169,'Prices Furniture'!A:F,6,FALSE)*(1-$S$3)) -> 341 | E169: =VLOOKUP(A169,Codes!$B:$CL,'Data Validation Lists'!$B$1+2,FALSE) -> @LK-FAG-W40L | G169: =IF(AND(B169>0,'Data Validation Lists'!$I$1=1),B169,"") ->  | M169: 1 | N169: =M169*B169 -> 0 | R169: Furniture
A170: 400 Wall Unit (720mm High) RHH | C170: =IF($E170="Not Available","",VLOOKUP(E170,'Prices Furniture'!A:F,6,FALSE)*(1-$S$3)) -> 341 | E170: =VLOOKUP(A170,Codes!$B:$CL,'Data Validation Lists'!$B$1+2,FALSE) -> @LK-FAG-W40R | G170: =IF(AND(B170>0,'Data Validation Lists'!$I$1=1),B170,"") ->  | M170: 1 | N170: 0 | R170: Furniture
A171: 450 Wall Unit (720mm High) LHH | C171: =IF($E171="Not Available","",VLOOKUP(E171,'Prices Furniture'!A:F,6,FALSE)*(1-$S$3)) -> 349 | E171: =VLOOKUP(A171,Codes!$B:$CL,'Data Validation Lists'!$B$1+2,FALSE) -> @LK-FAG-W45L | G171: =IF(AND(B171>0,'Data Validation Lists'!$I$1=1),B171,"") ->  | M171: 1 | N171: 0 | R171: Furniture
A172: 450 Wall Unit (720mm High) RHH | C172: =IF($E172="Not Available","",VLOOKUP(E172,'Prices Furniture'!A:F,6,FALSE)*(1-$S$3)) -> 349 | E172: =VLOOKUP(A172,Codes!$B:$CL,'Data Validation Lists'!$B$1+2,FALSE) -> @LK-FAG-W45R | G172: =IF(AND(B172>0,'Data Validation Lists'!$I$1=1),B172,"") ->  | M172: 1 | N172: 0 | R172: Furniture
A173: 500 Wall Unit (720mm High) LHH | C173: =IF($E173="Not Available","",VLOOKUP(E173,'Prices Furniture'!A:F,6,FALSE)*(1-$S$3)) -> 381 | E173: =VLOOKUP(A173,Codes!$B:$CL,'Data Validation Lists'!$B$1+2,FALSE) -> @LK-FAG-W50L | G173: =IF(AND(B173>0,'Data Validation Lists'!$I$1=1),B173,"") ->  | M173: 1 | N173: 0 | R173: Furniture
A174: 500 Wall Unit (720mm High) RHH | C174: =IF($E174="Not Available","",VLOOKUP(E174,'Prices Furniture'!A:F,6,FALSE)*(1-$S$3)) -> 381 | E174: =VLOOKUP(A174,Codes!$B:$CL,'Data Validation Lists'!$B$1+2,FALSE) -> @LK-FAG-W50R | G174: =IF(AND(B174>0,'Data Validation Lists'!$I$1=1),B174,"") ->  | M174: 1 | N174: 0 | R174: Furniture
A175: 600 Wall Unit (720mm High) LHH | C175: =IF($E175="Not Available","",VLOOKUP(E175,'Prices Furniture'!A:F,6,FALSE)*(1-$S$3)) -> 411 | E175: =VLOOKUP(A175,Codes!$B:$CL,'Data Validation Lists'!$B$1+2,FALSE) -> @LK-FAG-W60L | G175: =IF(AND(B175>0,'Data Validation Lists'!$I$1=1),B175,"") ->  | M175: 1 | N175: 0 | R175: Furniture
A176: 600 Wall Unit (720mm High) RHH | C176: =IF($E176="Not Available","",VLOOKUP(E176,'Prices Furniture'!A:F,6,FALSE)*(1-$S$3)) -> 411 | E176: =VLOOKUP(A176,Codes!$B:$CL,'Data Validation Lists'!$B$1+2,FALSE) -> @LK-FAG-W60R | G176: =IF(AND(B176>0,'Data Validation Lists'!$I$1=1),B176,"") ->  | M176: 1 | N176: 0 | R176: Furniture
A177: 700 Wall Unit (720mm High) | C177: =IF($E177="Not Available","",VLOOKUP(E177,'Prices Furniture'!A:F,6,FALSE)*(1-$S$3)) -> 585 | E177: =VLOOKUP(A177,Codes!$B:$CL,'Data Validation Lists'!$B$1+2,FALSE) -> @LK-FAG-W70 | G177: =IF(AND(B177>0,'Data Validation Lists'!$I$1=1),B177,"") ->  | R177: Furniture
A178: 800 Wall Unit (720mm High) | C178: =IF($E178="Not Available","",VLOOKUP(E178,'Prices Furniture'!A:F,6,FALSE)*(1-$S$3)) -> 601 | E178: =VLOOKUP(A178,Codes!$B:$CL,'Data Validation Lists'!$B$1+2,FALSE) -> @LK-FAG-W80 | G178: =IF(AND(B178>0,'Data Validation Lists'!$I$1=1),B178,"") ->  | M178: 2 | N178: =M178*B178 -> 0 | R178: Furniture
A179: 900 Wall Unit (720mm High) | C179: =IF($E179="Not Available","",VLOOKUP(E179,'Prices Furniture'!A:F,6,FALSE)*(1-$S$3)) -> 603 | E179: =VLOOKUP(A179,Codes!$B:$CL,'Data Validation Lists'!$B$1+2,FALSE) -> @LK-FAG-W90 | G179: =IF(AND(B179>0,'Data Validation Lists'!$I$1=1),B179,"") ->  | M179: 2 | N179: 0 | R179: Furniture
A180: 1000 Wall Unit (720mm High) | C180: =IF($E180="Not Available","",VLOOKUP(E180,'Prices Furniture'!A:F,6,FALSE)*(1-$S$3)) -> 664 | E180: =VLOOKUP(A180,Codes!$B:$CL,'Data Validation Lists'!$B$1+2,FALSE) -> @LK-FAG-W100 | G180: =IF(AND(B180>0,'Data Validation Lists'!$I$1=1),B180,"") ->  | M180: 2 | N180: 0 | R180: Furniture
A182: 600 Cnr Wall Unit (720mm High) LHH | C182: =IF($E182="Not Available","",VLOOKUP(E182,'Prices Furniture'!A:F,6,FALSE)*(1-$S$3)) -> 475 | D182: =IF(B182="","",B182*C182) ->  | E182: =VLOOKUP(A182,Codes!$B:$CL,'Data Validation Lists'!$B$1+2,FALSE) -> @LK-FAG-WC6L | G182: =IF(AND(B182>0,'Data Validation Lists'!$I$1=1),B182,"") ->  | M182: 1 | N182: =M182*B182 -> 0 | R182: Furniture | T182: =IF(B182="","",SUM(D182/1.2)*(1-$S$2)/(1-$S$3)) -> 
A183: 600 Cnr Wall Unit (720mm High) RHH | C183: =IF($E183="Not Available","",VLOOKUP(E183,'Prices Furniture'!A:F,6,FALSE)*(1-$S$3)) -> 475 | D183: =IF(B183="","",B183*C183) ->  | E183: =VLOOKUP(A183,Codes!$B:$CL,'Data Validation Lists'!$B$1+2,FALSE) -> @LK-FAG-WC6R | G183: =IF(AND(B183>0,'Data Validation Lists'!$I$1=1),B183,"") ->  | M183: 1 | N183: 0 | R183: Furniture | T183: =IF(B183="","",SUM(D183/1.2)*(1-$S$2)/(1-$S$3)) -> 
A184: 900 Cnr Wall Unit (720mm High) LHH | C184: =IF($E184="Not Available","",VLOOKUP(E184,'Prices Furniture'!A:F,6,FALSE)*(1-$S$3)) -> 554 | E184: =VLOOKUP(A184,Codes!$B:$CL,'Data Validation Lists'!$B$1+2,FALSE) -> @LK-FAG-WC9L | G184: =IF(AND(B184>0,'Data Validation Lists'!$I$1=1),B184,"") ->  | M184: 1 | N184: 0 | R184: Furniture | T184: =IF(B184="","",SUM(D184/1.2)*(1-$S$2)/(1-$S$3)) -> 
A185: 900 Cnr Wall Unit (720mm High) RHH | C185: =IF($E185="Not Available","",VLOOKUP(E185,'Prices Furniture'!A:F,6,FALSE)*(1-$S$3)) -> 554 | E185: =VLOOKUP(A185,Codes!$B:$CL,'Data Validation Lists'!$B$1+2,FALSE) -> @LK-FAG-WC9R | G185: =IF(AND(B185>0,'Data Validation Lists'!$I$1=1),B185,"") ->  | M185: 1 | N185: 0 | R185: Furniture | T185: =IF(B185="","",SUM(D185/1.2)*(1-$S$2)/(1-$S$3)) -> 
A186: 650 L Cnr Wall Unit (720mm High) | C186: =IF($E186="Not Available","",VLOOKUP(E186,'Prices Furniture'!A:F,6,FALSE)*(1-$S$3)) -> 781 | E186: =VLOOKUP(A186,Codes!$B:$CL,'Data Validation Lists'!$B$1+2,FALSE) -> @LK-FAG-WCL65 | G186: =IF(AND(B186>0,'Data Validation Lists'!$I$1=1),B186,"") ->  | M186: 0 | N186: 0 | R186: Furniture | T186: =IF(B186="","",SUM(D186/1.2)*(1-$S$2)/(1-$S$3)) -> 
A188: 600 Wall Microwave Unit | C188: =IF($E188="Not Available","",VLOOKUP(E188,'Prices Furniture'!A:F,6,FALSE)*(1-$S$3)) -> 511 | D188: =IF(B188="","",B188*C188) ->  | E188: =VLOOKUP(A188,Codes!$B:$CL,'Data Validation Lists'!$B$1+2,FALSE) -> @LK-FAG-WM60 | G188: =IF(AND(B188>0,'Data Validation Lists'!$I$1=1),B188,"") ->  | R188: Furniture | T188: =IF(B188="","",SUM(D188/1.2)*(1-$S$2)/(1-$S$3)) -> 
A189: 600 Boiler Housing LHH | C189: =IF($E189="Not Available","",VLOOKUP(E189,'Prices Furniture'!A:F,6,FALSE)*(1-$S$3)) -> 421 | D189: =IF(B189="","",B189*C189) ->  | E189: =VLOOKUP(A189,Codes!$B:$CL,'Data Validation Lists'!$B$1+2,FALSE) -> @LK-FAG-WBHUL | M189: 1 | N189: =M189*B189 -> 0 | R189: Furniture | T189: =IF(B189="","",SUM(D189/1.2)*(1-$S$2)/(1-$S$3)) -> 
A190: 600 Boiler Housing RHH | C190: =IF($E190="Not Available","",VLOOKUP(E190,'Prices Furniture'!A:F,6,FALSE)*(1-$S$3)) -> 421 | D190: =IF(B190="","",B190*C190) ->  | E190: =VLOOKUP(A190,Codes!$B:$CL,'Data Validation Lists'!$B$1+2,FALSE) -> @LK-FAG-WBHUR | M190: 1 | N190: 0 | R190: Furniture | T190: =IF(B190="","",SUM(D190/1.2)*(1-$S$2)/(1-$S$3)) -> 
A192: 600 Bifold Unit | C192: =IF($E192="Not Available","",VLOOKUP(E192,'Prices Furniture'!A:F,6,FALSE)*(1-$S$3)) -> 777 | D192: =IF(B192="","",B192*C192) ->  | E192: =VLOOKUP(A192,Codes!$B:$CL,'Data Validation Lists'!$B$1+2,FALSE) -> @LK-FAG-WBI60 | G192: =IF(AND(B192>0,'Data Validation Lists'!$I$1=1),B192,"") ->  | R192: Furniture | T192: =IF(B192="","",SUM(D192/1.2)*(1-$S$2)/(1-$S$3)) -> 
A193: 800 Bifold Unit | C193: =IF($E193="Not Available","",VLOOKUP(E193,'Prices Furniture'!A:F,6,FALSE)*(1-$S$3)) -> 877 | D193: =IF(B193="","",B193*C193) ->  | E193: =VLOOKUP(A193,Codes!$B:$CL,'Data Validation Lists'!$B$1+2,FALSE) -> @LK-FAG-WBI80 | G193: =IF(AND(B193>0,'Data Validation Lists'!$I$1=1),B193,"") ->  | R193: Furniture | T193: =IF(B193="","",SUM(D193/1.2)*(1-$S$2)/(1-$S$3)) -> 
A194: 900 Bifold Unit | C194: =IF($E194="Not Available","",VLOOKUP(E194,'Prices Furniture'!A:F,6,FALSE)*(1-$S$3)) -> 967 | D194: =IF(B194="","",B194*C194) ->  | E194: =VLOOKUP(A194,Codes!$B:$CL,'Data Validation Lists'!$B$1+2,FALSE) -> @LK-FAG-WBI90 | G194: =IF(AND(B194>0,'Data Validation Lists'!$I$1=1),B194,"") ->  | R194: Furniture | T194: =IF(B194="","",SUM(D194/1.2)*(1-$S$2)/(1-$S$3)) -> 
A195: 1000 Bifold Unit | C195: =IF($E195="Not Available","",VLOOKUP(E195,'Prices Furniture'!A:F,6,FALSE)*(1-$S$3)) -> 994 | D195: =IF(B195="","",B195*C195) ->  | E195: =VLOOKUP(A195,Codes!$B:$CL,'Data Validation Lists'!$B$1+2,FALSE) -> @LK-FAG-WBI10 | G195: =IF(AND(B195>0,'Data Validation Lists'!$I$1=1),B195,"") ->  | R195: Furniture | T195: =IF(B195="","",SUM(D195/1.2)*(1-$S$2)/(1-$S$3)) -> 
A197: 500 Glass Wall Unit LHH Dur | C197: =IF($E197="Not Available","",VLOOKUP(E197,'Prices Furniture'!A:F,6,FALSE)*(1-$S$3)) ->  | D197: =IF(B197="","",B197*C197) ->  | E197: =VLOOKUP(A197,Codes!$B:$CL,'Data Validation Lists'!$B$1+2,FALSE) -> Not Available | G197: =IF(AND(B197>0,'Data Validation Lists'!$I$1=1),B197,"") ->  | M197: 1 | N197: =M197*B197 -> 0 | R197: Furniture | T197: =IF(B197="","",SUM(D197/1.2)*(1-$S$2)/(1-$S$3)) -> 
A198: 500 Glass Wall Unit RHH Dur | C198: =IF($E198="Not Available","",VLOOKUP(E198,'Prices Furniture'!A:F,6,FALSE)*(1-$S$3)) ->  | D198: =IF(B198="","",B198*C198) ->  | E198: =VLOOKUP(A198,Codes!$B:$CL,'Data Validation Lists'!$B$1+2,FALSE) -> Not Available | G198: =IF(AND(B198>0,'Data Validation Lists'!$I$1=1),B198,"") ->  | M198: 1 | N198: 0 | R198: Furniture
A199: 500 Glass Wall Unit LHH Fav | C199: =IF($E199="Not Available","",VLOOKUP(E199,'Prices Furniture'!A:F,6,FALSE)*(1-$S$3)) -> 517 | E199: =VLOOKUP(A199,Codes!$B:$CL,'Data Validation Lists'!$B$1+2,FALSE) -> @LK-FAG-WG5-L | G199: =IF(AND(B199>0,'Data Validation Lists'!$I$1=1),B199,"") ->  | R199: Furniture
A200: 500 Glass Wall Unit RHH Fav | C200: =IF($E200="Not Available","",VLOOKUP(E200,'Prices Furniture'!A:F,6,FALSE)*(1-$S$3)) -> 517 | E200: =VLOOKUP(A200,Codes!$B:$CL,'Data Validation Lists'!$B$1+2,FALSE) -> @LK-FAG-WG5-R | G200: =IF(AND(B200>0,'Data Validation Lists'!$I$1=1),B200,"") ->  | R200: Furniture
A201: 500 Dresser Unit | C201: =IF($E201="Not Available","",VLOOKUP(E201,'Prices Furniture'!A:F,6,FALSE)*(1-$S$3)) ->  | E201: =VLOOKUP(A201,Codes!$B:$CL,'Data Validation Lists'!$B$1+2,FALSE) -> Not Available | F201: Lead Time: 8 Weeks | G201: =IF(AND(B201>0,'Data Validation Lists'!$I$1=1),B201,"") ->  | M201: 1 | N201: =M201*B201 -> 0 | R201: Furniture
A202: Glass Shelf 500 x 8mm | C202: =IF($E202="Not Available","",VLOOKUP(E202,'Prices Furniture'!A:F,6,FALSE)*(1-$S$3)) -> 70 | E202: =VLOOKUP(A202,Codes!$B:$CL,'Data Validation Lists'!$B$1+2,FALSE) -> LK-FC-GLSHLF5 | F202: Don't forget to order your glass shelves! | R202: Furniture
A203: Glass Shelf 600 x 8mm | C203: =IF($E203="Not Available","",VLOOKUP(E203,'Prices Furniture'!A:F,6,FALSE)*(1-$S$3)) -> 70 | E203: =VLOOKUP(A203,Codes!$B:$CL,'Data Validation Lists'!$B$1+2,FALSE) -> LK-FC-GLSHLF6 | F203: Don't forget to order your glass shelves! | R203: Furniture
A204: 1000 Bifold Dresser | C204: =IF($E204="Not Available","",VLOOKUP(E204,'Prices Furniture'!A:F,6,FALSE)*(1-$S$3)) ->  | D204: =IF(B204="","",B204*C204) ->  | E204: =VLOOKUP(A204,Codes!$B:$CL,'Data Validation Lists'!$B$1+2,FALSE) -> Not Available | M204: 1 | N204: 0 | R204: Furniture
A206: 1000 2 Door Breakfast Dresser 40mm Wtop | C206: =IF($E206="Not Available","",VLOOKUP(E206,'Prices Furniture'!A:F,6,FALSE)*(1-$S$3)) ->  | D206: =IF(B206="","",B206*C206) ->  | E206: =VLOOKUP(A206,Codes!$B:$CL,'Data Validation Lists'!$B$1+2,FALSE) -> Not Available | F206: Lead Time: 8 Weeks | M206: 1 | N206: =M206*B206 -> 0 | R206: Furniture | T206: =IF(B206="","",SUM(D206/1.2)*(1-$S$2)/(1-$S$3)) -> 
A207: 1000 2 Door Breakfast Dresser 30mm Wtop | C207: =IF($E207="Not Available","",VLOOKUP(E207,'Prices Furniture'!A:F,6,FALSE)*(1-$S$3)) ->  | E207: =VLOOKUP(A207,Codes!$B:$CL,'Data Validation Lists'!$B$1+2,FALSE) -> Not Available | F207: Lead Time: 8 Weeks | M207: 1 | N207: 0 | R207: Furniture
A208: 1000 2 Door Breakfast Dresser 25mm Wtop | C208: =IF($E208="Not Available","",VLOOKUP(E208,'Prices Furniture'!A:F,6,FALSE)*(1-$S$3)) ->  | E208: =VLOOKUP(A208,Codes!$B:$CL,'Data Validation Lists'!$B$1+2,FALSE) -> Not Available | F208: Lead Time: 8 Weeks | M208: 1 | N208: 0 | R208: Furniture
A209: 1000 2 Door Breakfast Dresser 20mm Wtop | C209: =IF($E209="Not Available","",VLOOKUP(E209,'Prices Furniture'!A:F,6,FALSE)*(1-$S$3)) ->  | E209: =VLOOKUP(A209,Codes!$B:$CL,'Data Validation Lists'!$B$1+2,FALSE) -> Not Available | F209: Lead Time: 8 Weeks | M209: 1 | N209: 0 | R209: Furniture
A211: Curved Wall Unit LHH | C211: =IF($E211="Not Available","",VLOOKUP(E211,'Prices Furniture'!A:F,6,FALSE)*(1-$S$3)) ->  | D211: =IF(B211="","",B211*C211) ->  | E211: =VLOOKUP(A211,Codes!$B:$CL,'Data Validation Lists'!$B$1+2,FALSE) -> Not Available | G211: =IF(AND(B211>0,'Data Validation Lists'!$I$1=1),B211,"") ->  | M211: 1 | N211: =M211*B211 -> 0 | R211: Furniture
A212: Curved Wall Unit RHH | C212: =IF($E212="Not Available","",VLOOKUP(E212,'Prices Furniture'!A:F,6,FALSE)*(1-$S$3)) ->  | E212: =VLOOKUP(A212,Codes!$B:$CL,'Data Validation Lists'!$B$1+2,FALSE) -> Not Available | G212: =IF(AND(B212>0,'Data Validation Lists'!$I$1=1),B212,"") ->  | M212: 1 | N212: 0 | R212: Furniture
A214: 600 285 Bridging Unit | C214: =IF($E214="Not Available","",VLOOKUP(E214,'Prices Furniture'!A:F,6,FALSE)*(1-$S$3)) -> 348 | D214: =IF(B214="","",B214*C214) ->  | E214: =VLOOKUP(A214,Codes!$B:$CL,'Data Validation Lists'!$B$1+2,FALSE) -> @LK-FAG-WB62 | G214: =IF(AND(B214>0,'Data Validation Lists'!$I$1=1),B214,"") ->  | M214: 1 | N214: =M214*B214 -> 0 | R214: Furniture | T214: =IF(B214="","",SUM(D214/1.2)*(1-$S$2)/(1-$S$3)) -> 
A215: 800 285 Bridging Unit | C215: =IF($E215="Not Available","",VLOOKUP(E215,'Prices Furniture'!A:F,6,FALSE)*(1-$S$3)) -> 446 | D215: =IF(B215="","",B215*C215) ->  | E215: =VLOOKUP(A215,Codes!$B:$CL,'Data Validation Lists'!$B$1+2,FALSE) -> @LK-FAG-WB82 | G215: =IF(AND(B215>0,'Data Validation Lists'!$I$1=1),B215,"") ->  | R215: Furniture | T215: =IF(B215="","",SUM(D215/1.2)*(1-$S$2)/(1-$S$3)) -> 
A216: 900 285 Bridging Unit | C216: =IF($E216="Not Available","",VLOOKUP(E216,'Prices Furniture'!A:F,6,FALSE)*(1-$S$3)) -> 460 | D216: =IF(B216="","",B216*C216) ->  | E216: =VLOOKUP(A216,Codes!$B:$CL,'Data Validation Lists'!$B$1+2,FALSE) -> @LK-FAG-WB92 | G216: =IF(AND(B216>0,'Data Validation Lists'!$I$1=1),B216,"") ->  | M216: 1 | N216: =M216*B216 -> 0 | R216: Furniture | T216: =IF(B216="","",SUM(D216/1.2)*(1-$S$2)/(1-$S$3)) -> 
A217: 1000 285 Bridging Unit | C217: =IF($E217="Not Available","",VLOOKUP(E217,'Prices Furniture'!A:F,6,FALSE)*(1-$S$3)) -> 483 | D217: =IF(B217="","",B217*C217) ->  | E217: =VLOOKUP(A217,Codes!$B:$CL,'Data Validation Lists'!$B$1+2,FALSE) -> @LK-FAG-WB12 | G217: =IF(AND(B217>0,'Data Validation Lists'!$I$1=1),B217,"") ->  | M217: 1 | N217: 0 | R217: Furniture | T217: =IF(B217="","",SUM(D217/1.2)*(1-$S$2)/(1-$S$3)) -> 
A219: 600 355mm Bridging Unit | C219: =IF($E219="Not Available","",VLOOKUP(E219,'Prices Furniture'!A:F,6,FALSE)*(1-$S$3)) -> 380 | D219: =IF(B219="","",B219*C219) ->  | E219: =VLOOKUP(A219,Codes!$B:$CL,'Data Validation Lists'!$B$1+2,FALSE) -> @LK-FAG-WB63 | G219: =IF(AND(B219>0,'Data Validation Lists'!$I$1=1),B219,"") ->  | M219: 1 | N219: =M219*B219 -> 0 | R219: Furniture | T219: =IF(B219="","",SUM(D219/1.2)*(1-$S$2)/(1-$S$3)) -> 
A220: 800 355mm Bridging Unit | C220: =IF($E220="Not Available","",VLOOKUP(E220,'Prices Furniture'!A:F,6,FALSE)*(1-$S$3)) -> 443 | D220: =IF(B220="","",B220*C220) ->  | E220: =VLOOKUP(A220,Codes!$B:$CL,'Data Validation Lists'!$B$1+2,FALSE) -> @LK-FAG-WB83 | G220: =IF(AND(B220>0,'Data Validation Lists'!$I$1=1),B220,"") ->  | R220: Furniture | T220: =IF(B220="","",SUM(D220/1.2)*(1-$S$2)/(1-$S$3)) -> 
A221: 900 355mm Bridging Unit | C221: =IF($E221="Not Available","",VLOOKUP(E221,'Prices Furniture'!A:F,6,FALSE)*(1-$S$3)) -> 498 | D221: =IF(B221="","",B221*C221) ->  | E221: =VLOOKUP(A221,Codes!$B:$CL,'Data Validation Lists'!$B$1+2,FALSE) -> @LK-FAG-WB93 | G221: =IF(AND(B221>0,'Data Validation Lists'!$I$1=1),B221,"") ->  | M221: 1 | N221: =M221*B221 -> 0 | R221: Furniture | T221: =IF(B221="","",SUM(D221/1.2)*(1-$S$2)/(1-$S$3)) -> 
A222: 1000 355mm Bridging Unit | C222: =IF($E222="Not Available","",VLOOKUP(E222,'Prices Furniture'!A:F,6,FALSE)*(1-$S$3)) -> 512 | D222: =IF(B222="","",B222*C222) ->  | E222: =VLOOKUP(A222,Codes!$B:$CL,'Data Validation Lists'!$B$1+2,FALSE) -> @LK-FAG-WB13 | G222: =IF(AND(B222>0,'Data Validation Lists'!$I$1=1),B222,"") ->  | M222: 1 | N222: 0 | R222: Furniture | T222: =IF(B222="","",SUM(D222/1.2)*(1-$S$2)/(1-$S$3)) -> 
A224: Tall Wall Units (900mm High) | R224: Furniture | T224: =IF(B224="","",SUM(D224/1.2)*(1-$S$2)/(1-$S$3)) -> 
R225: Furniture
A226: 300 Tall Wall Unit (900mm High) LHH | C226: =IF($E226="Not Available","",VLOOKUP(E226,'Prices Furniture'!A:F,6,FALSE)*(1-$S$3)) -> 395 | D226: =IF(B226="","",B226*C226) ->  | E226: =VLOOKUP(A226,Codes!$B:$CL,'Data Validation Lists'!$B$1+2,FALSE) -> @LK-FAG-TW30L | G226: =IF(AND(B226>0,'Data Validation Lists'!$I$1=1),B226,"") ->  | M226: 1 | N226: =M226*B226 -> 0 | R226: Furniture
... 831 more rows

Sheet Summary
A2: YOUR LOGO HERE
B3: Summary Quote
A6: Your Company Name | B6: =TODAY() -> 2025-11-11
A7: Your Address
A8: Your Address
A9: Your Address
A11: Your Telephone
A12: Your Email
A13: Customer Name:
A14: Customer Address:
A18: Tel. Home:
A19: Tel. Mobile:
A20: Email:
A21: Range | B21: Sales Person
A22: LochAnna Kitchens | B22: NAME
A23: =VLOOKUP('Data Validation Lists'!B1,'Data Validation Lists'!A2:B153,2,FALSE) -> PG7B Faversham Aegean
A25: Description | B25: Sub Total
A26: Furniture | B26: =SUMIF(Kitchen!R:R,Summary!A26,Kitchen!D:D) -> 0
A27: Carron Sinks & Taps | B27: =SUMIF(Kitchen!R:R,Summary!A27,Kitchen!D:D) -> 0
A28: Quooker | B28: =SUMIF(Kitchen!R:R,Summary!A28,Kitchen!D:D) -> 0
A29: Lighting | B29: =SUMIF(Kitchen!R:R,Summary!A29,Kitchen!D:D) -> 0
A30: Other Items | B30: =SUMIF(Kitchen!R:R,Summary!A30,Kitchen!D:D) -> 0
A31: Delivery | B31: =Kitchen!D1105 -> 90
A32: Installation
B35: Total (inc VAT)
B36: =SUM(B26:B33) -> 90
A41: This quote is indicative and subject to change. Upon acceptance of this quote a survey will be carried out and any changes required may result in a change to the final costs. The price quoted includes VAT (unless otherwise stated). VAT will be charged at the rate applying at the time of delivery.
A47: To accept this quotation, sign here and return: __________________________________________________________________

Sheet Data Validation Lists (hidden)
B1: 1 | H1: Rigid | I1: 1 | U1: Woodgrain Painted MTM Panel | V1: 1 | W1: 2 | X1: 3 | Y1: 4 | Z1: 5 | AA1: 6 | AB1: 7 | AC1: 8 | AD1: 9 | AE1: 10 | AF1: 11 | AG1: 12 | AH1: 13
A2: 1 | B2: PG7B Faversham Aegean | D2: 5 Week Lead Time | E2: FAG | H2: 1 | I2: Yes | Q2: Please Select | V2: 150 | W2: 300 | X2: 400 | Y2: 450 | Z2: 500 | AA2: 550 | AB2: 600 | AC2: 700 | AD2: 800 | AE2: 900 | AF2: 1000 | AG2: 1100 | AH2: 1200
A3: 2 | B3: PG7B Faversham Atlantic | D3: 5 Week Lead Time | E3: FAT | H3: 2 | I3: No | N3: LK-ES-VCTB-6M | O3: 600 x 750 Eco Slabstone Splash Back | P3: Victorian Teal Blue Matt | Q3: =_xlfn.CONCAT(O3," ",P3) -> 600 x 750 Eco Slabstone Splash Back Victorian Teal Blue Matt | T3: 1 | U3: 100 | V3: 14 | W3: 23 | X3: 29 | Y3: 32 | Z3: 35 | AA3: 38 | AB3: 41 | AC3: 47 | AD3: 53 | AE3: 59 | AF3: 65 | AG3: 71 | AH3: 77
A4: 3 | B4: PG7B Faversham Auburn | D4: 5 Week Lead Time | E4: FAB | N4: LK-ES-VCTB-9M | O4: 900 x 750 Eco Slabstone Splash Back | P4: Victorian Teal Blue Matt | Q4: 900 x 750 Eco Slabstone Splash Back Victorian Teal Blue Matt | T4: 2 | U4: 200 | V4: 21 | W4: 33 | X4: 40 | Y4: 44 | Z4: 48 | AA4: 52 | AB4: 56 | AC4: 64 | AD4: 72 | AE4: 80 | AF4: 88 | AG4: 96 | AH4: 104
A5: 4 | B5: PG7B Faversham Breeze | D5: 5 Week Lead Time | E5: FBR | H5: Butler's Pantry Drawer Upgrade | I5: 2 | N5: LK-ES-VCTB-1M | O5: 1000 x 750 Eco Slabstone Splash Back | P5: Victorian Teal Blue Matt | Q5: 1000 x 750 Eco Slabstone Splash Back Victorian Teal Blue Matt | T5: 3 | U5: 300 | V5: 28 | W5: 42 | X5: 52 | Y5: 57 | Z5: 62 | AA5: 67 | AB5: 72 | AC5: 82 | AD5: 92 | AE5: 101 | AF5: 111 | AG5: 121 | AH5: 131
A6: 5 | B6: PG7B Faversham Brigade | D6: 5 Week Lead Time | E6: FBG | H6: 1 | I6: Select your Butler's Pantry drawer upgrade | N6: LK-ES-VCSB-6M | O6: 600 x 750 Eco Slabstone Splash Back | P6: Victorian Soot Black Matt | Q6: 600 x 750 Eco Slabstone Splash Back Victorian Soot Black Matt | T6: 4 | U6: 400 | V6: 35 | W6: 52 | X6: 64 | Y6: 70 | Z6: 76 | AA6: 82 | AB6: 87 | AC6: 99 | AD6: 111 | AE6: 123 | AF6: 134 | AG6: 146 | AH6: 158
A7: 6 | B7: PG7B Faversham Bright White | D7: 5 Week Lead Time | E7: FBW | H7: 2 | I7: Legrabox | J7: 1 x @LK-DB-LRC6 and 1 x @LK-DB-LRC6PD | K7: 380 | N7: LK-ES-VCSB-9M | O7: 900 x 750 Eco Slabstone Splash Back | P7: Victorian Soot Black Matt | Q7: 900 x 750 Eco Slabstone Splash Back Victorian Soot Black Matt | T7: 5 | U7: 500 | V7: 42 | W7: 62 | X7: 76 | Y7: 83 | Z7: 89 | AA7: 96 | AB7: 103 | AC7: 117 | AD7: 130 | AE7: 144 | AF7: 158 | AG7: 171 | AH7: 185
A8: 7 | B8: PG7B Faversham Cashmere | D8: 5 Week Lead Time | E8: FCS | H8: 3 | I8: Oak Internal | J8: 2 x @LK-IDB-OAK6 and 2 x @LK-IDB-OAK6PD | K8: 813 | N8: LK-ES-VCSB-1M | O8: 1000 x 750 Eco Slabstone Splash Back | P8: Victorian Soot Black Matt | Q8: 1000 x 750 Eco Slabstone Splash Back Victorian Soot Black Matt | T8: 6 | U8: 600 | V8: 49 | W8: 72 | X8: 87 | Y8: 95 | Z8: 103 | AA8: 111 | AB8: 119 | AC8: 134 | AD8: 150 | AE8: 165 | AF8: 181 | AG8: 196 | AH8: 212
A9: 8 | B9: PG7B Faversham Damson | D9: 5 Week Lead Time | E9: FDM | N9: LK-ES-VCPG-6M | O9: 600 x 750 Eco Slabstone Splash Back | P9: Victorian Pencil Grey Matt | Q9: 600 x 750 Eco Slabstone Splash Back Victorian Pencil Grey Matt | T9: 7 | U9: 800 | V9: 62 | W9: 92 | X9: 111 | Y9: 121 | Z9: 130 | AA9: 140 | AB9: 150 | AC9: 169 | AD9: 189 | AE9: 208 | AF9: 227 | AG9: 247 | AH9: 266
A10: 9 | B10: PG7B Faversham Desert Pink | D10: 5 Week Lead Time | E10: FDP | H10: D Box Upgrade | I10: 3 | N10: LK-ES-VCPG-9M | O10: 900 x 750 Eco Slabstone Splash Back | P10: Victorian Pencil Grey Matt | Q10: 900 x 750 Eco Slabstone Splash Back Victorian Pencil Grey Matt | T10: 8 | U10: 900 | V10: 69 | W10: 101 | X10: 123 | Y10: 133 | Z10: 144 | AA10: 155 | AB10: 165 | AC10: 187 | AD10: 208 | AE10: 229 | AF10: 250 | AG10: 272 | AH10: 293
A11: 10 | B11: PG7B Faversham Dust Grey | D11: 5 Week Lead Time | E11: FDS | H11: 1 | I11: Excel | N11: LK-ES-VCPG-1M | O11: 1000 x 750 Eco Slabstone Splash Back | P11: Victorian Pencil Grey Matt | Q11: 1000 x 750 Eco Slabstone Splash Back Victorian Pencil Grey Matt | T11: 9 | U11: 1000 | V11: 76 | W11: 111 | X11: 134 | Y11: 146 | Z11: 158 | AA11: 169 | AB11: 181 | AC11: 204 | AD11: 227 | AE11: 250 | AF11: NA | AG11: NA | AH11: NA
A12: 11 | B12: PG7B Faversham Graphite | D12: 5 Week Lead Time | E12: FGP | H12: 2 | I12: Legrabox | N12: LK-ES-VCOG-6M | O12: 600 x 750 Eco Slabstone Splash Back | P12: Victorian Olive Green Matt | Q12: 600 x 750 Eco Slabstone Splash Back Victorian Olive Green Matt | T12: 10 | U12: 1100 | V12: 83 | W12: 121 | X12: 146 | Y12: 159 | Z12: 171 | AA12: 184 | AB12: 196 | AC12: 222 | AD12: 247 | AE12: 272 | AF12: NA | AG12: NA | AH12: NA
A13: 12 | B13: PG7B Faversham Heather Green | D13: 5 Week Lead Time | E13: FHG | H13: 3 | I13: Oak | N13: LK-ES-VCOG-9M | O13: 900 x 750 Eco Slabstone Splash Back | P13: Victorian Olive Green Matt | Q13: 900 x 750 Eco Slabstone Splash Back Victorian Olive Green Matt | T13: 11 | U13: 1250 | V13: 94 | W13: 136 | X13: 164 | Y13: 178 | Z13: 192 | AA13: 206 | AB13: 220 | AC13: 248 | AD13: 276 | AE13: 304 | AF13: NA | AG13: NA | AH13: NA
A14: 13 | B14: PG7B Faversham Indigo | D14: 5 Week Lead Time | E14: FIN | N14: LK-ES-VCOG-1M | O14: 1000 x 750 Eco Slabstone Splash Back | P14: Victorian Olive Green Matt | Q14: 1000 x 750 Eco Slabstone Splash Back Victorian Olive Green Matt | T14: 12 | U14: 1500 | V14: 111 | W14: 160 | X14: 193 | Y14: 210 | Z14: 226 | AA14: 242 | AB14: 259 | AC14: 291 | AD14: 324 | AE14: NA | AF14: NA | AG14: NA | AH14: NA
A15: 14 | B15: PG7B Faversham Ivory | D15: 5 Week Lead Time | E15: FIV | N15: LK-ES-VCTO-6M | O15: 600 x 750 Eco Slabstone Splash Back | P15: Victorian Terracotta Orange Matt | Q15: 600 x 750 Eco Slabstone Splash Back Victorian Terracotta Orange Matt | T15: 13 | U15: 1600 | V15: 118 | W15: 170 | X15: 205 | Y15: 222 | Z15: 240 | AA15: 257 | AB15: 274 | AC15: 309 | AD15: 344 | AE15: NA | AF15: NA | AG15: NA | AH15: NA
A16: 15 | B16: PG7B Faversham Laurel Green | D16: 5 Week Lead Time | E16: FLR | H16: Home Delivery | I16: 1 | N16: LK-ES-VCTO-9M | O16: 900 x 750 Eco Slabstone Splash Back | P16: Victorian Terracotta Orange Matt | Q16: 900 x 750 Eco Slabstone Splash Back Victorian Terracotta Orange Matt | T16: 14 | U16: 1700 | V16: 125 | W16: 180 | X16: 217 | Y16: 235 | Z16: 253 | AA16: 272 | AB16: 290 | AC16: 326 | AD16: 363 | AE16: NA | AF16: NA | AG16: NA | AH16: NA
A17: 16 | B17: PG7B Faversham Light Grey | D17: 5 Week Lead Time | E17: FLG | H17: 1 | I17: Yes | N17: LK-ES-VCTO-1M | O17: 1000 x 750 Eco Slabstone Splash Back | P17: Victorian Terracotta Orange Matt | Q17: 1000 x 750 Eco Slabstone Splash Back Victorian Terracotta Orange Matt | T17: 15 | U17: 2000 | V17: 155 | W17: 222 | X17: 267 | Y17: 290 | Z17: 312 | AA17: 334 | AB17: 357 | AC17: 402 | AD17: 447 | AE17: NA | AF17: NA | AG17: NA | AH17: NA
A18: 17 | B18: PG7B Faversham Meadow | D18: 5 Week Lead Time | E18: FME | H18: 2 | I18: No | N18: LK-ES-VCYB-6M | O18: 600 x 750 Eco Slabstone Splash Back | P18: Victorian Yale Blue Matt | Q18: 600 x 750 Eco Slabstone Splash Back Victorian Yale Blue Matt | T18: 16 | U18: 2200 | V18: 170 | W18: 243 | X18: 292 | Y18: 317 | Z18: 341 | AA18: 365 | AB18: 390 | AC18: 439 | AD18: 488 | AE18: NA | AF18: NA | AG18: NA | AH18: NA
A19: 18 | B19: PG7B Faversham Midnight | D19: 5 Week Lead Time | E19: FMN | N19: LK-ES-VCYB-9M | O19: 900 x 750 Eco Slabstone Splash Back | P19: Victorian Yale Blue Matt | Q19: 900 x 750 Eco Slabstone Splash Back Victorian Yale Blue Matt | T19: 17 | U19: 2300 | V19: 177 | W19: 254 | X19: 305 | Y19: 330 | Z19: 356 | AA19: 381 | AB19: 406 | AC19: 457 | AD19: 508 | AE19: NA | AF19: NA | AG19: NA | AH19: NA
A20: 19 | B20: PG7B Faversham Mussel | D20: 5 Week Lead Time | E20: FMU | N20: LK-ES-VCYB-1M | O20: 1000 x 750 Eco Slabstone Splash Back | P20: Victorian Yale Blue Matt | Q20: 1000 x 750 Eco Slabstone Splash Back Victorian Yale Blue Matt | T20: 18 | U20: 2500 | V20: 192 | W20: 275 | X20: 330 | Y20: 357 | Z20: 385 | AA20: 412 | AB20: 439 | AC20: 494 | AD20: 604 | AE20: NA | AF20: NA | AG20: NA | AH20: NA
A21: 20 | B21: PG7B Faversham Olive Green | D21: 5 Week Lead Time | E21: FOV | H21: Cab Colour | I21: 1 | N21: LK-ES-HARE-6M | O21: 600 x 750 Eco Slabstone Splash Back | P21: Hare Buttermilk Cream Matt | Q21: 600 x 750 Eco Slabstone Splash Back Hare Buttermilk Cream Matt
A22: 21 | B22: PG7B Faversham Pale Teal | D22: 5 Week Lead Time | E22: FPT | I22: Default | N22: LK-ES-HARE-9M | O22: 900 x 750 Eco Slabstone Splash Back | P22: Hare Buttermilk Cream Matt | Q22: 900 x 750 Eco Slabstone Splash Back Hare Buttermilk Cream Matt | U22: Strato Painted MTM Panel | V22: 1 | W22: 2 | X22: 3 | Y22: 4 | Z22: 5 | AA22: 6 | AB22: 7 | AC22: 8 | AD22: 9 | AE22: 10 | AF22: 11 | AG22: 12 | AH22: 13
A23: 22 | B23: PG7B Faversham Pearl | D23: 5 Week Lead Time | E23: FPE | I23: Anthracite Linen | N23: LK-ES-HARE-1M | O23: 1000 x 750 Eco Slabstone Splash Back | P23: Hare Buttermilk Cream Matt | Q23: 1000 x 750 Eco Slabstone Splash Back Hare Buttermilk Cream Matt | V23: 150 | W23: 300 | X23: 400 | Y23: 450 | Z23: 500 | AA23: 550 | AB23: 600 | AC23: 700 | AD23: 800 | AE23: 900 | AF23: 1000 | AG23: 1100 | AH23: 1200
A24: 23 | B24: PG7B Faversham Pebble Grey | D24: 5 Week Lead Time | E24: FPG | I24: Grey Linen | N24: LK-ES-MWSB-6M | O24: 600 x 750 Eco Slabstone Splash Back | P24: Meadow Steel Blue Matt | Q24: 600 x 750 Eco Slabstone Splash Back Meadow Steel Blue Matt | T24: 1 | U24: 100 | V24: 13 | W24: 23 | X24: 29 | Y24: 32 | Z24: 35 | AA24: 38 | AB24: 42 | AC24: 48 | AD24: 54 | AE24: 60 | AF24: 67 | AG24: 73 | AH24: 79
A25: 24 | B25: PG7B Faversham Porcelain | D25: 5 Week Lead Time | E25: FPN | I25: Oak | N25: LK-ES-MWSB-9M | O25: 900 x 750 Eco Slabstone Splash Back | P25: Meadow Steel Blue Matt | Q25: 900 x 750 Eco Slabstone Splash Back Meadow Steel Blue Matt | T25: 2 | U25: 200 | V25: 21 | W25: 34 | X25: 43 | Y25: 48 | Z25: 52 | AA25: 57 | AB25: 61 | AC25: 70 | AD25: 79 | AE25: 88 | AF25: 97 | AG25: 106 | AH25: 115
A26: 25 | B26: PG7B Faversham Sage | D26: 5 Week Lead Time | E26: FSG | I26: Stone Grey | N26: LK-ES-MWSB-1M | O26: 1000 x 750 Eco Slabstone Splash Back | P26: Meadow Steel Blue Matt | Q26: 1000 x 750 Eco Slabstone Splash Back Meadow Steel Blue Matt | T26: 3 | U26: 300 | V26: 29 | W26: 46 | X26: 58 | Y26: 63 | Z26: 69 | AA26: 75 | AB26: 81 | AC26: 92 | AD26: 104 | AE26: 115 | AF26: 127 | AG26: 139 | AH26: 150
A27: 26 | B27: PG7B Faversham Sapphire | D27: 5 Week Lead Time | E27: FSP | I27: Walnut | N27: LK-ES-MWSG-6M | O27: 600 x 750 Eco Slabstone Splash Back | P27: Meadow Sage Matt | Q27: 600 x 750 Eco Slabstone Splash Back Meadow Sage Matt | T27: 4 | U27: 400 | V27: 36 | W27: 58 | X27: 72 | Y27: 79 | Z27: 86 | AA27: 93 | AB27: 100 | AC27: 115 | AD27: 129 | AE27: 143 | AF27: 157 | AG27: 172 | AH27: 186
A28: 27 | B28: PG7B Faversham Soft Black | D28: 5 Week Lead Time | E28: FSB | I28: White | N28: LK-ES-MWSG-9M | O28: 900 x 750 Eco Slabstone Splash Back | P28: Meadow Sage Matt | Q28: 900 x 750 Eco Slabstone Splash Back Meadow Sage Matt | T28: 5 | U28: 500 | V28: 44 | W28: 69 | X28: 86 | Y28: 95 | Z28: 103 | AA28: 111 | AB28: 120 | AC28: 137 | AD28: 154 | AE28: 171 | AF28: 188 | AG28: 204 | AH28: 221
A29: 28 | B29: PG7B Faversham Soot | D29: 5 Week Lead Time | E29: FSO | N29: LK-ES-MWSG-1M | O29: 1000 x 750 Eco Slabstone Splash Back | P29: Meadow Sage Matt | Q29: 1000 x 750 Eco Slabstone Splash Back Meadow Sage Matt | T29: 6 | U29: 600 | V29: 51 | W29: 81 | X29: 100 | Y29: 110 | Z29: 120 | AA29: 130 | AB29: 139 | AC29: 159 | AD29: 179 | AE29: 198 | AF29: 218 | AG29: 237 | AH29: 257
A30: 29 | B30: PG7B Faversham Steel Grey | D30: 5 Week Lead Time | E30: FSY | H30: Minerva | I30: 1 | N30: LK-ES-SFBC-6M | O30: 600 x 750 Eco Slabstone Splash Back | P30: Star Flower Buttermilk Cream Matt | Q30: 600 x 750 Eco Slabstone Splash Back Star Flower Buttermilk Cream Matt | T30: 7 | U30: 800 | V30: 67 | W30: 104 | X30: 129 | Y30: 141 | Z30: 154 | AA30: 166 | AB30: 179 | AC30: 204 | AD30: 228 | AE30: 253 | AF30: 278 | AG30: 303 | AH30: 328
A31: 30 | B31: PG7B Faversham Stone | D31: 5 Week Lead Time | E31: FST | H31: 1 | I31: None | N31: LK-ES-SFBC-9M | O31: 900 x 750 Eco Slabstone Splash Back | P31: Star Flower Buttermilk Cream Matt | Q31: 900 x 750 Eco Slabstone Splash Back Star Flower Buttermilk Cream Matt | T31: 8 | U31: 900 | V31: 74 | W31: 115 | X31: 143 | Y31: 157 | Z31: 171 | AA31: 184 | AB31: 198 | AC31: 226 | AD31: 253 | AE31: 281 | AF31: 309 | AG31: 336 | AH31: 364
A32: 31 | B32: PG7B Faversham Taupe | D32: 5 Week Lead Time | E32: FTP | H32: 2 | I32: Blue Venato PG3 | N32: LK-ES-SFBC-1M | O32: 1000 x 750 Eco Slabstone Splash Back | P32: Star Flower Buttermilk Cream Matt | Q32: 1000 x 750 Eco Slabstone Splash Back Star Flower Buttermilk Cream Matt | T32: 9 | U32: 1000 | V32: 82 | W32: 127 | X32: 157 | Y32: 172 | Z32: 188 | AA32: 203 | AB32: 218 | AC32: 248 | AD32: 278 | AE32: 309 | AF32: NA | AG32: NA | AH32: NA
A33: 32 | B33: PG7B Faversham Thicket | D33: 5 Week Lead Time | E33: FTK | H33: 3 | I33: Calcutta White PG4 | N33: LK-ES-SFPB-6M | O33: 600 x 750 Eco Slabstone Splash Back | P33: Star Flower Pastel Blue Matt | Q33: 600 x 750 Eco Slabstone Splash Back Star Flower Pastel Blue Matt | T33: 10 | U33: 1100 | V33: 89 | W33: 139 | X33: 172 | Y33: 188 | Z33: 204 | AA33: 221 | AB33: 237 | AC33: 270 | AD33: 303 | AE33: 336 | AF33: NA | AG33: NA | AH33: NA
A34: 33 | B34: PG7B Faversham Warm Earth | D34: 5 Week Lead Time | E34: FWE | H34: 4 | I34: Caramel Crunch PG2 | N34: LK-ES-SFPB-9M | O34: 900 x 750 Eco Slabstone Splash Back | P34: Star Flower Pastel Blue Matt | Q34: 900 x 750 Eco Slabstone Splash Back Star Flower Pastel Blue Matt | T34: 11 | U34: 1250 | V34: 97 | W34: 150 | X34: 186 | Y34: 204 | Z34: 221 | AA34: 239 | AB34: 257 | AC34: 293 | AD34: 328 | AE34: 364 | AF34: NA | AG34: NA | AH34: NA
A35: 34 | B35: PG8A Durham Aegean | D35: 5 Week Lead Time | E35: DAG | H35: 5 | I35: Carrara White PG3 | N35: LK-ES-SFPB-1M | O35: 1000 x 750 Eco Slabstone Splash Back | P35: Star Flower Pastel Blue Matt | Q35: 1000 x 750 Eco Slabstone Splash Back Star Flower Pastel Blue Matt | T35: 12 | U35: 1500 | V35: 120 | W35: 185 | X35: 229 | Y35: 250 | Z35: 272 | AA35: 294 | AB35: 316 | AC35: 359 | AD35: 403 | AE35: NA | AF35: NA | AG35: NA | AH35: NA
A36: 35 | B36: PG8A Durham Atlantic | D36: 5 Week Lead Time | E36: DAT | H36: 6 | I36: Chalk Venato PG3 | N36: LK-ES-CYBB-6M | O36: 600 x 750 Eco Slabstone Splash Back | P36: Canterbury Baltic Blue Matt | Q36: 600 x 750 Eco Slabstone Splash Back Canterbury Baltic Blue Matt | T36: 13 | U36: 1600 | V36: 127 | W36: 197 | X36: 243 | Y36: 266 | Z36: 289 | AA36: 312 | AB36: 335 | AC36: 382 | AD36: 428 | AE36: NA | AF36: NA | AG36: NA | AH36: NA
A37: 36 | B37: PG8A Durham Auburn | D37: 5 Week Lead Time | E37: DAB | H37: 7 | I37: Concrete Haze PG3 | N37: LK-ES-CYBB-9M | O37: 900 x 750 Eco Slabstone Splash Back | P37: Canterbury Baltic Blue Matt | Q37: 900 x 750 Eco Slabstone Splash Back Canterbury Baltic Blue Matt | T37: 14 | U37: 1700 | V37: 135 | W37: 208 | X37: 257 | Y37: 281 | Z37: 306 | AA37: 330 | AB37: 355 | AC37: 404 | AD37: 453 | AE37: NA | AF37: NA | AG37: NA | AH37: NA
A38: 37 | B38: PG8A Durham Breeze | D38: 5 Week Lead Time | E38: DBR | H38: 8 | I38: Copper Fleck PG3 | N38: LK-ES-CYBB-1M | O38: 1000 x 750 Eco Slabstone Splash Back | P38: Canterbury Baltic Blue Matt | Q38: 1000 x 750 Eco Slabstone Splash Back Canterbury Baltic Blue Matt | T38: 15 | U38: 2000 | V38: 157 | W38: 243 | X38: 300 | Y38: 328 | Z38: 357 | AA38: 385 | AB38: 414 | AC38: 471 | AD38: 527 | AE38: NA | AF38: NA | AG38: NA | AH38: NA
A39: 38 | B39: PG8A Durham Brigade | D39: 5 Week Lead Time | E39: DBG | H39: 9 | I39: Grey Crystal PG2 | N39: LK-ES-CYCG-6M | O39: 600 x 750 Eco Slabstone Splash Back | P39: Canterbury Charcoal Grey Matt | Q39: 600 x 750 Eco Slabstone Splash Back Canterbury Charcoal Grey Matt | T39: 16 | U39: 2200 | V39: 173 | W39: 266 | X39: 328 | Y39: 359 | Z39: 391 | AA39: 422 | AB39: 453 | AC39: 515 | AD39: 577 | AE39: NA | AF39: NA | AG39: NA | AH39: NA
A40: 39 | B40: PG8A Durham Bright White | D40: 5 Week Lead Time | E40: DBW | H40: 10 | I40: Grey Storm PG3 | N40: LK-ES-CYCG-9M | O40: 900 x 750 Eco Slabstone Splash Back | P40: Canterbury Charcoal Grey Matt | Q40: 900 x 750 Eco Slabstone Splash Back Canterbury Charcoal Grey Matt | T40: 17 | U40: 2300 | V40: 180 | W40: 278 | X40: 343 | Y40: 375 | Z40: 407 | AA40: 440 | AB40: 472 | AC40: 537 | AD40: 602 | AE40: NA | AF40: NA | AG40: NA | AH40: NA
A41: 40 | B41: PG8A Durham Cashmere | D41: 5 Week Lead Time | E41: DCS | H41: 11 | I41: Ice Blue PG2 | N41: LK-ES-CYCG-1M | O41: 1000 x 750 Eco Slabstone Splash Back | P41: Canterbury Charcoal Grey Matt | Q41: 1000 x 750 Eco Slabstone Splash Back Canterbury Charcoal Grey Matt | T41: 18 | U41: 2500 | V41: 195 | W41: 301 | X41: 371 | Y41: 406 | Z41: 441 | AA41: 476 | AB41: 512 | AC41: 582 | AD41: 652 | AE41: NA | AF41: NA | AG41: NA | AH41: NA
A42: 41 | B42: PG8A Durham Damson | D42: 5 Week Lead Time | E42: DDM | H42: 12 | I42: Ice Crystal PG2 | N42: LK-ES-HBPC-6M | O42: 600 x 750 Eco Slabstone Splash Back | P42: Herringbone Porcelain Cream Matt | Q42: 600 x 750 Eco Slabstone Splash Back Herringbone Porcelain Cream Matt
A43: 42 | B43: PG8A Durham Desert Pink | D43: 5 Week Lead Time | E43: DDR | H43: 13 | I43: Marble Wash PG3 | N43: LK-ES-HBPC-9M | O43: 900 x 750 Eco Slabstone Splash Back | P43: Herringbone Porcelain Cream Matt | Q43: 900 x 750 Eco Slabstone Splash Back Herringbone Porcelain Cream Matt | U43: Strato Stained MTM Panel | V43: 1 | W43: 2 | X43: 3 | Y43: 4 | Z43: 5 | AA43: 6 | AB43: 7 | AC43: 8 | AD43: 9 | AE43: 10 | AF43: 11 | AG43: 12 | AH43: 13
A44: 43 | B44: PG8A Durham Dust Grey | D44: 5 Week Lead Time | E44: DDG | H44: 14 | I44: Nimbus Grey PG2 | N44: LK-ES-HBPC-1M | O44: 1000 x 750 Eco Slabstone Splash Back | P44: Herringbone Porcelain Cream Matt | Q44: 1000 x 750 Eco Slabstone Splash Back Herringbone Porcelain Cream Matt | V44: 150 | W44: 300 | X44: 400 | Y44: 450 | Z44: 500 | AA44: 550 | AB44: 600 | AC44: 700 | AD44: 800 | AE44: 900 | AF44: 1000 | AG44: 1100 | AH44: 1200
A45: 44 | B45: PG8A Durham Graphite | D45: 5 Week Lead Time | E45: DGP | H45: 15 | I45: Peak Stone PG2 | N45: LK-ES-HBCP-6M | O45: 600 x 750 Eco Slabstone Splash Back | P45: Herringbone Cashmere Pink Matt | Q45: 600 x 750 Eco Slabstone Splash Back Herringbone Cashmere Pink Matt | T45: 1 | U45: 100 | V45: 20 | W45: 35 | X45: 44 | Y45: 49 | Z45: 54 | AA45: 59 | AB45: 64 | AC45: 73 | AD45: 83 | AE45: 92 | AF45: 102 | AG45: 112 | AH45: 121
A46: 45 | B46: PG8A Durham Heather Green | D46: 5 Week Lead Time | E46: DHG | H46: 16 | I46: Silver Haze PG3 | N46: LK-ES-HBCP-9M | O46: 900 x 750 Eco Slabstone Splash Back | P46: Herringbone Cashmere Pink Matt | Q46: 900 x 750 Eco Slabstone Splash Back Herringbone Cashmere Pink Matt | T46: 2 | U46: 200 | V46: 32 | W46: 53 | X46: 66 | Y46: 73 | Z46: 80 | AA46: 87 | AB46: 94 | AC46: 107 | AD46: 121 | AE46: 135 | AF46: 149 | AG46: 162 | AH46: 176
A47: 46 | B47: PG8A Durham Indigo | D47: 5 Week Lead Time | E47: DIN | H47: 17 | I47: Sparkling White PG3 | N47: LK-ES-HBCP-1M | O47: 1000 x 750 Eco Slabstone Splash Back | P47: Herringbone Cashmere Pink Matt | Q47: 1000 x 750 Eco Slabstone Splash Back Herringbone Cashmere Pink Matt | T47: 3 | U47: 300 | V47: 44 | W47: 70 | X47: 88 | Y47: 97 | Z47: 106 | AA47: 115 | AB47: 124 | AC47: 142 | AD47: 160 | AE47: 177 | AF47: 195 | AG47: 213 | AH47: 231
A48: 47 | B48: PG8A Durham Ivory | D48: 5 Week Lead Time | E48: DIV | H48: 18 | I48: Travertine Haze PG3 | N48: LK-ES-HBIB-6M | O48: 600 x 750 Eco Slabstone Splash Back | P48: Herringbone Indigo Blue Matt | Q48: 600 x 750 Eco Slabstone Splash Back Herringbone Indigo Blue Matt | T48: 4 | U48: 400 | V48: 55 | W48: 88 | X48: 110 | Y48: 121 | Z48: 132 | AA48: 143 | AB48: 154 | AC48: 176 | AD48: 198 | AE48: 220 | AF48: 242 | AG48: 264 | AH48: 286
A49: 48 | B49: PG8A Durham Laurel Green | D49: 5 Week Lead Time | E49: DLR | H49: 19 | I49: White PG1 | N49: LK-ES-HBIB-9M | O49: 900 x 750 Eco Slabstone Splash Back | P49: Herringbone Indigo Blue Matt | Q49: 900 x 750 Eco Slabstone Splash Back Herringbone Indigo Blue Matt | T49: 5 | U49: 500 | V49: 67 | W49: 106 | X49: 132 | Y49: 145 | Z49: 158 | AA49: 171 | AB49: 184 | AC49: 210 | AD49: 236 | AE49: 262 | AF49: 288 | AG49: 314 | AH49: 340
A50: 49 | B50: PG8A Durham Light Grey | D50: 5 Week Lead Time | E50: DLG | N50: LK-ES-HBIB-1M | O50: 1000 x 750 Eco Slabstone Splash Back | P50: Herringbone Indigo Blue Matt | Q50: 1000 x 750 Eco Slabstone Splash Back Herringbone Indigo Blue Matt | T50: 6 | U50: 600 | V50: 79 | W50: 124 | X50: 154 | Y50: 169 | Z50: 184 | AA50: 199 | AB50: 214 | AC50: 244 | AD50: 275 | AE50: 305 | AF50: 335 | AG50: 365 | AH50: 395
A51: 50 | B51: PG8A Durham Meadow | D51: 5 Week Lead Time | E51: DMW | H51: Solutions Open Units | N51: LK-ES-HBMG-6M | O51: 600 x 750 Eco Slabstone Splash Back | P51: Herringbone Marble Grey Matt | Q51: 600 x 750 Eco Slabstone Splash Back Herringbone Marble Grey Matt | T51: 7 | U51: 800 | V51: 102 | W51: 160 | X51: 198 | Y51: 217 | Z51: 236 | AA51: 255 | AB51: 275 | AC51: 313 | AD51: 351 | AE51: 390 | AF51: 428 | AG51: 466 | AH51: 505
A52: 51 | B52: PG8A Durham Midnight | D52: 5 Week Lead Time | E52: DMN | N52: LK-ES-HBMG-9M | O52: 900 x 750 Eco Slabstone Splash Back | P52: Herringbone Marble Grey Matt | Q52: 900 x 750 Eco Slabstone Splash Back Herringbone Marble Grey Matt | T52: 8 | U52: 900 | V52: 114 | W52: 177 | X52: 220 | Y52: 241 | Z52: 262 | AA52: 283 | AB52: 305 | AC52: 347 | AD52: 390 | AE52: 432 | AF52: 474 | AG52: 517 | AH52: 559
A53: 52 | B53: PG8A Durham Mussel | D53: 5 Week Lead Time | E53: DMU | H53: 1 | I53: Select Range | J53: =VLOOKUP(Kitchen!$A926,$I54:$J57,2,FALSE) ->  | K53: =VLOOKUP(Kitchen!$A930,$I54:$J57,2,FALSE) ->  | L53: =VLOOKUP(Kitchen!$A934,$I54:$J57,2,FALSE) ->  | N53: LK-ES-HBMG-1M | O53: 1000 x 750 Eco Slabstone Splash Back | P53: Herringbone Marble Grey Matt | Q53: 1000 x 750 Eco Slabstone Splash Back Herringbone Marble Grey Matt | T53: 9 | U53: 1000 | V53: 125 | W53: 195 | X53: 242 | Y53: 265 | Z53: 288 | AA53: 312 | AB53: 335 | AC53: 381 | AD53: 428 | AE53: 474 | AF53: NA | AG53: NA | AH53: NA
A54: 53 | B54: PG8A Durham Olive Green | D54: 5 Week Lead Time | E54: DOV | H54: 2 | I54: Natural Oak Open Unit | J54: HNO | N54: LK-ES-HBJG-6M | O54: 600 x 750 Eco Slabstone Splash Back | P54: Herringbone Jade Green Matt | Q54: 600 x 750 Eco Slabstone Splash Back Herringbone Jade Green Matt | T54: 10 | U54: 1100 | V54: 137 | W54: 213 | X54: 264 | Y54: 289 | Z54: 314 | AA54: 340 | AB54: 365 | AC54: 416 | AD54: 466 | AE54: 517 | AF54: NA | AG54: NA | AH54: NA
A55: 54 | B55: PG8A Durham Pale Teal | D55: 5 Week Lead Time | E55: DPT | H55: 3 | I55: Tobacco Oak Open Unit | J55: HTO | N55: LK-ES-HBJG-9M | O55: 900 x 750 Eco Slabstone Splash Back | P55: Herringbone Jade Green Matt | Q55: 900 x 750 Eco Slabstone Splash Back Herringbone Jade Green Matt | T55: 11 | U55: 1250 | V55: 149 | W55: 231 | X55: 286 | Y55: 313 | Z55: 340 | AA55: 368 | AB55: 395 | AC55: 450 | AD55: 505 | AE55: 559 | AF55: NA | AG55: NA | AH55: NA
A56: 55 | B56: PG8A Durham Pearl | D56: 5 Week Lead Time | E56: DPE | H56: 4 | I56: White Oak Open Unit | J56: HWO | N56: LK-ES-HBJG-1M | O56: 1000 x 750 Eco Slabstone Splash Back | P56: Herringbone Jade Green Matt | Q56: 1000 x 750 Eco Slabstone Splash Back Herringbone Jade Green Matt | T56: 12 | U56: 1500 | V56: 184 | W56: 284 | X56: 351 | Y56: 385 | Z56: 418 | AA56: 452 | AB56: 485 | AC56: 552 | AD56: 620 | AE56: NA | AF56: NA | AG56: NA | AH56: NA
A57: 56 | B57: PG8A Durham Pebble Grey | D57: 5 Week Lead Time | E57: DPG | T57: 13 | U57: 1600 | V57: 195 | W57: 302 | X57: 373 | Y57: 409 | Z57: 444 | AA57: 480 | AB57: 516 | AC57: 587 | AD57: 658 | AE57: NA | AF57: NA | AG57: NA | AH57: NA
A58: 57 | B58: PG8A Durham Porcelain | D58: 5 Week Lead Time | E58: DPN | Q58: Please Select | T58: 14 | U58: 1700 | V58: 207 | W58: 320 | X58: 395 | Y58: 433 | Z58: 470 | AA58: 508 | AB58: 546 | AC58: 621 | AD58: 696 | AE58: NA | AF58: NA | AG58: NA | AH58: NA
A59: 58 | B59: PG8A Durham Sage | D59: 5 Week Lead Time | E59: DSG | H59: 1 | I59: 2 | J59: 3 | K59: 4 | L59: 5 | N59: LK-ES-VCTB-6G | O59: 600 x 750 Ecostone Splash Back | P59: Victorian Teal Blue Gloss | Q59: 600 x 750 Eco Slabstone Splash Back Victorian Teal Blue Gloss | T59: 15 | U59: 2000 | V59: 242 | W59: 373 | X59: 461 | Y59: 505 | Z59: 548 | AA59: 592 | AB59: 636 | AC59: 724 | AD59: 811 | AE59: NA | AF59: NA | AG59: NA | AH59: NA
A60: 59 | B60: PG8A Durham Sapphire | D60: 5 Week Lead Time | E60: DSP | G60: Sizes | H60: 286 | I60: 360 | J60: 720 | K60: 900 | L60: 1960 | N60: LK-ES-VCTB-9G | O60: 900 x 750 Ecostone Splash Back | P60: Victorian Teal Blue Gloss | Q60: 900 x 750 Eco Slabstone Splash Back Victorian Teal Blue Gloss | T60: 16 | U60: 2200 | V60: 265 | W60: 409 | X60: 505 | Y60: 553 | Z60: 601 | AA60: 648 | AB60: 696 | AC60: 792 | AD60: 888 | AE60: NA | AF60: NA | AG60: NA | AH60: NA
A61: 60 | B61: PG8A Durham Soft Black | D61: 5 Week Lead Time | E61: DSB | F61: 1 | G61: 150 | H61: 255 | I61: 255 | J61: 281 | K61: 309 | L61: 566 | N61: LK-ES-VCTB-1G | O61: 1000 x 750 Ecostone Splash Back | P61: Victorian Teal Blue Gloss | Q61: 1000 x 750 Eco Slabstone Splash Back Victorian Teal Blue Gloss | T61: 17 | U61: 2300 | V61: 277 | W61: 427 | X61: 527 | Y61: 577 | Z61: 627 | AA61: 676 | AB61: 726 | AC61: 826 | AD61: 926 | AE61: NA | AF61: NA | AG61: NA | AH61: NA
A62: 61 | B62: PG8A Durham Soot | D62: 5 Week Lead Time | E62: DSO | F62: 2 | G62: 300 | H62: 255 | I62: 255 | J62: 281 | K62: 309 | L62: 566 | N62: LK-ES-VCSB-6G | O62: 600 x 750 Ecostone Splash Back | P62: Victorian Soot Black Gloss | Q62: 600 x 750 Eco Slabstone Splash Back Victorian Soot Black Gloss | T62: 18 | U62: 2500 | V62: 300 | W62: 462 | X62: 571 | Y62: 625 | Z62: 679 | AA62: 733 | AB62: 787 | AC62: 895 | AD62: 1003 | AE62: NA | AF62: NA | AG62: NA | AH62: NA
A63: 62 | B63: PG8A Durham Steel Grey | D63: 5 Week Lead Time | E63: DSY | F63: 3 | G63: 400 | H63: 255 | I63: 255 | J63: 281 | K63: 309 | L63: 566 | N63: LK-ES-VCSB-9G | O63: 900 x 750 Ecostone Splash Back | P63: Victorian Soot Black Gloss | Q63: 900 x 750 Eco Slabstone Splash Back Victorian Soot Black Gloss
A64: 63 | B64: PG8A Durham Stone | D64: 5 Week Lead Time | E64: DST | F64: 4 | G64: 500 | H64: 255 | I64: 255 | J64: 281 | K64: 309 | L64: 566 | N64: LK-ES-VCSB-1G | O64: 1000 x 750 Ecostone Splash Back | P64: Victorian Soot Black Gloss | Q64: 1000 x 750 Eco Slabstone Splash Back Victorian Soot Black Gloss
A65: 64 | B65: PG8A Durham Taupe | D65: 5 Week Lead Time | E65: DTP | F65: 5 | G65: 600 | H65: 255 | I65: 255 | J65: 281 | K65: 309 | L65: 618 | N65: LK-ES-VCPG-6G | O65: 600 x 750 Ecostone Splash Back | P65: Victorian Pencil Grey Gloss | Q65: 600 x 750 Eco Slabstone Splash Back Victorian Pencil Grey Gloss
A66: 65 | B66: PG8A Durham Thicket | D66: 5 Week Lead Time | E66: DTK | F66: 6 | G66: 700 | H66: 281 | I66: 281 | J66: 309 | K66: 330 | L66: Not Available | N66: LK-ES-VCPG-9G | O66: 900 x 750 Ecostone Splash Back | P66: Victorian Pencil Grey Gloss | Q66: 900 x 750 Eco Slabstone Splash Back Victorian Pencil Grey Gloss
A67: 66 | B67: PG8A Durham Warm Earth | D67: 5 Week Lead Time | E67: DWE | F67: 7 | G67: 800 | H67: 281 | I67: 281 | J67: 309 | K67: 330 | L67: Not Available | N67: LK-ES-VCPG-1G | O67: 1000 x 750 Ecostone Splash Back | P67: Victorian Pencil Grey Gloss | Q67: 1000 x 750 Eco Slabstone Splash Back Victorian Pencil Grey Gloss
F68: 8 | G68: 900 | H68: 281 | I68: 281 | J68: 309 | K68: 330 | L68: Not Available | N68: LK-ES-VCOG-6G | O68: 600 x 750 Ecostone Splash Back | P68: Victorian Olive Green Gloss | Q68: 600 x 750 Eco Slabstone Splash Back Victorian Olive Green Gloss
F69: 9 | G69: 1000 | H69: 281 | I69: 281 | J69: 309 | K69: 330 | L69: Not Available | N69: LK-ES-VCOG-9G | O69: 900 x 750 Ecostone Splash Back | P69: Victorian Olive Green Gloss | Q69: 900 x 750 Eco Slabstone Splash Back Victorian Olive Green Gloss
F70: 10 | G70: 1200 | H70: 309 | I70: 309 | J70: Not Available | K70: Not Available | L70: Not Available | N70: LK-ES-VCOG-1G | O70: 1000 x 750 Ecostone Splash Back | P70: Victorian Olive Green Gloss | Q70: 1000 x 750 Eco Slabstone Splash Back Victorian Olive Green Gloss
N71: LK-ES-VCTO-6G | O71: 600 x 750 Ecostone Splash Back | P71: Victorian Terracotta Orange Gloss | Q71: 600 x 750 Eco Slabstone Splash Back Victorian Terracotta Orange Gloss
N72: LK-ES-VCTO-9G | O72: 900 x 750 Ecostone Splash Back | P72: Victorian Terracotta Orange Gloss | Q72: 900 x 750 Eco Slabstone Splash Back Victorian Terracotta Orange Gloss
H73: Solutions Open Units | N73: LK-ES-VCTO-1G | O73: 1000 x 750 Ecostone Splash Back | P73: Victorian Terracotta Orange Gloss | Q73: 1000 x 750 Eco Slabstone Splash Back Victorian Terracotta Orange Gloss
H74: Open Unit 1 | J74: Height | K74: =IFERROR(INDEX($H$59:$L$59,MATCH(I75,$H$60:$L$60,1)),1) -> 1 | N74: LK-ES-VCYB-6G | O74: 600 x 750 Ecostone Splash Back | P74: Victorian Yale Blue Gloss | Q74: 600 x 750 Eco Slabstone Splash Back Victorian Yale Blue Gloss
H75: Chosen Height | I75: =Kitchen!A927 -> ENTER HEIGHT HERE | J75: Width | K75: =IFERROR(INDEX($F$61:$F$70,MATCH(I76,$G$61:$G$70,1)),1) -> 1 | N75: LK-ES-VCYB-9G | O75: 900 x 750 Ecostone Splash Back | P75: Victorian Yale Blue Gloss | Q75: 900 x 750 Eco Slabstone Splash Back Victorian Yale Blue Gloss
H76: Chosen Width | I76: =Kitchen!A928 -> ENTER WIDTH HERE | J76: Price | K76: =IFERROR(VLOOKUP(K75,$F$61:$L$70,MATCH(K74,$F$59:$L$59,0),0),"") -> 255 | N76: LK-ES-VCYB-1G | O76: 1000 x 750 Ecostone Splash Back | P76: Victorian Yale Blue Gloss | Q76: 1000 x 750 Eco Slabstone Splash Back Victorian Yale Blue Gloss
N77: LK-ES-HARE-6G | O77: 600 x 750 Ecostone Splash Back | P77: Hare Buttermilk Cream Gloss | Q77: 600 x 750 Eco Slabstone Splash Back Hare Buttermilk Cream Gloss
H78: Open Unit 2 | J78: Height | K78: =IFERROR(INDEX($H$59:$L$59,MATCH(I79,$H$60:$L$60,1)),1) -> 1 | N78: LK-ES-HARE-9G | O78: 900 x 750 Ecostone Splash Back | P78: Hare Buttermilk Cream Gloss | Q78: 900 x 750 Eco Slabstone Splash Back Hare Buttermilk Cream Gloss
H79: Chosen Height | I79: =Kitchen!A931 -> ENTER HEIGHT HERE | J79: Width | K79: =IFERROR(INDEX($F$61:$F$70,MATCH(I80,$G$61:$G$70,1)),1) -> 1 | N79: LK-ES-HARE-1G | O79: 1000 x 750 Ecostone Splash Back | P79: Hare Buttermilk Cream Gloss | Q79: 1000 x 750 Eco Slabstone Splash Back Hare Buttermilk Cream Gloss
H80: Chosen Width | I80: =Kitchen!A932 -> ENTER WIDTH HERE | J80: Price | K80: =IFERROR(VLOOKUP(K79,$F$61:$L$70,MATCH(K78,$F$59:$L$59,0),0),"") -> 255 | N80: LK-ES-MWSB-6G | O80: 600 x 750 Ecostone Splash Back | P80: Meadow Steel Blue Gloss | Q80: 600 x 750 Eco Slabstone Splash Back Meadow Steel Blue Gloss
N81: LK-ES-MWSB-9G | O81: 900 x 750 Ecostone Splash Back | P81: Meadow Steel Blue Gloss | Q81: 900 x 750 Eco Slabstone Splash Back Meadow Steel Blue Gloss
H82: Open Unit 3 | J82: Height | K82: =IFERROR(INDEX($H$59:$L$59,MATCH(I83,$H$60:$L$60,1)),1) -> 1 | N82: LK-ES-MWSB-1G | O82: 1000 x 750 Ecostone Splash Back | P82: Meadow Steel Blue Gloss | Q82: 1000 x 750 Eco Slabstone Splash Back Meadow Steel Blue Gloss
H83: Chosen Height | I83: =Kitchen!A935 -> ENTER HEIGHT HERE | J83: Width | K83: =IFERROR(INDEX($F$61:$F$70,MATCH(I84,$G$61:$G$70,1)),1) -> 1 | N83: LK-ES-MWSG-6G | O83: 600 x 750 Ecostone Splash Back | P83: Meadow Sage Gloss | Q83: 600 x 750 Eco Slabstone Splash Back Meadow Sage Gloss
H84: Chosen Width | I84: =Kitchen!A936 -> ENTER WIDTH HERE | J84: Price | K84: =IFERROR(VLOOKUP(K83,$F$61:$L$70,MATCH(K82,$F$59:$L$59,0),0),"") -> 255 | N84: LK-ES-MWSG-9G | O84: 900 x 750 Ecostone Splash Back | P84: Meadow Sage Gloss | Q84: 900 x 750 Eco Slabstone Splash Back Meadow Sage Gloss
N85: LK-ES-MWSG-1G | O85: 1000 x 750 Ecostone Splash Back | P85: Meadow Sage Gloss | Q85: 1000 x 750 Eco Slabstone Splash Back Meadow Sage Gloss
N86: LK-ES-SFBC-6G | O86: 600 x 750 Ecostone Splash Back | P86: Star Flower Buttermilk Cream Gloss | Q86: 600 x 750 Eco Slabstone Splash Back Star Flower Buttermilk Cream Gloss
N87: LK-ES-SFBC-9G | O87: 900 x 750 Ecostone Splash Back | P87: Star Flower Buttermilk Cream Gloss | Q87: 900 x 750 Eco Slabstone Splash Back Star Flower Buttermilk Cream Gloss
H88: 1 | I88: 2 | J88: 3 | K88: 4 | N88: LK-ES-SFBC-1G | O88: 1000 x 750 Ecostone Splash Back | P88: Star Flower Buttermilk Cream Gloss | Q88: 1000 x 750 Eco Slabstone Splash Back Star Flower Buttermilk Cream Gloss
H89: 286 | I89: 720 | J89: 900 | K89: 1960 | N89: LK-ES-SFPB-6G | O89: 600 x 750 Ecostone Splash Back | P89: Star Flower Pastel Blue Gloss | Q89: 600 x 750 Eco Slabstone Splash Back Star Flower Pastel Blue Gloss
F90: 1 | G90: 150 | H90: 255 | I90: 281 | J90: 309 | K90: 330 | N90: LK-ES-SFPB-9G | O90: 900 x 750 Ecostone Splash Back | P90: Star Flower Pastel Blue Gloss | Q90: 900 x 750 Eco Slabstone Splash Back Star Flower Pastel Blue Gloss
F91: 2 | G91: 300 | H91: 255 | I91: 281 | J91: 309 | K91: 566 | N91: LK-ES-SFPB-1G | O91: 1000 x 750 Ecostone Splash Back | P91: Star Flower Pastel Blue Gloss | Q91: 1000 x 750 Eco Slabstone Splash Back Star Flower Pastel Blue Gloss
N92: LK-ES-CYBB-6G | O92: 600 x 750 Ecostone Splash Back | P92: Canterbury Baltic Blue Gloss | Q92: 600 x 750 Eco Slabstone Splash Back Canterbury Baltic Blue Gloss
H93: Solutions Wine Racks | N93: LK-ES-CYBB-9G | O93: 900 x 750 Ecostone Splash Back | P93: Canterbury Baltic Blue Gloss | Q93: 900 x 750 Eco Slabstone Splash Back Canterbury Baltic Blue Gloss
H94: Wine Rack 1 | J94: Height | K94: =IFERROR(INDEX($H$88:$K$88,MATCH(I95,$H$89:$K$89,1)),1) -> 1 | N94: LK-ES-CYBB-1G | O94: 1000 x 750 Ecostone Splash Back | P94: Canterbury Baltic Blue Gloss | Q94: 1000 x 750 Eco Slabstone Splash Back Canterbury Baltic Blue Gloss
H95: Chosen Height | I95: =Kitchen!A940 -> ENTER HEIGHT HERE | J95: Width | K95: =IFERROR(INDEX($F$90:$F$91,MATCH(I96,$G$90:$G$91,1)),1) -> 1 | N95: LK-ES-CYCG-6G | O95: 600 x 750 Ecostone Splash Back | P95: Canterbury Charcoal Grey Gloss | Q95: 600 x 750 Eco Slabstone Splash Back Canterbury Charcoal Grey Gloss
H96: Chosen Width | I96: =Kitchen!A941 -> ENTER WIDTH HERE | J96: Price | K96: =IFERROR(VLOOKUP(K95,$F$90:$K$91,MATCH(K94,$F$88:$K$88,0),0),"") -> 255 | N96: LK-ES-CYCG-9G | O96: 900 x 750 Ecostone Splash Back | P96: Canterbury Charcoal Grey Gloss | Q96: 900 x 750 Eco Slabstone Splash Back Canterbury Charcoal Grey Gloss
N97: LK-ES-CYCG-1G | O97: 1000 x 750 Ecostone Splash Back | P97: Canterbury Charcoal Grey Gloss | Q97: 1000 x 750 Eco Slabstone Splash Back Canterbury Charcoal Grey Gloss
H98: Wine Rack 2 | J98: Height | K98: =IFERROR(INDEX($H$88:$K$88,MATCH(I99,$H$89:$K$89,1)),1) -> 1 | N98: LK-ES-HBPC-6G | O98: 600 x 750 Ecostone Splash Back | P98: Herringbone Porcelain Cream Gloss | Q98: 600 x 750 Eco Slabstone Splash Back Herringbone Porcelain Cream Gloss
H99: Chosen Height | I99: =Kitchen!A944 -> ENTER HEIGHT HERE | J99: Width | K99: =IFERROR(INDEX($F$90:$F$91,MATCH(I100,$G$90:$G$91,1)),1) -> 1 | N99: LK-ES-HBPC-9G | O99: 900 x 750 Ecostone Splash Back | P99: Herringbone Porcelain Cream Gloss | Q99: 900 x 750 Eco Slabstone Splash Back Herringbone Porcelain Cream Gloss
H100: Chosen Width | I100: =Kitchen!A945 -> ENTER WIDTH HERE | J100: Price | K100: =IFERROR(VLOOKUP(K99,$F$90:$K$91,MATCH(K98,$F$88:$K$88,0),0),"") -> 255 | N100: LK-ES-HBPC-1G | O100: 1000 x 750 Ecostone Splash Back | P100: Herringbone Porcelain Cream Gloss | Q100: 1000 x 750 Eco Slabstone Splash Back Herringbone Porcelain Cream Gloss
N101: LK-ES-HBCP-6G | O101: 600 x 750 Ecostone Splash Back | P101: Herringbone Cashmere Pink Gloss | Q101: 600 x 750 Eco Slabstone Splash Back Herringbone Cashmere Pink Gloss
H102: Wine Rack 3 | J102: Height | K102: =IFERROR(INDEX($H$88:$K$88,MATCH(I103,$H$89:$K$89,1)),1) -> 1 | N102: LK-ES-HBCP-9G | O102: 900 x 750 Ecostone Splash Back | P102: Herringbone Cashmere Pink Gloss | Q102: 900 x 750 Eco Slabstone Splash Back Herringbone Cashmere Pink Gloss
H103: Chosen Height | I103: =Kitchen!A948 -> ENTER HEIGHT HERE | J103: Width | K103: =IFERROR(INDEX($F$90:$F$91,MATCH(I104,$G$90:$G$91,1)),1) -> 1 | N103: LK-ES-HBCP-1G | O103: 1000 x 750 Ecostone Splash Back | P103: Herringbone Cashmere Pink Gloss | Q103: 1000 x 750 Eco Slabstone Splash Back Herringbone Cashmere Pink Gloss
H104: Chosen Width | I104: =Kitchen!A949 -> ENTER WIDTH HERE | J104: Price | K104: =IFERROR(VLOOKUP(K103,$F$90:$K$91,MATCH(K102,$F$88:$K$88,0),0),"") -> 255 | N104: LK-ES-HBIB-6G | O104: 600 x 750 Ecostone Splash Back | P104: Herringbone Indigo Blue Gloss | Q104: 600 x 750 Eco Slabstone Splash Back Herringbone Indigo Blue Gloss
N105: LK-ES-HBIB-9G | O105: 900 x 750 Ecostone Splash Back | P105: Herringbone Indigo Blue Gloss | Q105: 900 x 750 Eco Slabstone Splash Back Herringbone Indigo Blue Gloss
N106: LK-ES-HBIB-1G | O106: 1000 x 750 Ecostone Splash Back | P106: Herringbone Indigo Blue Gloss | Q106: 1000 x 750 Eco Slabstone Splash Back Herringbone Indigo Blue Gloss
N107: LK-ES-HBMG-6G | O107: 600 x 750 Ecostone Splash Back | P107: Herringbone Marble Grey Gloss | Q107: 600 x 750 Eco Slabstone Splash Back Herringbone Marble Grey Gloss
H108: Solutions Wine Racks | N108: LK-ES-HBMG-9G | O108: 900 x 750 Ecostone Splash Back | P108: Herringbone Marble Grey Gloss | Q108: 900 x 750 Eco Slabstone Splash Back Herringbone Marble Grey Gloss
N109: LK-ES-HBMG-1G | O109: 1000 x 750 Ecostone Splash Back | P109: Herringbone Marble Grey Gloss | Q109: 1000 x 750 Eco Slabstone Splash Back Herringbone Marble Grey Gloss
H110: 1 | I110: Select Range | J110: =VLOOKUP(Kitchen!$A939,$I111:$J114,2,FALSE) ->  | K110: =VLOOKUP(Kitchen!$A943,$I111:$J114,2,FALSE) ->  | L110: =VLOOKUP(Kitchen!$A947,$I111:$J114,2,FALSE) ->  | N110: LK-ES-HBJG-6G | O110: 600 x 750 Ecostone Splash Back | P110: Herringbone Jade Green Gloss | Q110: 600 x 750 Eco Slabstone Splash Back Herringbone Jade Green Gloss
H111: 2 | I111: Natural Oak Wine Rack | J111: HNO | N111: LK-ES-HBJG-9G | O111: 900 x 750 Ecostone Splash Back | P111: Herringbone Jade Green Gloss | Q111: 900 x 750 Eco Slabstone Splash Back Herringbone Jade Green Gloss
H112: 3 | I112: Tobacco Oak Wine Rack | J112: HTO | N112: LK-ES-HBJG-1G | O112: 1000 x 750 Ecostone Splash Back | P112: Herringbone Jade Green Gloss | Q112: 1000 x 750 Eco Slabstone Splash Back Herringbone Jade Green Gloss
H113: 4 | I113: White Oak Wine Rack | J113: HWO
H116: Eterna Open Units
H118: 1 | I118: Select Range | J118: =VLOOKUP(Kitchen!$A953,$I119:$J126,2,FALSE) ->  | K118: =VLOOKUP(Kitchen!$A957,$I119:$J126,2,FALSE) ->  | L118: =VLOOKUP(Kitchen!$A961,$I119:$J126,2,FALSE) -> 
H119: 2 | I119: Ossido Grigio Open Unit | J119: EOG
H120: 3 | I120: Ossido Marrone Open Unit | J120: EOM
H121: 4 | I121: Patagonia Marble Open Unit | J121: EPM
H122: 5 | I122: Venato Marble Open Unit | J122: EVM
H123: 6 | I123: Nero Marble Open Unit | J123: ENM
H124: 7 | I124: Laguna Grey Aged Oak Open Unit | J124: ELA
H125: 8 | I125: Laguna Dark Oak Open Unit | J125: ELD
H126: 9 | I126: Chalet Light Walnut Open Unit | J126: ELW
H128: Eterna Wine Racks
H129: 1 | I129: Select Range | J129: =VLOOKUP(Kitchen!$A966,$I130:$J137,2,FALSE) ->  | K129: =VLOOKUP(Kitchen!$A970,$I130:$J137,2,FALSE) ->  | L129: =VLOOKUP(Kitchen!$A974,$I130:$J137,2,FALSE) -> 
H130: 2 | I130: Ossido Grigio Wine Rack | J130: EOG
H131: 3 | I131: Ossido Marrone Wine Rack | J131: EOM
H132: 4 | I132: Patagonia Marble Wine Rack | J132: EPM
H133: 5 | I133: Venato Marble Wine Rack | J133: EVM
H134: 6 | I134: Nero Marble Wine Rack | J134: ENM
H135: 7 | I135: Laguna Grey Aged Oak Wine Rack | J135: ELA
H136: 8 | I136: Laguna Dark Oak Wine Rack | J136: ELD
H137: 9 | I137: Chalet Light Walnut Wine Rack | J137: ELW
H141: 1 | I141: 2 | J141: 3 | K141: 4 | L141: 5
G142: Sizes | H142: 286 | I142: 360 | J142: 720 | K142: 900 | L142: 1960
F143: 1 | G143: 150 | H143: 228 | I143: 228 | J143: 254 | K143: 280 | L143: 648
F144: 2 | G144: 300 | H144: 228 | I144: 228 | J144: 254 | K144: 280 | L144: 648
F145: 3 | G145: 400 | H145: 252 | I145: 252 | J145: 268 | K145: 292 | L145: 662
F146: 4 | G146: 500 | H146: 254 | I146: 254 | J146: 287 | K146: 312 | L146: 707
F147: 5 | G147: 600 | H147: 274 | I147: 274 | J147: 305 | K147: 338 | L147: 771
F148: 6 | G148: 700 | H148: 330 | I148: 330 | J148: 369 | K148: 401 | L148: Not Available
F149: 7 | G149: 800 | H149: 344 | I149: 344 | J149: 381 | K149: 419 | L149: Not Available
F150: 8 | G150: 900 | H150: 356 | I150: 356 | J150: 394 | K150: 440 | L150: Not Available
F151: 9 | G151: 1000 | H151: 369 | I151: 369 | J151: 407 | K151: 444 | L151: Not Available
F152: 10 | G152: 1200 | H152: 394 | I152: 394 | J152: Not Available | K152: Not Available | L152: Not Available
H155: Eterna Open Units
H156: Open Unit 1 | J156: Height | K156: =IFERROR(INDEX($H$141:$L$141,MATCH(I157,$H$142:$L$142,1)),1) -> 1
H157: Chosen Height | I157: =Kitchen!A954 -> ENTER HEIGHT HERE | J157: Width | K157: =IFERROR(INDEX($F$143:$F$152,MATCH(I158,$G$143:$G$152,1)),1) -> 1
H158: Chosen Width | I158: =Kitchen!A955 -> ENTER WIDTH HERE | J158: Price | K158: =IFERROR(VLOOKUP(K157,$F$143:$L$152,MATCH(K156,$F$141:$L$141,0),0),"") -> 228
H160: Open Unit 2 | J160: Height | K160: =IFERROR(INDEX($H$141:$L$141,MATCH($I161,$H$142:$L$142,1)),1) -> 1
H161: Chosen Height | I161: =Kitchen!A958 -> ENTER HEIGHT HERE | J161: Width | K161: =IFERROR(INDEX($F$143:$F$152,MATCH($I162,$G$143:$G$152,1)),1) -> 1
H162: Chosen Width | I162: =Kitchen!A959 -> ENTER WIDTH HERE | J162: Price | K162: =IFERROR(VLOOKUP(K161,$F$143:$L$152,MATCH(K160,$F$141:$L$141,0),0),"") -> 228
H164: Open Unit 3 | J164: Height | K164: =IFERROR(INDEX($H$141:$L$141,MATCH($I165,$H$142:$L$142,1)),1) -> 1
H165: Chosen Height | I165: =Kitchen!A962 -> ENTER HEIGHT HERE | J165: Width | K165: =IFERROR(INDEX($F$143:$F$152,MATCH($I166,$G$143:$G$152,1)),1) -> 1
H166: Chosen Width | I166: =Kitchen!A963 -> ENTER WIDTH HERE | J166: Price | K166: =IFERROR(VLOOKUP(K165,$F$143:$L$152,MATCH(K164,$F$141:$L$141,0),0),"") -> 228
H170: 1 | I170: 2 | J170: 3 | K170: 4
H171: 286 | I171: 720 | J171: 900 | K171: 1960
F172: 1 | G172: 150 | H172: 254 | I172: 344 | J172: 381 | K172: 762
F173: 2 | G173: 300 | H173: 330 | I173: 496 | J173: 585 | K173: 1017
H175: Eterna Wine Racks
H176: Wine Rack 1 | J176: Height | K176: =IFERROR(INDEX($H$170:$K$170,MATCH(I177,$H$171:$K$171,1)),1) -> 1
H177: Chosen Height | I177: =Kitchen!A967 -> ENTER HEIGHT HERE | J177: Width | K177: =IFERROR(INDEX($F$172:$F$173,MATCH(I178,$G$172:$G$173,1)),1) -> 1
H178: Chosen Width | I178: =Kitchen!A968 -> ENTER WIDTH HERE | J178: Price | K178: =IFERROR(VLOOKUP(K177,$F$172:$K$173,MATCH(K176,$F$170:$K$170,0),0),"") -> 254
H180: Wine Rack 2 | J180: Height | K180: =IFERROR(INDEX($H$170:$K$170,MATCH(I181,$H$171:$K$171,1)),1) -> 1
H181: Chosen Height | I181: =Kitchen!A971 -> ENTER HEIGHT HERE | J181: Width | K181: =IFERROR(INDEX($F$172:$F$173,MATCH(I182,$G$172:$G$173,1)),1) -> 1
H182: Chosen Width | I182: =Kitchen!A972 -> ENTER WIDTH HERE | J182: Price | K182: =IFERROR(VLOOKUP(K181,$F$172:$K$173,MATCH(K180,$F$170:$K$170,0),0),"") -> 254
H184: Wine Rack 3 | J184: Height | K184: =IFERROR(INDEX($H$170:$K$170,MATCH(I185,$H$171:$K$171,1)),1) -> 1
H185: Chosen Height | I185: =Kitchen!A975 -> ENTER HEIGHT HERE | J185: Width | K185: =IFERROR(INDEX($F$172:$F$173,MATCH(I186,$G$172:$G$173,1)),1) -> 1
H186: Chosen Width | I186: =Kitchen!A976 -> ENTER WIDTH HERE | J186: Price | K186: =IFERROR(VLOOKUP(K185,$F$172:$K$173,MATCH(K184,$F$170:$K$170,0),0),"") -> 254
H192: Assembled Talls | I192: 1
H193: 1 | I193: Yes
H194: 2 | I194: No
H197: Timber MTM Panels
H199: 1 | I199: Select Range | J199: =VLOOKUP($B$1,A2:E342,5,0) -> FAG
H200: 2 | I200: Woodgrain Painted MTM Panel
W201: W
U202: Woodgrain Painted MTM Panel | V202: 1 | W202: 2 | X202: 3 | Y202: 4 | Z202: 5 | AA202: 6 | AB202: 7 | AC202: 8 | AD202: 9 | AE202: 10 | AF202: 11 | AG202: 12 | AH202: 13
V203: 150 | W203: 300 | X203: 400 | Y203: 450 | Z203: 500 | AA203: 550 | AB203: 600 | AC203: 700 | AD203: 800 | AE203: 900 | AF203: 1000 | AG203: 1100 | AH203: 1200
H204: Panel 1 | I204: =Kitchen!$A$567 -> Woodgrain Painted MTM Panel | J204: Height | K204: =IFERROR(INDEX($T$204:$T$221,MATCH(I205,$U$204:$U$221,1)),1) -> 1 | T204: 1 | U204: 100 | V204: 14 | W204: 23 | X204: 29 | Y204: 32 | Z204: 35 | AA204: 38 | AB204: 41 | AC204: 47 | AD204: 53 | AE204: 59 | AF204: 65 | AG204: 71 | AH204: 77
H205: Chosen Height | I205: =Kitchen!$A$568 -> ENTER HEIGHT HERE | J205: Width | K205: =IFERROR(INDEX($V$202:$AH$202,MATCH(I206,$V$203:$AH$203,1)),1) -> 1 | T205: 2 | U205: 200 | V205: 21 | W205: 33 | X205: 40 | Y205: 44 | Z205: 48 | AA205: 52 | AB205: 56 | AC205: 64 | AD205: 72 | AE205: 80 | AF205: 88 | AG205: 96 | AH205: 104
H206: Chosen Width | I206: =Kitchen!$A$569 -> ENTER WIDTH HERE | J206: Price | K206: =IFERROR(VLOOKUP(K204,$T$204:$AH$221,MATCH(K205,$T$202:$AH$202,0),0),"") -> 14 | T206: 3 | U206: 300 | V206: 28 | W206: 42 | X206: 52 | Y206: 57 | Z206: 62 | AA206: 67 | AB206: 72 | AC206: 82 | AD206: 92 | AE206: 101 | AF206: 111 | AG206: 121 | AH206: 131
T207: 4 | U207: 400 | V207: 35 | W207: 52 | X207: 64 | Y207: 70 | Z207: 76 | AA207: 82 | AB207: 87 | AC207: 99 | AD207: 111 | AE207: 123 | AF207: 134 | AG207: 146 | AH207: 158
H208: Panel 2 | J208: Height | K208: =IFERROR(INDEX($T$204:$T$221,MATCH(I209,$U$204:$U$221,1)),1) -> 1 | T208: 5 | U208: 500 | V208: 42 | W208: 62 | X208: 76 | Y208: 83 | Z208: 89 | AA208: 96 | AB208: 103 | AC208: 117 | AD208: 130 | AE208: 144 | AF208: 158 | AG208: 171 | AH208: 185
H209: Chosen Height | I209: =Kitchen!$A$572 -> ENTER HEIGHT HERE | J209: Width | K209: =IFERROR(INDEX($V$202:$AH$202,MATCH(I210,$V$203:$AH$203,1)),1) -> 1 | T209: 6 | U209: 600 | V209: 49 | W209: 72 | X209: 87 | Y209: 95 | Z209: 103 | AA209: 111 | AB209: 119 | AC209: 134 | AD209: 150 | AE209: 165 | AF209: 181 | AG209: 196 | AH209: 212
H210: Chosen Width | I210: =Kitchen!$A$573 -> ENTER WIDTH HERE | J210: Price | K210: =IFERROR(VLOOKUP(K208,$T$204:$AH$221,MATCH(K209,$T$202:$AH$202,0),0),"") -> 14 | T210: 7 | U210: 800 | V210: 62 | W210: 92 | X210: 111 | Y210: 121 | Z210: 130 | AA210: 140 | AB210: 150 | AC210: 169 | AD210: 189 | AE210: 208 | AF210: 227 | AG210: 247 | AH210: 266
T211: 8 | U211: 900 | V211: 69 | W211: 101 | X211: 123 | Y211: 133 | Z211: 144 | AA211: 155 | AB211: 165 | AC211: 187 | AD211: 208 | AE211: 229 | AF211: 250 | AG211: 272 | AH211: 293
H212: Panel 3 | J212: Height | K212: =IFERROR(INDEX($T$204:$T$221,MATCH(I213,$U$204:$U$221,1)),1) -> 1 | T212: 9 | U212: 1000 | V212: 76 | W212: 111 | X212: 134 | Y212: 146 | Z212: 158 | AA212: 169 | AB212: 181 | AC212: 204 | AD212: 227 | AE212: 250 | AF212: NA | AG212: NA | AH212: NA
H213: Chosen Height | I213: =Kitchen!$A$576 -> ENTER HEIGHT HERE | J213: Width | K213: =IFERROR(INDEX($V$202:$AH$202,MATCH(I214,$V$203:$AH$203,1)),1) -> 1 | T213: 10 | U213: 1100 | V213: 83 | W213: 121 | X213: 146 | Y213: 159 | Z213: 171 | AA213: 184 | AB213: 196 | AC213: 222 | AD213: 247 | AE213: 272 | AF213: NA | AG213: NA | AH213: NA
H214: Chosen Width | I214: =Kitchen!$A$577 -> ENTER WIDTH HERE | J214: Price | K214: =IFERROR(VLOOKUP(K212,$T$204:$AH$221,MATCH(K213,$T$202:$AH$202,0),0),"") -> 14 | T214: 11 | U214: 1250 | V214: 94 | W214: 136 | X214: 164 | Y214: 178 | Z214: 192 | AA214: 206 | AB214: 220 | AC214: 248 | AD214: 276 | AE214: 304 | AF214: NA | AG214: NA | AH214: NA
T215: 12 | U215: 1500 | V215: 111 | W215: 160 | X215: 193 | Y215: 210 | Z215: 226 | AA215: 242 | AB215: 259 | AC215: 291 | AD215: 324 | AE215: NA | AF215: NA | AG215: NA | AH215: NA
H216: Panel 4 | J216: Height | K216: =IFERROR(INDEX($T$204:$T$221,MATCH(I217,$U$204:$U$221,1)),1) -> 1 | T216: 13 | U216: 1600 | V216: 118 | W216: 170 | X216: 205 | Y216: 222 | Z216: 240 | AA216: 257 | AB216: 274 | AC216: 309 | AD216: 344 | AE216: NA | AF216: NA | AG216: NA | AH216: NA
H217: Chosen Height | I217: =Kitchen!$A$580 -> ENTER HEIGHT HERE | J217: Width | K217: =IFERROR(INDEX($V$202:$AH$202,MATCH(I218,$V$203:$AH$203,1)),1) -> 1 | T217: 14 | U217: 1700 | V217: 125 | W217: 180 | X217: 217 | Y217: 235 | Z217: 253 | AA217: 272 | AB217: 290 | AC217: 326 | AD217: 363 | AE217: NA | AF217: NA | AG217: NA | AH217: NA
H218: Chosen Width | I218: =Kitchen!$A$581 -> ENTER WIDTH HERE | J218: Price | K218: =IFERROR(VLOOKUP(K216,$T$204:$AH$221,MATCH(K217,$T$202:$AH$202,0),0),"") -> 14 | T218: 15 | U218: 2000 | V218: 155 | W218: 222 | X218: 267 | Y218: 290 | Z218: 312 | AA218: 334 | AB218: 357 | AC218: 402 | AD218: 447 | AE218: NA | AF218: NA | AG218: NA | AH218: NA
T219: 16 | U219: 2200 | V219: 170 | W219: 243 | X219: 292 | Y219: 317 | Z219: 341 | AA219: 365 | AB219: 390 | AC219: 439 | AD219: 488 | AE219: NA | AF219: NA | AG219: NA | AH219: NA
H220: Panel 5 | J220: Height | K220: =IFERROR(INDEX($T$204:$T$221,MATCH(I221,$U$204:$U$221,1)),1) -> 1 | T220: 17 | U220: 2300 | V220: 177 | W220: 254 | X220: 305 | Y220: 330 | Z220: 356 | AA220: 381 | AB220: 406 | AC220: 457 | AD220: 508 | AE220: NA | AF220: NA | AG220: NA | AH220: NA
H221: Chosen Height | I221: =Kitchen!$A$584 -> ENTER HEIGHT HERE | J221: Width | K221: =IFERROR(INDEX($V$202:$AH$202,MATCH(I222,$V$203:$AH$203,1)),1) -> 1 | T221: 18 | U221: 2500 | V221: 192 | W221: 275 | X221: 330 | Y221: 357 | Z221: 385 | AA221: 412 | AB221: 439 | AC221: 494 | AD221: 604 | AE221: NA | AF221: NA | AG221: NA | AH221: NA
H222: Chosen Width | I222: =Kitchen!$A$585 -> ENTER WIDTH HERE | J222: Price | K222: =IFERROR(VLOOKUP(K220,$T$204:$AH$221,MATCH(K221,$T$202:$AH$202,0),0),"") -> 14

Sheet Codes (hidden)
B1: @LK- | C1: LK-C- | D1: 1 | E1: 2 | F1: 3 | G1: 4 | H1: 5 | I1: 6 | J1: 7 | K1: 8 | L1: 9 | M1: 10 | N1: 11 | O1: 12 | P1: 13 | Q1: 14 | R1: 15 | S1: 16 | T1: 17 | U1: 18 | V1: 19 | W1: 20 | X1: 21 | Y1: 22 | Z1: 23 | AA1: 24 | AB1: 25 | AC1: 26 | AD1: 27 | AE1: 28 | AF1: 29 | AG1: 30 | AH1: 31 | AI1: 32 | AJ1: 33 | AK1: 34 | AL1: 35 | AM1: 36 | AN1: 37 | AO1: 38 | AP1: 39 | AQ1: 40 | AR1: 41 | AS1: 42 | AT1: 43 | AU1: 44 | AV1: 45 | AW1: 46 | AX1: 47 | AY1: 48 | AZ1: 49 | BA1: 50 | BB1: 51 | BC1: 52 | BD1: 53 | BE1: 54 | BF1: 55 | BG1: 56 | BH1: 57 | BI1: 58 | BJ1: 59 | BK1: 60 | BL1: 61 | BM1: 62 | BN1: 63 | BO1: 64 | BP1: 65 | BQ1: 66
B2: LK-A- | C2: @LK-A- | D2: Faversham Aegean | E2: Faversham Atlantic | F2: Faversham Auburn | G2: Faversham Breeze | H2: Faversham Brigade | I2: Faversham Bright White | J2: Faversham Cashmere | K2: Faversham Damson | L2: Faversham Desert Pink | M2: Faversham Dust Grey | N2: Faversham Graphite | O2: Faversham Heather Green | P2: Faversham Indigo | Q2: Faversham Ivory | R2: Faversham Laurel Green | S2: Faversham Light Grey | T2: Faversham Meadow | U2: Faversham Midnight Grey | V2: Faversham Mussel | W2: Faversham Olive Green | X2: Faversham Pale Teal | Y2: Faversham Pearl | Z2: Faversham Pebble Grey | AA2: Faversham Porcelain | AB2: Faversham Sage | AC2: Faversham Sapphire | AD2: Faversham Soft Black | AE2: Faversham Soot | AF2: Faversham Steel Grey | AG2: Faversham Stone | AH2: Faversham Taupe | AI2: Faversham Thicket | AJ2: Faversham Warm Earth | AK2: Durham Aegean | AL2: Durham Atlantic | AM2: Durham Auburn | AN2: Durham Breeze | AO2: Durham Brigade | AP2: Durham Bright White | AQ2: Durham Cashmere | AR2: Durham Damson | AS2: Durham Desert Pink | AT2: Durham Dust Grey | AU2: Durham Graphite | AV2: Durham Heather Green | AW2: Durham Indigo | AX2: Durham Ivory | AY2: Durham Laurel Green | AZ2: Durham Light Grey | BA2: Durham Meadow | BB2: Durham Midnight Grey | BC2: Durham Mussel | BD2: Durham Olive Green | BE2: Durham Pale Teal | BF2: Durham Pearl | BG2: Durham Pebble Grey | BH2: Durham Porcelain | BI2: Durham Sage | BJ2: Durham Sapphire | BK2: Durham Soft Black | BL2: Durham Soot | BM2: Durham Steel Grey | BN2: Durham Stone | BO2: Durham Taupe | BP2: Durham Thicket | BQ2: Durham Warm Earth
B3: Product Description | C3: BOM / Prod ID | D3: FAG- | E3: FAT- | F3: FAB- | G3: FBR- | H3: FBG- | I3: FBW- | J3: FCS- | K3: FDM- | L3: FDP- | M3: FDS- | N3: FGP- | O3: FHG- | P3: FIN- | Q3: FIV- | R3: FLR- | S3: FLG- | T3: FME- | U3: FMN- | V3: FMU- | W3: FOV- | X3: FPT- | Y3: FPE- | Z3: FPG- | AA3: FPN- | AB3: FSG- | AC3: FSP- | AD3: FSB- | AE3: FSO- | AF3: FSY- | AG3: FST- | AH3: FTP- | AI3: FTK- | AJ3: FWE- | AK3: DAG- | AL3: DAT- | AM3: DAB- | AN3: DBR- | AO3: DBG- | AP3: DBW- | AQ3: DCS- | AR3: DDM- | AS3: DDR- | AT3: DDG- | AU3: DGP- | AV3: DHG- | AW3: DIN- | AX3: DIV- | AY3: DLR- | AZ3: DLG- | BA3: DMW- | BB3: DMN- | BC3: DMU- | BD3: DOV- | BE3: DPT- | BF3: DPE- | BG3: DPG- | BH3: DPN- | BI3: DSG- | BJ3: DSP- | BK3: DSB- | BL3: DSO- | BM3: DSY- | BN3: DST- | BO3: DTP- | BP3: DTK- | BQ3: DWE-
A4: BP15TY | B4: 150 HL Pull Out Base VS SUB | C4: BP15TY | D4: @LK-FAG-BP15TY | E4: @LK-FAT-BP15TY | F4: @LK-FAB-BP15TY | G4: @LK-FBR-BP15TY | H4: @LK-FBG-BP15TY | I4: @LK-FBW-BP15TY | J4: @LK-FCS-BP15TY | K4: @LK-FDM-BP15TY | L4: @LK-FDP-BP15TY | M4: @LK-FDS-BP15TY | N4: @LK-FGP-BP15TY | O4: @LK-FHG-BP15TY | P4: @LK-FIN-BP15TY | Q4: @LK-FIV-BP15TY | R4: @LK-FLR-BP15TY | S4: @LK-FLG-BP15TY | T4: @LK-FME-BP15TY | U4: @LK-FMN-BP15TY | V4: @LK-FMU-BP15TY | W4: @LK-FOV-BP15TY | X4: @LK-FPT-BP15TY | Y4: @LK-FPE-BP15TY | Z4: @LK-FPG-BP15TY | AA4: @LK-FPN-BP15TY | AB4: @LK-FSG-BP15TY | AC4: @LK-FSP-BP15TY | AD4: @LK-FSB-BP15TY | AE4: @LK-FSO-BP15TY | AF4: @LK-FSY-BP15TY | AG4: @LK-FST-BP15TY | AH4: @LK-FTP-BP15TY | AI4: @LK-FTK-BP15TY | AJ4: @LK-FWE-BP15TY | AK4: @LK-DAG-BP15TY | AL4: @LK-DAT-BP15TY | AM4: @LK-DAB-BP15TY | AN4: @LK-DBR-BP15TY | AO4: @LK-DBG-BP15TY | AP4: @LK-DBW-BP15TY | AQ4: @LK-DCS-BP15TY | AR4: @LK-DDM-BP15TY | AS4: @LK-DDR-BP15TY | AT4: @LK-DDG-BP15TY | AU4: @LK-DGP-BP15TY | AV4: @LK-DHG-BP15TY | AW4: @LK-DIN-BP15TY | AX4: @LK-DIV-BP15TY | AY4: @LK-DLR-BP15TY | AZ4: @LK-DLG-BP15TY | BA4: @LK-DMW-BP15TY | BB4: @LK-DMN-BP15TY | BC4: @LK-DMU-BP15TY | BD4: @LK-DOV-BP15TY | BE4: @LK-DPT-BP15TY | BF4: @LK-DPE-BP15TY | BG4: @LK-DPG-BP15TY | BH4: @LK-DPN-BP15TY | BI4: @LK-DSG-BP15TY | BJ4: @LK-DSP-BP15TY | BK4: @LK-DSB-BP15TY | BL4: @LK-DSO-BP15TY | BM4: @LK-DSY-BP15TY | BN4: @LK-DST-BP15TY | BO4: @LK-DTP-BP15TY | BP4: @LK-DTK-BP15TY | BQ4: @LK-DWE-BP15TY
A5: BP3TY | B5: 300 HL Pull Out Base VS SUB | C5: BP3TY | D5: @LK-FAG-BP3TY | E5: @LK-FAT-BP3TY | F5: @LK-FAB-BP3TY | G5: @LK-FBR-BP3TY | H5: @LK-FBG-BP3TY | I5: @LK-FBW-BP3TY | J5: @LK-FCS-BP3TY | K5: @LK-FDM-BP3TY | L5: @LK-FDP-BP3TY | M5: @LK-FDS-BP3TY | N5: @LK-FGP-BP3TY | O5: @LK-FHG-BP3TY | P5: @LK-FIN-BP3TY | Q5: @LK-FIV-BP3TY | R5: @LK-FLR-BP3TY | S5: @LK-FLG-BP3TY | T5: @LK-FME-BP3TY | U5: @LK-FMN-BP3TY | V5: @LK-FMU-BP3TY | W5: @LK-FOV-BP3TY | X5: @LK-FPT-BP3TY | Y5: @LK-FPE-BP3TY | Z5: @LK-FPG-BP3TY | AA5: @LK-FPN-BP3TY | AB5: @LK-FSG-BP3TY | AC5: @LK-FSP-BP3TY | AD5: @LK-FSB-BP3TY | AE5: @LK-FSO-BP3TY | AF5: @LK-FSY-BP3TY | AG5: @LK-FST-BP3TY | AH5: @LK-FTP-BP3TY | AI5: @LK-FTK-BP3TY | AJ5: @LK-FWE-BP3TY | AK5: @LK-DAG-BP3TY | AL5: @LK-DAT-BP3TY | AM5: @LK-DAB-BP3TY | AN5: @LK-DBR-BP3TY | AO5: @LK-DBG-BP3TY | AP5: @LK-DBW-BP3TY | AQ5: @LK-DCS-BP3TY | AR5: @LK-DDM-BP3TY | AS5: @LK-DDR-BP3TY | AT5: @LK-DDG-BP3TY | AU5: @LK-DGP-BP3TY | AV5: @LK-DHG-BP3TY | AW5: @LK-DIN-BP3TY | AX5: @LK-DIV-BP3TY | AY5: @LK-DLR-BP3TY | AZ5: @LK-DLG-BP3TY | BA5: @LK-DMW-BP3TY | BB5: @LK-DMN-BP3TY | BC5: @LK-DMU-BP3TY | BD5: @LK-DOV-BP3TY | BE5: @LK-DPT-BP3TY | BF5: @LK-DPE-BP3TY | BG5: @LK-DPG-BP3TY | BH5: @LK-DPN-BP3TY | BI5: @LK-DSG-BP3TY | BJ5: @LK-DSP-BP3TY | BK5: @LK-DSB-BP3TY | BL5: @LK-DSO-BP3TY | BM5: @LK-DSY-BP3TY | BN5: @LK-DST-BP3TY | BO5: @LK-DTP-BP3TY | BP5: @LK-DTK-BP3TY | BQ5: @LK-DWE-BP3TY
A6: BH15L | B6: 150 HL Base Unit LHH | C6: BH15L | D6: @LK-FAG-BH15L | E6: @LK-FAT-BH15L | F6: @LK-FAB-BH15L | G6: @LK-FBR-BH15L | H6: @LK-FBG-BH15L | I6: @LK-FBW-BH15L | J6: @LK-FCS-BH15L | K6: @LK-FDM-BH15L | L6: @LK-FDP-BH15L | M6: @LK-FDS-BH15L | N6: @LK-FGP-BH15L | O6: @LK-FHG-BH15L | P6: @LK-FIN-BH15L | Q6: @LK-FIV-BH15L | R6: @LK-FLR-BH15L | S6: @LK-FLG-BH15L | T6: @LK-FME-BH15L | U6: @LK-FMN-BH15L | V6: @LK-FMU-BH15L | W6: @LK-FOV-BH15L | X6: @LK-FPT-BH15L | Y6: @LK-FPE-BH15L | Z6: @LK-FPG-BH15L | AA6: @LK-FPN-BH15L | AB6: @LK-FSG-BH15L | AC6: @LK-FSP-BH15L | AD6: @LK-FSB-BH15L | AE6: @LK-FSO-BH15L | AF6: @LK-FSY-BH15L | AG6: @LK-FST-BH15L | AH6: @LK-FTP-BH15L | AI6: @LK-FTK-BH15L | AJ6: @LK-FWE-BH15L | AK6: Not Available | AL6: Not Available | AM6: Not Available | AN6: Not Available | AO6: Not Available | AP6: Not Available | AQ6: Not Available | AR6: Not Available | AS6: Not Available | AT6: Not Available | AU6: Not Available | AV6: Not Available | AW6: Not Available | AX6: Not Available | AY6: Not Available | AZ6: Not Available | BA6: Not Available | BB6: Not Available | BC6: Not Available | BD6: Not Available | BE6: Not Available | BF6: Not Available | BG6: Not Available | BH6: Not Available | BI6: Not Available | BJ6: Not Available | BK6: Not Available | BL6: Not Available | BM6: Not Available | BN6: Not Available | BO6: Not Available | BP6: Not Available | BQ6: Not Available
A7: BH15R | B7: 150 HL Base Unit RHH | C7: BH15R | D7: @LK-FAG-BH15R | E7: @LK-FAT-BH15R | F7: @LK-FAB-BH15R | G7: @LK-FBR-BH15R | H7: @LK-FBG-BH15R | I7: @LK-FBW-BH15R | J7: @LK-FCS-BH15R | K7: @LK-FDM-BH15R | L7: @LK-FDP-BH15R | M7: @LK-FDS-BH15R | N7: @LK-FGP-BH15R | O7: @LK-FHG-BH15R | P7: @LK-FIN-BH15R | Q7: @LK-FIV-BH15R | R7: @LK-FLR-BH15R | S7: @LK-FLG-BH15R | T7: @LK-FME-BH15R | U7: @LK-FMN-BH15R | V7: @LK-FMU-BH15R | W7: @LK-FOV-BH15R | X7: @LK-FPT-BH15R | Y7: @LK-FPE-BH15R | Z7: @LK-FPG-BH15R | AA7: @LK-FPN-BH15R | AB7: @LK-FSG-BH15R | AC7: @LK-FSP-BH15R | AD7: @LK-FSB-BH15R | AE7: @LK-FSO-BH15R | AF7: @LK-FSY-BH15R | AG7: @LK-FST-BH15R | AH7: @LK-FTP-BH15R | AI7: @LK-FTK-BH15R | AJ7: @LK-FWE-BH15R | AK7: Not Available | AL7: Not Available | AM7: Not Available | AN7: Not Available | AO7: Not Available | AP7: Not Available | AQ7: Not Available | AR7: Not Available | AS7: Not Available | AT7: Not Available | AU7: Not Available | AV7: Not Available | AW7: Not Available | AX7: Not Available | AY7: Not Available | AZ7: Not Available | BA7: Not Available | BB7: Not Available | BC7: Not Available | BD7: Not Available | BE7: Not Available | BF7: Not Available | BG7: Not Available | BH7: Not Available | BI7: Not Available | BJ7: Not Available | BK7: Not Available | BL7: Not Available | BM7: Not Available | BN7: Not Available | BO7: Not Available | BP7: Not Available | BQ7: Not Available
A8: BH30L | B8: 300 HL Base Unit LHH | C8: BH30L | D8: @LK-FAG-BH30L | E8: @LK-FAT-BH30L | F8: @LK-FAB-BH30L | G8: @LK-FBR-BH30L | H8: @LK-FBG-BH30L | I8: @LK-FBW-BH30L | J8: @LK-FCS-BH30L | K8: @LK-FDM-BH30L | L8: @LK-FDP-BH30L | M8: @LK-FDS-BH30L | N8: @LK-FGP-BH30L | O8: @LK-FHG-BH30L | P8: @LK-FIN-BH30L | Q8: @LK-FIV-BH30L | R8: @LK-FLR-BH30L | S8: @LK-FLG-BH30L | T8: @LK-FME-BH30L | U8: @LK-FMN-BH30L | V8: @LK-FMU-BH30L | W8: @LK-FOV-BH30L | X8: @LK-FPT-BH30L | Y8: @LK-FPE-BH30L | Z8: @LK-FPG-BH30L | AA8: @LK-FPN-BH30L | AB8: @LK-FSG-BH30L | AC8: @LK-FSP-BH30L | AD8: @LK-FSB-BH30L | AE8: @LK-FSO-BH30L | AF8: @LK-FSY-BH30L | AG8: @LK-FST-BH30L | AH8: @LK-FTP-BH30L | AI8: @LK-FTK-BH30L | AJ8: @LK-FWE-BH30L | AK8: @LK-DAG-BH30L | AL8: @LK-DAT-BH30L | AM8: @LK-DAB-BH30L | AN8: @LK-DBR-BH30L | AO8: @LK-DBG-BH30L | AP8: @LK-DBW-BH30L | AQ8: @LK-DCS-BH30L | AR8: @LK-DDM-BH30L | AS8: @LK-DDR-BH30L | AT8: @LK-DDG-BH30L | AU8: @LK-DGP-BH30L | AV8: @LK-DHG-BH30L | AW8: @LK-DIN-BH30L | AX8: @LK-DIV-BH30L | AY8: @LK-DLR-BH30L | AZ8: @LK-DLG-BH30L | BA8: @LK-DMW-BH30L | BB8: @LK-DMN-BH30L | BC8: @LK-DMU-BH30L | BD8: @LK-DOV-BH30L | BE8: @LK-DPT-BH30L | BF8: @LK-DPE-BH30L | BG8: @LK-DPG-BH30L | BH8: @LK-DPN-BH30L | BI8: @LK-DSG-BH30L | BJ8: @LK-DSP-BH30L | BK8: @LK-DSB-BH30L | BL8: @LK-DSO-BH30L | BM8: @LK-DSY-BH30L | BN8: @LK-DST-BH30L | BO8: @LK-DTP-BH30L | BP8: @LK-DTK-BH30L | BQ8: @LK-DWE-BH30L
A9: BH30R | B9: 300 HL Base Unit RHH | C9: BH30R | D9: @LK-FAG-BH30R | E9: @LK-FAT-BH30R | F9: @LK-FAB-BH30R | G9: @LK-FBR-BH30R | H9: @LK-FBG-BH30R | I9: @LK-FBW-BH30R | J9: @LK-FCS-BH30R | K9: @LK-FDM-BH30R | L9: @LK-FDP-BH30R | M9: @LK-FDS-BH30R | N9: @LK-FGP-BH30R | O9: @LK-FHG-BH30R | P9: @LK-FIN-BH30R | Q9: @LK-FIV-BH30R | R9: @LK-FLR-BH30R | S9: @LK-FLG-BH30R | T9: @LK-FME-BH30R | U9: @LK-FMN-BH30R | V9: @LK-FMU-BH30R | W9: @LK-FOV-BH30R | X9: @LK-FPT-BH30R | Y9: @LK-FPE-BH30R | Z9: @LK-FPG-BH30R | AA9: @LK-FPN-BH30R | AB9: @LK-FSG-BH30R | AC9: @LK-FSP-BH30R | AD9: @LK-FSB-BH30R | AE9: @LK-FSO-BH30R | AF9: @LK-FSY-BH30R | AG9: @LK-FST-BH30R | AH9: @LK-FTP-BH30R | AI9: @LK-FTK-BH30R | AJ9: @LK-FWE-BH30R | AK9: @LK-DAG-BH30R | AL9: @LK-DAT-BH30R | AM9: @LK-DAB-BH30R | AN9: @LK-DBR-BH30R | AO9: @LK-DBG-BH30R | AP9: @LK-DBW-BH30R | AQ9: @LK-DCS-BH30R | AR9: @LK-DDM-BH30R | AS9: @LK-DDR-BH30R | AT9: @LK-DDG-BH30R | AU9: @LK-DGP-BH30R | AV9: @LK-DHG-BH30R | AW9: @LK-DIN-BH30R | AX9: @LK-DIV-BH30R | AY9: @LK-DLR-BH30R | AZ9: @LK-DLG-BH30R | BA9: @LK-DMW-BH30R | BB9: @LK-DMN-BH30R | BC9: @LK-DMU-BH30R | BD9: @LK-DOV-BH30R | BE9: @LK-DPT-BH30R | BF9: @LK-DPE-BH30R | BG9: @LK-DPG-BH30R | BH9: @LK-DPN-BH30R | BI9: @LK-DSG-BH30R | BJ9: @LK-DSP-BH30R | BK9: @LK-DSB-BH30R | BL9: @LK-DSO-BH30R | BM9: @LK-DSY-BH30R | BN9: @LK-DST-BH30R | BO9: @LK-DTP-BH30R | BP9: @LK-DTK-BH30R | BQ9: @LK-DWE-BH30R
A10: BH3B | B10: 300 HL Base Unit & Bin | C10: BH3B | D10: @LK-FAG-BH3B | E10: @LK-FAT-BH3B | F10: @LK-FAB-BH3B | G10: @LK-FBR-BH3B | H10: @LK-FBG-BH3B | I10: @LK-FBW-BH3B | J10: @LK-FCS-BH3B | K10: @LK-FDM-BH3B | L10: @LK-FDP-BH3B | M10: @LK-FDS-BH3B | N10: @LK-FGP-BH3B | O10: @LK-FHG-BH3B | P10: @LK-FIN-BH3B | Q10: @LK-FIV-BH3B | R10: @LK-FLR-BH3B | S10: @LK-FLG-BH3B | T10: @LK-FME-BH3B | U10: @LK-FMN-BH3B | V10: @LK-FMU-BH3B | W10: @LK-FOV-BH3B | X10: @LK-FPT-BH3B | Y10: @LK-FPE-BH3B | Z10: @LK-FPG-BH3B | AA10: @LK-FPN-BH3B | AB10: @LK-FSG-BH3B | AC10: @LK-FSP-BH3B | AD10: @LK-FSB-BH3B | AE10: @LK-FSO-BH3B | AF10: @LK-FSY-BH3B | AG10: @LK-FST-BH3B | AH10: @LK-FTP-BH3B | AI10: @LK-FTK-BH3B | AJ10: @LK-FWE-BH3B | AK10: @LK-DAG-BH3B | AL10: @LK-DAT-BH3B | AM10: @LK-DAB-BH3B | AN10: @LK-DBR-BH3B | AO10: @LK-DBG-BH3B | AP10: @LK-DBW-BH3B | AQ10: @LK-DCS-BH3B | AR10: @LK-DDM-BH3B | AS10: @LK-DDR-BH3B | AT10: @LK-DDG-BH3B | AU10: @LK-DGP-BH3B | AV10: @LK-DHG-BH3B | AW10: @LK-DIN-BH3B | AX10: @LK-DIV-BH3B | AY10: @LK-DLR-BH3B | AZ10: @LK-DLG-BH3B | BA10: @LK-DMW-BH3B | BB10: @LK-DMN-BH3B | BC10: @LK-DMU-BH3B | BD10: @LK-DOV-BH3B | BE10: @LK-DPT-BH3B | BF10: @LK-DPE-BH3B | BG10: @LK-DPG-BH3B | BH10: @LK-DPN-BH3B | BI10: @LK-DSG-BH3B | BJ10: @LK-DSP-BH3B | BK10: @LK-DSB-BH3B | BL10: @LK-DSO-BH3B | BM10: @LK-DSY-BH3B | BN10: @LK-DST-BH3B | BO10: @LK-DTP-BH3B | BP10: @LK-DTK-BH3B | BQ10: @LK-DWE-BH3B
A11: BH4B | B11: 400 HL Base Unit & Bin | C11: BH4B | D11: @LK-FAG-BH4B | E11: @LK-FAT-BH4B | F11: @LK-FAB-BH4B | G11: @LK-FBR-BH4B | H11: @LK-FBG-BH4B | I11: @LK-FBW-BH4B | J11: @LK-FCS-BH4B | K11: @LK-FDM-BH4B | L11: @LK-FDP-BH4B | M11: @LK-FDS-BH4B | N11: @LK-FGP-BH4B | O11: @LK-FHG-BH4B | P11: @LK-FIN-BH4B | Q11: @LK-FIV-BH4B | R11: @LK-FLR-BH4B | S11: @LK-FLG-BH4B | T11: @LK-FME-BH4B | U11: @LK-FMN-BH4B | V11: @LK-FMU-BH4B | W11: @LK-FOV-BH4B | X11: @LK-FPT-BH4B | Y11: @LK-FPE-BH4B | Z11: @LK-FPG-BH4B | AA11: @LK-FPN-BH4B | AB11: @LK-FSG-BH4B | AC11: @LK-FSP-BH4B | AD11: @LK-FSB-BH4B | AE11: @LK-FSO-BH4B | AF11: @LK-FSY-BH4B | AG11: @LK-FST-BH4B | AH11: @LK-FTP-BH4B | AI11: @LK-FTK-BH4B | AJ11: @LK-FWE-BH4B | AK11: Not Available | AL11: Not Available | AM11: Not Available | AN11: Not Available | AO11: Not Available | AP11: Not Available | AQ11: Not Available | AR11: Not Available | AS11: Not Available | AT11: Not Available | AU11: Not Available | AV11: Not Available | AW11: Not Available | AX11: Not Available | AY11: Not Available | AZ11: Not Available | BA11: Not Available | BB11: Not Available | BC11: Not Available | BD11: Not Available | BE11: Not Available | BF11: Not Available | BG11: Not Available | BH11: Not Available | BI11: Not Available | BJ11: Not Available | BK11: Not Available | BL11: Not Available | BM11: Not Available | BN11: Not Available | BO11: Not Available | BP11: Not Available | BQ11: Not Available
A12: BH35L | B12: 350 HL Base Unit LHH | C12: BH35L | D12: @LK-FAG-BH35L | E12: @LK-FAT-BH35L | F12: @LK-FAB-BH35L | G12: @LK-FBR-BH35L | H12: @LK-FBG-BH35L | I12: @LK-FBW-BH35L | J12: @LK-FCS-BH35L | K12: @LK-FDM-BH35L | L12: @LK-FDP-BH35L | M12: @LK-FDS-BH35L | N12: @LK-FGP-BH35L | O12: @LK-FHG-BH35L | P12: @LK-FIN-BH35L | Q12: @LK-FIV-BH35L | R12: @LK-FLR-BH35L | S12: @LK-FLG-BH35L | T12: @LK-FME-BH35L | U12: @LK-FMN-BH35L | V12: @LK-FMU-BH35L | W12: @LK-FOV-BH35L | X12: @LK-FPT-BH35L | Y12: @LK-FPE-BH35L | Z12: @LK-FPG-BH35L | AA12: @LK-FPN-BH35L | AB12: @LK-FSG-BH35L | AC12: @LK-FSP-BH35L | AD12: @LK-FSB-BH35L | AE12: @LK-FSO-BH35L | AF12: @LK-FSY-BH35L | AG12: @LK-FST-BH35L | AH12: @LK-FTP-BH35L | AI12: @LK-FTK-BH35L | AJ12: @LK-FWE-BH35L | AK12: Not Available | AL12: Not Available | AM12: Not Available | AN12: Not Available | AO12: Not Available | AP12: Not Available | AQ12: Not Available | AR12: Not Available | AS12: Not Available | AT12: Not Available | AU12: Not Available | AV12: Not Available | AW12: Not Available | AX12: Not Available | AY12: Not Available | AZ12: Not Available | BA12: Not Available | BB12: Not Available | BC12: Not Available | BD12: Not Available | BE12: Not Available | BF12: Not Available | BG12: Not Available | BH12: Not Available | BI12: Not Available | BJ12: Not Available | BK12: Not Available | BL12: Not Available | BM12: Not Available | BN12: Not Available | BO12: Not Available | BP12: Not Available | BQ12: Not Available
A13: BH35R | B13: 350 HL Base Unit RHH | C13: BH35R | D13: @LK-FAG-BH35R | E13: @LK-FAT-BH35R | F13: @LK-FAB-BH35R | G13: @LK-FBR-BH35R | H13: @LK-FBG-BH35R | I13: @LK-FBW-BH35R | J13: @LK-FCS-BH35R | K13: @LK-FDM-BH35R | L13: @LK-FDP-BH35R | M13: @LK-FDS-BH35R | N13: @LK-FGP-BH35R | O13: @LK-FHG-BH35R | P13: @LK-FIN-BH35R | Q13: @LK-FIV-BH35R | R13: @LK-FLR-BH35R | S13: @LK-FLG-BH35R | T13: @LK-FME-BH35R | U13: @LK-FMN-BH35R | V13: @LK-FMU-BH35R | W13: @LK-FOV-BH35R | X13: @LK-FPT-BH35R | Y13: @LK-FPE-BH35R | Z13: @LK-FPG-BH35R | AA13: @LK-FPN-BH35R | AB13: @LK-FSG-BH35R | AC13: @LK-FSP-BH35R | AD13: @LK-FSB-BH35R | AE13: @LK-FSO-BH35R | AF13: @LK-FSY-BH35R | AG13: @LK-FST-BH35R | AH13: @LK-FTP-BH35R | AI13: @LK-FTK-BH35R | AJ13: @LK-FWE-BH35R | AK13: Not Available | AL13: Not Available | AM13: Not Available | AN13: Not Available | AO13: Not Available | AP13: Not Available | AQ13: Not Available | AR13: Not Available | AS13: Not Available | AT13: Not Available | AU13: Not Available | AV13: Not Available | AW13: Not Available | AX13: Not Available | AY13: Not Available | AZ13: Not Available | BA13: Not Available | BB13: Not Available | BC13: Not Available | BD13: Not Available | BE13: Not Available | BF13: Not Available | BG13: Not Available | BH13: Not Available | BI13: Not Available | BJ13: Not Available | BK13: Not Available | BL13: Not Available | BM13: Not Available | BN13: Not Available | BO13: Not Available | BP13: Not Available | BQ13: Not Available
A14: BH40L | B14: 400 HL Base Unit LHH | C14: BH40L | D14: @LK-FAG-BH40L | E14: @LK-FAT-BH40L | F14: @LK-FAB-BH40L | G14: @LK-FBR-BH40L | H14: @LK-FBG-BH40L | I14: @LK-FBW-BH40L | J14: @LK-FCS-BH40L | K14: @LK-FDM-BH40L | L14: @LK-FDP-BH40L | M14: @LK-FDS-BH40L | N14: @LK-FGP-BH40L | O14: @LK-FHG-BH40L | P14: @LK-FIN-BH40L | Q14: @LK-FIV-BH40L | R14: @LK-FLR-BH40L | S14: @LK-FLG-BH40L | T14: @LK-FME-BH40L | U14: @LK-FMN-BH40L | V14: @LK-FMU-BH40L | W14: @LK-FOV-BH40L | X14: @LK-FPT-BH40L | Y14: @LK-FPE-BH40L | Z14: @LK-FPG-BH40L | AA14: @LK-FPN-BH40L | AB14: @LK-FSG-BH40L | AC14: @LK-FSP-BH40L | AD14: @LK-FSB-BH40L | AE14: @LK-FSO-BH40L | AF14: @LK-FSY-BH40L | AG14: @LK-FST-BH40L | AH14: @LK-FTP-BH40L | AI14: @LK-FTK-BH40L | AJ14: @LK-FWE-BH40L | AK14: @LK-DAG-BH40L | AL14: @LK-DAT-BH40L | AM14: @LK-DAB-BH40L | AN14: @LK-DBR-BH40L | AO14: @LK-DBG-BH40L | AP14: @LK-DBW-BH40L | AQ14: @LK-DCS-BH40L | AR14: @LK-DDM-BH40L | AS14: @LK-DDR-BH40L | AT14: @LK-DDG-BH40L | AU14: @LK-DGP-BH40L | AV14: @LK-DHG-BH40L | AW14: @LK-DIN-BH40L | AX14: @LK-DIV-BH40L | AY14: @LK-DLR-BH40L | AZ14: @LK-DLG-BH40L | BA14: @LK-DMW-BH40L | BB14: @LK-DMN-BH40L | BC14: @LK-DMU-BH40L | BD14: @LK-DOV-BH40L | BE14: @LK-DPT-BH40L | BF14: @LK-DPE-BH40L | BG14: @LK-DPG-BH40L | BH14: @LK-DPN-BH40L | BI14: @LK-DSG-BH40L | BJ14: @LK-DSP-BH40L | BK14: @LK-DSB-BH40L | BL14: @LK-DSO-BH40L | BM14: @LK-DSY-BH40L | BN14: @LK-DST-BH40L | BO14: @LK-DTP-BH40L | BP14: @LK-DTK-BH40L | BQ14: @LK-DWE-BH40L
A15: BH40R | B15: 400 HL Base Unit RHH | C15: BH40R | D15: @LK-FAG-BH40R | E15: @LK-FAT-BH40R | F15: @LK-FAB-BH40R | G15: @LK-FBR-BH40R | H15: @LK-FBG-BH40R | I15: @LK-FBW-BH40R | J15: @LK-FCS-BH40R | K15: @LK-FDM-BH40R | L15: @LK-FDP-BH40R | M15: @LK-FDS-BH40R | N15: @LK-FGP-BH40R | O15: @LK-FHG-BH40R | P15: @LK-FIN-BH40R | Q15: @LK-FIV-BH40R | R15: @LK-FLR-BH40R | S15: @LK-FLG-BH40R | T15: @LK-FME-BH40R | U15: @LK-FMN-BH40R | V15: @LK-FMU-BH40R | W15: @LK-FOV-BH40R | X15: @LK-FPT-BH40R | Y15: @LK-FPE-BH40R | Z15: @LK-FPG-BH40R | AA15: @LK-FPN-BH40R | AB15: @LK-FSG-BH40R | AC15: @LK-FSP-BH40R | AD15: @LK-FSB-BH40R | AE15: @LK-FSO-BH40R | AF15: @LK-FSY-BH40R | AG15: @LK-FST-BH40R | AH15: @LK-FTP-BH40R | AI15: @LK-FTK-BH40R | AJ15: @LK-FWE-BH40R | AK15: @LK-DAG-BH40R | AL15: @LK-DAT-BH40R | AM15: @LK-DAB-BH40R | AN15: @LK-DBR-BH40R | AO15: @LK-DBG-BH40R | AP15: @LK-DBW-BH40R | AQ15: @LK-DCS-BH40R | AR15: @LK-DDM-BH40R | AS15: @LK-DDR-BH40R | AT15: @LK-DDG-BH40R | AU15: @LK-DGP-BH40R | AV15: @LK-DHG-BH40R | AW15: @LK-DIN-BH40R | AX15: @LK-DIV-BH40R | AY15: @LK-DLR-BH40R | AZ15: @LK-DLG-BH40R | BA15: @LK-DMW-BH40R | BB15: @LK-DMN-BH40R | BC15: @LK-DMU-BH40R | BD15: @LK-DOV-BH40R | BE15: @LK-DPT-BH40R | BF15: @LK-DPE-BH40R | BG15: @LK-DPG-BH40R | BH15: @LK-DPN-BH40R | BI15: @LK-DSG-BH40R | BJ15: @LK-DSP-BH40R | BK15: @LK-DSB-BH40R | BL15: @LK-DSO-BH40R | BM15: @LK-DSY-BH40R | BN15: @LK-DST-BH40R | BO15: @LK-DTP-BH40R | BP15: @LK-DTK-BH40R | BQ15: @LK-DWE-BH40R
A16: BH45B | B16: 450 HL Base Unit & Bin | C16: BH45B | D16: @LK-FAG-BH45B | E16: @LK-FAT-BH45B | F16: @LK-FAB-BH45B | G16: @LK-FBR-BH45B | H16: @LK-FBG-BH45B | I16: @LK-FBW-BH45B | J16: @LK-FCS-BH45B | K16: @LK-FDM-BH45B | L16: @LK-FDP-BH45B | M16: @LK-FDS-BH45B | N16: @LK-FGP-BH45B | O16: @LK-FHG-BH45B | P16: @LK-FIN-BH45B | Q16: @LK-FIV-BH45B | R16: @LK-FLR-BH45B | S16: @LK-FLG-BH45B | T16: @LK-FME-BH45B | U16: @LK-FMN-BH45B | V16: @LK-FMU-BH45B | W16: @LK-FOV-BH45B | X16: @LK-FPT-BH45B | Y16: @LK-FPE-BH45B | Z16: @LK-FPG-BH45B | AA16: @LK-FPN-BH45B | AB16: @LK-FSG-BH45B | AC16: @LK-FSP-BH45B | AD16: @LK-FSB-BH45B | AE16: @LK-FSO-BH45B | AF16: @LK-FSY-BH45B | AG16: @LK-FST-BH45B | AH16: @LK-FTP-BH45B | AI16: @LK-FTK-BH45B | AJ16: @LK-FWE-BH45B | AK16: @LK-DAG-BH45B | AL16: @LK-DAT-BH45B | AM16: @LK-DAB-BH45B | AN16: @LK-DBR-BH45B | AO16: @LK-DBG-BH45B | AP16: @LK-DBW-BH45B | AQ16: @LK-DCS-BH45B | AR16: @LK-DDM-BH45B | AS16: @LK-DDR-BH45B | AT16: @LK-DDG-BH45B | AU16: @LK-DGP-BH45B | AV16: @LK-DHG-BH45B | AW16: @LK-DIN-BH45B | AX16: @LK-DIV-BH45B | AY16: @LK-DLR-BH45B | AZ16: @LK-DLG-BH45B | BA16: @LK-DMW-BH45B | BB16: @LK-DMN-BH45B | BC16: @LK-DMU-BH45B | BD16: @LK-DOV-BH45B | BE16: @LK-DPT-BH45B | BF16: @LK-DPE-BH45B | BG16: @LK-DPG-BH45B | BH16: @LK-DPN-BH45B | BI16: @LK-DSG-BH45B | BJ16: @LK-DSP-BH45B | BK16: @LK-DSB-BH45B | BL16: @LK-DSO-BH45B | BM16: @LK-DSY-BH45B | BN16: @LK-DST-BH45B | BO16: @LK-DTP-BH45B | BP16: @LK-DTK-BH45B | BQ16: @LK-DWE-BH45B
A17: BH5B | B17: 500 HL Base Unit & Bin | C17: BH5B | D17: @LK-FAG-BH5B | E17: @LK-FAT-BH5B | F17: @LK-FAB-BH5B | G17: @LK-FBR-BH5B | H17: @LK-FBG-BH5B | I17: @LK-FBW-BH5B | J17: @LK-FCS-BH5B | K17: @LK-FDM-BH5B | L17: @LK-FDP-BH5B | M17: @LK-FDS-BH5B | N17: @LK-FGP-BH5B | O17: @LK-FHG-BH5B | P17: @LK-FIN-BH5B | Q17: @LK-FIV-BH5B | R17: @LK-FLR-BH5B | S17: @LK-FLG-BH5B | T17: @LK-FME-BH5B | U17: @LK-FMN-BH5B | V17: @LK-FMU-BH5B | W17: @LK-FOV-BH5B | X17: @LK-FPT-BH5B | Y17: @LK-FPE-BH5B | Z17: @LK-FPG-BH5B | AA17: @LK-FPN-BH5B | AB17: @LK-FSG-BH5B | AC17: @LK-FSP-BH5B | AD17: @LK-FSB-BH5B | AE17: @LK-FSO-BH5B | AF17: @LK-FSY-BH5B | AG17: @LK-FST-BH5B | AH17: @LK-FTP-BH5B | AI17: @LK-FTK-BH5B | AJ17: @LK-FWE-BH5B | AK17: @LK-DAG-BH5B | AL17: @LK-DAT-BH5B | AM17: @LK-DAB-BH5B | AN17: @LK-DBR-BH5B | AO17: @LK-DBG-BH5B | AP17: @LK-DBW-BH5B | AQ17: @LK-DCS-BH5B | AR17: @LK-DDM-BH5B | AS17: @LK-DDR-BH5B | AT17: @LK-DDG-BH5B | AU17: @LK-DGP-BH5B | AV17: @LK-DHG-BH5B | AW17: @LK-DIN-BH5B | AX17: @LK-DIV-BH5B | AY17: @LK-DLR-BH5B | AZ17: @LK-DLG-BH5B | BA17: @LK-DMW-BH5B | BB17: @LK-DMN-BH5B | BC17: @LK-DMU-BH5B | BD17: @LK-DOV-BH5B | BE17: @LK-DPT-BH5B | BF17: @LK-DPE-BH5B | BG17: @LK-DPG-BH5B | BH17: @LK-DPN-BH5B | BI17: @LK-DSG-BH5B | BJ17: @LK-DSP-BH5B | BK17: @LK-DSB-BH5B | BL17: @LK-DSO-BH5B | BM17: @LK-DSY-BH5B | BN17: @LK-DST-BH5B | BO17: @LK-DTP-BH5B | BP17: @LK-DTK-BH5B | BQ17: @LK-DWE-BH5B
A18: BH45L | B18: 450 HL Base Unit LHH | C18: BH45L | D18: @LK-FAG-BH45L | E18: @LK-FAT-BH45L | F18: @LK-FAB-BH45L | G18: @LK-FBR-BH45L | H18: @LK-FBG-BH45L | I18: @LK-FBW-BH45L | J18: @LK-FCS-BH45L | K18: @LK-FDM-BH45L | L18: @LK-FDP-BH45L | M18: @LK-FDS-BH45L | N18: @LK-FGP-BH45L | O18: @LK-FHG-BH45L | P18: @LK-FIN-BH45L | Q18: @LK-FIV-BH45L | R18: @LK-FLR-BH45L | S18: @LK-FLG-BH45L | T18: @LK-FME-BH45L | U18: @LK-FMN-BH45L | V18: @LK-FMU-BH45L | W18: @LK-FOV-BH45L | X18: @LK-FPT-BH45L | Y18: @LK-FPE-BH45L | Z18: @LK-FPG-BH45L | AA18: @LK-FPN-BH45L | AB18: @LK-FSG-BH45L | AC18: @LK-FSP-BH45L | AD18: @LK-FSB-BH45L | AE18: @LK-FSO-BH45L | AF18: @LK-FSY-BH45L | AG18: @LK-FST-BH45L | AH18: @LK-FTP-BH45L | AI18: @LK-FTK-BH45L | AJ18: @LK-FWE-BH45L | AK18: @LK-DAG-BH45L | AL18: @LK-DAT-BH45L | AM18: @LK-DAB-BH45L | AN18: @LK-DBR-BH45L | AO18: @LK-DBG-BH45L | AP18: @LK-DBW-BH45L | AQ18: @LK-DCS-BH45L | AR18: @LK-DDM-BH45L | AS18: @LK-DDR-BH45L | AT18: @LK-DDG-BH45L | AU18: @LK-DGP-BH45L | AV18: @LK-DHG-BH45L | AW18: @LK-DIN-BH45L | AX18: @LK-DIV-BH45L | AY18: @LK-DLR-BH45L | AZ18: @LK-DLG-BH45L | BA18: @LK-DMW-BH45L | BB18: @LK-DMN-BH45L | BC18: @LK-DMU-BH45L | BD18: @LK-DOV-BH45L | BE18: @LK-DPT-BH45L | BF18: @LK-DPE-BH45L | BG18: @LK-DPG-BH45L | BH18: @LK-DPN-BH45L | BI18: @LK-DSG-BH45L | BJ18: @LK-DSP-BH45L | BK18: @LK-DSB-BH45L | BL18: @LK-DSO-BH45L | BM18: @LK-DSY-BH45L | BN18: @LK-DST-BH45L | BO18: @LK-DTP-BH45L | BP18: @LK-DTK-BH45L | BQ18: @LK-DWE-BH45L
A19: BH45R | B19: 450 HL Base Unit RHH | C19: BH45R | D19: @LK-FAG-BH45R | E19: @LK-FAT-BH45R | F19: @LK-FAB-BH45R | G19: @LK-FBR-BH45R | H19: @LK-FBG-BH45R | I19: @LK-FBW-BH45R | J19: @LK-FCS-BH45R | K19: @LK-FDM-BH45R | L19: @LK-FDP-BH45R | M19: @LK-FDS-BH45R | N19: @LK-FGP-BH45R | O19: @LK-FHG-BH45R | P19: @LK-FIN-BH45R | Q19: @LK-FIV-BH45R | R19: @LK-FLR-BH45R | S19: @LK-FLG-BH45R | T19: @LK-FME-BH45R | U19: @LK-FMN-BH45R | V19: @LK-FMU-BH45R | W19: @LK-FOV-BH45R | X19: @LK-FPT-BH45R | Y19: @LK-FPE-BH45R | Z19: @LK-FPG-BH45R | AA19: @LK-FPN-BH45R | AB19: @LK-FSG-BH45R | AC19: @LK-FSP-BH45R | AD19: @LK-FSB-BH45R | AE19: @LK-FSO-BH45R | AF19: @LK-FSY-BH45R | AG19: @LK-FST-BH45R | AH19: @LK-FTP-BH45R | AI19: @LK-FTK-BH45R | AJ19: @LK-FWE-BH45R | AK19: @LK-DAG-BH45R | AL19: @LK-DAT-BH45R | AM19: @LK-DAB-BH45R | AN19: @LK-DBR-BH45R | AO19: @LK-DBG-BH45R | AP19: @LK-DBW-BH45R | AQ19: @LK-DCS-BH45R | AR19: @LK-DDM-BH45R | AS19: @LK-DDR-BH45R | AT19: @LK-DDG-BH45R | AU19: @LK-DGP-BH45R | AV19: @LK-DHG-BH45R | AW19: @LK-DIN-BH45R | AX19: @LK-DIV-BH45R | AY19: @LK-DLR-BH45R | AZ19: @LK-DLG-BH45R | BA19: @LK-DMW-BH45R | BB19: @LK-DMN-BH45R | BC19: @LK-DMU-BH45R | BD19: @LK-DOV-BH45R | BE19: @LK-DPT-BH45R | BF19: @LK-DPE-BH45R | BG19: @LK-DPG-BH45R | BH19: @LK-DPN-BH45R | BI19: @LK-DSG-BH45R | BJ19: @LK-DSP-BH45R | BK19: @LK-DSB-BH45R | BL19: @LK-DSO-BH45R | BM19: @LK-DSY-BH45R | BN19: @LK-DST-BH45R | BO19: @LK-DTP-BH45R | BP19: @LK-DTK-BH45R | BQ19: @LK-DWE-BH45R
A20: BH50L | B20: 500 HL Base Unit LHH | C20: BH50L | D20: @LK-FAG-BH50L | E20: @LK-FAT-BH50L | F20: @LK-FAB-BH50L | G20: @LK-FBR-BH50L | H20: @LK-FBG-BH50L | I20: @LK-FBW-BH50L | J20: @LK-FCS-BH50L | K20: @LK-FDM-BH50L | L20: @LK-FDP-BH50L | M20: @LK-FDS-BH50L | N20: @LK-FGP-BH50L | O20: @LK-FHG-BH50L | P20: @LK-FIN-BH50L | Q20: @LK-FIV-BH50L | R20: @LK-FLR-BH50L | S20: @LK-FLG-BH50L | T20: @LK-FME-BH50L | U20: @LK-FMN-BH50L | V20: @LK-FMU-BH50L | W20: @LK-FOV-BH50L | X20: @LK-FPT-BH50L | Y20: @LK-FPE-BH50L | Z20: @LK-FPG-BH50L | AA20: @LK-FPN-BH50L | AB20: @LK-FSG-BH50L | AC20: @LK-FSP-BH50L | AD20: @LK-FSB-BH50L | AE20: @LK-FSO-BH50L | AF20: @LK-FSY-BH50L | AG20: @LK-FST-BH50L | AH20: @LK-FTP-BH50L | AI20: @LK-FTK-BH50L | AJ20: @LK-FWE-BH50L | AK20: @LK-DAG-BH50L | AL20: @LK-DAT-BH50L | AM20: @LK-DAB-BH50L | AN20: @LK-DBR-BH50L | AO20: @LK-DBG-BH50L | AP20: @LK-DBW-BH50L | AQ20: @LK-DCS-BH50L | AR20: @LK-DDM-BH50L | AS20: @LK-DDR-BH50L | AT20: @LK-DDG-BH50L | AU20: @LK-DGP-BH50L | AV20: @LK-DHG-BH50L | AW20: @LK-DIN-BH50L | AX20: @LK-DIV-BH50L | AY20: @LK-DLR-BH50L | AZ20: @LK-DLG-BH50L | BA20: @LK-DMW-BH50L | BB20: @LK-DMN-BH50L | BC20: @LK-DMU-BH50L | BD20: @LK-DOV-BH50L | BE20: @LK-DPT-BH50L | BF20: @LK-DPE-BH50L | BG20: @LK-DPG-BH50L | BH20: @LK-DPN-BH50L | BI20: @LK-DSG-BH50L | BJ20: @LK-DSP-BH50L | BK20: @LK-DSB-BH50L | BL20: @LK-DSO-BH50L | BM20: @LK-DSY-BH50L | BN20: @LK-DST-BH50L | BO20: @LK-DTP-BH50L | BP20: @LK-DTK-BH50L | BQ20: @LK-DWE-BH50L
A21: BH50R | B21: 500 HL Base Unit RHH | C21: BH50R | D21: @LK-FAG-BH50R | E21: @LK-FAT-BH50R | F21: @LK-FAB-BH50R | G21: @LK-FBR-BH50R | H21: @LK-FBG-BH50R | I21: @LK-FBW-BH50R | J21: @LK-FCS-BH50R | K21: @LK-FDM-BH50R | L21: @LK-FDP-BH50R | M21: @LK-FDS-BH50R | N21: @LK-FGP-BH50R | O21: @LK-FHG-BH50R | P21: @LK-FIN-BH50R | Q21: @LK-FIV-BH50R | R21: @LK-FLR-BH50R | S21: @LK-FLG-BH50R | T21: @LK-FME-BH50R | U21: @LK-FMN-BH50R | V21: @LK-FMU-BH50R | W21: @LK-FOV-BH50R | X21: @LK-FPT-BH50R | Y21: @LK-FPE-BH50R | Z21: @LK-FPG-BH50R | AA21: @LK-FPN-BH50R | AB21: @LK-FSG-BH50R | AC21: @LK-FSP-BH50R | AD21: @LK-FSB-BH50R | AE21: @LK-FSO-BH50R | AF21: @LK-FSY-BH50R | AG21: @LK-FST-BH50R | AH21: @LK-FTP-BH50R | AI21: @LK-FTK-BH50R | AJ21: @LK-FWE-BH50R | AK21: @LK-DAG-BH50R | AL21: @LK-DAT-BH50R | AM21: @LK-DAB-BH50R | AN21: @LK-DBR-BH50R | AO21: @LK-DBG-BH50R | AP21: @LK-DBW-BH50R | AQ21: @LK-DCS-BH50R | AR21: @LK-DDM-BH50R | AS21: @LK-DDR-BH50R | AT21: @LK-DDG-BH50R | AU21: @LK-DGP-BH50R | AV21: @LK-DHG-BH50R | AW21: @LK-DIN-BH50R | AX21: @LK-DIV-BH50R | AY21: @LK-DLR-BH50R | AZ21: @LK-DLG-BH50R | BA21: @LK-DMW-BH50R | BB21: @LK-DMN-BH50R | BC21: @LK-DMU-BH50R | BD21: @LK-DOV-BH50R | BE21: @LK-DPT-BH50R | BF21: @LK-DPE-BH50R | BG21: @LK-DPG-BH50R | BH21: @LK-DPN-BH50R | BI21: @LK-DSG-BH50R | BJ21: @LK-DSP-BH50R | BK21: @LK-DSB-BH50R | BL21: @LK-DSO-BH50R | BM21: @LK-DSY-BH50R | BN21: @LK-DST-BH50R | BO21: @LK-DTP-BH50R | BP21: @LK-DTK-BH50R | BQ21: @LK-DWE-BH50R
A22: BH50SL | B22: 500 HL Sink Base Unit (Inc Liner) LHH | C22: BH50SL | D22: @LK-FAG-BH50SL | E22: @LK-FAT-BH50SL | F22: @LK-FAB-BH50SL | G22: @LK-FBR-BH50SL | H22: @LK-FBG-BH50SL | I22: @LK-FBW-BH50SL | J22: @LK-FCS-BH50SL | K22: @LK-FDM-BH50SL | L22: @LK-FDP-BH50SL | M22: @LK-FDS-BH50SL | N22: @LK-FGP-BH50SL | O22: @LK-FHG-BH50SL | P22: @LK-FIN-BH50SL | Q22: @LK-FIV-BH50SL | R22: @LK-FLR-BH50SL | S22: @LK-FLG-BH50SL | T22: @LK-FME-BH50SL | U22: @LK-FMN-BH50SL | V22: @LK-FMU-BH50SL | W22: @LK-FOV-BH50SL | X22: @LK-FPT-BH50SL | Y22: @LK-FPE-BH50SL | Z22: @LK-FPG-BH50SL | AA22: @LK-FPN-BH50SL | AB22: @LK-FSG-BH50SL | AC22: @LK-FSP-BH50SL | AD22: @LK-FSB-BH50SL | AE22: @LK-FSO-BH50SL | AF22: @LK-FSY-BH50SL | AG22: @LK-FST-BH50SL | AH22: @LK-FTP-BH50SL | AI22: @LK-FTK-BH50SL | AJ22: @LK-FWE-BH50SL | AK22: Not Available | AL22: Not Available | AM22: Not Available | AN22: Not Available | AO22: Not Available | AP22: Not Available | AQ22: Not Available | AR22: Not Available | AS22: Not Available | AT22: Not Available | AU22: Not Available | AV22: Not Available | AW22: Not Available | AX22: Not Available | AY22: Not Available | AZ22: Not Available | BA22: Not Available | BB22: Not Available | BC22: Not Available | BD22: Not Available | BE22: Not Available | BF22: Not Available | BG22: Not Available | BH22: Not Available | BI22: Not Available | BJ22: Not Available | BK22: Not Available | BL22: Not Available | BM22: Not Available | BN22: Not Available | BO22: Not Available | BP22: Not Available | BQ22: Not Available
A23: BH50SR | B23: 500 HL Sink Base Unit (Inc Liner) RHH | C23: BH50SR | D23: @LK-FAG-BH50SR | E23: @LK-FAT-BH50SR | F23: @LK-FAB-BH50SR | G23: @LK-FBR-BH50SR | H23: @LK-FBG-BH50SR | I23: @LK-FBW-BH50SR | J23: @LK-FCS-BH50SR | K23: @LK-FDM-BH50SR | L23: @LK-FDP-BH50SR | M23: @LK-FDS-BH50SR | N23: @LK-FGP-BH50SR | O23: @LK-FHG-BH50SR | P23: @LK-FIN-BH50SR | Q23: @LK-FIV-BH50SR | R23: @LK-FLR-BH50SR | S23: @LK-FLG-BH50SR | T23: @LK-FME-BH50SR | U23: @LK-FMN-BH50SR | V23: @LK-FMU-BH50SR | W23: @LK-FOV-BH50SR | X23: @LK-FPT-BH50SR | Y23: @LK-FPE-BH50SR | Z23: @LK-FPG-BH50SR | AA23: @LK-FPN-BH50SR | AB23: @LK-FSG-BH50SR | AC23: @LK-FSP-BH50SR | AD23: @LK-FSB-BH50SR | AE23: @LK-FSO-BH50SR | AF23: @LK-FSY-BH50SR | AG23: @LK-FST-BH50SR | AH23: @LK-FTP-BH50SR | AI23: @LK-FTK-BH50SR | AJ23: @LK-FWE-BH50SR | AK23: Not Available | AL23: Not Available | AM23: Not Available | AN23: Not Available | AO23: Not Available | AP23: Not Available | AQ23: Not Available | AR23: Not Available | AS23: Not Available | AT23: Not Available | AU23: Not Available | AV23: Not Available | AW23: Not Available | AX23: Not Available | AY23: Not Available | AZ23: Not Available | BA23: Not Available | BB23: Not Available | BC23: Not Available | BD23: Not Available | BE23: Not Available | BF23: Not Available | BG23: Not Available | BH23: Not Available | BI23: Not Available | BJ23: Not Available | BK23: Not Available | BL23: Not Available | BM23: Not Available | BN23: Not Available | BO23: Not Available | BP23: Not Available | BQ23: Not Available
A24: BH60L | B24: 600 HL Base Unit LHH | C24: BH60L | D24: @LK-FAG-BH60L | E24: @LK-FAT-BH60L | F24: @LK-FAB-BH60L | G24: @LK-FBR-BH60L | H24: @LK-FBG-BH60L | I24: @LK-FBW-BH60L | J24: @LK-FCS-BH60L | K24: @LK-FDM-BH60L | L24: @LK-FDP-BH60L | M24: @LK-FDS-BH60L | N24: @LK-FGP-BH60L | O24: @LK-FHG-BH60L | P24: @LK-FIN-BH60L | Q24: @LK-FIV-BH60L | R24: @LK-FLR-BH60L | S24: @LK-FLG-BH60L | T24: @LK-FME-BH60L | U24: @LK-FMN-BH60L | V24: @LK-FMU-BH60L | W24: @LK-FOV-BH60L | X24: @LK-FPT-BH60L | Y24: @LK-FPE-BH60L | Z24: @LK-FPG-BH60L | AA24: @LK-FPN-BH60L | AB24: @LK-FSG-BH60L | AC24: @LK-FSP-BH60L | AD24: @LK-FSB-BH60L | AE24: @LK-FSO-BH60L | AF24: @LK-FSY-BH60L | AG24: @LK-FST-BH60L | AH24: @LK-FTP-BH60L | AI24: @LK-FTK-BH60L | AJ24: @LK-FWE-BH60L | AK24: @LK-DAG-BH60L | AL24: @LK-DAT-BH60L | AM24: @LK-DAB-BH60L | AN24: @LK-DBR-BH60L | AO24: @LK-DBG-BH60L | AP24: @LK-DBW-BH60L | AQ24: @LK-DCS-BH60L | AR24: @LK-DDM-BH60L | AS24: @LK-DDR-BH60L | AT24: @LK-DDG-BH60L | AU24: @LK-DGP-BH60L | AV24: @LK-DHG-BH60L | AW24: @LK-DIN-BH60L | AX24: @LK-DIV-BH60L | AY24: @LK-DLR-BH60L | AZ24: @LK-DLG-BH60L | BA24: @LK-DMW-BH60L | BB24: @LK-DMN-BH60L | BC24: @LK-DMU-BH60L | BD24: @LK-DOV-BH60L | BE24: @LK-DPT-BH60L | BF24: @LK-DPE-BH60L | BG24: @LK-DPG-BH60L | BH24: @LK-DPN-BH60L | BI24: @LK-DSG-BH60L | BJ24: @LK-DSP-BH60L | BK24: @LK-DSB-BH60L | BL24: @LK-DSO-BH60L | BM24: @LK-DSY-BH60L | BN24: @LK-DST-BH60L | BO24: @LK-DTP-BH60L | BP24: @LK-DTK-BH60L | BQ24: @LK-DWE-BH60L
A25: BH60R | B25: 600 HL Base Unit RHH | C25: BH60R | D25: @LK-FAG-BH60R | E25: @LK-FAT-BH60R | F25: @LK-FAB-BH60R | G25: @LK-FBR-BH60R | H25: @LK-FBG-BH60R | I25: @LK-FBW-BH60R | J25: @LK-FCS-BH60R | K25: @LK-FDM-BH60R | L25: @LK-FDP-BH60R | M25: @LK-FDS-BH60R | N25: @LK-FGP-BH60R | O25: @LK-FHG-BH60R | P25: @LK-FIN-BH60R | Q25: @LK-FIV-BH60R | R25: @LK-FLR-BH60R | S25: @LK-FLG-BH60R | T25: @LK-FME-BH60R | U25: @LK-FMN-BH60R | V25: @LK-FMU-BH60R | W25: @LK-FOV-BH60R | X25: @LK-FPT-BH60R | Y25: @LK-FPE-BH60R | Z25: @LK-FPG-BH60R | AA25: @LK-FPN-BH60R | AB25: @LK-FSG-BH60R | AC25: @LK-FSP-BH60R | AD25: @LK-FSB-BH60R | AE25: @LK-FSO-BH60R | AF25: @LK-FSY-BH60R | AG25: @LK-FST-BH60R | AH25: @LK-FTP-BH60R | AI25: @LK-FTK-BH60R | AJ25: @LK-FWE-BH60R | AK25: @LK-DAG-BH60R | AL25: @LK-DAT-BH60R | AM25: @LK-DAB-BH60R | AN25: @LK-DBR-BH60R | AO25: @LK-DBG-BH60R | AP25: @LK-DBW-BH60R | AQ25: @LK-DCS-BH60R | AR25: @LK-DDM-BH60R | AS25: @LK-DDR-BH60R | AT25: @LK-DDG-BH60R | AU25: @LK-DGP-BH60R | AV25: @LK-DHG-BH60R | AW25: @LK-DIN-BH60R | AX25: @LK-DIV-BH60R | AY25: @LK-DLR-BH60R | AZ25: @LK-DLG-BH60R | BA25: @LK-DMW-BH60R | BB25: @LK-DMN-BH60R | BC25: @LK-DMU-BH60R | BD25: @LK-DOV-BH60R | BE25: @LK-DPT-BH60R | BF25: @LK-DPE-BH60R | BG25: @LK-DPG-BH60R | BH25: @LK-DPN-BH60R | BI25: @LK-DSG-BH60R | BJ25: @LK-DSP-BH60R | BK25: @LK-DSB-BH60R | BL25: @LK-DSO-BH60R | BM25: @LK-DSY-BH60R | BN25: @LK-DST-BH60R | BO25: @LK-DTP-BH60R | BP25: @LK-DTK-BH60R | BQ25: @LK-DWE-BH60R
A26: BH6B4 | B26: 600 HL Base Unit & Bin (4 Bins) | C26: BH6B4 | D26: @LK-FAG-BH6B4 | E26: @LK-FAT-BH6B4 | F26: @LK-FAB-BH6B4 | G26: @LK-FBR-BH6B4 | H26: @LK-FBG-BH6B4 | I26: @LK-FBW-BH6B4 | J26: @LK-FCS-BH6B4 | K26: @LK-FDM-BH6B4 | L26: @LK-FDP-BH6B4 | M26: @LK-FDS-BH6B4 | N26: @LK-FGP-BH6B4 | O26: @LK-FHG-BH6B4 | P26: @LK-FIN-BH6B4 | Q26: @LK-FIV-BH6B4 | R26: @LK-FLR-BH6B4 | S26: @LK-FLG-BH6B4 | T26: @LK-FME-BH6B4 | U26: @LK-FMN-BH6B4 | V26: @LK-FMU-BH6B4 | W26: @LK-FOV-BH6B4 | X26: @LK-FPT-BH6B4 | Y26: @LK-FPE-BH6B4 | Z26: @LK-FPG-BH6B4 | AA26: @LK-FPN-BH6B4 | AB26: @LK-FSG-BH6B4 | AC26: @LK-FSP-BH6B4 | AD26: @LK-FSB-BH6B4 | AE26: @LK-FSO-BH6B4 | AF26: @LK-FSY-BH6B4 | AG26: @LK-FST-BH6B4 | AH26: @LK-FTP-BH6B4 | AI26: @LK-FTK-BH6B4 | AJ26: @LK-FWE-BH6B4 | AK26: @LK-DAG-BH6B4 | AL26: @LK-DAT-BH6B4 | AM26: @LK-DAB-BH6B4 | AN26: @LK-DBR-BH6B4 | AO26: @LK-DBG-BH6B4 | AP26: @LK-DBW-BH6B4 | AQ26: @LK-DCS-BH6B4 | AR26: @LK-DDM-BH6B4 | AS26: @LK-DDR-BH6B4 | AT26: @LK-DDG-BH6B4 | AU26: @LK-DGP-BH6B4 | AV26: @LK-DHG-BH6B4 | AW26: @LK-DIN-BH6B4 | AX26: @LK-DIV-BH6B4 | AY26: @LK-DLR-BH6B4 | AZ26: @LK-DLG-BH6B4 | BA26: @LK-DMW-BH6B4 | BB26: @LK-DMN-BH6B4 | BC26: @LK-DMU-BH6B4 | BD26: @LK-DOV-BH6B4 | BE26: @LK-DPT-BH6B4 | BF26: @LK-DPE-BH6B4 | BG26: @LK-DPG-BH6B4 | BH26: @LK-DPN-BH6B4 | BI26: @LK-DSG-BH6B4 | BJ26: @LK-DSP-BH6B4 | BK26: @LK-DSB-BH6B4 | BL26: @LK-DSO-BH6B4 | BM26: @LK-DSY-BH6B4 | BN26: @LK-DST-BH6B4 | BO26: @LK-DTP-BH6B4 | BP26: @LK-DTK-BH6B4 | BQ26: @LK-DWE-BH6B4
A27: BH6B2 | B27: 600 HL Base Unit & Bin (2 Bins) | C27: BH6B2 | D27: @LK-FAG-BH6B2 | E27: @LK-FAT-BH6B2 | F27: @LK-FAB-BH6B2 | G27: @LK-FBR-BH6B2 | H27: @LK-FBG-BH6B2 | I27: @LK-FBW-BH6B2 | J27: @LK-FCS-BH6B2 | K27: @LK-FDM-BH6B2 | L27: @LK-FDP-BH6B2 | M27: @LK-FDS-BH6B2 | N27: @LK-FGP-BH6B2 | O27: @LK-FHG-BH6B2 | P27: @LK-FIN-BH6B2 | Q27: @LK-FIV-BH6B2 | R27: @LK-FLR-BH6B2 | S27: @LK-FLG-BH6B2 | T27: @LK-FME-BH6B2 | U27: @LK-FMN-BH6B2 | V27: @LK-FMU-BH6B2 | W27: @LK-FOV-BH6B2 | X27: @LK-FPT-BH6B2 | Y27: @LK-FPE-BH6B2 | Z27: @LK-FPG-BH6B2 | AA27: @LK-FPN-BH6B2 | AB27: @LK-FSG-BH6B2 | AC27: @LK-FSP-BH6B2 | AD27: @LK-FSB-BH6B2 | AE27: @LK-FSO-BH6B2 | AF27: @LK-FSY-BH6B2 | AG27: @LK-FST-BH6B2 | AH27: @LK-FTP-BH6B2 | AI27: @LK-FTK-BH6B2 | AJ27: @LK-FWE-BH6B2 | AK27: @LK-DAG-BH6B2 | AL27: @LK-DAT-BH6B2 | AM27: @LK-DAB-BH6B2 | AN27: @LK-DBR-BH6B2 | AO27: @LK-DBG-BH6B2 | AP27: @LK-DBW-BH6B2 | AQ27: @LK-DCS-BH6B2 | AR27: @LK-DDM-BH6B2 | AS27: @LK-DDR-BH6B2 | AT27: @LK-DDG-BH6B2 | AU27: @LK-DGP-BH6B2 | AV27: @LK-DHG-BH6B2 | AW27: @LK-DIN-BH6B2 | AX27: @LK-DIV-BH6B2 | AY27: @LK-DLR-BH6B2 | AZ27: @LK-DLG-BH6B2 | BA27: @LK-DMW-BH6B2 | BB27: @LK-DMN-BH6B2 | BC27: @LK-DMU-BH6B2 | BD27: @LK-DOV-BH6B2 | BE27: @LK-DPT-BH6B2 | BF27: @LK-DPE-BH6B2 | BG27: @LK-DPG-BH6B2 | BH27: @LK-DPN-BH6B2 | BI27: @LK-DSG-BH6B2 | BJ27: @LK-DSP-BH6B2 | BK27: @LK-DSB-BH6B2 | BL27: @LK-DSO-BH6B2 | BM27: @LK-DSY-BH6B2 | BN27: @LK-DST-BH6B2 | BO27: @LK-DTP-BH6B2 | BP27: @LK-DTK-BH6B2 | BQ27: @LK-DWE-BH6B2
A28: BH60SL | B28: 600 HL Sink Base Unit (Inc Liner) LHH | C28: BH60SL | D28: @LK-FAG-BH60SL | E28: @LK-FAT-BH60SL | F28: @LK-FAB-BH60SL | G28: @LK-FBR-BH60SL | H28: @LK-FBG-BH60SL | I28: @LK-FBW-BH60SL | J28: @LK-FCS-BH60SL | K28: @LK-FDM-BH60SL | L28: @LK-FDP-BH60SL | M28: @LK-FDS-BH60SL | N28: @LK-FGP-BH60SL | O28: @LK-FHG-BH60SL | P28: @LK-FIN-BH60SL | Q28: @LK-FIV-BH60SL | R28: @LK-FLR-BH60SL | S28: @LK-FLG-BH60SL | T28: @LK-FME-BH60SL | U28: @LK-FMN-BH60SL | V28: @LK-FMU-BH60SL | W28: @LK-FOV-BH60SL | X28: @LK-FPT-BH60SL | Y28: @LK-FPE-BH60SL | Z28: @LK-FPG-BH60SL | AA28: @LK-FPN-BH60SL | AB28: @LK-FSG-BH60SL | AC28: @LK-FSP-BH60SL | AD28: @LK-FSB-BH60SL | AE28: @LK-FSO-BH60SL | AF28: @LK-FSY-BH60SL | AG28: @LK-FST-BH60SL | AH28: @LK-FTP-BH60SL | AI28: @LK-FTK-BH60SL | AJ28: @LK-FWE-BH60SL | AK28: Not Available | AL28: Not Available | AM28: Not Available | AN28: Not Available | AO28: Not Available | AP28: Not Available | AQ28: Not Available | AR28: Not Available | AS28: Not Available | AT28: Not Available | AU28: Not Available | AV28: Not Available | AW28: Not Available | AX28: Not Available | AY28: Not Available | AZ28: Not Available | BA28: Not Available | BB28: Not Available | BC28: Not Available | BD28: Not Available | BE28: Not Available | BF28: Not Available | BG28: Not Available | BH28: Not Available | BI28: Not Available | BJ28: Not Available | BK28: Not Available | BL28: Not Available | BM28: Not Available | BN28: Not Available | BO28: Not Available | BP28: Not Available | BQ28: Not Available
A29: BH60SR | B29: 600 HL Sink Base Unit (Inc Liner) RHH | C29: BH60SR | D29: @LK-FAG-BH60SR | E29: @LK-FAT-BH60SR | F29: @LK-FAB-BH60SR | G29: @LK-FBR-BH60SR | H29: @LK-FBG-BH60SR | I29: @LK-FBW-BH60SR | J29: @LK-FCS-BH60SR | K29: @LK-FDM-BH60SR | L29: @LK-FDP-BH60SR | M29: @LK-FDS-BH60SR | N29: @LK-FGP-BH60SR | O29: @LK-FHG-BH60SR | P29: @LK-FIN-BH60SR | Q29: @LK-FIV-BH60SR | R29: @LK-FLR-BH60SR | S29: @LK-FLG-BH60SR | T29: @LK-FME-BH60SR | U29: @LK-FMN-BH60SR | V29: @LK-FMU-BH60SR | W29: @LK-FOV-BH60SR | X29: @LK-FPT-BH60SR | Y29: @LK-FPE-BH60SR | Z29: @LK-FPG-BH60SR | AA29: @LK-FPN-BH60SR | AB29: @LK-FSG-BH60SR | AC29: @LK-FSP-BH60SR | AD29: @LK-FSB-BH60SR | AE29: @LK-FSO-BH60SR | AF29: @LK-FSY-BH60SR | AG29: @LK-FST-BH60SR | AH29: @LK-FTP-BH60SR | AI29: @LK-FTK-BH60SR | AJ29: @LK-FWE-BH60SR | AK29: Not Available | AL29: Not Available | AM29: Not Available | AN29: Not Available | AO29: Not Available | AP29: Not Available | AQ29: Not Available | AR29: Not Available | AS29: Not Available | AT29: Not Available | AU29: Not Available | AV29: Not Available | AW29: Not Available | AX29: Not Available | AY29: Not Available | AZ29: Not Available | BA29: Not Available | BB29: Not Available | BC29: Not Available | BD29: Not Available | BE29: Not Available | BF29: Not Available | BG29: Not Available | BH29: Not Available | BI29: Not Available | BJ29: Not Available | BK29: Not Available | BL29: Not Available | BM29: Not Available | BN29: Not Available | BO29: Not Available | BP29: Not Available | BQ29: Not Available
A30: BH70 | B30: 700 HL Base Unit | C30: BH70 | D30: @LK-FAG-BH70 | E30: @LK-FAT-BH70 | F30: @LK-FAB-BH70 | G30: @LK-FBR-BH70 | H30: @LK-FBG-BH70 | I30: @LK-FBW-BH70 | J30: @LK-FCS-BH70 | K30: @LK-FDM-BH70 | L30: @LK-FDP-BH70 | M30: @LK-FDS-BH70 | N30: @LK-FGP-BH70 | O30: @LK-FHG-BH70 | P30: @LK-FIN-BH70 | Q30: @LK-FIV-BH70 | R30: @LK-FLR-BH70 | S30: @LK-FLG-BH70 | T30: @LK-FME-BH70 | U30: @LK-FMN-BH70 | V30: @LK-FMU-BH70 | W30: @LK-FOV-BH70 | X30: @LK-FPT-BH70 | Y30: @LK-FPE-BH70 | Z30: @LK-FPG-BH70 | AA30: @LK-FPN-BH70 | AB30: @LK-FSG-BH70 | AC30: @LK-FSP-BH70 | AD30: @LK-FSB-BH70 | AE30: @LK-FSO-BH70 | AF30: @LK-FSY-BH70 | AG30: @LK-FST-BH70 | AH30: @LK-FTP-BH70 | AI30: @LK-FTK-BH70 | AJ30: @LK-FWE-BH70 | AK30: Not Available | AL30: Not Available | AM30: Not Available | AN30: Not Available | AO30: Not Available | AP30: Not Available | AQ30: Not Available | AR30: Not Available | AS30: Not Available | AT30: Not Available | AU30: Not Available | AV30: Not Available | AW30: Not Available | AX30: Not Available | AY30: Not Available | AZ30: Not Available | BA30: Not Available | BB30: Not Available | BC30: Not Available | BD30: Not Available | BE30: Not Available | BF30: Not Available | BG30: Not Available | BH30: Not Available | BI30: Not Available | BJ30: Not Available | BK30: Not Available | BL30: Not Available | BM30: Not Available | BN30: Not Available | BO30: Not Available | BP30: Not Available | BQ30: Not Available
A31: BH80 | B31: 800 HL Base Unit | C31: BH80 | D31: @LK-FAG-BH80 | E31: @LK-FAT-BH80 | F31: @LK-FAB-BH80 | G31: @LK-FBR-BH80 | H31: @LK-FBG-BH80 | I31: @LK-FBW-BH80 | J31: @LK-FCS-BH80 | K31: @LK-FDM-BH80 | L31: @LK-FDP-BH80 | M31: @LK-FDS-BH80 | N31: @LK-FGP-BH80 | O31: @LK-FHG-BH80 | P31: @LK-FIN-BH80 | Q31: @LK-FIV-BH80 | R31: @LK-FLR-BH80 | S31: @LK-FLG-BH80 | T31: @LK-FME-BH80 | U31: @LK-FMN-BH80 | V31: @LK-FMU-BH80 | W31: @LK-FOV-BH80 | X31: @LK-FPT-BH80 | Y31: @LK-FPE-BH80 | Z31: @LK-FPG-BH80 | AA31: @LK-FPN-BH80 | AB31: @LK-FSG-BH80 | AC31: @LK-FSP-BH80 | AD31: @LK-FSB-BH80 | AE31: @LK-FSO-BH80 | AF31: @LK-FSY-BH80 | AG31: @LK-FST-BH80 | AH31: @LK-FTP-BH80 | AI31: @LK-FTK-BH80 | AJ31: @LK-FWE-BH80 | AK31: @LK-DAG-BH80 | AL31: @LK-DAT-BH80 | AM31: @LK-DAB-BH80 | AN31: @LK-DBR-BH80 | AO31: @LK-DBG-BH80 | AP31: @LK-DBW-BH80 | AQ31: @LK-DCS-BH80 | AR31: @LK-DDM-BH80 | AS31: @LK-DDR-BH80 | AT31: @LK-DDG-BH80 | AU31: @LK-DGP-BH80 | AV31: @LK-DHG-BH80 | AW31: @LK-DIN-BH80 | AX31: @LK-DIV-BH80 | AY31: @LK-DLR-BH80 | AZ31: @LK-DLG-BH80 | BA31: @LK-DMW-BH80 | BB31: @LK-DMN-BH80 | BC31: @LK-DMU-BH80 | BD31: @LK-DOV-BH80 | BE31: @LK-DPT-BH80 | BF31: @LK-DPE-BH80 | BG31: @LK-DPG-BH80 | BH31: @LK-DPN-BH80 | BI31: @LK-DSG-BH80 | BJ31: @LK-DSP-BH80 | BK31: @LK-DSB-BH80 | BL31: @LK-DSO-BH80 | BM31: @LK-DSY-BH80 | BN31: @LK-DST-BH80 | BO31: @LK-DTP-BH80 | BP31: @LK-DTK-BH80 | BQ31: @LK-DWE-BH80
A32: BH80S | B32: 800 HL Sink Base Unit (Inc Liner) | C32: BH80S | D32: @LK-FAG-BH80S | E32: @LK-FAT-BH80S | F32: @LK-FAB-BH80S | G32: @LK-FBR-BH80S | H32: @LK-FBG-BH80S | I32: @LK-FBW-BH80S | J32: @LK-FCS-BH80S | K32: @LK-FDM-BH80S | L32: @LK-FDP-BH80S | M32: @LK-FDS-BH80S | N32: @LK-FGP-BH80S | O32: @LK-FHG-BH80S | P32: @LK-FIN-BH80S | Q32: @LK-FIV-BH80S | R32: @LK-FLR-BH80S | S32: @LK-FLG-BH80S | T32: @LK-FME-BH80S | U32: @LK-FMN-BH80S | V32: @LK-FMU-BH80S | W32: @LK-FOV-BH80S | X32: @LK-FPT-BH80S | Y32: @LK-FPE-BH80S | Z32: @LK-FPG-BH80S | AA32: @LK-FPN-BH80S | AB32: @LK-FSG-BH80S | AC32: @LK-FSP-BH80S | AD32: @LK-FSB-BH80S | AE32: @LK-FSO-BH80S | AF32: @LK-FSY-BH80S | AG32: @LK-FST-BH80S | AH32: @LK-FTP-BH80S | AI32: @LK-FTK-BH80S | AJ32: @LK-FWE-BH80S | AK32: Not Available | AL32: Not Available | AM32: Not Available | AN32: Not Available | AO32: Not Available | AP32: Not Available | AQ32: Not Available | AR32: Not Available | AS32: Not Available | AT32: Not Available | AU32: Not Available | AV32: Not Available | AW32: Not Available | AX32: Not Available | AY32: Not Available | AZ32: Not Available | BA32: Not Available | BB32: Not Available | BC32: Not Available | BD32: Not Available | BE32: Not Available | BF32: Not Available | BG32: Not Available | BH32: Not Available | BI32: Not Available | BJ32: Not Available | BK32: Not Available | BL32: Not Available | BM32: Not Available | BN32: Not Available | BO32: Not Available | BP32: Not Available | BQ32: Not Available
A33: BH90 | B33: 900 HL Base Unit | C33: BH90 | D33: @LK-FAG-BH90 | E33: @LK-FAT-BH90 | F33: @LK-FAB-BH90 | G33: @LK-FBR-BH90 | H33: @LK-FBG-BH90 | I33: @LK-FBW-BH90 | J33: @LK-FCS-BH90 | K33: @LK-FDM-BH90 | L33: @LK-FDP-BH90 | M33: @LK-FDS-BH90 | N33: @LK-FGP-BH90 | O33: @LK-FHG-BH90 | P33: @LK-FIN-BH90 | Q33: @LK-FIV-BH90 | R33: @LK-FLR-BH90 | S33: @LK-FLG-BH90 | T33: @LK-FME-BH90 | U33: @LK-FMN-BH90 | V33: @LK-FMU-BH90 | W33: @LK-FOV-BH90 | X33: @LK-FPT-BH90 | Y33: @LK-FPE-BH90 | Z33: @LK-FPG-BH90 | AA33: @LK-FPN-BH90 | AB33: @LK-FSG-BH90 | AC33: @LK-FSP-BH90 | AD33: @LK-FSB-BH90 | AE33: @LK-FSO-BH90 | AF33: @LK-FSY-BH90 | AG33: @LK-FST-BH90 | AH33: @LK-FTP-BH90 | AI33: @LK-FTK-BH90 | AJ33: @LK-FWE-BH90 | AK33: @LK-DAG-BH90 | AL33: @LK-DAT-BH90 | AM33: @LK-DAB-BH90 | AN33: @LK-DBR-BH90 | AO33: @LK-DBG-BH90 | AP33: @LK-DBW-BH90 | AQ33: @LK-DCS-BH90 | AR33: @LK-DDM-BH90 | AS33: @LK-DDR-BH90 | AT33: @LK-DDG-BH90 | AU33: @LK-DGP-BH90 | AV33: @LK-DHG-BH90 | AW33: @LK-DIN-BH90 | AX33: @LK-DIV-BH90 | AY33: @LK-DLR-BH90 | AZ33: @LK-DLG-BH90 | BA33: @LK-DMW-BH90 | BB33: @LK-DMN-BH90 | BC33: @LK-DMU-BH90 | BD33: @LK-DOV-BH90 | BE33: @LK-DPT-BH90 | BF33: @LK-DPE-BH90 | BG33: @LK-DPG-BH90 | BH33: @LK-DPN-BH90 | BI33: @LK-DSG-BH90 | BJ33: @LK-DSP-BH90 | BK33: @LK-DSB-BH90 | BL33: @LK-DSO-BH90 | BM33: @LK-DSY-BH90 | BN33: @LK-DST-BH90 | BO33: @LK-DTP-BH90 | BP33: @LK-DTK-BH90 | BQ33: @LK-DWE-BH90
A34: BH90S | B34: 900 HL Sink Base Unit (Inc Liner) | C34: BH90S | D34: @LK-FAG-BH90S | E34: @LK-FAT-BH90S | F34: @LK-FAB-BH90S | G34: @LK-FBR-BH90S | H34: @LK-FBG-BH90S | I34: @LK-FBW-BH90S | J34: @LK-FCS-BH90S | K34: @LK-FDM-BH90S | L34: @LK-FDP-BH90S | M34: @LK-FDS-BH90S | N34: @LK-FGP-BH90S | O34: @LK-FHG-BH90S | P34: @LK-FIN-BH90S | Q34: @LK-FIV-BH90S | R34: @LK-FLR-BH90S | S34: @LK-FLG-BH90S | T34: @LK-FME-BH90S | U34: @LK-FMN-BH90S | V34: @LK-FMU-BH90S | W34: @LK-FOV-BH90S | X34: @LK-FPT-BH90S | Y34: @LK-FPE-BH90S | Z34: @LK-FPG-BH90S | AA34: @LK-FPN-BH90S | AB34: @LK-FSG-BH90S | AC34: @LK-FSP-BH90S | AD34: @LK-FSB-BH90S | AE34: @LK-FSO-BH90S | AF34: @LK-FSY-BH90S | AG34: @LK-FST-BH90S | AH34: @LK-FTP-BH90S | AI34: @LK-FTK-BH90S | AJ34: @LK-FWE-BH90S | AK34: Not Available | AL34: Not Available | AM34: Not Available | AN34: Not Available | AO34: Not Available | AP34: Not Available | AQ34: Not Available | AR34: Not Available | AS34: Not Available | AT34: Not Available | AU34: Not Available | AV34: Not Available | AW34: Not Available | AX34: Not Available | AY34: Not Available | AZ34: Not Available | BA34: Not Available | BB34: Not Available | BC34: Not Available | BD34: Not Available | BE34: Not Available | BF34: Not Available | BG34: Not Available | BH34: Not Available | BI34: Not Available | BJ34: Not Available | BK34: Not Available | BL34: Not Available | BM34: Not Available | BN34: Not Available | BO34: Not Available | BP34: Not Available | BQ34: Not Available
A35: BH100 | B35: 1000 HL Base Unit | C35: BH100 | D35: @LK-FAG-BH100 | E35: @LK-FAT-BH100 | F35: @LK-FAB-BH100 | G35: @LK-FBR-BH100 | H35: @LK-FBG-BH100 | I35: @LK-FBW-BH100 | J35: @LK-FCS-BH100 | K35: @LK-FDM-BH100 | L35: @LK-FDP-BH100 | M35: @LK-FDS-BH100 | N35: @LK-FGP-BH100 | O35: @LK-FHG-BH100 | P35: @LK-FIN-BH100 | Q35: @LK-FIV-BH100 | R35: @LK-FLR-BH100 | S35: @LK-FLG-BH100 | T35: @LK-FME-BH100 | U35: @LK-FMN-BH100 | V35: @LK-FMU-BH100 | W35: @LK-FOV-BH100 | X35: @LK-FPT-BH100 | Y35: @LK-FPE-BH100 | Z35: @LK-FPG-BH100 | AA35: @LK-FPN-BH100 | AB35: @LK-FSG-BH100 | AC35: @LK-FSP-BH100 | AD35: @LK-FSB-BH100 | AE35: @LK-FSO-BH100 | AF35: @LK-FSY-BH100 | AG35: @LK-FST-BH100 | AH35: @LK-FTP-BH100 | AI35: @LK-FTK-BH100 | AJ35: @LK-FWE-BH100 | AK35: @LK-DAG-BH100 | AL35: @LK-DAT-BH100 | AM35: @LK-DAB-BH100 | AN35: @LK-DBR-BH100 | AO35: @LK-DBG-BH100 | AP35: @LK-DBW-BH100 | AQ35: @LK-DCS-BH100 | AR35: @LK-DDM-BH100 | AS35: @LK-DDR-BH100 | AT35: @LK-DDG-BH100 | AU35: @LK-DGP-BH100 | AV35: @LK-DHG-BH100 | AW35: @LK-DIN-BH100 | AX35: @LK-DIV-BH100 | AY35: @LK-DLR-BH100 | AZ35: @LK-DLG-BH100 | BA35: @LK-DMW-BH100 | BB35: @LK-DMN-BH100 | BC35: @LK-DMU-BH100 | BD35: @LK-DOV-BH100 | BE35: @LK-DPT-BH100 | BF35: @LK-DPE-BH100 | BG35: @LK-DPG-BH100 | BH35: @LK-DPN-BH100 | BI35: @LK-DSG-BH100 | BJ35: @LK-DSP-BH100 | BK35: @LK-DSB-BH100 | BL35: @LK-DSO-BH100 | BM35: @LK-DSY-BH100 | BN35: @LK-DST-BH100 | BO35: @LK-DTP-BH100 | BP35: @LK-DTK-BH100 | BQ35: @LK-DWE-BH100
A36: BH10S | B36: 1000 HL Sink Base Unit (Inc Liner) | C36: BH10S | D36: @LK-FAG-BH10S | E36: @LK-FAT-BH10S | F36: @LK-FAB-BH10S | G36: @LK-FBR-BH10S | H36: @LK-FBG-BH10S | I36: @LK-FBW-BH10S | J36: @LK-FCS-BH10S | K36: @LK-FDM-BH10S | L36: @LK-FDP-BH10S | M36: @LK-FDS-BH10S | N36: @LK-FGP-BH10S | O36: @LK-FHG-BH10S | P36: @LK-FIN-BH10S | Q36: @LK-FIV-BH10S | R36: @LK-FLR-BH10S | S36: @LK-FLG-BH10S | T36: @LK-FME-BH10S | U36: @LK-FMN-BH10S | V36: @LK-FMU-BH10S | W36: @LK-FOV-BH10S | X36: @LK-FPT-BH10S | Y36: @LK-FPE-BH10S | Z36: @LK-FPG-BH10S | AA36: @LK-FPN-BH10S | AB36: @LK-FSG-BH10S | AC36: @LK-FSP-BH10S | AD36: @LK-FSB-BH10S | AE36: @LK-FSO-BH10S | AF36: @LK-FSY-BH10S | AG36: @LK-FST-BH10S | AH36: @LK-FTP-BH10S | AI36: @LK-FTK-BH10S | AJ36: @LK-FWE-BH10S | AK36: Not Available | AL36: Not Available | AM36: Not Available | AN36: Not Available | AO36: Not Available | AP36: Not Available | AQ36: Not Available | AR36: Not Available | AS36: Not Available | AT36: Not Available | AU36: Not Available | AV36: Not Available | AW36: Not Available | AX36: Not Available | AY36: Not Available | AZ36: Not Available | BA36: Not Available | BB36: Not Available | BC36: Not Available | BD36: Not Available | BE36: Not Available | BF36: Not Available | BG36: Not Available | BH36: Not Available | BI36: Not Available | BJ36: Not Available | BK36: Not Available | BL36: Not Available | BM36: Not Available | BN36: Not Available | BO36: Not Available | BP36: Not Available | BQ36: Not Available
A37: BC83L | B37: 800 HL Cnr Base (300 Door) LHH | C37: BC83L | D37: @LK-FAG-BC83L | E37: @LK-FAT-BC83L | F37: @LK-FAB-BC83L | G37: @LK-FBR-BC83L | H37: @LK-FBG-BC83L | I37: @LK-FBW-BC83L | J37: @LK-FCS-BC83L | K37: @LK-FDM-BC83L | L37: @LK-FDP-BC83L | M37: @LK-FDS-BC83L | N37: @LK-FGP-BC83L | O37: @LK-FHG-BC83L | P37: @LK-FIN-BC83L | Q37: @LK-FIV-BC83L | R37: @LK-FLR-BC83L | S37: @LK-FLG-BC83L | T37: @LK-FME-BC83L | U37: @LK-FMN-BC83L | V37: @LK-FMU-BC83L | W37: @LK-FOV-BC83L | X37: @LK-FPT-BC83L | Y37: @LK-FPE-BC83L | Z37: @LK-FPG-BC83L | AA37: @LK-FPN-BC83L | AB37: @LK-FSG-BC83L | AC37: @LK-FSP-BC83L | AD37: @LK-FSB-BC83L | AE37: @LK-FSO-BC83L | AF37: @LK-FSY-BC83L | AG37: @LK-FST-BC83L | AH37: @LK-FTP-BC83L | AI37: @LK-FTK-BC83L | AJ37: @LK-FWE-BC83L | AK37: @LK-DAG-BC83L | AL37: @LK-DAT-BC83L | AM37: @LK-DAB-BC83L | AN37: @LK-DBR-BC83L | AO37: @LK-DBG-BC83L | AP37: @LK-DBW-BC83L | AQ37: @LK-DCS-BC83L | AR37: @LK-DDM-BC83L | AS37: @LK-DDR-BC83L | AT37: @LK-DDG-BC83L | AU37: @LK-DGP-BC83L | AV37: @LK-DHG-BC83L | AW37: @LK-DIN-BC83L | AX37: @LK-DIV-BC83L | AY37: @LK-DLR-BC83L | AZ37: @LK-DLG-BC83L | BA37: @LK-DMW-BC83L | BB37: @LK-DMN-BC83L | BC37: @LK-DMU-BC83L | BD37: @LK-DOV-BC83L | BE37: @LK-DPT-BC83L | BF37: @LK-DPE-BC83L | BG37: @LK-DPG-BC83L | BH37: @LK-DPN-BC83L | BI37: @LK-DSG-BC83L | BJ37: @LK-DSP-BC83L | BK37: @LK-DSB-BC83L | BL37: @LK-DSO-BC83L | BM37: @LK-DSY-BC83L | BN37: @LK-DST-BC83L | BO37: @LK-DTP-BC83L | BP37: @LK-DTK-BC83L | BQ37: @LK-DWE-BC83L
A38: BC83R | B38: 800 HL Cnr Base (300 Door) RHH | C38: BC83R | D38: @LK-FAG-BC83R | E38: @LK-FAT-BC83R | F38: @LK-FAB-BC83R | G38: @LK-FBR-BC83R | H38: @LK-FBG-BC83R | I38: @LK-FBW-BC83R | J38: @LK-FCS-BC83R | K38: @LK-FDM-BC83R | L38: @LK-FDP-BC83R | M38: @LK-FDS-BC83R | N38: @LK-FGP-BC83R | O38: @LK-FHG-BC83R | P38: @LK-FIN-BC83R | Q38: @LK-FIV-BC83R | R38: @LK-FLR-BC83R | S38: @LK-FLG-BC83R | T38: @LK-FME-BC83R | U38: @LK-FMN-BC83R | V38: @LK-FMU-BC83R | W38: @LK-FOV-BC83R | X38: @LK-FPT-BC83R | Y38: @LK-FPE-BC83R | Z38: @LK-FPG-BC83R | AA38: @LK-FPN-BC83R | AB38: @LK-FSG-BC83R | AC38: @LK-FSP-BC83R | AD38: @LK-FSB-BC83R | AE38: @LK-FSO-BC83R | AF38: @LK-FSY-BC83R | AG38: @LK-FST-BC83R | AH38: @LK-FTP-BC83R | AI38: @LK-FTK-BC83R | AJ38: @LK-FWE-BC83R | AK38: @LK-DAG-BC83R | AL38: @LK-DAT-BC83R | AM38: @LK-DAB-BC83R | AN38: @LK-DBR-BC83R | AO38: @LK-DBG-BC83R | AP38: @LK-DBW-BC83R | AQ38: @LK-DCS-BC83R | AR38: @LK-DDM-BC83R | AS38: @LK-DDR-BC83R | AT38: @LK-DDG-BC83R | AU38: @LK-DGP-BC83R | AV38: @LK-DHG-BC83R | AW38: @LK-DIN-BC83R | AX38: @LK-DIV-BC83R | AY38: @LK-DLR-BC83R | AZ38: @LK-DLG-BC83R | BA38: @LK-DMW-BC83R | BB38: @LK-DMN-BC83R | BC38: @LK-DMU-BC83R | BD38: @LK-DOV-BC83R | BE38: @LK-DPT-BC83R | BF38: @LK-DPE-BC83R | BG38: @LK-DPG-BC83R | BH38: @LK-DPN-BC83R | BI38: @LK-DSG-BC83R | BJ38: @LK-DSP-BC83R | BK38: @LK-DSB-BC83R | BL38: @LK-DSO-BC83R | BM38: @LK-DSY-BC83R | BN38: @LK-DST-BC83R | BO38: @LK-DTP-BC83R | BP38: @LK-DTK-BC83R | BQ38: @LK-DWE-BC83R
A39: BC84L | B39: 800 HL Cnr Base Unit (400 Door) LHH | C39: BC84L | D39: @LK-FAG-BC84L | E39: @LK-FAT-BC84L | F39: @LK-FAB-BC84L | G39: @LK-FBR-BC84L | H39: @LK-FBG-BC84L | I39: @LK-FBW-BC84L | J39: @LK-FCS-BC84L | K39: @LK-FDM-BC84L | L39: @LK-FDP-BC84L | M39: @LK-FDS-BC84L | N39: @LK-FGP-BC84L | O39: @LK-FHG-BC84L | P39: @LK-FIN-BC84L | Q39: @LK-FIV-BC84L | R39: @LK-FLR-BC84L | S39: @LK-FLG-BC84L | T39: @LK-FME-BC84L | U39: @LK-FMN-BC84L | V39: @LK-FMU-BC84L | W39: @LK-FOV-BC84L | X39: @LK-FPT-BC84L | Y39: @LK-FPE-BC84L | Z39: @LK-FPG-BC84L | AA39: @LK-FPN-BC84L | AB39: @LK-FSG-BC84L | AC39: @LK-FSP-BC84L | AD39: @LK-FSB-BC84L | AE39: @LK-FSO-BC84L | AF39: @LK-FSY-BC84L | AG39: @LK-FST-BC84L | AH39: @LK-FTP-BC84L | AI39: @LK-FTK-BC84L | AJ39: @LK-FWE-BC84L | AK39: @LK-DAG-BC84L | AL39: @LK-DAT-BC84L | AM39: @LK-DAB-BC84L | AN39: @LK-DBR-BC84L | AO39: @LK-DBG-BC84L | AP39: @LK-DBW-BC84L | AQ39: @LK-DCS-BC84L | AR39: @LK-DDM-BC84L | AS39: @LK-DDR-BC84L | AT39: @LK-DDG-BC84L | AU39: @LK-DGP-BC84L | AV39: @LK-DHG-BC84L | AW39: @LK-DIN-BC84L | AX39: @LK-DIV-BC84L | AY39: @LK-DLR-BC84L | AZ39: @LK-DLG-BC84L | BA39: @LK-DMW-BC84L | BB39: @LK-DMN-BC84L | BC39: @LK-DMU-BC84L | BD39: @LK-DOV-BC84L | BE39: @LK-DPT-BC84L | BF39: @LK-DPE-BC84L | BG39: @LK-DPG-BC84L | BH39: @LK-DPN-BC84L | BI39: @LK-DSG-BC84L | BJ39: @LK-DSP-BC84L | BK39: @LK-DSB-BC84L | BL39: @LK-DSO-BC84L | BM39: @LK-DSY-BC84L | BN39: @LK-DST-BC84L | BO39: @LK-DTP-BC84L | BP39: @LK-DTK-BC84L | BQ39: @LK-DWE-BC84L
A40: BC84R | B40: 800 HL Cnr Base Unit (400 Door) RHH | C40: BC84R | D40: @LK-FAG-BC84R | E40: @LK-FAT-BC84R | F40: @LK-FAB-BC84R | G40: @LK-FBR-BC84R | H40: @LK-FBG-BC84R | I40: @LK-FBW-BC84R | J40: @LK-FCS-BC84R | K40: @LK-FDM-BC84R | L40: @LK-FDP-BC84R | M40: @LK-FDS-BC84R | N40: @LK-FGP-BC84R | O40: @LK-FHG-BC84R | P40: @LK-FIN-BC84R | Q40: @LK-FIV-BC84R | R40: @LK-FLR-BC84R | S40: @LK-FLG-BC84R | T40: @LK-FME-BC84R | U40: @LK-FMN-BC84R | V40: @LK-FMU-BC84R | W40: @LK-FOV-BC84R | X40: @LK-FPT-BC84R | Y40: @LK-FPE-BC84R | Z40: @LK-FPG-BC84R | AA40: @LK-FPN-BC84R | AB40: @LK-FSG-BC84R | AC40: @LK-FSP-BC84R | AD40: @LK-FSB-BC84R | AE40: @LK-FSO-BC84R | AF40: @LK-FSY-BC84R | AG40: @LK-FST-BC84R | AH40: @LK-FTP-BC84R | AI40: @LK-FTK-BC84R | AJ40: @LK-FWE-BC84R | AK40: @LK-DAG-BC84R | AL40: @LK-DAT-BC84R | AM40: @LK-DAB-BC84R | AN40: @LK-DBR-BC84R | AO40: @LK-DBG-BC84R | AP40: @LK-DBW-BC84R | AQ40: @LK-DCS-BC84R | AR40: @LK-DDM-BC84R | AS40: @LK-DDR-BC84R | AT40: @LK-DDG-BC84R | AU40: @LK-DGP-BC84R | AV40: @LK-DHG-BC84R | AW40: @LK-DIN-BC84R | AX40: @LK-DIV-BC84R | AY40: @LK-DLR-BC84R | AZ40: @LK-DLG-BC84R | BA40: @LK-DMW-BC84R | BB40: @LK-DMN-BC84R | BC40: @LK-DMU-BC84R | BD40: @LK-DOV-BC84R | BE40: @LK-DPT-BC84R | BF40: @LK-DPE-BC84R | BG40: @LK-DPG-BC84R | BH40: @LK-DPN-BC84R | BI40: @LK-DSG-BC84R | BJ40: @LK-DSP-BC84R | BK40: @LK-DSB-BC84R | BL40: @LK-DSO-BC84R | BM40: @LK-DSY-BC84R | BN40: @LK-DST-BC84R | BO40: @LK-DTP-BC84R | BP40: @LK-DTK-BC84R | BQ40: @LK-DWE-BC84R
A41: BC845L | B41: 800 HL Cnr Base (450 Door) LHH | C41: BC845L | D41: @LK-FAG-BC845L | E41: @LK-FAT-BC845L | F41: @LK-FAB-BC845L | G41: @LK-FBR-BC845L | H41: @LK-FBG-BC845L | I41: @LK-FBW-BC845L | J41: @LK-FCS-BC845L | K41: @LK-FDM-BC845L | L41: @LK-FDP-BC845L | M41: @LK-FDS-BC845L | N41: @LK-FGP-BC845L | O41: @LK-FHG-BC845L | P41: @LK-FIN-BC845L | Q41: @LK-FIV-BC845L | R41: @LK-FLR-BC845L | S41: @LK-FLG-BC845L | T41: @LK-FME-BC845L | U41: @LK-FMN-BC845L | V41: @LK-FMU-BC845L | W41: @LK-FOV-BC845L | X41: @LK-FPT-BC845L | Y41: @LK-FPE-BC845L | Z41: @LK-FPG-BC845L | AA41: @LK-FPN-BC845L | AB41: @LK-FSG-BC845L | AC41: @LK-FSP-BC845L | AD41: @LK-FSB-BC845L | AE41: @LK-FSO-BC845L | AF41: @LK-FSY-BC845L | AG41: @LK-FST-BC845L | AH41: @LK-FTP-BC845L | AI41: @LK-FTK-BC845L | AJ41: @LK-FWE-BC845L | AK41: @LK-DAG-BC845L | AL41: @LK-DAT-BC845L | AM41: @LK-DAB-BC845L | AN41: @LK-DBR-BC845L | AO41: @LK-DBG-BC845L | AP41: @LK-DBW-BC845L | AQ41: @LK-DCS-BC845L | AR41: @LK-DDM-BC845L | AS41: @LK-DDR-BC845L | AT41: @LK-DDG-BC845L | AU41: @LK-DGP-BC845L | AV41: @LK-DHG-BC845L | AW41: @LK-DIN-BC845L | AX41: @LK-DIV-BC845L | AY41: @LK-DLR-BC845L | AZ41: @LK-DLG-BC845L | BA41: @LK-DMW-BC845L | BB41: @LK-DMN-BC845L | BC41: @LK-DMU-BC845L | BD41: @LK-DOV-BC845L | BE41: @LK-DPT-BC845L | BF41: @LK-DPE-BC845L | BG41: @LK-DPG-BC845L | BH41: @LK-DPN-BC845L | BI41: @LK-DSG-BC845L | BJ41: @LK-DSP-BC845L | BK41: @LK-DSB-BC845L | BL41: @LK-DSO-BC845L | BM41: @LK-DSY-BC845L | BN41: @LK-DST-BC845L | BO41: @LK-DTP-BC845L | BP41: @LK-DTK-BC845L | BQ41: @LK-DWE-BC845L
A42: BC845R | B42: 800 HL Cnr Base (450 Door) RHH | C42: BC845R | D42: @LK-FAG-BC845R | E42: @LK-FAT-BC845R | F42: @LK-FAB-BC845R | G42: @LK-FBR-BC845R | H42: @LK-FBG-BC845R | I42: @LK-FBW-BC845R | J42: @LK-FCS-BC845R | K42: @LK-FDM-BC845R | L42: @LK-FDP-BC845R | M42: @LK-FDS-BC845R | N42: @LK-FGP-BC845R | O42: @LK-FHG-BC845R | P42: @LK-FIN-BC845R | Q42: @LK-FIV-BC845R | R42: @LK-FLR-BC845R | S42: @LK-FLG-BC845R | T42: @LK-FME-BC845R | U42: @LK-FMN-BC845R | V42: @LK-FMU-BC845R | W42: @LK-FOV-BC845R | X42: @LK-FPT-BC845R | Y42: @LK-FPE-BC845R | Z42: @LK-FPG-BC845R | AA42: @LK-FPN-BC845R | AB42: @LK-FSG-BC845R | AC42: @LK-FSP-BC845R | AD42: @LK-FSB-BC845R | AE42: @LK-FSO-BC845R | AF42: @LK-FSY-BC845R | AG42: @LK-FST-BC845R | AH42: @LK-FTP-BC845R | AI42: @LK-FTK-BC845R | AJ42: @LK-FWE-BC845R | AK42: @LK-DAG-BC845R | AL42: @LK-DAT-BC845R | AM42: @LK-DAB-BC845R | AN42: @LK-DBR-BC845R | AO42: @LK-DBG-BC845R | AP42: @LK-DBW-BC845R | AQ42: @LK-DCS-BC845R | AR42: @LK-DDM-BC845R | AS42: @LK-DDR-BC845R | AT42: @LK-DDG-BC845R | AU42: @LK-DGP-BC845R | AV42: @LK-DHG-BC845R | AW42: @LK-DIN-BC845R | AX42: @LK-DIV-BC845R | AY42: @LK-DLR-BC845R | AZ42: @LK-DLG-BC845R | BA42: @LK-DMW-BC845R | BB42: @LK-DMN-BC845R | BC42: @LK-DMU-BC845R | BD42: @LK-DOV-BC845R | BE42: @LK-DPT-BC845R | BF42: @LK-DPE-BC845R | BG42: @LK-DPG-BC845R | BH42: @LK-DPN-BC845R | BI42: @LK-DSG-BC845R | BJ42: @LK-DSP-BC845R | BK42: @LK-DSB-BC845R | BL42: @LK-DSO-BC845R | BM42: @LK-DSY-BC845R | BN42: @LK-DST-BC845R | BO42: @LK-DTP-BC845R | BP42: @LK-DTK-BC845R | BQ42: @LK-DWE-BC845R
A43: BC945L | B43: 900 HL Cnr Base (450 Door) LHH | C43: BC945L | D43: @LK-FAG-BC945L | E43: @LK-FAT-BC945L | F43: @LK-FAB-BC945L | G43: @LK-FBR-BC945L | H43: @LK-FBG-BC945L | I43: @LK-FBW-BC945L | J43: @LK-FCS-BC945L | K43: @LK-FDM-BC945L | L43: @LK-FDP-BC945L | M43: @LK-FDS-BC945L | N43: @LK-FGP-BC945L | O43: @LK-FHG-BC945L | P43: @LK-FIN-BC945L | Q43: @LK-FIV-BC945L | R43: @LK-FLR-BC945L | S43: @LK-FLG-BC945L | T43: @LK-FME-BC945L | U43: @LK-FMN-BC945L | V43: @LK-FMU-BC945L | W43: @LK-FOV-BC945L | X43: @LK-FPT-BC945L | Y43: @LK-FPE-BC945L | Z43: @LK-FPG-BC945L | AA43: @LK-FPN-BC945L | AB43: @LK-FSG-BC945L | AC43: @LK-FSP-BC945L | AD43: @LK-FSB-BC945L | AE43: @LK-FSO-BC945L | AF43: @LK-FSY-BC945L | AG43: @LK-FST-BC945L | AH43: @LK-FTP-BC945L | AI43: @LK-FTK-BC945L | AJ43: @LK-FWE-BC945L | AK43: @LK-DAG-BC945L | AL43: @LK-DAT-BC945L | AM43: @LK-DAB-BC945L | AN43: @LK-DBR-BC945L | AO43: @LK-DBG-BC945L | AP43: @LK-DBW-BC945L | AQ43: @LK-DCS-BC945L | AR43: @LK-DDM-BC945L | AS43: @LK-DDR-BC945L | AT43: @LK-DDG-BC945L | AU43: @LK-DGP-BC945L | AV43: @LK-DHG-BC945L | AW43: @LK-DIN-BC945L | AX43: @LK-DIV-BC945L | AY43: @LK-DLR-BC945L | AZ43: @LK-DLG-BC945L | BA43: @LK-DMW-BC945L | BB43: @LK-DMN-BC945L | BC43: @LK-DMU-BC945L | BD43: @LK-DOV-BC945L | BE43: @LK-DPT-BC945L | BF43: @LK-DPE-BC945L | BG43: @LK-DPG-BC945L | BH43: @LK-DPN-BC945L | BI43: @LK-DSG-BC945L | BJ43: @LK-DSP-BC945L | BK43: @LK-DSB-BC945L | BL43: @LK-DSO-BC945L | BM43: @LK-DSY-BC945L | BN43: @LK-DST-BC945L | BO43: @LK-DTP-BC945L | BP43: @LK-DTK-BC945L | BQ43: @LK-DWE-BC945L
A44: BC945R | B44: 900 HL Cnr Base (450 Door) RHH | C44: BC945R | D44: @LK-FAG-BC945R | E44: @LK-FAT-BC945R | F44: @LK-FAB-BC945R | G44: @LK-FBR-BC945R | H44: @LK-FBG-BC945R | I44: @LK-FBW-BC945R | J44: @LK-FCS-BC945R | K44: @LK-FDM-BC945R | L44: @LK-FDP-BC945R | M44: @LK-FDS-BC945R | N44: @LK-FGP-BC945R | O44: @LK-FHG-BC945R | P44: @LK-FIN-BC945R | Q44: @LK-FIV-BC945R | R44: @LK-FLR-BC945R | S44: @LK-FLG-BC945R | T44: @LK-FME-BC945R | U44: @LK-FMN-BC945R | V44: @LK-FMU-BC945R | W44: @LK-FOV-BC945R | X44: @LK-FPT-BC945R | Y44: @LK-FPE-BC945R | Z44: @LK-FPG-BC945R | AA44: @LK-FPN-BC945R | AB44: @LK-FSG-BC945R | AC44: @LK-FSP-BC945R | AD44: @LK-FSB-BC945R | AE44: @LK-FSO-BC945R | AF44: @LK-FSY-BC945R | AG44: @LK-FST-BC945R | AH44: @LK-FTP-BC945R | AI44: @LK-FTK-BC945R | AJ44: @LK-FWE-BC945R | AK44: @LK-DAG-BC945R | AL44: @LK-DAT-BC945R | AM44: @LK-DAB-BC945R | AN44: @LK-DBR-BC945R | AO44: @LK-DBG-BC945R | AP44: @LK-DBW-BC945R | AQ44: @LK-DCS-BC945R | AR44: @LK-DDM-BC945R | AS44: @LK-DDR-BC945R | AT44: @LK-DDG-BC945R | AU44: @LK-DGP-BC945R | AV44: @LK-DHG-BC945R | AW44: @LK-DIN-BC945R | AX44: @LK-DIV-BC945R | AY44: @LK-DLR-BC945R | AZ44: @LK-DLG-BC945R | BA44: @LK-DMW-BC945R | BB44: @LK-DMN-BC945R | BC44: @LK-DMU-BC945R | BD44: @LK-DOV-BC945R | BE44: @LK-DPT-BC945R | BF44: @LK-DPE-BC945R | BG44: @LK-DPG-BC945R | BH44: @LK-DPN-BC945R | BI44: @LK-DSG-BC945R | BJ44: @LK-DSP-BC945R | BK44: @LK-DSB-BC945R | BL44: @LK-DSO-BC945R | BM44: @LK-DSY-BC945R | BN44: @LK-DST-BC945R | BO44: @LK-DTP-BC945R | BP44: @LK-DTK-BC945R | BQ44: @LK-DWE-BC945R
A45: BC145L | B45: 1000 HL Cnr Base (450 Door) LHH | C45: BC145L | D45: @LK-FAG-BC145L | E45: @LK-FAT-BC145L | F45: @LK-FAB-BC145L | G45: @LK-FBR-BC145L | H45: @LK-FBG-BC145L | I45: @LK-FBW-BC145L | J45: @LK-FCS-BC145L | K45: @LK-FDM-BC145L | L45: @LK-FDP-BC145L | M45: @LK-FDS-BC145L | N45: @LK-FGP-BC145L | O45: @LK-FHG-BC145L | P45: @LK-FIN-BC145L | Q45: @LK-FIV-BC145L | R45: @LK-FLR-BC145L | S45: @LK-FLG-BC145L | T45: @LK-FME-BC145L | U45: @LK-FMN-BC145L | V45: @LK-FMU-BC145L | W45: @LK-FOV-BC145L | X45: @LK-FPT-BC145L | Y45: @LK-FPE-BC145L | Z45: @LK-FPG-BC145L | AA45: @LK-FPN-BC145L | AB45: @LK-FSG-BC145L | AC45: @LK-FSP-BC145L | AD45: @LK-FSB-BC145L | AE45: @LK-FSO-BC145L | AF45: @LK-FSY-BC145L | AG45: @LK-FST-BC145L | AH45: @LK-FTP-BC145L | AI45: @LK-FTK-BC145L | AJ45: @LK-FWE-BC145L | AK45: @LK-DAG-BC145L | AL45: @LK-DAT-BC145L | AM45: @LK-DAB-BC145L | AN45: @LK-DBR-BC145L | AO45: @LK-DBG-BC145L | AP45: @LK-DBW-BC145L | AQ45: @LK-DCS-BC145L | AR45: @LK-DDM-BC145L | AS45: @LK-DDR-BC145L | AT45: @LK-DDG-BC145L | AU45: @LK-DGP-BC145L | AV45: @LK-DHG-BC145L | AW45: @LK-DIN-BC145L | AX45: @LK-DIV-BC145L | AY45: @LK-DLR-BC145L | AZ45: @LK-DLG-BC145L | BA45: @LK-DMW-BC145L | BB45: @LK-DMN-BC145L | BC45: @LK-DMU-BC145L | BD45: @LK-DOV-BC145L | BE45: @LK-DPT-BC145L | BF45: @LK-DPE-BC145L | BG45: @LK-DPG-BC145L | BH45: @LK-DPN-BC145L | BI45: @LK-DSG-BC145L | BJ45: @LK-DSP-BC145L | BK45: @LK-DSB-BC145L | BL45: @LK-DSO-BC145L | BM45: @LK-DSY-BC145L | BN45: @LK-DST-BC145L | BO45: @LK-DTP-BC145L | BP45: @LK-DTK-BC145L | BQ45: @LK-DWE-BC145L
A46: BC145R | B46: 1000 HL Cnr Base (450 Door) RHH | C46: BC145R | D46: @LK-FAG-BC145R | E46: @LK-FAT-BC145R | F46: @LK-FAB-BC145R | G46: @LK-FBR-BC145R | H46: @LK-FBG-BC145R | I46: @LK-FBW-BC145R | J46: @LK-FCS-BC145R | K46: @LK-FDM-BC145R | L46: @LK-FDP-BC145R | M46: @LK-FDS-BC145R | N46: @LK-FGP-BC145R | O46: @LK-FHG-BC145R | P46: @LK-FIN-BC145R | Q46: @LK-FIV-BC145R | R46: @LK-FLR-BC145R | S46: @LK-FLG-BC145R | T46: @LK-FME-BC145R | U46: @LK-FMN-BC145R | V46: @LK-FMU-BC145R | W46: @LK-FOV-BC145R | X46: @LK-FPT-BC145R | Y46: @LK-FPE-BC145R | Z46: @LK-FPG-BC145R | AA46: @LK-FPN-BC145R | AB46: @LK-FSG-BC145R | AC46: @LK-FSP-BC145R | AD46: @LK-FSB-BC145R | AE46: @LK-FSO-BC145R | AF46: @LK-FSY-BC145R | AG46: @LK-FST-BC145R | AH46: @LK-FTP-BC145R | AI46: @LK-FTK-BC145R | AJ46: @LK-FWE-BC145R | AK46: @LK-DAG-BC145R | AL46: @LK-DAT-BC145R | AM46: @LK-DAB-BC145R | AN46: @LK-DBR-BC145R | AO46: @LK-DBG-BC145R | AP46: @LK-DBW-BC145R | AQ46: @LK-DCS-BC145R | AR46: @LK-DDM-BC145R | AS46: @LK-DDR-BC145R | AT46: @LK-DDG-BC145R | AU46: @LK-DGP-BC145R | AV46: @LK-DHG-BC145R | AW46: @LK-DIN-BC145R | AX46: @LK-DIV-BC145R | AY46: @LK-DLR-BC145R | AZ46: @LK-DLG-BC145R | BA46: @LK-DMW-BC145R | BB46: @LK-DMN-BC145R | BC46: @LK-DMU-BC145R | BD46: @LK-DOV-BC145R | BE46: @LK-DPT-BC145R | BF46: @LK-DPE-BC145R | BG46: @LK-DPG-BC145R | BH46: @LK-DPN-BC145R | BI46: @LK-DSG-BC145R | BJ46: @LK-DSP-BC145R | BK46: @LK-DSB-BC145R | BL46: @LK-DSO-BC145R | BM46: @LK-DSY-BC145R | BN46: @LK-DST-BC145R | BO46: @LK-DTP-BC145R | BP46: @LK-DTK-BC145R | BQ46: @LK-DWE-BC145R
A47: BC15L | B47: 1000 HL Cnr Base (500 Door) LHH | C47: BC15L | D47: @LK-FAG-BC15L | E47: @LK-FAT-BC15L | F47: @LK-FAB-BC15L | G47: @LK-FBR-BC15L | H47: @LK-FBG-BC15L | I47: @LK-FBW-BC15L | J47: @LK-FCS-BC15L | K47: @LK-FDM-BC15L | L47: @LK-FDP-BC15L | M47: @LK-FDS-BC15L | N47: @LK-FGP-BC15L | O47: @LK-FHG-BC15L | P47: @LK-FIN-BC15L | Q47: @LK-FIV-BC15L | R47: @LK-FLR-BC15L | S47: @LK-FLG-BC15L | T47: @LK-FME-BC15L | U47: @LK-FMN-BC15L | V47: @LK-FMU-BC15L | W47: @LK-FOV-BC15L | X47: @LK-FPT-BC15L | Y47: @LK-FPE-BC15L | Z47: @LK-FPG-BC15L | AA47: @LK-FPN-BC15L | AB47: @LK-FSG-BC15L | AC47: @LK-FSP-BC15L | AD47: @LK-FSB-BC15L | AE47: @LK-FSO-BC15L | AF47: @LK-FSY-BC15L | AG47: @LK-FST-BC15L | AH47: @LK-FTP-BC15L | AI47: @LK-FTK-BC15L | AJ47: @LK-FWE-BC15L | AK47: @LK-DAG-BC15L | AL47: @LK-DAT-BC15L | AM47: @LK-DAB-BC15L | AN47: @LK-DBR-BC15L | AO47: @LK-DBG-BC15L | AP47: @LK-DBW-BC15L | AQ47: @LK-DCS-BC15L | AR47: @LK-DDM-BC15L | AS47: @LK-DDR-BC15L | AT47: @LK-DDG-BC15L | AU47: @LK-DGP-BC15L | AV47: @LK-DHG-BC15L | AW47: @LK-DIN-BC15L | AX47: @LK-DIV-BC15L | AY47: @LK-DLR-BC15L | AZ47: @LK-DLG-BC15L | BA47: @LK-DMW-BC15L | BB47: @LK-DMN-BC15L | BC47: @LK-DMU-BC15L | BD47: @LK-DOV-BC15L | BE47: @LK-DPT-BC15L | BF47: @LK-DPE-BC15L | BG47: @LK-DPG-BC15L | BH47: @LK-DPN-BC15L | BI47: @LK-DSG-BC15L | BJ47: @LK-DSP-BC15L | BK47: @LK-DSB-BC15L | BL47: @LK-DSO-BC15L | BM47: @LK-DSY-BC15L | BN47: @LK-DST-BC15L | BO47: @LK-DTP-BC15L | BP47: @LK-DTK-BC15L | BQ47: @LK-DWE-BC15L
A48: BC15R | B48: 1000 HL Cnr Base (500 Door) RHH | C48: BC15R | D48: @LK-FAG-BC15R | E48: @LK-FAT-BC15R | F48: @LK-FAB-BC15R | G48: @LK-FBR-BC15R | H48: @LK-FBG-BC15R | I48: @LK-FBW-BC15R | J48: @LK-FCS-BC15R | K48: @LK-FDM-BC15R | L48: @LK-FDP-BC15R | M48: @LK-FDS-BC15R | N48: @LK-FGP-BC15R | O48: @LK-FHG-BC15R | P48: @LK-FIN-BC15R | Q48: @LK-FIV-BC15R | R48: @LK-FLR-BC15R | S48: @LK-FLG-BC15R | T48: @LK-FME-BC15R | U48: @LK-FMN-BC15R | V48: @LK-FMU-BC15R | W48: @LK-FOV-BC15R | X48: @LK-FPT-BC15R | Y48: @LK-FPE-BC15R | Z48: @LK-FPG-BC15R | AA48: @LK-FPN-BC15R | AB48: @LK-FSG-BC15R | AC48: @LK-FSP-BC15R | AD48: @LK-FSB-BC15R | AE48: @LK-FSO-BC15R | AF48: @LK-FSY-BC15R | AG48: @LK-FST-BC15R | AH48: @LK-FTP-BC15R | AI48: @LK-FTK-BC15R | AJ48: @LK-FWE-BC15R | AK48: @LK-DAG-BC15R | AL48: @LK-DAT-BC15R | AM48: @LK-DAB-BC15R | AN48: @LK-DBR-BC15R | AO48: @LK-DBG-BC15R | AP48: @LK-DBW-BC15R | AQ48: @LK-DCS-BC15R | AR48: @LK-DDM-BC15R | AS48: @LK-DDR-BC15R | AT48: @LK-DDG-BC15R | AU48: @LK-DGP-BC15R | AV48: @LK-DHG-BC15R | AW48: @LK-DIN-BC15R | AX48: @LK-DIV-BC15R | AY48: @LK-DLR-BC15R | AZ48: @LK-DLG-BC15R | BA48: @LK-DMW-BC15R | BB48: @LK-DMN-BC15R | BC48: @LK-DMU-BC15R | BD48: @LK-DOV-BC15R | BE48: @LK-DPT-BC15R | BF48: @LK-DPE-BC15R | BG48: @LK-DPG-BC15R | BH48: @LK-DPN-BC15R | BI48: @LK-DSG-BC15R | BJ48: @LK-DSP-BC15R | BK48: @LK-DSB-BC15R | BL48: @LK-DSO-BC15R | BM48: @LK-DSY-BC15R | BN48: @LK-DST-BC15R | BO48: @LK-DTP-BC15R | BP48: @LK-DTK-BC15R | BQ48: @LK-DWE-BC15R
A49: BC16L | B49: 1000 HL Cnr Base (600 Door) LHH | C49: BC16L | D49: @LK-FAG-BC16L | E49: @LK-FAT-BC16L | F49: @LK-FAB-BC16L | G49: @LK-FBR-BC16L | H49: @LK-FBG-BC16L | I49: @LK-FBW-BC16L | J49: @LK-FCS-BC16L | K49: @LK-FDM-BC16L | L49: @LK-FDP-BC16L | M49: @LK-FDS-BC16L | N49: @LK-FGP-BC16L | O49: @LK-FHG-BC16L | P49: @LK-FIN-BC16L | Q49: @LK-FIV-BC16L | R49: @LK-FLR-BC16L | S49: @LK-FLG-BC16L | T49: @LK-FME-BC16L | U49: @LK-FMN-BC16L | V49: @LK-FMU-BC16L | W49: @LK-FOV-BC16L | X49: @LK-FPT-BC16L | Y49: @LK-FPE-BC16L | Z49: @LK-FPG-BC16L | AA49: @LK-FPN-BC16L | AB49: @LK-FSG-BC16L | AC49: @LK-FSP-BC16L | AD49: @LK-FSB-BC16L | AE49: @LK-FSO-BC16L | AF49: @LK-FSY-BC16L | AG49: @LK-FST-BC16L | AH49: @LK-FTP-BC16L | AI49: @LK-FTK-BC16L | AJ49: @LK-FWE-BC16L | AK49: @LK-DAG-BC16L | AL49: @LK-DAT-BC16L | AM49: @LK-DAB-BC16L | AN49: @LK-DBR-BC16L | AO49: @LK-DBG-BC16L | AP49: @LK-DBW-BC16L | AQ49: @LK-DCS-BC16L | AR49: @LK-DDM-BC16L | AS49: @LK-DDR-BC16L | AT49: @LK-DDG-BC16L | AU49: @LK-DGP-BC16L | AV49: @LK-DHG-BC16L | AW49: @LK-DIN-BC16L | AX49: @LK-DIV-BC16L | AY49: @LK-DLR-BC16L | AZ49: @LK-DLG-BC16L | BA49: @LK-DMW-BC16L | BB49: @LK-DMN-BC16L | BC49: @LK-DMU-BC16L | BD49: @LK-DOV-BC16L | BE49: @LK-DPT-BC16L | BF49: @LK-DPE-BC16L | BG49: @LK-DPG-BC16L | BH49: @LK-DPN-BC16L | BI49: @LK-DSG-BC16L | BJ49: @LK-DSP-BC16L | BK49: @LK-DSB-BC16L | BL49: @LK-DSO-BC16L | BM49: @LK-DSY-BC16L | BN49: @LK-DST-BC16L | BO49: @LK-DTP-BC16L | BP49: @LK-DTK-BC16L | BQ49: @LK-DWE-BC16L
A50: BC16R | B50: 1000 HL Cnr Base (600 Door) RHH | C50: BC16R | D50: @LK-FAG-BC16R | E50: @LK-FAT-BC16R | F50: @LK-FAB-BC16R | G50: @LK-FBR-BC16R | H50: @LK-FBG-BC16R | I50: @LK-FBW-BC16R | J50: @LK-FCS-BC16R | K50: @LK-FDM-BC16R | L50: @LK-FDP-BC16R | M50: @LK-FDS-BC16R | N50: @LK-FGP-BC16R | O50: @LK-FHG-BC16R | P50: @LK-FIN-BC16R | Q50: @LK-FIV-BC16R | R50: @LK-FLR-BC16R | S50: @LK-FLG-BC16R | T50: @LK-FME-BC16R | U50: @LK-FMN-BC16R | V50: @LK-FMU-BC16R | W50: @LK-FOV-BC16R | X50: @LK-FPT-BC16R | Y50: @LK-FPE-BC16R | Z50: @LK-FPG-BC16R | AA50: @LK-FPN-BC16R | AB50: @LK-FSG-BC16R | AC50: @LK-FSP-BC16R | AD50: @LK-FSB-BC16R | AE50: @LK-FSO-BC16R | AF50: @LK-FSY-BC16R | AG50: @LK-FST-BC16R | AH50: @LK-FTP-BC16R | AI50: @LK-FTK-BC16R | AJ50: @LK-FWE-BC16R | AK50: @LK-DAG-BC16R | AL50: @LK-DAT-BC16R | AM50: @LK-DAB-BC16R | AN50: @LK-DBR-BC16R | AO50: @LK-DBG-BC16R | AP50: @LK-DBW-BC16R | AQ50: @LK-DCS-BC16R | AR50: @LK-DDM-BC16R | AS50: @LK-DDR-BC16R | AT50: @LK-DDG-BC16R | AU50: @LK-DGP-BC16R | AV50: @LK-DHG-BC16R | AW50: @LK-DIN-BC16R | AX50: @LK-DIV-BC16R | AY50: @LK-DLR-BC16R | AZ50: @LK-DLG-BC16R | BA50: @LK-DMW-BC16R | BB50: @LK-DMN-BC16R | BC50: @LK-DMU-BC16R | BD50: @LK-DOV-BC16R | BE50: @LK-DPT-BC16R | BF50: @LK-DPE-BC16R | BG50: @LK-DPG-BC16R | BH50: @LK-DPN-BC16R | BI50: @LK-DSG-BC16R | BJ50: @LK-DSP-BC16R | BK50: @LK-DSB-BC16R | BL50: @LK-DSO-BC16R | BM50: @LK-DSY-BC16R | BN50: @LK-DST-BC16R | BO50: @LK-DTP-BC16R | BP50: @LK-DTK-BC16R | BQ50: @LK-DWE-BC16R
A51: BCL15L | B51: 1000 Cnr Base CORNERSTONE MAXX LH - 500 door | C51: BCL15L | D51: @LK-FAG-BCL15L | E51: @LK-FAT-BCL15L | F51: @LK-FAB-BCL15L | G51: @LK-FBR-BCL15L | H51: @LK-FBG-BCL15L | I51: @LK-FBW-BCL15L | J51: @LK-FCS-BCL15L | K51: @LK-FDM-BCL15L | L51: @LK-FDP-BCL15L | M51: @LK-FDS-BCL15L | N51: @LK-FGP-BCL15L | O51: @LK-FHG-BCL15L | P51: @LK-FIN-BCL15L | Q51: @LK-FIV-BCL15L | R51: @LK-FLR-BCL15L | S51: @LK-FLG-BCL15L | T51: @LK-FME-BCL15L | U51: @LK-FMN-BCL15L | V51: @LK-FMU-BCL15L | W51: @LK-FOV-BCL15L | X51: @LK-FPT-BCL15L | Y51: @LK-FPE-BCL15L | Z51: @LK-FPG-BCL15L | AA51: @LK-FPN-BCL15L | AB51: @LK-FSG-BCL15L | AC51: @LK-FSP-BCL15L | AD51: @LK-FSB-BCL15L | AE51: @LK-FSO-BCL15L | AF51: @LK-FSY-BCL15L | AG51: @LK-FST-BCL15L | AH51: @LK-FTP-BCL15L | AI51: @LK-FTK-BCL15L | AJ51: @LK-FWE-BCL15L | AK51: @LK-DAG-BCL15L | AL51: @LK-DAT-BCL15L | AM51: @LK-DAB-BCL15L | AN51: @LK-DBR-BCL15L | AO51: @LK-DBG-BCL15L | AP51: @LK-DBW-BCL15L | AQ51: @LK-DCS-BCL15L | AR51: @LK-DDM-BCL15L | AS51: @LK-DDR-BCL15L | AT51: @LK-DDG-BCL15L | AU51: @LK-DGP-BCL15L | AV51: @LK-DHG-BCL15L | AW51: @LK-DIN-BCL15L | AX51: @LK-DIV-BCL15L | AY51: @LK-DLR-BCL15L | AZ51: @LK-DLG-BCL15L | BA51: @LK-DMW-BCL15L | BB51: @LK-DMN-BCL15L | BC51: @LK-DMU-BCL15L | BD51: @LK-DOV-BCL15L | BE51: @LK-DPT-BCL15L | BF51: @LK-DPE-BCL15L | BG51: @LK-DPG-BCL15L | BH51: @LK-DPN-BCL15L | BI51: @LK-DSG-BCL15L | BJ51: @LK-DSP-BCL15L | BK51: @LK-DSB-BCL15L | BL51: @LK-DSO-BCL15L | BM51: @LK-DSY-BCL15L | BN51: @LK-DST-BCL15L | BO51: @LK-DTP-BCL15L | BP51: @LK-DTK-BCL15L | BQ51: @LK-DWE-BCL15L
A52: BCL15R | B52: 1000 Cnr Base CORNERSTONE MAXX RH - 500 door | C52: BCL15R | D52: @LK-FAG-BCL15R | E52: @LK-FAT-BCL15R | F52: @LK-FAB-BCL15R | G52: @LK-FBR-BCL15R | H52: @LK-FBG-BCL15R | I52: @LK-FBW-BCL15R | J52: @LK-FCS-BCL15R | K52: @LK-FDM-BCL15R | L52: @LK-FDP-BCL15R | M52: @LK-FDS-BCL15R | N52: @LK-FGP-BCL15R | O52: @LK-FHG-BCL15R | P52: @LK-FIN-BCL15R | Q52: @LK-FIV-BCL15R | R52: @LK-FLR-BCL15R | S52: @LK-FLG-BCL15R | T52: @LK-FME-BCL15R | U52: @LK-FMN-BCL15R | V52: @LK-FMU-BCL15R | W52: @LK-FOV-BCL15R | X52: @LK-FPT-BCL15R | Y52: @LK-FPE-BCL15R | Z52: @LK-FPG-BCL15R | AA52: @LK-FPN-BCL15R | AB52: @LK-FSG-BCL15R | AC52: @LK-FSP-BCL15R | AD52: @LK-FSB-BCL15R | AE52: @LK-FSO-BCL15R | AF52: @LK-FSY-BCL15R | AG52: @LK-FST-BCL15R | AH52: @LK-FTP-BCL15R | AI52: @LK-FTK-BCL15R | AJ52: @LK-FWE-BCL15R | AK52: @LK-DAG-BCL15R | AL52: @LK-DAT-BCL15R | AM52: @LK-DAB-BCL15R | AN52: @LK-DBR-BCL15R | AO52: @LK-DBG-BCL15R | AP52: @LK-DBW-BCL15R | AQ52: @LK-DCS-BCL15R | AR52: @LK-DDM-BCL15R | AS52: @LK-DDR-BCL15R | AT52: @LK-DDG-BCL15R | AU52: @LK-DGP-BCL15R | AV52: @LK-DHG-BCL15R | AW52: @LK-DIN-BCL15R | AX52: @LK-DIV-BCL15R | AY52: @LK-DLR-BCL15R | AZ52: @LK-DLG-BCL15R | BA52: @LK-DMW-BCL15R | BB52: @LK-DMN-BCL15R | BC52: @LK-DMU-BCL15R | BD52: @LK-DOV-BCL15R | BE52: @LK-DPT-BCL15R | BF52: @LK-DPE-BCL15R | BG52: @LK-DPG-BCL15R | BH52: @LK-DPN-BCL15R | BI52: @LK-DSG-BCL15R | BJ52: @LK-DSP-BCL15R | BK52: @LK-DSB-BCL15R | BL52: @LK-DSO-BCL15R | BM52: @LK-DSY-BCL15R | BN52: @LK-DST-BCL15R | BO52: @LK-DTP-BCL15R | BP52: @LK-DTK-BCL15R | BQ52: @LK-DWE-BCL15R
A53: BCL16L | B53: 1000 Cnr Base CORNERSTONE MAXX LH - 600 door | C53: BCL16L | D53: @LK-FAG-BCL16L | E53: @LK-FAT-BCL16L | F53: @LK-FAB-BCL16L | G53: @LK-FBR-BCL16L | H53: @LK-FBG-BCL16L | I53: @LK-FBW-BCL16L | J53: @LK-FCS-BCL16L | K53: @LK-FDM-BCL16L | L53: @LK-FDP-BCL16L | M53: @LK-FDS-BCL16L | N53: @LK-FGP-BCL16L | O53: @LK-FHG-BCL16L | P53: @LK-FIN-BCL16L | Q53: @LK-FIV-BCL16L | R53: @LK-FLR-BCL16L | S53: @LK-FLG-BCL16L | T53: @LK-FME-BCL16L | U53: @LK-FMN-BCL16L | V53: @LK-FMU-BCL16L | W53: @LK-FOV-BCL16L | X53: @LK-FPT-BCL16L | Y53: @LK-FPE-BCL16L | Z53: @LK-FPG-BCL16L | AA53: @LK-FPN-BCL16L | AB53: @LK-FSG-BCL16L | AC53: @LK-FSP-BCL16L | AD53: @LK-FSB-BCL16L | AE53: @LK-FSO-BCL16L | AF53: @LK-FSY-BCL16L | AG53: @LK-FST-BCL16L | AH53: @LK-FTP-BCL16L | AI53: @LK-FTK-BCL16L | AJ53: @LK-FWE-BCL16L | AK53: @LK-DAG-BCL16L | AL53: @LK-DAT-BCL16L | AM53: @LK-DAB-BCL16L | AN53: @LK-DBR-BCL16L | AO53: @LK-DBG-BCL16L | AP53: @LK-DBW-BCL16L | AQ53: @LK-DCS-BCL16L | AR53: @LK-DDM-BCL16L | AS53: @LK-DDR-BCL16L | AT53: @LK-DDG-BCL16L | AU53: @LK-DGP-BCL16L | AV53: @LK-DHG-BCL16L | AW53: @LK-DIN-BCL16L | AX53: @LK-DIV-BCL16L | AY53: @LK-DLR-BCL16L | AZ53: @LK-DLG-BCL16L | BA53: @LK-DMW-BCL16L | BB53: @LK-DMN-BCL16L | BC53: @LK-DMU-BCL16L | BD53: @LK-DOV-BCL16L | BE53: @LK-DPT-BCL16L | BF53: @LK-DPE-BCL16L | BG53: @LK-DPG-BCL16L | BH53: @LK-DPN-BCL16L | BI53: @LK-DSG-BCL16L | BJ53: @LK-DSP-BCL16L | BK53: @LK-DSB-BCL16L | BL53: @LK-DSO-BCL16L | BM53: @LK-DSY-BCL16L | BN53: @LK-DST-BCL16L | BO53: @LK-DTP-BCL16L | BP53: @LK-DTK-BCL16L | BQ53: @LK-DWE-BCL16L
A54: BCL16R | B54: 1000 Cnr Base CORNERSTONE MAXX RH - 600 door | C54: BCL16R | D54: @LK-FAG-BCL16R | E54: @LK-FAT-BCL16R | F54: @LK-FAB-BCL16R | G54: @LK-FBR-BCL16R | H54: @LK-FBG-BCL16R | I54: @LK-FBW-BCL16R | J54: @LK-FCS-BCL16R | K54: @LK-FDM-BCL16R | L54: @LK-FDP-BCL16R | M54: @LK-FDS-BCL16R | N54: @LK-FGP-BCL16R | O54: @LK-FHG-BCL16R | P54: @LK-FIN-BCL16R | Q54: @LK-FIV-BCL16R | R54: @LK-FLR-BCL16R | S54: @LK-FLG-BCL16R | T54: @LK-FME-BCL16R | U54: @LK-FMN-BCL16R | V54: @LK-FMU-BCL16R | W54: @LK-FOV-BCL16R | X54: @LK-FPT-BCL16R | Y54: @LK-FPE-BCL16R | Z54: @LK-FPG-BCL16R | AA54: @LK-FPN-BCL16R | AB54: @LK-FSG-BCL16R | AC54: @LK-FSP-BCL16R | AD54: @LK-FSB-BCL16R | AE54: @LK-FSO-BCL16R | AF54: @LK-FSY-BCL16R | AG54: @LK-FST-BCL16R | AH54: @LK-FTP-BCL16R | AI54: @LK-FTK-BCL16R | AJ54: @LK-FWE-BCL16R | AK54: @LK-DAG-BCL16R | AL54: @LK-DAT-BCL16R | AM54: @LK-DAB-BCL16R | AN54: @LK-DBR-BCL16R | AO54: @LK-DBG-BCL16R | AP54: @LK-DBW-BCL16R | AQ54: @LK-DCS-BCL16R | AR54: @LK-DDM-BCL16R | AS54: @LK-DDR-BCL16R | AT54: @LK-DDG-BCL16R | AU54: @LK-DGP-BCL16R | AV54: @LK-DHG-BCL16R | AW54: @LK-DIN-BCL16R | AX54: @LK-DIV-BCL16R | AY54: @LK-DLR-BCL16R | AZ54: @LK-DLG-BCL16R | BA54: @LK-DMW-BCL16R | BB54: @LK-DMN-BCL16R | BC54: @LK-DMU-BCL16R | BD54: @LK-DOV-BCL16R | BE54: @LK-DPT-BCL16R | BF54: @LK-DPE-BCL16R | BG54: @LK-DPG-BCL16R | BH54: @LK-DPN-BCL16R | BI54: @LK-DSG-BCL16R | BJ54: @LK-DSP-BCL16R | BK54: @LK-DSB-BCL16R | BL54: @LK-DSO-BCL16R | BM54: @LK-DSY-BCL16R | BN54: @LK-DST-BCL16R | BO54: @LK-DTP-BCL16R | BP54: @LK-DTK-BCL16R | BQ54: @LK-DWE-BCL16R
A55: BCO945L | B55: 900 Corner Base VS COR FLEX - 450 door LHH | C55: BCO945L | D55: @LK-FAG-BCO945L | E55: @LK-FAT-BCO945L | F55: @LK-FAB-BCO945L | G55: @LK-FBR-BCO945L | H55: @LK-FBG-BCO945L | I55: @LK-FBW-BCO945L | J55: @LK-FCS-BCO945L | K55: @LK-FDM-BCO945L | L55: @LK-FDP-BCO945L | M55: @LK-FDS-BCO945L | N55: @LK-FGP-BCO945L | O55: @LK-FHG-BCO945L | P55: @LK-FIN-BCO945L | Q55: @LK-FIV-BCO945L | R55: @LK-FLR-BCO945L | S55: @LK-FLG-BCO945L | T55: @LK-FME-BCO945L | U55: @LK-FMN-BCO945L | V55: @LK-FMU-BCO945L | W55: @LK-FOV-BCO945L | X55: @LK-FPT-BCO945L | Y55: @LK-FPE-BCO945L | Z55: @LK-FPG-BCO945L | AA55: @LK-FPN-BCO945L | AB55: @LK-FSG-BCO945L | AC55: @LK-FSP-BCO945L | AD55: @LK-FSB-BCO945L | AE55: @LK-FSO-BCO945L | AF55: @LK-FSY-BCO945L | AG55: @LK-FST-BCO945L | AH55: @LK-FTP-BCO945L | AI55: @LK-FTK-BCO945L | AJ55: @LK-FWE-BCO945L | AK55: Not Available | AL55: Not Available | AM55: Not Available | AN55: Not Available | AO55: Not Available | AP55: Not Available | AQ55: Not Available | AR55: Not Available | AS55: Not Available | AT55: Not Available | AU55: Not Available | AV55: Not Available | AW55: Not Available | AX55: Not Available | AY55: Not Available | AZ55: Not Available | BA55: Not Available | BB55: Not Available | BC55: Not Available | BD55: Not Available | BE55: Not Available | BF55: Not Available | BG55: Not Available | BH55: Not Available | BI55: Not Available | BJ55: Not Available | BK55: Not Available | BL55: Not Available | BM55: Not Available | BN55: Not Available | BO55: Not Available | BP55: Not Available | BQ55: Not Available
A56: BCO945R | B56: 900 Corner Base VS COR FLEX - 450 door RHH | C56: BCO945R | D56: @LK-FAG-BCO945R | E56: @LK-FAT-BCO945R | F56: @LK-FAB-BCO945R | G56: @LK-FBR-BCO945R | H56: @LK-FBG-BCO945R | I56: @LK-FBW-BCO945R | J56: @LK-FCS-BCO945R | K56: @LK-FDM-BCO945R | L56: @LK-FDP-BCO945R | M56: @LK-FDS-BCO945R | N56: @LK-FGP-BCO945R | O56: @LK-FHG-BCO945R | P56: @LK-FIN-BCO945R | Q56: @LK-FIV-BCO945R | R56: @LK-FLR-BCO945R | S56: @LK-FLG-BCO945R | T56: @LK-FME-BCO945R | U56: @LK-FMN-BCO945R | V56: @LK-FMU-BCO945R | W56: @LK-FOV-BCO945R | X56: @LK-FPT-BCO945R | Y56: @LK-FPE-BCO945R | Z56: @LK-FPG-BCO945R | AA56: @LK-FPN-BCO945R | AB56: @LK-FSG-BCO945R | AC56: @LK-FSP-BCO945R | AD56: @LK-FSB-BCO945R | AE56: @LK-FSO-BCO945R | AF56: @LK-FSY-BCO945R | AG56: @LK-FST-BCO945R | AH56: @LK-FTP-BCO945R | AI56: @LK-FTK-BCO945R | AJ56: @LK-FWE-BCO945R | AK56: Not Available | AL56: Not Available | AM56: Not Available | AN56: Not Available | AO56: Not Available | AP56: Not Available | AQ56: Not Available | AR56: Not Available | AS56: Not Available | AT56: Not Available | AU56: Not Available | AV56: Not Available | AW56: Not Available | AX56: Not Available | AY56: Not Available | AZ56: Not Available | BA56: Not Available | BB56: Not Available | BC56: Not Available | BD56: Not Available | BE56: Not Available | BF56: Not Available | BG56: Not Available | BH56: Not Available | BI56: Not Available | BJ56: Not Available | BK56: Not Available | BL56: Not Available | BM56: Not Available | BN56: Not Available | BO56: Not Available | BP56: Not Available | BQ56: Not Available
A57: BCO145L | B57: 1000 Corner Base VS COR FLEX - 450 door LHH | C57: BCO145L | D57: @LK-FAG-BCO145L | E57: @LK-FAT-BCO145L | F57: @LK-FAB-BCO145L | G57: @LK-FBR-BCO145L | H57: @LK-FBG-BCO145L | I57: @LK-FBW-BCO145L | J57: @LK-FCS-BCO145L | K57: @LK-FDM-BCO145L | L57: @LK-FDP-BCO145L | M57: @LK-FDS-BCO145L | N57: @LK-FGP-BCO145L | O57: @LK-FHG-BCO145L | P57: @LK-FIN-BCO145L | Q57: @LK-FIV-BCO145L | R57: @LK-FLR-BCO145L | S57: @LK-FLG-BCO145L | T57: @LK-FME-BCO145L | U57: @LK-FMN-BCO145L | V57: @LK-FMU-BCO145L | W57: @LK-FOV-BCO145L | X57: @LK-FPT-BCO145L | Y57: @LK-FPE-BCO145L | Z57: @LK-FPG-BCO145L | AA57: @LK-FPN-BCO145L | AB57: @LK-FSG-BCO145L | AC57: @LK-FSP-BCO145L | AD57: @LK-FSB-BCO145L | AE57: @LK-FSO-BCO145L | AF57: @LK-FSY-BCO145L | AG57: @LK-FST-BCO145L | AH57: @LK-FTP-BCO145L | AI57: @LK-FTK-BCO145L | AJ57: @LK-FWE-BCO145L | AK57: Not Available | AL57: Not Available | AM57: Not Available | AN57: Not Available | AO57: Not Available | AP57: Not Available | AQ57: Not Available | AR57: Not Available | AS57: Not Available | AT57: Not Available | AU57: Not Available | AV57: Not Available | AW57: Not Available | AX57: Not Available | AY57: Not Available | AZ57: Not Available | BA57: Not Available | BB57: Not Available | BC57: Not Available | BD57: Not Available | BE57: Not Available | BF57: Not Available | BG57: Not Available | BH57: Not Available | BI57: Not Available | BJ57: Not Available | BK57: Not Available | BL57: Not Available | BM57: Not Available | BN57: Not Available | BO57: Not Available | BP57: Not Available | BQ57: Not Available
A58: BCO145R | B58: 1000 Corner Base VS COR FLEX - 450 door RHH | C58: BCO145R | D58: @LK-FAG-BCO145R | E58: @LK-FAT-BCO145R | F58: @LK-FAB-BCO145R | G58: @LK-FBR-BCO145R | H58: @LK-FBG-BCO145R | I58: @LK-FBW-BCO145R | J58: @LK-FCS-BCO145R | K58: @LK-FDM-BCO145R | L58: @LK-FDP-BCO145R | M58: @LK-FDS-BCO145R | N58: @LK-FGP-BCO145R | O58: @LK-FHG-BCO145R | P58: @LK-FIN-BCO145R | Q58: @LK-FIV-BCO145R | R58: @LK-FLR-BCO145R | S58: @LK-FLG-BCO145R | T58: @LK-FME-BCO145R | U58: @LK-FMN-BCO145R | V58: @LK-FMU-BCO145R | W58: @LK-FOV-BCO145R | X58: @LK-FPT-BCO145R | Y58: @LK-FPE-BCO145R | Z58: @LK-FPG-BCO145R | AA58: @LK-FPN-BCO145R | AB58: @LK-FSG-BCO145R | AC58: @LK-FSP-BCO145R | AD58: @LK-FSB-BCO145R | AE58: @LK-FSO-BCO145R | AF58: @LK-FSY-BCO145R | AG58: @LK-FST-BCO145R | AH58: @LK-FTP-BCO145R | AI58: @LK-FTK-BCO145R | AJ58: @LK-FWE-BCO145R | AK58: Not Available | AL58: Not Available | AM58: Not Available | AN58: Not Available | AO58: Not Available | AP58: Not Available | AQ58: Not Available | AR58: Not Available | AS58: Not Available | AT58: Not Available | AU58: Not Available | AV58: Not Available | AW58: Not Available | AX58: Not Available | AY58: Not Available | AZ58: Not Available | BA58: Not Available | BB58: Not Available | BC58: Not Available | BD58: Not Available | BE58: Not Available | BF58: Not Available | BG58: Not Available | BH58: Not Available | BI58: Not Available | BJ58: Not Available | BK58: Not Available | BL58: Not Available | BM58: Not Available | BN58: Not Available | BO58: Not Available | BP58: Not Available | BQ58: Not Available
A59: BCO15L | B59: 1000 Corner Base VS COR FLEX - 500 door LHH | C59: BCO15L | D59: @LK-FAG-BCO15L | E59: @LK-FAT-BCO15L | F59: @LK-FAB-BCO15L | G59: @LK-FBR-BCO15L | H59: @LK-FBG-BCO15L | I59: @LK-FBW-BCO15L | J59: @LK-FCS-BCO15L | K59: @LK-FDM-BCO15L | L59: @LK-FDP-BCO15L | M59: @LK-FDS-BCO15L | N59: @LK-FGP-BCO15L | O59: @LK-FHG-BCO15L | P59: @LK-FIN-BCO15L | Q59: @LK-FIV-BCO15L | R59: @LK-FLR-BCO15L | S59: @LK-FLG-BCO15L | T59: @LK-FME-BCO15L | U59: @LK-FMN-BCO15L | V59: @LK-FMU-BCO15L | W59: @LK-FOV-BCO15L | X59: @LK-FPT-BCO15L | Y59: @LK-FPE-BCO15L | Z59: @LK-FPG-BCO15L | AA59: @LK-FPN-BCO15L | AB59: @LK-FSG-BCO15L | AC59: @LK-FSP-BCO15L | AD59: @LK-FSB-BCO15L | AE59: @LK-FSO-BCO15L | AF59: @LK-FSY-BCO15L | AG59: @LK-FST-BCO15L | AH59: @LK-FTP-BCO15L | AI59: @LK-FTK-BCO15L | AJ59: @LK-FWE-BCO15L | AK59: @LK-DAG-BCO15L | AL59: @LK-DAT-BCO15L | AM59: @LK-DAB-BCO15L | AN59: @LK-DBR-BCO15L | AO59: @LK-DBG-BCO15L | AP59: @LK-DBW-BCO15L | AQ59: @LK-DCS-BCO15L | AR59: @LK-DDM-BCO15L | AS59: @LK-DDR-BCO15L | AT59: @LK-DDG-BCO15L | AU59: @LK-DGP-BCO15L | AV59: @LK-DHG-BCO15L | AW59: @LK-DIN-BCO15L | AX59: @LK-DIV-BCO15L | AY59: @LK-DLR-BCO15L | AZ59: @LK-DLG-BCO15L | BA59: @LK-DMW-BCO15L | BB59: @LK-DMN-BCO15L | BC59: @LK-DMU-BCO15L | BD59: @LK-DOV-BCO15L | BE59: @LK-DPT-BCO15L | BF59: @LK-DPE-BCO15L | BG59: @LK-DPG-BCO15L | BH59: @LK-DPN-BCO15L | BI59: @LK-DSG-BCO15L | BJ59: @LK-DSP-BCO15L | BK59: @LK-DSB-BCO15L | BL59: @LK-DSO-BCO15L | BM59: @LK-DSY-BCO15L | BN59: @LK-DST-BCO15L | BO59: @LK-DTP-BCO15L | BP59: @LK-DTK-BCO15L | BQ59: @LK-DWE-BCO15L
A60: BCO15R | B60: 1000 Corner Base VS COR FLEX - 500 door RHH | C60: BCO15R | D60: @LK-FAG-BCO15R | E60: @LK-FAT-BCO15R | F60: @LK-FAB-BCO15R | G60: @LK-FBR-BCO15R | H60: @LK-FBG-BCO15R | I60: @LK-FBW-BCO15R | J60: @LK-FCS-BCO15R | K60: @LK-FDM-BCO15R | L60: @LK-FDP-BCO15R | M60: @LK-FDS-BCO15R | N60: @LK-FGP-BCO15R | O60: @LK-FHG-BCO15R | P60: @LK-FIN-BCO15R | Q60: @LK-FIV-BCO15R | R60: @LK-FLR-BCO15R | S60: @LK-FLG-BCO15R | T60: @LK-FME-BCO15R | U60: @LK-FMN-BCO15R | V60: @LK-FMU-BCO15R | W60: @LK-FOV-BCO15R | X60: @LK-FPT-BCO15R | Y60: @LK-FPE-BCO15R | Z60: @LK-FPG-BCO15R | AA60: @LK-FPN-BCO15R | AB60: @LK-FSG-BCO15R | AC60: @LK-FSP-BCO15R | AD60: @LK-FSB-BCO15R | AE60: @LK-FSO-BCO15R | AF60: @LK-FSY-BCO15R | AG60: @LK-FST-BCO15R | AH60: @LK-FTP-BCO15R | AI60: @LK-FTK-BCO15R | AJ60: @LK-FWE-BCO15R | AK60: @LK-DAG-BCO15R | AL60: @LK-DAT-BCO15R | AM60: @LK-DAB-BCO15R | AN60: @LK-DBR-BCO15R | AO60: @LK-DBG-BCO15R | AP60: @LK-DBW-BCO15R | AQ60: @LK-DCS-BCO15R | AR60: @LK-DDM-BCO15R | AS60: @LK-DDR-BCO15R | AT60: @LK-DDG-BCO15R | AU60: @LK-DGP-BCO15R | AV60: @LK-DHG-BCO15R | AW60: @LK-DIN-BCO15R | AX60: @LK-DIV-BCO15R | AY60: @LK-DLR-BCO15R | AZ60: @LK-DLG-BCO15R | BA60: @LK-DMW-BCO15R | BB60: @LK-DMN-BCO15R | BC60: @LK-DMU-BCO15R | BD60: @LK-DOV-BCO15R | BE60: @LK-DPT-BCO15R | BF60: @LK-DPE-BCO15R | BG60: @LK-DPG-BCO15R | BH60: @LK-DPN-BCO15R | BI60: @LK-DSG-BCO15R | BJ60: @LK-DSP-BCO15R | BK60: @LK-DSB-BCO15R | BL60: @LK-DSO-BCO15R | BM60: @LK-DSY-BCO15R | BN60: @LK-DST-BCO15R | BO60: @LK-DTP-BCO15R | BP60: @LK-DTK-BCO15R | BQ60: @LK-DWE-BCO15R
A61: BCO16L | B61: 1000 Corner Base VS COR FLEX - 600 door LHH | C61: BCO16L | D61: @LK-FAG-BCO16L | E61: @LK-FAT-BCO16L | F61: @LK-FAB-BCO16L | G61: @LK-FBR-BCO16L | H61: @LK-FBG-BCO16L | I61: @LK-FBW-BCO16L | J61: @LK-FCS-BCO16L | K61: @LK-FDM-BCO16L | L61: @LK-FDP-BCO16L | M61: @LK-FDS-BCO16L | N61: @LK-FGP-BCO16L | O61: @LK-FHG-BCO16L | P61: @LK-FIN-BCO16L | Q61: @LK-FIV-BCO16L | R61: @LK-FLR-BCO16L | S61: @LK-FLG-BCO16L | T61: @LK-FME-BCO16L | U61: @LK-FMN-BCO16L | V61: @LK-FMU-BCO16L | W61: @LK-FOV-BCO16L | X61: @LK-FPT-BCO16L | Y61: @LK-FPE-BCO16L | Z61: @LK-FPG-BCO16L | AA61: @LK-FPN-BCO16L | AB61: @LK-FSG-BCO16L | AC61: @LK-FSP-BCO16L | AD61: @LK-FSB-BCO16L | AE61: @LK-FSO-BCO16L | AF61: @LK-FSY-BCO16L | AG61: @LK-FST-BCO16L | AH61: @LK-FTP-BCO16L | AI61: @LK-FTK-BCO16L | AJ61: @LK-FWE-BCO16L | AK61: @LK-DAG-BCO16L | AL61: @LK-DAT-BCO16L | AM61: @LK-DAB-BCO16L | AN61: @LK-DBR-BCO16L | AO61: @LK-DBG-BCO16L | AP61: @LK-DBW-BCO16L | AQ61: @LK-DCS-BCO16L | AR61: @LK-DDM-BCO16L | AS61: @LK-DDR-BCO16L | AT61: @LK-DDG-BCO16L | AU61: @LK-DGP-BCO16L | AV61: @LK-DHG-BCO16L | AW61: @LK-DIN-BCO16L | AX61: @LK-DIV-BCO16L | AY61: @LK-DLR-BCO16L | AZ61: @LK-DLG-BCO16L | BA61: @LK-DMW-BCO16L | BB61: @LK-DMN-BCO16L | BC61: @LK-DMU-BCO16L | BD61: @LK-DOV-BCO16L | BE61: @LK-DPT-BCO16L | BF61: @LK-DPE-BCO16L | BG61: @LK-DPG-BCO16L | BH61: @LK-DPN-BCO16L | BI61: @LK-DSG-BCO16L | BJ61: @LK-DSP-BCO16L | BK61: @LK-DSB-BCO16L | BL61: @LK-DSO-BCO16L | BM61: @LK-DSY-BCO16L | BN61: @LK-DST-BCO16L | BO61: @LK-DTP-BCO16L | BP61: @LK-DTK-BCO16L | BQ61: @LK-DWE-BCO16L
A62: BCO16R | B62: 1000 Corner Base VS COR FLEX - 600 door RHH | C62: BCO16R | D62: @LK-FAG-BCO16R | E62: @LK-FAT-BCO16R | F62: @LK-FAB-BCO16R | G62: @LK-FBR-BCO16R | H62: @LK-FBG-BCO16R | I62: @LK-FBW-BCO16R | J62: @LK-FCS-BCO16R | K62: @LK-FDM-BCO16R | L62: @LK-FDP-BCO16R | M62: @LK-FDS-BCO16R | N62: @LK-FGP-BCO16R | O62: @LK-FHG-BCO16R | P62: @LK-FIN-BCO16R | Q62: @LK-FIV-BCO16R | R62: @LK-FLR-BCO16R | S62: @LK-FLG-BCO16R | T62: @LK-FME-BCO16R | U62: @LK-FMN-BCO16R | V62: @LK-FMU-BCO16R | W62: @LK-FOV-BCO16R | X62: @LK-FPT-BCO16R | Y62: @LK-FPE-BCO16R | Z62: @LK-FPG-BCO16R | AA62: @LK-FPN-BCO16R | AB62: @LK-FSG-BCO16R | AC62: @LK-FSP-BCO16R | AD62: @LK-FSB-BCO16R | AE62: @LK-FSO-BCO16R | AF62: @LK-FSY-BCO16R | AG62: @LK-FST-BCO16R | AH62: @LK-FTP-BCO16R | AI62: @LK-FTK-BCO16R | AJ62: @LK-FWE-BCO16R | AK62: @LK-DAG-BCO16R | AL62: @LK-DAT-BCO16R | AM62: @LK-DAB-BCO16R | AN62: @LK-DBR-BCO16R | AO62: @LK-DBG-BCO16R | AP62: @LK-DBW-BCO16R | AQ62: @LK-DCS-BCO16R | AR62: @LK-DDM-BCO16R | AS62: @LK-DDR-BCO16R | AT62: @LK-DDG-BCO16R | AU62: @LK-DGP-BCO16R | AV62: @LK-DHG-BCO16R | AW62: @LK-DIN-BCO16R | AX62: @LK-DIV-BCO16R | AY62: @LK-DLR-BCO16R | AZ62: @LK-DLG-BCO16R | BA62: @LK-DMW-BCO16R | BB62: @LK-DMN-BCO16R | BC62: @LK-DMU-BCO16R | BD62: @LK-DOV-BCO16R | BE62: @LK-DPT-BCO16R | BF62: @LK-DPE-BCO16R | BG62: @LK-DPG-BCO16R | BH62: @LK-DPN-BCO16R | BI62: @LK-DSG-BCO16R | BJ62: @LK-DSP-BCO16R | BK62: @LK-DSB-BCO16R | BL62: @LK-DSO-BCO16R | BM62: @LK-DSY-BCO16R | BN62: @LK-DST-BCO16R | BO62: @LK-DTP-BCO16R | BP62: @LK-DTK-BCO16R | BQ62: @LK-DWE-BCO16R
A63: BCL9 | B63: 950 HL Cnr L Base | C63: BCL9 | D63: @LK-FAG-BCL9 | E63: @LK-FAT-BCL9 | F63: @LK-FAB-BCL9 | G63: @LK-FBR-BCL9 | H63: @LK-FBG-BCL9 | I63: @LK-FBW-BCL9 | J63: @LK-FCS-BCL9 | K63: @LK-FDM-BCL9 | L63: @LK-FDP-BCL9 | M63: @LK-FDS-BCL9 | N63: @LK-FGP-BCL9 | O63: @LK-FHG-BCL9 | P63: @LK-FIN-BCL9 | Q63: @LK-FIV-BCL9 | R63: @LK-FLR-BCL9 | S63: @LK-FLG-BCL9 | T63: @LK-FME-BCL9 | U63: @LK-FMN-BCL9 | V63: @LK-FMU-BCL9 | W63: @LK-FOV-BCL9 | X63: @LK-FPT-BCL9 | Y63: @LK-FPE-BCL9 | Z63: @LK-FPG-BCL9 | AA63: @LK-FPN-BCL9 | AB63: @LK-FSG-BCL9 | AC63: @LK-FSP-BCL9 | AD63: @LK-FSB-BCL9 | AE63: @LK-FSO-BCL9 | AF63: @LK-FSY-BCL9 | AG63: @LK-FST-BCL9 | AH63: @LK-FTP-BCL9 | AI63: @LK-FTK-BCL9 | AJ63: @LK-FWE-BCL9 | AK63: @LK-DAG-BCL9 | AL63: @LK-DAT-BCL9 | AM63: @LK-DAB-BCL9 | AN63: @LK-DBR-BCL9 | AO63: @LK-DBG-BCL9 | AP63: @LK-DBW-BCL9 | AQ63: @LK-DCS-BCL9 | AR63: @LK-DDM-BCL9 | AS63: @LK-DDR-BCL9 | AT63: @LK-DDG-BCL9 | AU63: @LK-DGP-BCL9 | AV63: @LK-DHG-BCL9 | AW63: @LK-DIN-BCL9 | AX63: @LK-DIV-BCL9 | AY63: @LK-DLR-BCL9 | AZ63: @LK-DLG-BCL9 | BA63: @LK-DMW-BCL9 | BB63: @LK-DMN-BCL9 | BC63: @LK-DMU-BCL9 | BD63: @LK-DOV-BCL9 | BE63: @LK-DPT-BCL9 | BF63: @LK-DPE-BCL9 | BG63: @LK-DPG-BCL9 | BH63: @LK-DPN-BCL9 | BI63: @LK-DSG-BCL9 | BJ63: @LK-DSP-BCL9 | BK63: @LK-DSB-BCL9 | BL63: @LK-DSO-BCL9 | BM63: @LK-DSY-BCL9 | BN63: @LK-DST-BCL9 | BO63: @LK-DTP-BCL9 | BP63: @LK-DTK-BCL9 | BQ63: @LK-DWE-BCL9
A64: BHCVL | B64: Curved Base Unit LHH | C64: BHCVL | D64: Not Available | E64: Not Available | F64: Not Available | G64: Not Available | H64: Not Available | I64: Not Available | J64: Not Available | K64: Not Available | L64: Not Available | M64: Not Available | N64: Not Available | O64: Not Available | P64: Not Available | Q64: Not Available | R64: Not Available | S64: Not Available | T64: Not Available | U64: Not Available | V64: Not Available | W64: Not Available | X64: Not Available | Y64: Not Available | Z64: Not Available | AA64: Not Available | AB64: Not Available | AC64: Not Available | AD64: Not Available | AE64: Not Available | AF64: Not Available | AG64: Not Available | AH64: Not Available | AI64: Not Available | AJ64: Not Available | AK64: @LK-DAG-BHCVL | AL64: @LK-DAT-BHCVL | AM64: @LK-DAB-BHCVL | AN64: @LK-DBR-BHCVL | AO64: @LK-DBG-BHCVL | AP64: @LK-DBW-BHCVL | AQ64: @LK-DCS-BHCVL | AR64: @LK-DDM-BHCVL | AS64: @LK-DDR-BHCVL | AT64: @LK-DDG-BHCVL | AU64: @LK-DGP-BHCVL | AV64: @LK-DHG-BHCVL | AW64: @LK-DIN-BHCVL | AX64: @LK-DIV-BHCVL | AY64: @LK-DLR-BHCVL | AZ64: @LK-DLG-BHCVL | BA64: @LK-DMW-BHCVL | BB64: @LK-DMN-BHCVL | BC64: @LK-DMU-BHCVL | BD64: @LK-DOV-BHCVL | BE64: @LK-DPT-BHCVL | BF64: @LK-DPE-BHCVL | BG64: @LK-DPG-BHCVL | BH64: @LK-DPN-BHCVL | BI64: @LK-DSG-BHCVL | BJ64: @LK-DSP-BHCVL | BK64: @LK-DSB-BHCVL | BL64: @LK-DSO-BHCVL | BM64: @LK-DSY-BHCVL | BN64: @LK-DST-BHCVL | BO64: @LK-DTP-BHCVL | BP64: @LK-DTK-BHCVL | BQ64: @LK-DWE-BHCVL
A65: BHCVR | B65: Curved Base Unit RHH | C65: BHCVR | D65: Not Available | E65: Not Available | F65: Not Available | G65: Not Available | H65: Not Available | I65: Not Available | J65: Not Available | K65: Not Available | L65: Not Available | M65: Not Available | N65: Not Available | O65: Not Available | P65: Not Available | Q65: Not Available | R65: Not Available | S65: Not Available | T65: Not Available | U65: Not Available | V65: Not Available | W65: Not Available | X65: Not Available | Y65: Not Available | Z65: Not Available | AA65: Not Available | AB65: Not Available | AC65: Not Available | AD65: Not Available | AE65: Not Available | AF65: Not Available | AG65: Not Available | AH65: Not Available | AI65: Not Available | AJ65: Not Available | AK65: @LK-DAG-BHCVR | AL65: @LK-DAT-BHCVR | AM65: @LK-DAB-BHCVR | AN65: @LK-DBR-BHCVR | AO65: @LK-DBG-BHCVR | AP65: @LK-DBW-BHCVR | AQ65: @LK-DCS-BHCVR | AR65: @LK-DDM-BHCVR | AS65: @LK-DDR-BHCVR | AT65: @LK-DDG-BHCVR | AU65: @LK-DGP-BHCVR | AV65: @LK-DHG-BHCVR | AW65: @LK-DIN-BHCVR | AX65: @LK-DIV-BHCVR | AY65: @LK-DLR-BHCVR | AZ65: @LK-DLG-BHCVR | BA65: @LK-DMW-BHCVR | BB65: @LK-DMN-BHCVR | BC65: @LK-DMU-BHCVR | BD65: @LK-DOV-BHCVR | BE65: @LK-DPT-BHCVR | BF65: @LK-DPE-BHCVR | BG65: @LK-DPG-BHCVR | BH65: @LK-DPN-BHCVR | BI65: @LK-DSG-BHCVR | BJ65: @LK-DSP-BHCVR | BK65: @LK-DSB-BHCVR | BL65: @LK-DSO-BHCVR | BM65: @LK-DSY-BHCVR | BN65: @LK-DST-BHCVR | BO65: @LK-DTP-BHCVR | BP65: @LK-DTK-BHCVR | BQ65: @LK-DWE-BHCVR
A66: BSU6495L | B66: 600 Belfast Sink Unit (495mm High) LHH | C66: BSU6495L | D66: @LK-FAG-BSU6495L | E66: @LK-FAT-BSU6495L | F66: @LK-FAB-BSU6495L | G66: @LK-FBR-BSU6495L | H66: @LK-FBG-BSU6495L | I66: @LK-FBW-BSU6495L | J66: @LK-FCS-BSU6495L | K66: @LK-FDM-BSU6495L | L66: @LK-FDP-BSU6495L | M66: @LK-FDS-BSU6495L | N66: @LK-FGP-BSU6495L | O66: @LK-FHG-BSU6495L | P66: @LK-FIN-BSU6495L | Q66: @LK-FIV-BSU6495L | R66: @LK-FLR-BSU6495L | S66: @LK-FLG-BSU6495L | T66: @LK-FME-BSU6495L | U66: @LK-FMN-BSU6495L | V66: @LK-FMU-BSU6495L | W66: @LK-FOV-BSU6495L | X66: @LK-FPT-BSU6495L | Y66: @LK-FPE-BSU6495L | Z66: @LK-FPG-BSU6495L | AA66: @LK-FPN-BSU6495L | AB66: @LK-FSG-BSU6495L | AC66: @LK-FSP-BSU6495L | AD66: @LK-FSB-BSU6495L | AE66: @LK-FSO-BSU6495L | AF66: @LK-FSY-BSU6495L | AG66: @LK-FST-BSU6495L | AH66: @LK-FTP-BSU6495L | AI66: @LK-FTK-BSU6495L | AJ66: @LK-FWE-BSU6495L | AK66: @LK-DAG-BSU6495L | AL66: @LK-DAT-BSU6495L | AM66: @LK-DAB-BSU6495L | AN66: @LK-DBR-BSU6495L | AO66: @LK-DBG-BSU6495L | AP66: @LK-DBW-BSU6495L | AQ66: @LK-DCS-BSU6495L | AR66: @LK-DDM-BSU6495L | AS66: @LK-DDR-BSU6495L | AT66: @LK-DDG-BSU6495L | AU66: @LK-DGP-BSU6495L | AV66: @LK-DHG-BSU6495L | AW66: @LK-DIN-BSU6495L | AX66: @LK-DIV-BSU6495L | AY66: @LK-DLR-BSU6495L | AZ66: @LK-DLG-BSU6495L | BA66: @LK-DMW-BSU6495L | BB66: @LK-DMN-BSU6495L | BC66: @LK-DMU-BSU6495L | BD66: @LK-DOV-BSU6495L | BE66: @LK-DPT-BSU6495L | BF66: @LK-DPE-BSU6495L | BG66: @LK-DPG-BSU6495L | BH66: @LK-DPN-BSU6495L | BI66: @LK-DSG-BSU6495L | BJ66: @LK-DSP-BSU6495L | BK66: @LK-DSB-BSU6495L | BL66: @LK-DSO-BSU6495L | BM66: @LK-DSY-BSU6495L | BN66: @LK-DST-BSU6495L | BO66: @LK-DTP-BSU6495L | BP66: @LK-DTK-BSU6495L | BQ66: @LK-DWE-BSU6495L
A67: BSU6495R | B67: 600 Belfast Sink Unit (495mm High) RHH | C67: BSU6495R | D67: @LK-FAG-BSU6495R | E67: @LK-FAT-BSU6495R | F67: @LK-FAB-BSU6495R | G67: @LK-FBR-BSU6495R | H67: @LK-FBG-BSU6495R | I67: @LK-FBW-BSU6495R | J67: @LK-FCS-BSU6495R | K67: @LK-FDM-BSU6495R | L67: @LK-FDP-BSU6495R | M67: @LK-FDS-BSU6495R | N67: @LK-FGP-BSU6495R | O67: @LK-FHG-BSU6495R | P67: @LK-FIN-BSU6495R | Q67: @LK-FIV-BSU6495R | R67: @LK-FLR-BSU6495R | S67: @LK-FLG-BSU6495R | T67: @LK-FME-BSU6495R | U67: @LK-FMN-BSU6495R | V67: @LK-FMU-BSU6495R | W67: @LK-FOV-BSU6495R | X67: @LK-FPT-BSU6495R | Y67: @LK-FPE-BSU6495R | Z67: @LK-FPG-BSU6495R | AA67: @LK-FPN-BSU6495R | AB67: @LK-FSG-BSU6495R | AC67: @LK-FSP-BSU6495R | AD67: @LK-FSB-BSU6495R | AE67: @LK-FSO-BSU6495R | AF67: @LK-FSY-BSU6495R | AG67: @LK-FST-BSU6495R | AH67: @LK-FTP-BSU6495R | AI67: @LK-FTK-BSU6495R | AJ67: @LK-FWE-BSU6495R | AK67: @LK-DAG-BSU6495R | AL67: @LK-DAT-BSU6495R | AM67: @LK-DAB-BSU6495R | AN67: @LK-DBR-BSU6495R | AO67: @LK-DBG-BSU6495R | AP67: @LK-DBW-BSU6495R | AQ67: @LK-DCS-BSU6495R | AR67: @LK-DDM-BSU6495R | AS67: @LK-DDR-BSU6495R | AT67: @LK-DDG-BSU6495R | AU67: @LK-DGP-BSU6495R | AV67: @LK-DHG-BSU6495R | AW67: @LK-DIN-BSU6495R | AX67: @LK-DIV-BSU6495R | AY67: @LK-DLR-BSU6495R | AZ67: @LK-DLG-BSU6495R | BA67: @LK-DMW-BSU6495R | BB67: @LK-DMN-BSU6495R | BC67: @LK-DMU-BSU6495R | BD67: @LK-DOV-BSU6495R | BE67: @LK-DPT-BSU6495R | BF67: @LK-DPE-BSU6495R | BG67: @LK-DPG-BSU6495R | BH67: @LK-DPN-BSU6495R | BI67: @LK-DSG-BSU6495R | BJ67: @LK-DSP-BSU6495R | BK67: @LK-DSB-BSU6495R | BL67: @LK-DSO-BSU6495R | BM67: @LK-DSY-BSU6495R | BN67: @LK-DST-BSU6495R | BO67: @LK-DTP-BSU6495R | BP67: @LK-DTK-BSU6495R | BQ67: @LK-DWE-BSU6495R
A68: BSU6450L | B68: 600 Belfast Sink Unit (450mm High) LHH | C68: BSU6450L | D68: @LK-FAG-BSU6450L | E68: @LK-FAT-BSU6450L | F68: @LK-FAB-BSU6450L | G68: @LK-FBR-BSU6450L | H68: @LK-FBG-BSU6450L | I68: @LK-FBW-BSU6450L | J68: @LK-FCS-BSU6450L | K68: @LK-FDM-BSU6450L | L68: @LK-FDP-BSU6450L | M68: @LK-FDS-BSU6450L | N68: @LK-FGP-BSU6450L | O68: @LK-FHG-BSU6450L | P68: @LK-FIN-BSU6450L | Q68: @LK-FIV-BSU6450L | R68: @LK-FLR-BSU6450L | S68: @LK-FLG-BSU6450L | T68: @LK-FME-BSU6450L | U68: @LK-FMN-BSU6450L | V68: @LK-FMU-BSU6450L | W68: @LK-FOV-BSU6450L | X68: @LK-FPT-BSU6450L | Y68: @LK-FPE-BSU6450L | Z68: @LK-FPG-BSU6450L | AA68: @LK-FPN-BSU6450L | AB68: @LK-FSG-BSU6450L | AC68: @LK-FSP-BSU6450L | AD68: @LK-FSB-BSU6450L | AE68: @LK-FSO-BSU6450L | AF68: @LK-FSY-BSU6450L | AG68: @LK-FST-BSU6450L | AH68: @LK-FTP-BSU6450L | AI68: @LK-FTK-BSU6450L | AJ68: @LK-FWE-BSU6450L | AK68: @LK-DAG-BSU6450L | AL68: @LK-DAT-BSU6450L | AM68: @LK-DAB-BSU6450L | AN68: @LK-DBR-BSU6450L | AO68: @LK-DBG-BSU6450L | AP68: @LK-DBW-BSU6450L | AQ68: @LK-DCS-BSU6450L | AR68: @LK-DDM-BSU6450L | AS68: @LK-DDR-BSU6450L | AT68: @LK-DDG-BSU6450L | AU68: @LK-DGP-BSU6450L | AV68: @LK-DHG-BSU6450L | AW68: @LK-DIN-BSU6450L | AX68: @LK-DIV-BSU6450L | AY68: @LK-DLR-BSU6450L | AZ68: @LK-DLG-BSU6450L | BA68: @LK-DMW-BSU6450L | BB68: @LK-DMN-BSU6450L | BC68: @LK-DMU-BSU6450L | BD68: @LK-DOV-BSU6450L | BE68: @LK-DPT-BSU6450L | BF68: @LK-DPE-BSU6450L | BG68: @LK-DPG-BSU6450L | BH68: @LK-DPN-BSU6450L | BI68: @LK-DSG-BSU6450L | BJ68: @LK-DSP-BSU6450L | BK68: @LK-DSB-BSU6450L | BL68: @LK-DSO-BSU6450L | BM68: @LK-DSY-BSU6450L | BN68: @LK-DST-BSU6450L | BO68: @LK-DTP-BSU6450L | BP68: @LK-DTK-BSU6450L | BQ68: @LK-DWE-BSU6450L
A69: BSU6450R | B69: 600 Belfast Sink Unit (450mm High) RHH | C69: BSU6450R | D69: @LK-FAG-BSU6450R | E69: @LK-FAT-BSU6450R | F69: @LK-FAB-BSU6450R | G69: @LK-FBR-BSU6450R | H69: @LK-FBG-BSU6450R | I69: @LK-FBW-BSU6450R | J69: @LK-FCS-BSU6450R | K69: @LK-FDM-BSU6450R | L69: @LK-FDP-BSU6450R | M69: @LK-FDS-BSU6450R | N69: @LK-FGP-BSU6450R | O69: @LK-FHG-BSU6450R | P69: @LK-FIN-BSU6450R | Q69: @LK-FIV-BSU6450R | R69: @LK-FLR-BSU6450R | S69: @LK-FLG-BSU6450R | T69: @LK-FME-BSU6450R | U69: @LK-FMN-BSU6450R | V69: @LK-FMU-BSU6450R | W69: @LK-FOV-BSU6450R | X69: @LK-FPT-BSU6450R | Y69: @LK-FPE-BSU6450R | Z69: @LK-FPG-BSU6450R | AA69: @LK-FPN-BSU6450R | AB69: @LK-FSG-BSU6450R | AC69: @LK-FSP-BSU6450R | AD69: @LK-FSB-BSU6450R | AE69: @LK-FSO-BSU6450R | AF69: @LK-FSY-BSU6450R | AG69: @LK-FST-BSU6450R | AH69: @LK-FTP-BSU6450R | AI69: @LK-FTK-BSU6450R | AJ69: @LK-FWE-BSU6450R | AK69: @LK-DAG-BSU6450R | AL69: @LK-DAT-BSU6450R | AM69: @LK-DAB-BSU6450R | AN69: @LK-DBR-BSU6450R | AO69: @LK-DBG-BSU6450R | AP69: @LK-DBW-BSU6450R | AQ69: @LK-DCS-BSU6450R | AR69: @LK-DDM-BSU6450R | AS69: @LK-DDR-BSU6450R | AT69: @LK-DDG-BSU6450R | AU69: @LK-DGP-BSU6450R | AV69: @LK-DHG-BSU6450R | AW69: @LK-DIN-BSU6450R | AX69: @LK-DIV-BSU6450R | AY69: @LK-DLR-BSU6450R | AZ69: @LK-DLG-BSU6450R | BA69: @LK-DMW-BSU6450R | BB69: @LK-DMN-BSU6450R | BC69: @LK-DMU-BSU6450R | BD69: @LK-DOV-BSU6450R | BE69: @LK-DPT-BSU6450R | BF69: @LK-DPE-BSU6450R | BG69: @LK-DPG-BSU6450R | BH69: @LK-DPN-BSU6450R | BI69: @LK-DSG-BSU6450R | BJ69: @LK-DSP-BSU6450R | BK69: @LK-DSB-BSU6450R | BL69: @LK-DSO-BSU6450R | BM69: @LK-DSY-BSU6450R | BN69: @LK-DST-BSU6450R | BO69: @LK-DTP-BSU6450R | BP69: @LK-DTK-BSU6450R | BQ69: @LK-DWE-BSU6450R
A70: BSU8495 | B70: 800 Belfast Sink Unit (495mm High) | C70: BSU8495 | D70: @LK-FAG-BSU8495 | E70: @LK-FAT-BSU8495 | F70: @LK-FAB-BSU8495 | G70: @LK-FBR-BSU8495 | H70: @LK-FBG-BSU8495 | I70: @LK-FBW-BSU8495 | J70: @LK-FCS-BSU8495 | K70: @LK-FDM-BSU8495 | L70: @LK-FDP-BSU8495 | M70: @LK-FDS-BSU8495 | N70: @LK-FGP-BSU8495 | O70: @LK-FHG-BSU8495 | P70: @LK-FIN-BSU8495 | Q70: @LK-FIV-BSU8495 | R70: @LK-FLR-BSU8495 | S70: @LK-FLG-BSU8495 | T70: @LK-FME-BSU8495 | U70: @LK-FMN-BSU8495 | V70: @LK-FMU-BSU8495 | W70: @LK-FOV-BSU8495 | X70: @LK-FPT-BSU8495 | Y70: @LK-FPE-BSU8495 | Z70: @LK-FPG-BSU8495 | AA70: @LK-FPN-BSU8495 | AB70: @LK-FSG-BSU8495 | AC70: @LK-FSP-BSU8495 | AD70: @LK-FSB-BSU8495 | AE70: @LK-FSO-BSU8495 | AF70: @LK-FSY-BSU8495 | AG70: @LK-FST-BSU8495 | AH70: @LK-FTP-BSU8495 | AI70: @LK-FTK-BSU8495 | AJ70: @LK-FWE-BSU8495 | AK70: @LK-DAG-BSU8495 | AL70: @LK-DAT-BSU8495 | AM70: @LK-DAB-BSU8495 | AN70: @LK-DBR-BSU8495 | AO70: @LK-DBG-BSU8495 | AP70: @LK-DBW-BSU8495 | AQ70: @LK-DCS-BSU8495 | AR70: @LK-DDM-BSU8495 | AS70: @LK-DDR-BSU8495 | AT70: @LK-DDG-BSU8495 | AU70: @LK-DGP-BSU8495 | AV70: @LK-DHG-BSU8495 | AW70: @LK-DIN-BSU8495 | AX70: @LK-DIV-BSU8495 | AY70: @LK-DLR-BSU8495 | AZ70: @LK-DLG-BSU8495 | BA70: @LK-DMW-BSU8495 | BB70: @LK-DMN-BSU8495 | BC70: @LK-DMU-BSU8495 | BD70: @LK-DOV-BSU8495 | BE70: @LK-DPT-BSU8495 | BF70: @LK-DPE-BSU8495 | BG70: @LK-DPG-BSU8495 | BH70: @LK-DPN-BSU8495 | BI70: @LK-DSG-BSU8495 | BJ70: @LK-DSP-BSU8495 | BK70: @LK-DSB-BSU8495 | BL70: @LK-DSO-BSU8495 | BM70: @LK-DSY-BSU8495 | BN70: @LK-DST-BSU8495 | BO70: @LK-DTP-BSU8495 | BP70: @LK-DTK-BSU8495 | BQ70: @LK-DWE-BSU8495
A71: BDL3L | B71: 300 DL Base Unit LHH | C71: BDL3L | D71: @LK-FAG-BDL3L | E71: @LK-FAT-BDL3L | F71: @LK-FAB-BDL3L | G71: @LK-FBR-BDL3L | H71: @LK-FBG-BDL3L | I71: @LK-FBW-BDL3L | J71: @LK-FCS-BDL3L | K71: @LK-FDM-BDL3L | L71: @LK-FDP-BDL3L | M71: @LK-FDS-BDL3L | N71: @LK-FGP-BDL3L | O71: @LK-FHG-BDL3L | P71: @LK-FIN-BDL3L | Q71: @LK-FIV-BDL3L | R71: @LK-FLR-BDL3L | S71: @LK-FLG-BDL3L | T71: @LK-FME-BDL3L | U71: @LK-FMN-BDL3L | V71: @LK-FMU-BDL3L | W71: @LK-FOV-BDL3L | X71: @LK-FPT-BDL3L | Y71: @LK-FPE-BDL3L | Z71: @LK-FPG-BDL3L | AA71: @LK-FPN-BDL3L | AB71: @LK-FSG-BDL3L | AC71: @LK-FSP-BDL3L | AD71: @LK-FSB-BDL3L | AE71: @LK-FSO-BDL3L | AF71: @LK-FSY-BDL3L | AG71: @LK-FST-BDL3L | AH71: @LK-FTP-BDL3L | AI71: @LK-FTK-BDL3L | AJ71: @LK-FWE-BDL3L | AK71: @LK-DAG-BDL3L | AL71: @LK-DAT-BDL3L | AM71: @LK-DAB-BDL3L | AN71: @LK-DBR-BDL3L | AO71: @LK-DBG-BDL3L | AP71: @LK-DBW-BDL3L | AQ71: @LK-DCS-BDL3L | AR71: @LK-DDM-BDL3L | AS71: @LK-DDR-BDL3L | AT71: @LK-DDG-BDL3L | AU71: @LK-DGP-BDL3L | AV71: @LK-DHG-BDL3L | AW71: @LK-DIN-BDL3L | AX71: @LK-DIV-BDL3L | AY71: @LK-DLR-BDL3L | AZ71: @LK-DLG-BDL3L | BA71: @LK-DMW-BDL3L | BB71: @LK-DMN-BDL3L | BC71: @LK-DMU-BDL3L | BD71: @LK-DOV-BDL3L | BE71: @LK-DPT-BDL3L | BF71: @LK-DPE-BDL3L | BG71: @LK-DPG-BDL3L | BH71: @LK-DPN-BDL3L | BI71: @LK-DSG-BDL3L | BJ71: @LK-DSP-BDL3L | BK71: @LK-DSB-BDL3L | BL71: @LK-DSO-BDL3L | BM71: @LK-DSY-BDL3L | BN71: @LK-DST-BDL3L | BO71: @LK-DTP-BDL3L | BP71: @LK-DTK-BDL3L | BQ71: @LK-DWE-BDL3L
A72: BDL3R | B72: 300 DL Base Unit RHH | C72: BDL3R | D72: @LK-FAG-BDL3R | E72: @LK-FAT-BDL3R | F72: @LK-FAB-BDL3R | G72: @LK-FBR-BDL3R | H72: @LK-FBG-BDL3R | I72: @LK-FBW-BDL3R | J72: @LK-FCS-BDL3R | K72: @LK-FDM-BDL3R | L72: @LK-FDP-BDL3R | M72: @LK-FDS-BDL3R | N72: @LK-FGP-BDL3R | O72: @LK-FHG-BDL3R | P72: @LK-FIN-BDL3R | Q72: @LK-FIV-BDL3R | R72: @LK-FLR-BDL3R | S72: @LK-FLG-BDL3R | T72: @LK-FME-BDL3R | U72: @LK-FMN-BDL3R | V72: @LK-FMU-BDL3R | W72: @LK-FOV-BDL3R | X72: @LK-FPT-BDL3R | Y72: @LK-FPE-BDL3R | Z72: @LK-FPG-BDL3R | AA72: @LK-FPN-BDL3R | AB72: @LK-FSG-BDL3R | AC72: @LK-FSP-BDL3R | AD72: @LK-FSB-BDL3R | AE72: @LK-FSO-BDL3R | AF72: @LK-FSY-BDL3R | AG72: @LK-FST-BDL3R | AH72: @LK-FTP-BDL3R | AI72: @LK-FTK-BDL3R | AJ72: @LK-FWE-BDL3R | AK72: @LK-DAG-BDL3R | AL72: @LK-DAT-BDL3R | AM72: @LK-DAB-BDL3R | AN72: @LK-DBR-BDL3R | AO72: @LK-DBG-BDL3R | AP72: @LK-DBW-BDL3R | AQ72: @LK-DCS-BDL3R | AR72: @LK-DDM-BDL3R | AS72: @LK-DDR-BDL3R | AT72: @LK-DDG-BDL3R | AU72: @LK-DGP-BDL3R | AV72: @LK-DHG-BDL3R | AW72: @LK-DIN-BDL3R | AX72: @LK-DIV-BDL3R | AY72: @LK-DLR-BDL3R | AZ72: @LK-DLG-BDL3R | BA72: @LK-DMW-BDL3R | BB72: @LK-DMN-BDL3R | BC72: @LK-DMU-BDL3R | BD72: @LK-DOV-BDL3R | BE72: @LK-DPT-BDL3R | BF72: @LK-DPE-BDL3R | BG72: @LK-DPG-BDL3R | BH72: @LK-DPN-BDL3R | BI72: @LK-DSG-BDL3R | BJ72: @LK-DSP-BDL3R | BK72: @LK-DSB-BDL3R | BL72: @LK-DSO-BDL3R | BM72: @LK-DSY-BDL3R | BN72: @LK-DST-BDL3R | BO72: @LK-DTP-BDL3R | BP72: @LK-DTK-BDL3R | BQ72: @LK-DWE-BDL3R
A73: BDL4L | B73: 400 DL Base Unit LHH | C73: BDL4L | D73: @LK-FAG-BDL4L | E73: @LK-FAT-BDL4L | F73: @LK-FAB-BDL4L | G73: @LK-FBR-BDL4L | H73: @LK-FBG-BDL4L | I73: @LK-FBW-BDL4L | J73: @LK-FCS-BDL4L | K73: @LK-FDM-BDL4L | L73: @LK-FDP-BDL4L | M73: @LK-FDS-BDL4L | N73: @LK-FGP-BDL4L | O73: @LK-FHG-BDL4L | P73: @LK-FIN-BDL4L | Q73: @LK-FIV-BDL4L | R73: @LK-FLR-BDL4L | S73: @LK-FLG-BDL4L | T73: @LK-FME-BDL4L | U73: @LK-FMN-BDL4L | V73: @LK-FMU-BDL4L | W73: @LK-FOV-BDL4L | X73: @LK-FPT-BDL4L | Y73: @LK-FPE-BDL4L | Z73: @LK-FPG-BDL4L | AA73: @LK-FPN-BDL4L | AB73: @LK-FSG-BDL4L | AC73: @LK-FSP-BDL4L | AD73: @LK-FSB-BDL4L | AE73: @LK-FSO-BDL4L | AF73: @LK-FSY-BDL4L | AG73: @LK-FST-BDL4L | AH73: @LK-FTP-BDL4L | AI73: @LK-FTK-BDL4L | AJ73: @LK-FWE-BDL4L | AK73: @LK-DAG-BDL4L | AL73: @LK-DAT-BDL4L | AM73: @LK-DAB-BDL4L | AN73: @LK-DBR-BDL4L | AO73: @LK-DBG-BDL4L | AP73: @LK-DBW-BDL4L | AQ73: @LK-DCS-BDL4L | AR73: @LK-DDM-BDL4L | AS73: @LK-DDR-BDL4L | AT73: @LK-DDG-BDL4L | AU73: @LK-DGP-BDL4L | AV73: @LK-DHG-BDL4L | AW73: @LK-DIN-BDL4L | AX73: @LK-DIV-BDL4L | AY73: @LK-DLR-BDL4L | AZ73: @LK-DLG-BDL4L | BA73: @LK-DMW-BDL4L | BB73: @LK-DMN-BDL4L | BC73: @LK-DMU-BDL4L | BD73: @LK-DOV-BDL4L | BE73: @LK-DPT-BDL4L | BF73: @LK-DPE-BDL4L | BG73: @LK-DPG-BDL4L | BH73: @LK-DPN-BDL4L | BI73: @LK-DSG-BDL4L | BJ73: @LK-DSP-BDL4L | BK73: @LK-DSB-BDL4L | BL73: @LK-DSO-BDL4L | BM73: @LK-DSY-BDL4L | BN73: @LK-DST-BDL4L | BO73: @LK-DTP-BDL4L | BP73: @LK-DTK-BDL4L | BQ73: @LK-DWE-BDL4L
A74: BDL4R | B74: 400 DL Base Unit RHH | C74: BDL4R | D74: @LK-FAG-BDL4R | E74: @LK-FAT-BDL4R | F74: @LK-FAB-BDL4R | G74: @LK-FBR-BDL4R | H74: @LK-FBG-BDL4R | I74: @LK-FBW-BDL4R | J74: @LK-FCS-BDL4R | K74: @LK-FDM-BDL4R | L74: @LK-FDP-BDL4R | M74: @LK-FDS-BDL4R | N74: @LK-FGP-BDL4R | O74: @LK-FHG-BDL4R | P74: @LK-FIN-BDL4R | Q74: @LK-FIV-BDL4R | R74: @LK-FLR-BDL4R | S74: @LK-FLG-BDL4R | T74: @LK-FME-BDL4R | U74: @LK-FMN-BDL4R | V74: @LK-FMU-BDL4R | W74: @LK-FOV-BDL4R | X74: @LK-FPT-BDL4R | Y74: @LK-FPE-BDL4R | Z74: @LK-FPG-BDL4R | AA74: @LK-FPN-BDL4R | AB74: @LK-FSG-BDL4R | AC74: @LK-FSP-BDL4R | AD74: @LK-FSB-BDL4R | AE74: @LK-FSO-BDL4R | AF74: @LK-FSY-BDL4R | AG74: @LK-FST-BDL4R | AH74: @LK-FTP-BDL4R | AI74: @LK-FTK-BDL4R | AJ74: @LK-FWE-BDL4R | AK74: @LK-DAG-BDL4R | AL74: @LK-DAT-BDL4R | AM74: @LK-DAB-BDL4R | AN74: @LK-DBR-BDL4R | AO74: @LK-DBG-BDL4R | AP74: @LK-DBW-BDL4R | AQ74: @LK-DCS-BDL4R | AR74: @LK-DDM-BDL4R | AS74: @LK-DDR-BDL4R | AT74: @LK-DDG-BDL4R | AU74: @LK-DGP-BDL4R | AV74: @LK-DHG-BDL4R | AW74: @LK-DIN-BDL4R | AX74: @LK-DIV-BDL4R | AY74: @LK-DLR-BDL4R | AZ74: @LK-DLG-BDL4R | BA74: @LK-DMW-BDL4R | BB74: @LK-DMN-BDL4R | BC74: @LK-DMU-BDL4R | BD74: @LK-DOV-BDL4R | BE74: @LK-DPT-BDL4R | BF74: @LK-DPE-BDL4R | BG74: @LK-DPG-BDL4R | BH74: @LK-DPN-BDL4R | BI74: @LK-DSG-BDL4R | BJ74: @LK-DSP-BDL4R | BK74: @LK-DSB-BDL4R | BL74: @LK-DSO-BDL4R | BM74: @LK-DSY-BDL4R | BN74: @LK-DST-BDL4R | BO74: @LK-DTP-BDL4R | BP74: @LK-DTK-BDL4R | BQ74: @LK-DWE-BDL4R
A75: BDL45L | B75: 450 DL Base Unit LHH | C75: BDL45L | D75: Not Available | E75: Not Available | F75: Not Available | G75: Not Available | H75: Not Available | I75: Not Available | J75: Not Available | K75: Not Available | L75: Not Available | M75: Not Available | N75: Not Available | O75: Not Available | P75: Not Available | Q75: Not Available | R75: Not Available | S75: Not Available | T75: Not Available | U75: Not Available | V75: Not Available | W75: Not Available | X75: Not Available | Y75: Not Available | Z75: Not Available | AA75: Not Available | AB75: Not Available | AC75: Not Available | AD75: Not Available | AE75: Not Available | AF75: Not Available | AG75: Not Available | AH75: Not Available | AI75: Not Available | AJ75: Not Available | AK75: @LK-DAG-BDL45L | AL75: @LK-DAT-BDL45L | AM75: @LK-DAB-BDL45L | AN75: @LK-DBR-BDL45L | AO75: @LK-DBG-BDL45L | AP75: @LK-DBW-BDL45L | AQ75: @LK-DCS-BDL45L | AR75: @LK-DDM-BDL45L | AS75: @LK-DDR-BDL45L | AT75: @LK-DDG-BDL45L | AU75: @LK-DGP-BDL45L | AV75: @LK-DHG-BDL45L | AW75: @LK-DIN-BDL45L | AX75: @LK-DIV-BDL45L | AY75: @LK-DLR-BDL45L | AZ75: @LK-DLG-BDL45L | BA75: @LK-DMW-BDL45L | BB75: @LK-DMN-BDL45L | BC75: @LK-DMU-BDL45L | BD75: @LK-DOV-BDL45L | BE75: @LK-DPT-BDL45L | BF75: @LK-DPE-BDL45L | BG75: @LK-DPG-BDL45L | BH75: @LK-DPN-BDL45L | BI75: @LK-DSG-BDL45L | BJ75: @LK-DSP-BDL45L | BK75: @LK-DSB-BDL45L | BL75: @LK-DSO-BDL45L | BM75: @LK-DSY-BDL45L | BN75: @LK-DST-BDL45L | BO75: @LK-DTP-BDL45L | BP75: @LK-DTK-BDL45L | BQ75: @LK-DWE-BDL45L
A76: BDL45R | B76: 450 DL Base Unit RHH | C76: BDL45R | D76: Not Available | E76: Not Available | F76: Not Available | G76: Not Available | H76: Not Available | I76: Not Available | J76: Not Available | K76: Not Available | L76: Not Available | M76: Not Available | N76: Not Available | O76: Not Available | P76: Not Available | Q76: Not Available | R76: Not Available | S76: Not Available | T76: Not Available | U76: Not Available | V76: Not Available | W76: Not Available | X76: Not Available | Y76: Not Available | Z76: Not Available | AA76: Not Available | AB76: Not Available | AC76: Not Available | AD76: Not Available | AE76: Not Available | AF76: Not Available | AG76: Not Available | AH76: Not Available | AI76: Not Available | AJ76: Not Available | AK76: @LK-DAG-BDL45R | AL76: @LK-DAT-BDL45R | AM76: @LK-DAB-BDL45R | AN76: @LK-DBR-BDL45R | AO76: @LK-DBG-BDL45R | AP76: @LK-DBW-BDL45R | AQ76: @LK-DCS-BDL45R | AR76: @LK-DDM-BDL45R | AS76: @LK-DDR-BDL45R | AT76: @LK-DDG-BDL45R | AU76: @LK-DGP-BDL45R | AV76: @LK-DHG-BDL45R | AW76: @LK-DIN-BDL45R | AX76: @LK-DIV-BDL45R | AY76: @LK-DLR-BDL45R | AZ76: @LK-DLG-BDL45R | BA76: @LK-DMW-BDL45R | BB76: @LK-DMN-BDL45R | BC76: @LK-DMU-BDL45R | BD76: @LK-DOV-BDL45R | BE76: @LK-DPT-BDL45R | BF76: @LK-DPE-BDL45R | BG76: @LK-DPG-BDL45R | BH76: @LK-DPN-BDL45R | BI76: @LK-DSG-BDL45R | BJ76: @LK-DSP-BDL45R | BK76: @LK-DSB-BDL45R | BL76: @LK-DSO-BDL45R | BM76: @LK-DSY-BDL45R | BN76: @LK-DST-BDL45R | BO76: @LK-DTP-BDL45R | BP76: @LK-DTK-BDL45R | BQ76: @LK-DWE-BDL45R
A77: BDL5L | B77: 500 DL Base Unit LHH | C77: BDL5L | D77: @LK-FAG-BDL5L | E77: @LK-FAT-BDL5L | F77: @LK-FAB-BDL5L | G77: @LK-FBR-BDL5L | H77: @LK-FBG-BDL5L | I77: @LK-FBW-BDL5L | J77: @LK-FCS-BDL5L | K77: @LK-FDM-BDL5L | L77: @LK-FDP-BDL5L | M77: @LK-FDS-BDL5L | N77: @LK-FGP-BDL5L | O77: @LK-FHG-BDL5L | P77: @LK-FIN-BDL5L | Q77: @LK-FIV-BDL5L | R77: @LK-FLR-BDL5L | S77: @LK-FLG-BDL5L | T77: @LK-FME-BDL5L | U77: @LK-FMN-BDL5L | V77: @LK-FMU-BDL5L | W77: @LK-FOV-BDL5L | X77: @LK-FPT-BDL5L | Y77: @LK-FPE-BDL5L | Z77: @LK-FPG-BDL5L | AA77: @LK-FPN-BDL5L | AB77: @LK-FSG-BDL5L | AC77: @LK-FSP-BDL5L | AD77: @LK-FSB-BDL5L | AE77: @LK-FSO-BDL5L | AF77: @LK-FSY-BDL5L | AG77: @LK-FST-BDL5L | AH77: @LK-FTP-BDL5L | AI77: @LK-FTK-BDL5L | AJ77: @LK-FWE-BDL5L | AK77: @LK-DAG-BDL5L | AL77: @LK-DAT-BDL5L | AM77: @LK-DAB-BDL5L | AN77: @LK-DBR-BDL5L | AO77: @LK-DBG-BDL5L | AP77: @LK-DBW-BDL5L | AQ77: @LK-DCS-BDL5L | AR77: @LK-DDM-BDL5L | AS77: @LK-DDR-BDL5L | AT77: @LK-DDG-BDL5L | AU77: @LK-DGP-BDL5L | AV77: @LK-DHG-BDL5L | AW77: @LK-DIN-BDL5L | AX77: @LK-DIV-BDL5L | AY77: @LK-DLR-BDL5L | AZ77: @LK-DLG-BDL5L | BA77: @LK-DMW-BDL5L | BB77: @LK-DMN-BDL5L | BC77: @LK-DMU-BDL5L | BD77: @LK-DOV-BDL5L | BE77: @LK-DPT-BDL5L | BF77: @LK-DPE-BDL5L | BG77: @LK-DPG-BDL5L | BH77: @LK-DPN-BDL5L | BI77: @LK-DSG-BDL5L | BJ77: @LK-DSP-BDL5L | BK77: @LK-DSB-BDL5L | BL77: @LK-DSO-BDL5L | BM77: @LK-DSY-BDL5L | BN77: @LK-DST-BDL5L | BO77: @LK-DTP-BDL5L | BP77: @LK-DTK-BDL5L | BQ77: @LK-DWE-BDL5L
A78: BDL5R | B78: 500 DL Base Unit RHH | C78: BDL5R | D78: @LK-FAG-BDL5R | E78: @LK-FAT-BDL5R | F78: @LK-FAB-BDL5R | G78: @LK-FBR-BDL5R | H78: @LK-FBG-BDL5R | I78: @LK-FBW-BDL5R | J78: @LK-FCS-BDL5R | K78: @LK-FDM-BDL5R | L78: @LK-FDP-BDL5R | M78: @LK-FDS-BDL5R | N78: @LK-FGP-BDL5R | O78: @LK-FHG-BDL5R | P78: @LK-FIN-BDL5R | Q78: @LK-FIV-BDL5R | R78: @LK-FLR-BDL5R | S78: @LK-FLG-BDL5R | T78: @LK-FME-BDL5R | U78: @LK-FMN-BDL5R | V78: @LK-FMU-BDL5R | W78: @LK-FOV-BDL5R | X78: @LK-FPT-BDL5R | Y78: @LK-FPE-BDL5R | Z78: @LK-FPG-BDL5R | AA78: @LK-FPN-BDL5R | AB78: @LK-FSG-BDL5R | AC78: @LK-FSP-BDL5R | AD78: @LK-FSB-BDL5R | AE78: @LK-FSO-BDL5R | AF78: @LK-FSY-BDL5R | AG78: @LK-FST-BDL5R | AH78: @LK-FTP-BDL5R | AI78: @LK-FTK-BDL5R | AJ78: @LK-FWE-BDL5R | AK78: @LK-DAG-BDL5R | AL78: @LK-DAT-BDL5R | AM78: @LK-DAB-BDL5R | AN78: @LK-DBR-BDL5R | AO78: @LK-DBG-BDL5R | AP78: @LK-DBW-BDL5R | AQ78: @LK-DCS-BDL5R | AR78: @LK-DDM-BDL5R | AS78: @LK-DDR-BDL5R | AT78: @LK-DDG-BDL5R | AU78: @LK-DGP-BDL5R | AV78: @LK-DHG-BDL5R | AW78: @LK-DIN-BDL5R | AX78: @LK-DIV-BDL5R | AY78: @LK-DLR-BDL5R | AZ78: @LK-DLG-BDL5R | BA78: @LK-DMW-BDL5R | BB78: @LK-DMN-BDL5R | BC78: @LK-DMU-BDL5R | BD78: @LK-DOV-BDL5R | BE78: @LK-DPT-BDL5R | BF78: @LK-DPE-BDL5R | BG78: @LK-DPG-BDL5R | BH78: @LK-DPN-BDL5R | BI78: @LK-DSG-BDL5R | BJ78: @LK-DSP-BDL5R | BK78: @LK-DSB-BDL5R | BL78: @LK-DSO-BDL5R | BM78: @LK-DSY-BDL5R | BN78: @LK-DST-BDL5R | BO78: @LK-DTP-BDL5R | BP78: @LK-DTK-BDL5R | BQ78: @LK-DWE-BDL5R
A79: BDL6L | B79: 600 DL Base Unit LHH | C79: BDL6L | D79: @LK-FAG-BDL6L | E79: @LK-FAT-BDL6L | F79: @LK-FAB-BDL6L | G79: @LK-FBR-BDL6L | H79: @LK-FBG-BDL6L | I79: @LK-FBW-BDL6L | J79: @LK-FCS-BDL6L | K79: @LK-FDM-BDL6L | L79: @LK-FDP-BDL6L | M79: @LK-FDS-BDL6L | N79: @LK-FGP-BDL6L | O79: @LK-FHG-BDL6L | P79: @LK-FIN-BDL6L | Q79: @LK-FIV-BDL6L | R79: @LK-FLR-BDL6L | S79: @LK-FLG-BDL6L | T79: @LK-FME-BDL6L | U79: @LK-FMN-BDL6L | V79: @LK-FMU-BDL6L | W79: @LK-FOV-BDL6L | X79: @LK-FPT-BDL6L | Y79: @LK-FPE-BDL6L | Z79: @LK-FPG-BDL6L | AA79: @LK-FPN-BDL6L | AB79: @LK-FSG-BDL6L | AC79: @LK-FSP-BDL6L | AD79: @LK-FSB-BDL6L | AE79: @LK-FSO-BDL6L | AF79: @LK-FSY-BDL6L | AG79: @LK-FST-BDL6L | AH79: @LK-FTP-BDL6L | AI79: @LK-FTK-BDL6L | AJ79: @LK-FWE-BDL6L | AK79: @LK-DAG-BDL6L | AL79: @LK-DAT-BDL6L | AM79: @LK-DAB-BDL6L | AN79: @LK-DBR-BDL6L | AO79: @LK-DBG-BDL6L | AP79: @LK-DBW-BDL6L | AQ79: @LK-DCS-BDL6L | AR79: @LK-DDM-BDL6L | AS79: @LK-DDR-BDL6L | AT79: @LK-DDG-BDL6L | AU79: @LK-DGP-BDL6L | AV79: @LK-DHG-BDL6L | AW79: @LK-DIN-BDL6L | AX79: @LK-DIV-BDL6L | AY79: @LK-DLR-BDL6L | AZ79: @LK-DLG-BDL6L | BA79: @LK-DMW-BDL6L | BB79: @LK-DMN-BDL6L | BC79: @LK-DMU-BDL6L | BD79: @LK-DOV-BDL6L | BE79: @LK-DPT-BDL6L | BF79: @LK-DPE-BDL6L | BG79: @LK-DPG-BDL6L | BH79: @LK-DPN-BDL6L | BI79: @LK-DSG-BDL6L | BJ79: @LK-DSP-BDL6L | BK79: @LK-DSB-BDL6L | BL79: @LK-DSO-BDL6L | BM79: @LK-DSY-BDL6L | BN79: @LK-DST-BDL6L | BO79: @LK-DTP-BDL6L | BP79: @LK-DTK-BDL6L | BQ79: @LK-DWE-BDL6L
A80: BDL6R | B80: 600 DL Base Unit RHH | C80: BDL6R | D80: @LK-FAG-BDL6R | E80: @LK-FAT-BDL6R | F80: @LK-FAB-BDL6R | G80: @LK-FBR-BDL6R | H80: @LK-FBG-BDL6R | I80: @LK-FBW-BDL6R | J80: @LK-FCS-BDL6R | K80: @LK-FDM-BDL6R | L80: @LK-FDP-BDL6R | M80: @LK-FDS-BDL6R | N80: @LK-FGP-BDL6R | O80: @LK-FHG-BDL6R | P80: @LK-FIN-BDL6R | Q80: @LK-FIV-BDL6R | R80: @LK-FLR-BDL6R | S80: @LK-FLG-BDL6R | T80: @LK-FME-BDL6R | U80: @LK-FMN-BDL6R | V80: @LK-FMU-BDL6R | W80: @LK-FOV-BDL6R | X80: @LK-FPT-BDL6R | Y80: @LK-FPE-BDL6R | Z80: @LK-FPG-BDL6R | AA80: @LK-FPN-BDL6R | AB80: @LK-FSG-BDL6R | AC80: @LK-FSP-BDL6R | AD80: @LK-FSB-BDL6R | AE80: @LK-FSO-BDL6R | AF80: @LK-FSY-BDL6R | AG80: @LK-FST-BDL6R | AH80: @LK-FTP-BDL6R | AI80: @LK-FTK-BDL6R | AJ80: @LK-FWE-BDL6R | AK80: @LK-DAG-BDL6R | AL80: @LK-DAT-BDL6R | AM80: @LK-DAB-BDL6R | AN80: @LK-DBR-BDL6R | AO80: @LK-DBG-BDL6R | AP80: @LK-DBW-BDL6R | AQ80: @LK-DCS-BDL6R | AR80: @LK-DDM-BDL6R | AS80: @LK-DDR-BDL6R | AT80: @LK-DDG-BDL6R | AU80: @LK-DGP-BDL6R | AV80: @LK-DHG-BDL6R | AW80: @LK-DIN-BDL6R | AX80: @LK-DIV-BDL6R | AY80: @LK-DLR-BDL6R | AZ80: @LK-DLG-BDL6R | BA80: @LK-DMW-BDL6R | BB80: @LK-DMN-BDL6R | BC80: @LK-DMU-BDL6R | BD80: @LK-DOV-BDL6R | BE80: @LK-DPT-BDL6R | BF80: @LK-DPE-BDL6R | BG80: @LK-DPG-BDL6R | BH80: @LK-DPN-BDL6R | BI80: @LK-DSG-BDL6R | BJ80: @LK-DSP-BDL6R | BK80: @LK-DSB-BDL6R | BL80: @LK-DSO-BDL6R | BM80: @LK-DSY-BDL6R | BN80: @LK-DST-BDL6R | BO80: @LK-DTP-BDL6R | BP80: @LK-DTK-BDL6R | BQ80: @LK-DWE-BDL6R
A81: BDL8 | B81: 800 DL Base Unit | C81: BDL8 | D81: @LK-FAG-BDL8 | E81: @LK-FAT-BDL8 | F81: @LK-FAB-BDL8 | G81: @LK-FBR-BDL8 | H81: @LK-FBG-BDL8 | I81: @LK-FBW-BDL8 | J81: @LK-FCS-BDL8 | K81: @LK-FDM-BDL8 | L81: @LK-FDP-BDL8 | M81: @LK-FDS-BDL8 | N81: @LK-FGP-BDL8 | O81: @LK-FHG-BDL8 | P81: @LK-FIN-BDL8 | Q81: @LK-FIV-BDL8 | R81: @LK-FLR-BDL8 | S81: @LK-FLG-BDL8 | T81: @LK-FME-BDL8 | U81: @LK-FMN-BDL8 | V81: @LK-FMU-BDL8 | W81: @LK-FOV-BDL8 | X81: @LK-FPT-BDL8 | Y81: @LK-FPE-BDL8 | Z81: @LK-FPG-BDL8 | AA81: @LK-FPN-BDL8 | AB81: @LK-FSG-BDL8 | AC81: @LK-FSP-BDL8 | AD81: @LK-FSB-BDL8 | AE81: @LK-FSO-BDL8 | AF81: @LK-FSY-BDL8 | AG81: @LK-FST-BDL8 | AH81: @LK-FTP-BDL8 | AI81: @LK-FTK-BDL8 | AJ81: @LK-FWE-BDL8 | AK81: Not Available | AL81: Not Available | AM81: Not Available | AN81: Not Available | AO81: Not Available | AP81: Not Available | AQ81: Not Available | AR81: Not Available | AS81: Not Available | AT81: Not Available | AU81: Not Available | AV81: Not Available | AW81: Not Available | AX81: Not Available | AY81: Not Available | AZ81: Not Available | BA81: Not Available | BB81: Not Available | BC81: Not Available | BD81: Not Available | BE81: Not Available | BF81: Not Available | BG81: Not Available | BH81: Not Available | BI81: Not Available | BJ81: Not Available | BK81: Not Available | BL81: Not Available | BM81: Not Available | BN81: Not Available | BO81: Not Available | BP81: Not Available | BQ81: Not Available
A82: BDL10 | B82: 1000 DL Base Unit | C82: BDL10 | D82: @LK-FAG-BDL10 | E82: @LK-FAT-BDL10 | F82: @LK-FAB-BDL10 | G82: @LK-FBR-BDL10 | H82: @LK-FBG-BDL10 | I82: @LK-FBW-BDL10 | J82: @LK-FCS-BDL10 | K82: @LK-FDM-BDL10 | L82: @LK-FDP-BDL10 | M82: @LK-FDS-BDL10 | N82: @LK-FGP-BDL10 | O82: @LK-FHG-BDL10 | P82: @LK-FIN-BDL10 | Q82: @LK-FIV-BDL10 | R82: @LK-FLR-BDL10 | S82: @LK-FLG-BDL10 | T82: @LK-FME-BDL10 | U82: @LK-FMN-BDL10 | V82: @LK-FMU-BDL10 | W82: @LK-FOV-BDL10 | X82: @LK-FPT-BDL10 | Y82: @LK-FPE-BDL10 | Z82: @LK-FPG-BDL10 | AA82: @LK-FPN-BDL10 | AB82: @LK-FSG-BDL10 | AC82: @LK-FSP-BDL10 | AD82: @LK-FSB-BDL10 | AE82: @LK-FSO-BDL10 | AF82: @LK-FSY-BDL10 | AG82: @LK-FST-BDL10 | AH82: @LK-FTP-BDL10 | AI82: @LK-FTK-BDL10 | AJ82: @LK-FWE-BDL10 | AK82: Not Available | AL82: Not Available | AM82: Not Available | AN82: Not Available | AO82: Not Available | AP82: Not Available | AQ82: Not Available | AR82: Not Available | AS82: Not Available | AT82: Not Available | AU82: Not Available | AV82: Not Available | AW82: Not Available | AX82: Not Available | AY82: Not Available | AZ82: Not Available | BA82: Not Available | BB82: Not Available | BC82: Not Available | BD82: Not Available | BE82: Not Available | BF82: Not Available | BG82: Not Available | BH82: Not Available | BI82: Not Available | BJ82: Not Available | BK82: Not Available | BL82: Not Available | BM82: Not Available | BN82: Not Available | BO82: Not Available | BP82: Not Available | BQ82: Not Available
A83: BDL81DW | B83: 800 DL Base Unit 1 Drawer 2 Doors | C83: BDL81DW | D83: @LK-FAG-BDL81DW | E83: @LK-FAT-BDL81DW | F83: @LK-FAB-BDL81DW | G83: @LK-FBR-BDL81DW | H83: @LK-FBG-BDL81DW | I83: @LK-FBW-BDL81DW | J83: @LK-FCS-BDL81DW | K83: @LK-FDM-BDL81DW | L83: @LK-FDP-BDL81DW | M83: @LK-FDS-BDL81DW | N83: @LK-FGP-BDL81DW | O83: @LK-FHG-BDL81DW | P83: @LK-FIN-BDL81DW | Q83: @LK-FIV-BDL81DW | R83: @LK-FLR-BDL81DW | S83: @LK-FLG-BDL81DW | T83: @LK-FME-BDL81DW | U83: @LK-FMN-BDL81DW | V83: @LK-FMU-BDL81DW | W83: @LK-FOV-BDL81DW | X83: @LK-FPT-BDL81DW | Y83: @LK-FPE-BDL81DW | Z83: @LK-FPG-BDL81DW | AA83: @LK-FPN-BDL81DW | AB83: @LK-FSG-BDL81DW | AC83: @LK-FSP-BDL81DW | AD83: @LK-FSB-BDL81DW | AE83: @LK-FSO-BDL81DW | AF83: @LK-FSY-BDL81DW | AG83: @LK-FST-BDL81DW | AH83: @LK-FTP-BDL81DW | AI83: @LK-FTK-BDL81DW | AJ83: @LK-FWE-BDL81DW | AK83: @LK-DAG-BDL81DW | AL83: @LK-DAT-BDL81DW | AM83: @LK-DAB-BDL81DW | AN83: @LK-DBR-BDL81DW | AO83: @LK-DBG-BDL81DW | AP83: @LK-DBW-BDL81DW | AQ83: @LK-DCS-BDL81DW | AR83: @LK-DDM-BDL81DW | AS83: @LK-DDR-BDL81DW | AT83: @LK-DDG-BDL81DW | AU83: @LK-DGP-BDL81DW | AV83: @LK-DHG-BDL81DW | AW83: @LK-DIN-BDL81DW | AX83: @LK-DIV-BDL81DW | AY83: @LK-DLR-BDL81DW | AZ83: @LK-DLG-BDL81DW | BA83: @LK-DMW-BDL81DW | BB83: @LK-DMN-BDL81DW | BC83: @LK-DMU-BDL81DW | BD83: @LK-DOV-BDL81DW | BE83: @LK-DPT-BDL81DW | BF83: @LK-DPE-BDL81DW | BG83: @LK-DPG-BDL81DW | BH83: @LK-DPN-BDL81DW | BI83: @LK-DSG-BDL81DW | BJ83: @LK-DSP-BDL81DW | BK83: @LK-DSB-BDL81DW | BL83: @LK-DSO-BDL81DW | BM83: @LK-DSY-BDL81DW | BN83: @LK-DST-BDL81DW | BO83: @LK-DTP-BDL81DW | BP83: @LK-DTK-BDL81DW | BQ83: @LK-DWE-BDL81DW
A84: BDL91DW | B84: 900 DL Base Unit 1 Drawer 2 Doors | C84: BDL91DW | D84: @LK-FAG-BDL91DW | E84: @LK-FAT-BDL91DW | F84: @LK-FAB-BDL91DW | G84: @LK-FBR-BDL91DW | H84: @LK-FBG-BDL91DW | I84: @LK-FBW-BDL91DW | J84: @LK-FCS-BDL91DW | K84: @LK-FDM-BDL91DW | L84: @LK-FDP-BDL91DW | M84: @LK-FDS-BDL91DW | N84: @LK-FGP-BDL91DW | O84: @LK-FHG-BDL91DW | P84: @LK-FIN-BDL91DW | Q84: @LK-FIV-BDL91DW | R84: @LK-FLR-BDL91DW | S84: @LK-FLG-BDL91DW | T84: @LK-FME-BDL91DW | U84: @LK-FMN-BDL91DW | V84: @LK-FMU-BDL91DW | W84: @LK-FOV-BDL91DW | X84: @LK-FPT-BDL91DW | Y84: @LK-FPE-BDL91DW | Z84: @LK-FPG-BDL91DW | AA84: @LK-FPN-BDL91DW | AB84: @LK-FSG-BDL91DW | AC84: @LK-FSP-BDL91DW | AD84: @LK-FSB-BDL91DW | AE84: @LK-FSO-BDL91DW | AF84: @LK-FSY-BDL91DW | AG84: @LK-FST-BDL91DW | AH84: @LK-FTP-BDL91DW | AI84: @LK-FTK-BDL91DW | AJ84: @LK-FWE-BDL91DW | AK84: @LK-DAG-BDL91DW | AL84: @LK-DAT-BDL91DW | AM84: @LK-DAB-BDL91DW | AN84: @LK-DBR-BDL91DW | AO84: @LK-DBG-BDL91DW | AP84: @LK-DBW-BDL91DW | AQ84: @LK-DCS-BDL91DW | AR84: @LK-DDM-BDL91DW | AS84: @LK-DDR-BDL91DW | AT84: @LK-DDG-BDL91DW | AU84: @LK-DGP-BDL91DW | AV84: @LK-DHG-BDL91DW | AW84: @LK-DIN-BDL91DW | AX84: @LK-DIV-BDL91DW | AY84: @LK-DLR-BDL91DW | AZ84: @LK-DLG-BDL91DW | BA84: @LK-DMW-BDL91DW | BB84: @LK-DMN-BDL91DW | BC84: @LK-DMU-BDL91DW | BD84: @LK-DOV-BDL91DW | BE84: @LK-DPT-BDL91DW | BF84: @LK-DPE-BDL91DW | BG84: @LK-DPG-BDL91DW | BH84: @LK-DPN-BDL91DW | BI84: @LK-DSG-BDL91DW | BJ84: @LK-DSP-BDL91DW | BK84: @LK-DSB-BDL91DW | BL84: @LK-DSO-BDL91DW | BM84: @LK-DSY-BDL91DW | BN84: @LK-DST-BDL91DW | BO84: @LK-DTP-BDL91DW | BP84: @LK-DTK-BDL91DW | BQ84: @LK-DWE-BDL91DW
A85: BDL101DW | B85: 1000 DL Base Unit 1 Drawer 2 Doors | C85: BDL101DW | D85: @LK-FAG-BDL101DW | E85: @LK-FAT-BDL101DW | F85: @LK-FAB-BDL101DW | G85: @LK-FBR-BDL101DW | H85: @LK-FBG-BDL101DW | I85: @LK-FBW-BDL101DW | J85: @LK-FCS-BDL101DW | K85: @LK-FDM-BDL101DW | L85: @LK-FDP-BDL101DW | M85: @LK-FDS-BDL101DW | N85: @LK-FGP-BDL101DW | O85: @LK-FHG-BDL101DW | P85: @LK-FIN-BDL101DW | Q85: @LK-FIV-BDL101DW | R85: @LK-FLR-BDL101DW | S85: @LK-FLG-BDL101DW | T85: @LK-FME-BDL101DW | U85: @LK-FMN-BDL101DW | V85: @LK-FMU-BDL101DW | W85: @LK-FOV-BDL101DW | X85: @LK-FPT-BDL101DW | Y85: @LK-FPE-BDL101DW | Z85: @LK-FPG-BDL101DW | AA85: @LK-FPN-BDL101DW | AB85: @LK-FSG-BDL101DW | AC85: @LK-FSP-BDL101DW | AD85: @LK-FSB-BDL101DW | AE85: @LK-FSO-BDL101DW | AF85: @LK-FSY-BDL101DW | AG85: @LK-FST-BDL101DW | AH85: @LK-FTP-BDL101DW | AI85: @LK-FTK-BDL101DW | AJ85: @LK-FWE-BDL101DW | AK85: @LK-DAG-BDL101DW | AL85: @LK-DAT-BDL101DW | AM85: @LK-DAB-BDL101DW | AN85: @LK-DBR-BDL101DW | AO85: @LK-DBG-BDL101DW | AP85: @LK-DBW-BDL101DW | AQ85: @LK-DCS-BDL101DW | AR85: @LK-DDM-BDL101DW | AS85: @LK-DDR-BDL101DW | AT85: @LK-DDG-BDL101DW | AU85: @LK-DGP-BDL101DW | AV85: @LK-DHG-BDL101DW | AW85: @LK-DIN-BDL101DW | AX85: @LK-DIV-BDL101DW | AY85: @LK-DLR-BDL101DW | AZ85: @LK-DLG-BDL101DW | BA85: @LK-DMW-BDL101DW | BB85: @LK-DMN-BDL101DW | BC85: @LK-DMU-BDL101DW | BD85: @LK-DOV-BDL101DW | BE85: @LK-DPT-BDL101DW | BF85: @LK-DPE-BDL101DW | BG85: @LK-DPG-BDL101DW | BH85: @LK-DPN-BDL101DW | BI85: @LK-DSG-BDL101DW | BJ85: @LK-DSP-BDL101DW | BK85: @LK-DSB-BDL101DW | BL85: @LK-DSO-BDL101DW | BM85: @LK-DSY-BDL101DW | BN85: @LK-DST-BDL101DW | BO85: @LK-DTP-BDL101DW | BP85: @LK-DTK-BDL101DW | BQ85: @LK-DWE-BDL101DW
A86: BDLC83L | B86: 800 DL Cnr Base (300 Door) LHH | C86: BDLC83L | D86: @LK-FAG-BDLC83L | E86: @LK-FAT-BDLC83L | F86: @LK-FAB-BDLC83L | G86: @LK-FBR-BDLC83L | H86: @LK-FBG-BDLC83L | I86: @LK-FBW-BDLC83L | J86: @LK-FCS-BDLC83L | K86: @LK-FDM-BDLC83L | L86: @LK-FDP-BDLC83L | M86: @LK-FDS-BDLC83L | N86: @LK-FGP-BDLC83L | O86: @LK-FHG-BDLC83L | P86: @LK-FIN-BDLC83L | Q86: @LK-FIV-BDLC83L | R86: @LK-FLR-BDLC83L | S86: @LK-FLG-BDLC83L | T86: @LK-FME-BDLC83L | U86: @LK-FMN-BDLC83L | V86: @LK-FMU-BDLC83L | W86: @LK-FOV-BDLC83L | X86: @LK-FPT-BDLC83L | Y86: @LK-FPE-BDLC83L | Z86: @LK-FPG-BDLC83L | AA86: @LK-FPN-BDLC83L | AB86: @LK-FSG-BDLC83L | AC86: @LK-FSP-BDLC83L | AD86: @LK-FSB-BDLC83L | AE86: @LK-FSO-BDLC83L | AF86: @LK-FSY-BDLC83L | AG86: @LK-FST-BDLC83L | AH86: @LK-FTP-BDLC83L | AI86: @LK-FTK-BDLC83L | AJ86: @LK-FWE-BDLC83L | AK86: Not Available | AL86: Not Available | AM86: Not Available | AN86: Not Available | AO86: Not Available | AP86: Not Available | AQ86: Not Available | AR86: Not Available | AS86: Not Available | AT86: Not Available | AU86: Not Available | AV86: Not Available | AW86: Not Available | AX86: Not Available | AY86: Not Available | AZ86: Not Available | BA86: Not Available | BB86: Not Available | BC86: Not Available | BD86: Not Available | BE86: Not Available | BF86: Not Available | BG86: Not Available | BH86: Not Available | BI86: Not Available | BJ86: Not Available | BK86: Not Available | BL86: Not Available | BM86: Not Available | BN86: Not Available | BO86: Not Available | BP86: Not Available | BQ86: Not Available
A87: BDLC83R | B87: 800 DL Cnr Base (300 Door) RHH | C87: BDLC83R | D87: @LK-FAG-BDLC83R | E87: @LK-FAT-BDLC83R | F87: @LK-FAB-BDLC83R | G87: @LK-FBR-BDLC83R | H87: @LK-FBG-BDLC83R | I87: @LK-FBW-BDLC83R | J87: @LK-FCS-BDLC83R | K87: @LK-FDM-BDLC83R | L87: @LK-FDP-BDLC83R | M87: @LK-FDS-BDLC83R | N87: @LK-FGP-BDLC83R | O87: @LK-FHG-BDLC83R | P87: @LK-FIN-BDLC83R | Q87: @LK-FIV-BDLC83R | R87: @LK-FLR-BDLC83R | S87: @LK-FLG-BDLC83R | T87: @LK-FME-BDLC83R | U87: @LK-FMN-BDLC83R | V87: @LK-FMU-BDLC83R | W87: @LK-FOV-BDLC83R | X87: @LK-FPT-BDLC83R | Y87: @LK-FPE-BDLC83R | Z87: @LK-FPG-BDLC83R | AA87: @LK-FPN-BDLC83R | AB87: @LK-FSG-BDLC83R | AC87: @LK-FSP-BDLC83R | AD87: @LK-FSB-BDLC83R | AE87: @LK-FSO-BDLC83R | AF87: @LK-FSY-BDLC83R | AG87: @LK-FST-BDLC83R | AH87: @LK-FTP-BDLC83R | AI87: @LK-FTK-BDLC83R | AJ87: @LK-FWE-BDLC83R | AK87: Not Available | AL87: Not Available | AM87: Not Available | AN87: Not Available | AO87: Not Available | AP87: Not Available | AQ87: Not Available | AR87: Not Available | AS87: Not Available | AT87: Not Available | AU87: Not Available | AV87: Not Available | AW87: Not Available | AX87: Not Available | AY87: Not Available | AZ87: Not Available | BA87: Not Available | BB87: Not Available | BC87: Not Available | BD87: Not Available | BE87: Not Available | BF87: Not Available | BG87: Not Available | BH87: Not Available | BI87: Not Available | BJ87: Not Available | BK87: Not Available | BL87: Not Available | BM87: Not Available | BN87: Not Available | BO87: Not Available | BP87: Not Available | BQ87: Not Available
A88: BDLC84L | B88: 800 DL Cnr Base (400 Door) LHH | C88: BDLC84L | D88: @LK-FAG-BDLC84L | E88: @LK-FAT-BDLC84L | F88: @LK-FAB-BDLC84L | G88: @LK-FBR-BDLC84L | H88: @LK-FBG-BDLC84L | I88: @LK-FBW-BDLC84L | J88: @LK-FCS-BDLC84L | K88: @LK-FDM-BDLC84L | L88: @LK-FDP-BDLC84L | M88: @LK-FDS-BDLC84L | N88: @LK-FGP-BDLC84L | O88: @LK-FHG-BDLC84L | P88: @LK-FIN-BDLC84L | Q88: @LK-FIV-BDLC84L | R88: @LK-FLR-BDLC84L | S88: @LK-FLG-BDLC84L | T88: @LK-FME-BDLC84L | U88: @LK-FMN-BDLC84L | V88: @LK-FMU-BDLC84L | W88: @LK-FOV-BDLC84L | X88: @LK-FPT-BDLC84L | Y88: @LK-FPE-BDLC84L | Z88: @LK-FPG-BDLC84L | AA88: @LK-FPN-BDLC84L | AB88: @LK-FSG-BDLC84L | AC88: @LK-FSP-BDLC84L | AD88: @LK-FSB-BDLC84L | AE88: @LK-FSO-BDLC84L | AF88: @LK-FSY-BDLC84L | AG88: @LK-FST-BDLC84L | AH88: @LK-FTP-BDLC84L | AI88: @LK-FTK-BDLC84L | AJ88: @LK-FWE-BDLC84L | AK88: Not Available | AL88: Not Available | AM88: Not Available | AN88: Not Available | AO88: Not Available | AP88: Not Available | AQ88: Not Available | AR88: Not Available | AS88: Not Available | AT88: Not Available | AU88: Not Available | AV88: Not Available | AW88: Not Available | AX88: Not Available | AY88: Not Available | AZ88: Not Available | BA88: Not Available | BB88: Not Available | BC88: Not Available | BD88: Not Available | BE88: Not Available | BF88: Not Available | BG88: Not Available | BH88: Not Available | BI88: Not Available | BJ88: Not Available | BK88: Not Available | BL88: Not Available | BM88: Not Available | BN88: Not Available | BO88: Not Available | BP88: Not Available | BQ88: Not Available
A89: BDLC84R | B89: 800 DL Cnr Base (400 Door) RHH | C89: BDLC84R | D89: @LK-FAG-BDLC84R | E89: @LK-FAT-BDLC84R | F89: @LK-FAB-BDLC84R | G89: @LK-FBR-BDLC84R | H89: @LK-FBG-BDLC84R | I89: @LK-FBW-BDLC84R | J89: @LK-FCS-BDLC84R | K89: @LK-FDM-BDLC84R | L89: @LK-FDP-BDLC84R | M89: @LK-FDS-BDLC84R | N89: @LK-FGP-BDLC84R | O89: @LK-FHG-BDLC84R | P89: @LK-FIN-BDLC84R | Q89: @LK-FIV-BDLC84R | R89: @LK-FLR-BDLC84R | S89: @LK-FLG-BDLC84R | T89: @LK-FME-BDLC84R | U89: @LK-FMN-BDLC84R | V89: @LK-FMU-BDLC84R | W89: @LK-FOV-BDLC84R | X89: @LK-FPT-BDLC84R | Y89: @LK-FPE-BDLC84R | Z89: @LK-FPG-BDLC84R | AA89: @LK-FPN-BDLC84R | AB89: @LK-FSG-BDLC84R | AC89: @LK-FSP-BDLC84R | AD89: @LK-FSB-BDLC84R | AE89: @LK-FSO-BDLC84R | AF89: @LK-FSY-BDLC84R | AG89: @LK-FST-BDLC84R | AH89: @LK-FTP-BDLC84R | AI89: @LK-FTK-BDLC84R | AJ89: @LK-FWE-BDLC84R | AK89: Not Available | AL89: Not Available | AM89: Not Available | AN89: Not Available | AO89: Not Available | AP89: Not Available | AQ89: Not Available | AR89: Not Available | AS89: Not Available | AT89: Not Available | AU89: Not Available | AV89: Not Available | AW89: Not Available | AX89: Not Available | AY89: Not Available | AZ89: Not Available | BA89: Not Available | BB89: Not Available | BC89: Not Available | BD89: Not Available | BE89: Not Available | BF89: Not Available | BG89: Not Available | BH89: Not Available | BI89: Not Available | BJ89: Not Available | BK89: Not Available | BL89: Not Available | BM89: Not Available | BN89: Not Available | BO89: Not Available | BP89: Not Available | BQ89: Not Available
A90: BDLC85L | B90: 800 DL Cnr Base (500 Door) LHH | C90: BDLC85L | D90: @LK-FAG-BDLC85L | E90: @LK-FAT-BDLC85L | F90: @LK-FAB-BDLC85L | G90: @LK-FBR-BDLC85L | H90: @LK-FBG-BDLC85L | I90: @LK-FBW-BDLC85L | J90: @LK-FCS-BDLC85L | K90: @LK-FDM-BDLC85L | L90: @LK-FDP-BDLC85L | M90: @LK-FDS-BDLC85L | N90: @LK-FGP-BDLC85L | O90: @LK-FHG-BDLC85L | P90: @LK-FIN-BDLC85L | Q90: @LK-FIV-BDLC85L | R90: @LK-FLR-BDLC85L | S90: @LK-FLG-BDLC85L | T90: @LK-FME-BDLC85L | U90: @LK-FMN-BDLC85L | V90: @LK-FMU-BDLC85L | W90: @LK-FOV-BDLC85L | X90: @LK-FPT-BDLC85L | Y90: @LK-FPE-BDLC85L | Z90: @LK-FPG-BDLC85L | AA90: @LK-FPN-BDLC85L | AB90: @LK-FSG-BDLC85L | AC90: @LK-FSP-BDLC85L | AD90: @LK-FSB-BDLC85L | AE90: @LK-FSO-BDLC85L | AF90: @LK-FSY-BDLC85L | AG90: @LK-FST-BDLC85L | AH90: @LK-FTP-BDLC85L | AI90: @LK-FTK-BDLC85L | AJ90: @LK-FWE-BDLC85L | AK90: Not Available | AL90: Not Available | AM90: Not Available | AN90: Not Available | AO90: Not Available | AP90: Not Available | AQ90: Not Available | AR90: Not Available | AS90: Not Available | AT90: Not Available | AU90: Not Available | AV90: Not Available | AW90: Not Available | AX90: Not Available | AY90: Not Available | AZ90: Not Available | BA90: Not Available | BB90: Not Available | BC90: Not Available | BD90: Not Available | BE90: Not Available | BF90: Not Available | BG90: Not Available | BH90: Not Available | BI90: Not Available | BJ90: Not Available | BK90: Not Available | BL90: Not Available | BM90: Not Available | BN90: Not Available | BO90: Not Available | BP90: Not Available | BQ90: Not Available
A91: BDLC85R | B91: 800 DL Cnr Base (500 Door) RHH | C91: BDLC85R | D91: @LK-FAG-BDLC85R | E91: @LK-FAT-BDLC85R | F91: @LK-FAB-BDLC85R | G91: @LK-FBR-BDLC85R | H91: @LK-FBG-BDLC85R | I91: @LK-FBW-BDLC85R | J91: @LK-FCS-BDLC85R | K91: @LK-FDM-BDLC85R | L91: @LK-FDP-BDLC85R | M91: @LK-FDS-BDLC85R | N91: @LK-FGP-BDLC85R | O91: @LK-FHG-BDLC85R | P91: @LK-FIN-BDLC85R | Q91: @LK-FIV-BDLC85R | R91: @LK-FLR-BDLC85R | S91: @LK-FLG-BDLC85R | T91: @LK-FME-BDLC85R | U91: @LK-FMN-BDLC85R | V91: @LK-FMU-BDLC85R | W91: @LK-FOV-BDLC85R | X91: @LK-FPT-BDLC85R | Y91: @LK-FPE-BDLC85R | Z91: @LK-FPG-BDLC85R | AA91: @LK-FPN-BDLC85R | AB91: @LK-FSG-BDLC85R | AC91: @LK-FSP-BDLC85R | AD91: @LK-FSB-BDLC85R | AE91: @LK-FSO-BDLC85R | AF91: @LK-FSY-BDLC85R | AG91: @LK-FST-BDLC85R | AH91: @LK-FTP-BDLC85R | AI91: @LK-FTK-BDLC85R | AJ91: @LK-FWE-BDLC85R | AK91: Not Available | AL91: Not Available | AM91: Not Available | AN91: Not Available | AO91: Not Available | AP91: Not Available | AQ91: Not Available | AR91: Not Available | AS91: Not Available | AT91: Not Available | AU91: Not Available | AV91: Not Available | AW91: Not Available | AX91: Not Available | AY91: Not Available | AZ91: Not Available | BA91: Not Available | BB91: Not Available | BC91: Not Available | BD91: Not Available | BE91: Not Available | BF91: Not Available | BG91: Not Available | BH91: Not Available | BI91: Not Available | BJ91: Not Available | BK91: Not Available | BL91: Not Available | BM91: Not Available | BN91: Not Available | BO91: Not Available | BP91: Not Available | BQ91: Not Available
A92: BDLC15L | B92: 1000 DL Cnr Base (500 Door) LHH | C92: BDLC15L | D92: @LK-FAG-BDLC15L | E92: @LK-FAT-BDLC15L | F92: @LK-FAB-BDLC15L | G92: @LK-FBR-BDLC15L | H92: @LK-FBG-BDLC15L | I92: @LK-FBW-BDLC15L | J92: @LK-FCS-BDLC15L | K92: @LK-FDM-BDLC15L | L92: @LK-FDP-BDLC15L | M92: @LK-FDS-BDLC15L | N92: @LK-FGP-BDLC15L | O92: @LK-FHG-BDLC15L | P92: @LK-FIN-BDLC15L | Q92: @LK-FIV-BDLC15L | R92: @LK-FLR-BDLC15L | S92: @LK-FLG-BDLC15L | T92: @LK-FME-BDLC15L | U92: @LK-FMN-BDLC15L | V92: @LK-FMU-BDLC15L | W92: @LK-FOV-BDLC15L | X92: @LK-FPT-BDLC15L | Y92: @LK-FPE-BDLC15L | Z92: @LK-FPG-BDLC15L | AA92: @LK-FPN-BDLC15L | AB92: @LK-FSG-BDLC15L | AC92: @LK-FSP-BDLC15L | AD92: @LK-FSB-BDLC15L | AE92: @LK-FSO-BDLC15L | AF92: @LK-FSY-BDLC15L | AG92: @LK-FST-BDLC15L | AH92: @LK-FTP-BDLC15L | AI92: @LK-FTK-BDLC15L | AJ92: @LK-FWE-BDLC15L | AK92: Not Available | AL92: Not Available | AM92: Not Available | AN92: Not Available | AO92: Not Available | AP92: Not Available | AQ92: Not Available | AR92: Not Available | AS92: Not Available | AT92: Not Available | AU92: Not Available | AV92: Not Available | AW92: Not Available | AX92: Not Available | AY92: Not Available | AZ92: Not Available | BA92: Not Available | BB92: Not Available | BC92: Not Available | BD92: Not Available | BE92: Not Available | BF92: Not Available | BG92: Not Available | BH92: Not Available | BI92: Not Available | BJ92: Not Available | BK92: Not Available | BL92: Not Available | BM92: Not Available | BN92: Not Available | BO92: Not Available | BP92: Not Available | BQ92: Not Available
A93: BDLC15R | B93: 1000 DL Cnr Base (500 Door) RHH | C93: BDLC15R | D93: @LK-FAG-BDLC15R | E93: @LK-FAT-BDLC15R | F93: @LK-FAB-BDLC15R | G93: @LK-FBR-BDLC15R | H93: @LK-FBG-BDLC15R | I93: @LK-FBW-BDLC15R | J93: @LK-FCS-BDLC15R | K93: @LK-FDM-BDLC15R | L93: @LK-FDP-BDLC15R | M93: @LK-FDS-BDLC15R | N93: @LK-FGP-BDLC15R | O93: @LK-FHG-BDLC15R | P93: @LK-FIN-BDLC15R | Q93: @LK-FIV-BDLC15R | R93: @LK-FLR-BDLC15R | S93: @LK-FLG-BDLC15R | T93: @LK-FME-BDLC15R | U93: @LK-FMN-BDLC15R | V93: @LK-FMU-BDLC15R | W93: @LK-FOV-BDLC15R | X93: @LK-FPT-BDLC15R | Y93: @LK-FPE-BDLC15R | Z93: @LK-FPG-BDLC15R | AA93: @LK-FPN-BDLC15R | AB93: @LK-FSG-BDLC15R | AC93: @LK-FSP-BDLC15R | AD93: @LK-FSB-BDLC15R | AE93: @LK-FSO-BDLC15R | AF93: @LK-FSY-BDLC15R | AG93: @LK-FST-BDLC15R | AH93: @LK-FTP-BDLC15R | AI93: @LK-FTK-BDLC15R | AJ93: @LK-FWE-BDLC15R | AK93: Not Available | AL93: Not Available | AM93: Not Available | AN93: Not Available | AO93: Not Available | AP93: Not Available | AQ93: Not Available | AR93: Not Available | AS93: Not Available | AT93: Not Available | AU93: Not Available | AV93: Not Available | AW93: Not Available | AX93: Not Available | AY93: Not Available | AZ93: Not Available | BA93: Not Available | BB93: Not Available | BC93: Not Available | BD93: Not Available | BE93: Not Available | BF93: Not Available | BG93: Not Available | BH93: Not Available | BI93: Not Available | BJ93: Not Available | BK93: Not Available | BL93: Not Available | BM93: Not Available | BN93: Not Available | BO93: Not Available | BP93: Not Available | BQ93: Not Available
A94: BDLC16L | B94: 1000 DL Cnr Base (600 Door) LHH | C94: BDLC16L | D94: @LK-FAG-BDLC16L | E94: @LK-FAT-BDLC16L | F94: @LK-FAB-BDLC16L | G94: @LK-FBR-BDLC16L | H94: @LK-FBG-BDLC16L | I94: @LK-FBW-BDLC16L | J94: @LK-FCS-BDLC16L | K94: @LK-FDM-BDLC16L | L94: @LK-FDP-BDLC16L | M94: @LK-FDS-BDLC16L | N94: @LK-FGP-BDLC16L | O94: @LK-FHG-BDLC16L | P94: @LK-FIN-BDLC16L | Q94: @LK-FIV-BDLC16L | R94: @LK-FLR-BDLC16L | S94: @LK-FLG-BDLC16L | T94: @LK-FME-BDLC16L | U94: @LK-FMN-BDLC16L | V94: @LK-FMU-BDLC16L | W94: @LK-FOV-BDLC16L | X94: @LK-FPT-BDLC16L | Y94: @LK-FPE-BDLC16L | Z94: @LK-FPG-BDLC16L | AA94: @LK-FPN-BDLC16L | AB94: @LK-FSG-BDLC16L | AC94: @LK-FSP-BDLC16L | AD94: @LK-FSB-BDLC16L | AE94: @LK-FSO-BDLC16L | AF94: @LK-FSY-BDLC16L | AG94: @LK-FST-BDLC16L | AH94: @LK-FTP-BDLC16L | AI94: @LK-FTK-BDLC16L | AJ94: @LK-FWE-BDLC16L | AK94: Not Available | AL94: Not Available | AM94: Not Available | AN94: Not Available | AO94: Not Available | AP94: Not Available | AQ94: Not Available | AR94: Not Available | AS94: Not Available | AT94: Not Available | AU94: Not Available | AV94: Not Available | AW94: Not Available | AX94: Not Available | AY94: Not Available | AZ94: Not Available | BA94: Not Available | BB94: Not Available | BC94: Not Available | BD94: Not Available | BE94: Not Available | BF94: Not Available | BG94: Not Available | BH94: Not Available | BI94: Not Available | BJ94: Not Available | BK94: Not Available | BL94: Not Available | BM94: Not Available | BN94: Not Available | BO94: Not Available | BP94: Not Available | BQ94: Not Available
A95: BDLC16R | B95: 1000 DL Cnr Base (600 Door) RHH | C95: BDLC16R | D95: @LK-FAG-BDLC16R | E95: @LK-FAT-BDLC16R | F95: @LK-FAB-BDLC16R | G95: @LK-FBR-BDLC16R | H95: @LK-FBG-BDLC16R | I95: @LK-FBW-BDLC16R | J95: @LK-FCS-BDLC16R | K95: @LK-FDM-BDLC16R | L95: @LK-FDP-BDLC16R | M95: @LK-FDS-BDLC16R | N95: @LK-FGP-BDLC16R | O95: @LK-FHG-BDLC16R | P95: @LK-FIN-BDLC16R | Q95: @LK-FIV-BDLC16R | R95: @LK-FLR-BDLC16R | S95: @LK-FLG-BDLC16R | T95: @LK-FME-BDLC16R | U95: @LK-FMN-BDLC16R | V95: @LK-FMU-BDLC16R | W95: @LK-FOV-BDLC16R | X95: @LK-FPT-BDLC16R | Y95: @LK-FPE-BDLC16R | Z95: @LK-FPG-BDLC16R | AA95: @LK-FPN-BDLC16R | AB95: @LK-FSG-BDLC16R | AC95: @LK-FSP-BDLC16R | AD95: @LK-FSB-BDLC16R | AE95: @LK-FSO-BDLC16R | AF95: @LK-FSY-BDLC16R | AG95: @LK-FST-BDLC16R | AH95: @LK-FTP-BDLC16R | AI95: @LK-FTK-BDLC16R | AJ95: @LK-FWE-BDLC16R | AK95: Not Available | AL95: Not Available | AM95: Not Available | AN95: Not Available | AO95: Not Available | AP95: Not Available | AQ95: Not Available | AR95: Not Available | AS95: Not Available | AT95: Not Available | AU95: Not Available | AV95: Not Available | AW95: Not Available | AX95: Not Available | AY95: Not Available | AZ95: Not Available | BA95: Not Available | BB95: Not Available | BC95: Not Available | BD95: Not Available | BE95: Not Available | BF95: Not Available | BG95: Not Available | BH95: Not Available | BI95: Not Available | BJ95: Not Available | BK95: Not Available | BL95: Not Available | BM95: Not Available | BN95: Not Available | BO95: Not Available | BP95: Not Available | BQ95: Not Available
A96: BHD3 | B96: 300 HL Pan Drawer Unit with 2 Internal Drawers | C96: BHD3 | D96: @LK-FAG-BHD3 | E96: @LK-FAT-BHD3 | F96: @LK-FAB-BHD3 | G96: @LK-FBR-BHD3 | H96: @LK-FBG-BHD3 | I96: @LK-FBW-BHD3 | J96: @LK-FCS-BHD3 | K96: @LK-FDM-BHD3 | L96: @LK-FDP-BHD3 | M96: @LK-FDS-BHD3 | N96: @LK-FGP-BHD3 | O96: @LK-FHG-BHD3 | P96: @LK-FIN-BHD3 | Q96: @LK-FIV-BHD3 | R96: @LK-FLR-BHD3 | S96: @LK-FLG-BHD3 | T96: @LK-FME-BHD3 | U96: @LK-FMN-BHD3 | V96: @LK-FMU-BHD3 | W96: @LK-FOV-BHD3 | X96: @LK-FPT-BHD3 | Y96: @LK-FPE-BHD3 | Z96: @LK-FPG-BHD3 | AA96: @LK-FPN-BHD3 | AB96: @LK-FSG-BHD3 | AC96: @LK-FSP-BHD3 | AD96: @LK-FSB-BHD3 | AE96: @LK-FSO-BHD3 | AF96: @LK-FSY-BHD3 | AG96: @LK-FST-BHD3 | AH96: @LK-FTP-BHD3 | AI96: @LK-FTK-BHD3 | AJ96: @LK-FWE-BHD3 | AK96: @LK-DAG-BHD3 | AL96: @LK-DAT-BHD3 | AM96: @LK-DAB-BHD3 | AN96: @LK-DBR-BHD3 | AO96: @LK-DBG-BHD3 | AP96: @LK-DBW-BHD3 | AQ96: @LK-DCS-BHD3 | AR96: @LK-DDM-BHD3 | AS96: @LK-DDR-BHD3 | AT96: @LK-DDG-BHD3 | AU96: @LK-DGP-BHD3 | AV96: @LK-DHG-BHD3 | AW96: @LK-DIN-BHD3 | AX96: @LK-DIV-BHD3 | AY96: @LK-DLR-BHD3 | AZ96: @LK-DLG-BHD3 | BA96: @LK-DMW-BHD3 | BB96: @LK-DMN-BHD3 | BC96: @LK-DMU-BHD3 | BD96: @LK-DOV-BHD3 | BE96: @LK-DPT-BHD3 | BF96: @LK-DPE-BHD3 | BG96: @LK-DPG-BHD3 | BH96: @LK-DPN-BHD3 | BI96: @LK-DSG-BHD3 | BJ96: @LK-DSP-BHD3 | BK96: @LK-DSB-BHD3 | BL96: @LK-DSO-BHD3 | BM96: @LK-DSY-BHD3 | BN96: @LK-DST-BHD3 | BO96: @LK-DTP-BHD3 | BP96: @LK-DTK-BHD3 | BQ96: @LK-DWE-BHD3
A97: BHD4 | B97: 400 HL Pan Drawer Unit with 2 Internal Drawers | C97: BHD4 | D97: @LK-FAG-BHD4 | E97: @LK-FAT-BHD4 | F97: @LK-FAB-BHD4 | G97: @LK-FBR-BHD4 | H97: @LK-FBG-BHD4 | I97: @LK-FBW-BHD4 | J97: @LK-FCS-BHD4 | K97: @LK-FDM-BHD4 | L97: @LK-FDP-BHD4 | M97: @LK-FDS-BHD4 | N97: @LK-FGP-BHD4 | O97: @LK-FHG-BHD4 | P97: @LK-FIN-BHD4 | Q97: @LK-FIV-BHD4 | R97: @LK-FLR-BHD4 | S97: @LK-FLG-BHD4 | T97: @LK-FME-BHD4 | U97: @LK-FMN-BHD4 | V97: @LK-FMU-BHD4 | W97: @LK-FOV-BHD4 | X97: @LK-FPT-BHD4 | Y97: @LK-FPE-BHD4 | Z97: @LK-FPG-BHD4 | AA97: @LK-FPN-BHD4 | AB97: @LK-FSG-BHD4 | AC97: @LK-FSP-BHD4 | AD97: @LK-FSB-BHD4 | AE97: @LK-FSO-BHD4 | AF97: @LK-FSY-BHD4 | AG97: @LK-FST-BHD4 | AH97: @LK-FTP-BHD4 | AI97: @LK-FTK-BHD4 | AJ97: @LK-FWE-BHD4 | AK97: Not Available | AL97: Not Available | AM97: Not Available | AN97: Not Available | AO97: Not Available | AP97: Not Available | AQ97: Not Available | AR97: Not Available | AS97: Not Available | AT97: Not Available | AU97: Not Available | AV97: Not Available | AW97: Not Available | AX97: Not Available | AY97: Not Available | AZ97: Not Available | BA97: Not Available | BB97: Not Available | BC97: Not Available | BD97: Not Available | BE97: Not Available | BF97: Not Available | BG97: Not Available | BH97: Not Available | BI97: Not Available | BJ97: Not Available | BK97: Not Available | BL97: Not Available | BM97: Not Available | BN97: Not Available | BO97: Not Available | BP97: Not Available | BQ97: Not Available
A98: BHD5 | B98: 500 HL Pan Drawer Unit with 2 Internal Drawers | C98: BHD5 | D98: @LK-FAG-BHD5 | E98: @LK-FAT-BHD5 | F98: @LK-FAB-BHD5 | G98: @LK-FBR-BHD5 | H98: @LK-FBG-BHD5 | I98: @LK-FBW-BHD5 | J98: @LK-FCS-BHD5 | K98: @LK-FDM-BHD5 | L98: @LK-FDP-BHD5 | M98: @LK-FDS-BHD5 | N98: @LK-FGP-BHD5 | O98: @LK-FHG-BHD5 | P98: @LK-FIN-BHD5 | Q98: @LK-FIV-BHD5 | R98: @LK-FLR-BHD5 | S98: @LK-FLG-BHD5 | T98: @LK-FME-BHD5 | U98: @LK-FMN-BHD5 | V98: @LK-FMU-BHD5 | W98: @LK-FOV-BHD5 | X98: @LK-FPT-BHD5 | Y98: @LK-FPE-BHD5 | Z98: @LK-FPG-BHD5 | AA98: @LK-FPN-BHD5 | AB98: @LK-FSG-BHD5 | AC98: @LK-FSP-BHD5 | AD98: @LK-FSB-BHD5 | AE98: @LK-FSO-BHD5 | AF98: @LK-FSY-BHD5 | AG98: @LK-FST-BHD5 | AH98: @LK-FTP-BHD5 | AI98: @LK-FTK-BHD5 | AJ98: @LK-FWE-BHD5 | AK98: @LK-DAG-BHD5 | AL98: @LK-DAT-BHD5 | AM98: @LK-DAB-BHD5 | AN98: @LK-DBR-BHD5 | AO98: @LK-DBG-BHD5 | AP98: @LK-DBW-BHD5 | AQ98: @LK-DCS-BHD5 | AR98: @LK-DDM-BHD5 | AS98: @LK-DDR-BHD5 | AT98: @LK-DDG-BHD5 | AU98: @LK-DGP-BHD5 | AV98: @LK-DHG-BHD5 | AW98: @LK-DIN-BHD5 | AX98: @LK-DIV-BHD5 | AY98: @LK-DLR-BHD5 | AZ98: @LK-DLG-BHD5 | BA98: @LK-DMW-BHD5 | BB98: @LK-DMN-BHD5 | BC98: @LK-DMU-BHD5 | BD98: @LK-DOV-BHD5 | BE98: @LK-DPT-BHD5 | BF98: @LK-DPE-BHD5 | BG98: @LK-DPG-BHD5 | BH98: @LK-DPN-BHD5 | BI98: @LK-DSG-BHD5 | BJ98: @LK-DSP-BHD5 | BK98: @LK-DSB-BHD5 | BL98: @LK-DSO-BHD5 | BM98: @LK-DSY-BHD5 | BN98: @LK-DST-BHD5 | BO98: @LK-DTP-BHD5 | BP98: @LK-DTK-BHD5 | BQ98: @LK-DWE-BHD5
A99: BHD6 | B99: 600 HL Pan Drawer Unit with 2 Internal Drawers | C99: BHD6 | D99: @LK-FAG-BHD6 | E99: @LK-FAT-BHD6 | F99: @LK-FAB-BHD6 | G99: @LK-FBR-BHD6 | H99: @LK-FBG-BHD6 | I99: @LK-FBW-BHD6 | J99: @LK-FCS-BHD6 | K99: @LK-FDM-BHD6 | L99: @LK-FDP-BHD6 | M99: @LK-FDS-BHD6 | N99: @LK-FGP-BHD6 | O99: @LK-FHG-BHD6 | P99: @LK-FIN-BHD6 | Q99: @LK-FIV-BHD6 | R99: @LK-FLR-BHD6 | S99: @LK-FLG-BHD6 | T99: @LK-FME-BHD6 | U99: @LK-FMN-BHD6 | V99: @LK-FMU-BHD6 | W99: @LK-FOV-BHD6 | X99: @LK-FPT-BHD6 | Y99: @LK-FPE-BHD6 | Z99: @LK-FPG-BHD6 | AA99: @LK-FPN-BHD6 | AB99: @LK-FSG-BHD6 | AC99: @LK-FSP-BHD6 | AD99: @LK-FSB-BHD6 | AE99: @LK-FSO-BHD6 | AF99: @LK-FSY-BHD6 | AG99: @LK-FST-BHD6 | AH99: @LK-FTP-BHD6 | AI99: @LK-FTK-BHD6 | AJ99: @LK-FWE-BHD6 | AK99: @LK-DAG-BHD6 | AL99: @LK-DAT-BHD6 | AM99: @LK-DAB-BHD6 | AN99: @LK-DBR-BHD6 | AO99: @LK-DBG-BHD6 | AP99: @LK-DBW-BHD6 | AQ99: @LK-DCS-BHD6 | AR99: @LK-DDM-BHD6 | AS99: @LK-DDR-BHD6 | AT99: @LK-DDG-BHD6 | AU99: @LK-DGP-BHD6 | AV99: @LK-DHG-BHD6 | AW99: @LK-DIN-BHD6 | AX99: @LK-DIV-BHD6 | AY99: @LK-DLR-BHD6 | AZ99: @LK-DLG-BHD6 | BA99: @LK-DMW-BHD6 | BB99: @LK-DMN-BHD6 | BC99: @LK-DMU-BHD6 | BD99: @LK-DOV-BHD6 | BE99: @LK-DPT-BHD6 | BF99: @LK-DPE-BHD6 | BG99: @LK-DPG-BHD6 | BH99: @LK-DPN-BHD6 | BI99: @LK-DSG-BHD6 | BJ99: @LK-DSP-BHD6 | BK99: @LK-DSB-BHD6 | BL99: @LK-DSO-BHD6 | BM99: @LK-DSY-BHD6 | BN99: @LK-DST-BHD6 | BO99: @LK-DTP-BHD6 | BP99: @LK-DTK-BHD6 | BQ99: @LK-DWE-BHD6
A100: BD54 | B100: 500 4 Drw Base Unit | C100: BD54 | D100: @LK-FAG-BD54 | E100: @LK-FAT-BD54 | F100: @LK-FAB-BD54 | G100: @LK-FBR-BD54 | H100: @LK-FBG-BD54 | I100: @LK-FBW-BD54 | J100: @LK-FCS-BD54 | K100: @LK-FDM-BD54 | L100: @LK-FDP-BD54 | M100: @LK-FDS-BD54 | N100: @LK-FGP-BD54 | O100: @LK-FHG-BD54 | P100: @LK-FIN-BD54 | Q100: @LK-FIV-BD54 | R100: @LK-FLR-BD54 | S100: @LK-FLG-BD54 | T100: @LK-FME-BD54 | U100: @LK-FMN-BD54 | V100: @LK-FMU-BD54 | W100: @LK-FOV-BD54 | X100: @LK-FPT-BD54 | Y100: @LK-FPE-BD54 | Z100: @LK-FPG-BD54 | AA100: @LK-FPN-BD54 | AB100: @LK-FSG-BD54 | AC100: @LK-FSP-BD54 | AD100: @LK-FSB-BD54 | AE100: @LK-FSO-BD54 | AF100: @LK-FSY-BD54 | AG100: @LK-FST-BD54 | AH100: @LK-FTP-BD54 | AI100: @LK-FTK-BD54 | AJ100: @LK-FWE-BD54 | AK100: Not Available | AL100: Not Available | AM100: Not Available | AN100: Not Available | AO100: Not Available | AP100: Not Available | AQ100: Not Available | AR100: Not Available | AS100: Not Available | AT100: Not Available | AU100: Not Available | AV100: Not Available | AW100: Not Available | AX100: Not Available | AY100: Not Available | AZ100: Not Available | BA100: Not Available | BB100: Not Available | BC100: Not Available | BD100: Not Available | BE100: Not Available | BF100: Not Available | BG100: Not Available | BH100: Not Available | BI100: Not Available | BJ100: Not Available | BK100: Not Available | BL100: Not Available | BM100: Not Available | BN100: Not Available | BO100: Not Available | BP100: Not Available | BQ100: Not Available
A101: BD53 | B101: 500 3 Drw Base Unit | C101: BD53 | D101: @LK-FAG-BD53 | E101: @LK-FAT-BD53 | F101: @LK-FAB-BD53 | G101: @LK-FBR-BD53 | H101: @LK-FBG-BD53 | I101: @LK-FBW-BD53 | J101: @LK-FCS-BD53 | K101: @LK-FDM-BD53 | L101: @LK-FDP-BD53 | M101: @LK-FDS-BD53 | N101: @LK-FGP-BD53 | O101: @LK-FHG-BD53 | P101: @LK-FIN-BD53 | Q101: @LK-FIV-BD53 | R101: @LK-FLR-BD53 | S101: @LK-FLG-BD53 | T101: @LK-FME-BD53 | U101: @LK-FMN-BD53 | V101: @LK-FMU-BD53 | W101: @LK-FOV-BD53 | X101: @LK-FPT-BD53 | Y101: @LK-FPE-BD53 | Z101: @LK-FPG-BD53 | AA101: @LK-FPN-BD53 | AB101: @LK-FSG-BD53 | AC101: @LK-FSP-BD53 | AD101: @LK-FSB-BD53 | AE101: @LK-FSO-BD53 | AF101: @LK-FSY-BD53 | AG101: @LK-FST-BD53 | AH101: @LK-FTP-BD53 | AI101: @LK-FTK-BD53 | AJ101: @LK-FWE-BD53 | AK101: @LK-DAG-BD53 | AL101: @LK-DAT-BD53 | AM101: @LK-DAB-BD53 | AN101: @LK-DBR-BD53 | AO101: @LK-DBG-BD53 | AP101: @LK-DBW-BD53 | AQ101: @LK-DCS-BD53 | AR101: @LK-DDM-BD53 | AS101: @LK-DDR-BD53 | AT101: @LK-DDG-BD53 | AU101: @LK-DGP-BD53 | AV101: @LK-DHG-BD53 | AW101: @LK-DIN-BD53 | AX101: @LK-DIV-BD53 | AY101: @LK-DLR-BD53 | AZ101: @LK-DLG-BD53 | BA101: @LK-DMW-BD53 | BB101: @LK-DMN-BD53 | BC101: @LK-DMU-BD53 | BD101: @LK-DOV-BD53 | BE101: @LK-DPT-BD53 | BF101: @LK-DPE-BD53 | BG101: @LK-DPG-BD53 | BH101: @LK-DPN-BD53 | BI101: @LK-DSG-BD53 | BJ101: @LK-DSP-BD53 | BK101: @LK-DSB-BD53 | BL101: @LK-DSO-BD53 | BM101: @LK-DSY-BD53 | BN101: @LK-DST-BD53 | BO101: @LK-DTP-BD53 | BP101: @LK-DTK-BD53 | BQ101: @LK-DWE-BD53
A102: BD63 | B102: 600 3 Drw Base Unit | C102: BD63 | D102: @LK-FAG-BD63 | E102: @LK-FAT-BD63 | F102: @LK-FAB-BD63 | G102: @LK-FBR-BD63 | H102: @LK-FBG-BD63 | I102: @LK-FBW-BD63 | J102: @LK-FCS-BD63 | K102: @LK-FDM-BD63 | L102: @LK-FDP-BD63 | M102: @LK-FDS-BD63 | N102: @LK-FGP-BD63 | O102: @LK-FHG-BD63 | P102: @LK-FIN-BD63 | Q102: @LK-FIV-BD63 | R102: @LK-FLR-BD63 | S102: @LK-FLG-BD63 | T102: @LK-FME-BD63 | U102: @LK-FMN-BD63 | V102: @LK-FMU-BD63 | W102: @LK-FOV-BD63 | X102: @LK-FPT-BD63 | Y102: @LK-FPE-BD63 | Z102: @LK-FPG-BD63 | AA102: @LK-FPN-BD63 | AB102: @LK-FSG-BD63 | AC102: @LK-FSP-BD63 | AD102: @LK-FSB-BD63 | AE102: @LK-FSO-BD63 | AF102: @LK-FSY-BD63 | AG102: @LK-FST-BD63 | AH102: @LK-FTP-BD63 | AI102: @LK-FTK-BD63 | AJ102: @LK-FWE-BD63 | AK102: @LK-DAG-BD63 | AL102: @LK-DAT-BD63 | AM102: @LK-DAB-BD63 | AN102: @LK-DBR-BD63 | AO102: @LK-DBG-BD63 | AP102: @LK-DBW-BD63 | AQ102: @LK-DCS-BD63 | AR102: @LK-DDM-BD63 | AS102: @LK-DDR-BD63 | AT102: @LK-DDG-BD63 | AU102: @LK-DGP-BD63 | AV102: @LK-DHG-BD63 | AW102: @LK-DIN-BD63 | AX102: @LK-DIV-BD63 | AY102: @LK-DLR-BD63 | AZ102: @LK-DLG-BD63 | BA102: @LK-DMW-BD63 | BB102: @LK-DMN-BD63 | BC102: @LK-DMU-BD63 | BD102: @LK-DOV-BD63 | BE102: @LK-DPT-BD63 | BF102: @LK-DPE-BD63 | BG102: @LK-DPG-BD63 | BH102: @LK-DPN-BD63 | BI102: @LK-DSG-BD63 | BJ102: @LK-DSP-BD63 | BK102: @LK-DSB-BD63 | BL102: @LK-DSO-BD63 | BM102: @LK-DSY-BD63 | BN102: @LK-DST-BD63 | BO102: @LK-DTP-BD63 | BP102: @LK-DTK-BD63 | BQ102: @LK-DWE-BD63
A103: BD83 | B103: 800 3 Drw Base Unit | C103: BD83 | D103: @LK-FAG-BD83 | E103: @LK-FAT-BD83 | F103: @LK-FAB-BD83 | G103: @LK-FBR-BD83 | H103: @LK-FBG-BD83 | I103: @LK-FBW-BD83 | J103: @LK-FCS-BD83 | K103: @LK-FDM-BD83 | L103: @LK-FDP-BD83 | M103: @LK-FDS-BD83 | N103: @LK-FGP-BD83 | O103: @LK-FHG-BD83 | P103: @LK-FIN-BD83 | Q103: @LK-FIV-BD83 | R103: @LK-FLR-BD83 | S103: @LK-FLG-BD83 | T103: @LK-FME-BD83 | U103: @LK-FMN-BD83 | V103: @LK-FMU-BD83 | W103: @LK-FOV-BD83 | X103: @LK-FPT-BD83 | Y103: @LK-FPE-BD83 | Z103: @LK-FPG-BD83 | AA103: @LK-FPN-BD83 | AB103: @LK-FSG-BD83 | AC103: @LK-FSP-BD83 | AD103: @LK-FSB-BD83 | AE103: @LK-FSO-BD83 | AF103: @LK-FSY-BD83 | AG103: @LK-FST-BD83 | AH103: @LK-FTP-BD83 | AI103: @LK-FTK-BD83 | AJ103: @LK-FWE-BD83 | AK103: @LK-DAG-BD83 | AL103: @LK-DAT-BD83 | AM103: @LK-DAB-BD83 | AN103: @LK-DBR-BD83 | AO103: @LK-DBG-BD83 | AP103: @LK-DBW-BD83 | AQ103: @LK-DCS-BD83 | AR103: @LK-DDM-BD83 | AS103: @LK-DDR-BD83 | AT103: @LK-DDG-BD83 | AU103: @LK-DGP-BD83 | AV103: @LK-DHG-BD83 | AW103: @LK-DIN-BD83 | AX103: @LK-DIV-BD83 | AY103: @LK-DLR-BD83 | AZ103: @LK-DLG-BD83 | BA103: @LK-DMW-BD83 | BB103: @LK-DMN-BD83 | BC103: @LK-DMU-BD83 | BD103: @LK-DOV-BD83 | BE103: @LK-DPT-BD83 | BF103: @LK-DPE-BD83 | BG103: @LK-DPG-BD83 | BH103: @LK-DPN-BD83 | BI103: @LK-DSG-BD83 | BJ103: @LK-DSP-BD83 | BK103: @LK-DSB-BD83 | BL103: @LK-DSO-BD83 | BM103: @LK-DSY-BD83 | BN103: @LK-DST-BD83 | BO103: @LK-DTP-BD83 | BP103: @LK-DTK-BD83 | BQ103: @LK-DWE-BD83
A104: BD93 | B104: 900 3 Drw Base Unit | C104: BD93 | D104: @LK-FAG-BD93 | E104: @LK-FAT-BD93 | F104: @LK-FAB-BD93 | G104: @LK-FBR-BD93 | H104: @LK-FBG-BD93 | I104: @LK-FBW-BD93 | J104: @LK-FCS-BD93 | K104: @LK-FDM-BD93 | L104: @LK-FDP-BD93 | M104: @LK-FDS-BD93 | N104: @LK-FGP-BD93 | O104: @LK-FHG-BD93 | P104: @LK-FIN-BD93 | Q104: @LK-FIV-BD93 | R104: @LK-FLR-BD93 | S104: @LK-FLG-BD93 | T104: @LK-FME-BD93 | U104: @LK-FMN-BD93 | V104: @LK-FMU-BD93 | W104: @LK-FOV-BD93 | X104: @LK-FPT-BD93 | Y104: @LK-FPE-BD93 | Z104: @LK-FPG-BD93 | AA104: @LK-FPN-BD93 | AB104: @LK-FSG-BD93 | AC104: @LK-FSP-BD93 | AD104: @LK-FSB-BD93 | AE104: @LK-FSO-BD93 | AF104: @LK-FSY-BD93 | AG104: @LK-FST-BD93 | AH104: @LK-FTP-BD93 | AI104: @LK-FTK-BD93 | AJ104: @LK-FWE-BD93 | AK104: @LK-DAG-BD93 | AL104: @LK-DAT-BD93 | AM104: @LK-DAB-BD93 | AN104: @LK-DBR-BD93 | AO104: @LK-DBG-BD93 | AP104: @LK-DBW-BD93 | AQ104: @LK-DCS-BD93 | AR104: @LK-DDM-BD93 | AS104: @LK-DDR-BD93 | AT104: @LK-DDG-BD93 | AU104: @LK-DGP-BD93 | AV104: @LK-DHG-BD93 | AW104: @LK-DIN-BD93 | AX104: @LK-DIV-BD93 | AY104: @LK-DLR-BD93 | AZ104: @LK-DLG-BD93 | BA104: @LK-DMW-BD93 | BB104: @LK-DMN-BD93 | BC104: @LK-DMU-BD93 | BD104: @LK-DOV-BD93 | BE104: @LK-DPT-BD93 | BF104: @LK-DPE-BD93 | BG104: @LK-DPG-BD93 | BH104: @LK-DPN-BD93 | BI104: @LK-DSG-BD93 | BJ104: @LK-DSP-BD93 | BK104: @LK-DSB-BD93 | BL104: @LK-DSO-BD93 | BM104: @LK-DSY-BD93 | BN104: @LK-DST-BD93 | BO104: @LK-DTP-BD93 | BP104: @LK-DTK-BD93 | BQ104: @LK-DWE-BD93
A105: BD13 | B105: 1000 3 Drw Base Unit | C105: BD13 | D105: @LK-FAG-BD13 | E105: @LK-FAT-BD13 | F105: @LK-FAB-BD13 | G105: @LK-FBR-BD13 | H105: @LK-FBG-BD13 | I105: @LK-FBW-BD13 | J105: @LK-FCS-BD13 | K105: @LK-FDM-BD13 | L105: @LK-FDP-BD13 | M105: @LK-FDS-BD13 | N105: @LK-FGP-BD13 | O105: @LK-FHG-BD13 | P105: @LK-FIN-BD13 | Q105: @LK-FIV-BD13 | R105: @LK-FLR-BD13 | S105: @LK-FLG-BD13 | T105: @LK-FME-BD13 | U105: @LK-FMN-BD13 | V105: @LK-FMU-BD13 | W105: @LK-FOV-BD13 | X105: @LK-FPT-BD13 | Y105: @LK-FPE-BD13 | Z105: @LK-FPG-BD13 | AA105: @LK-FPN-BD13 | AB105: @LK-FSG-BD13 | AC105: @LK-FSP-BD13 | AD105: @LK-FSB-BD13 | AE105: @LK-FSO-BD13 | AF105: @LK-FSY-BD13 | AG105: @LK-FST-BD13 | AH105: @LK-FTP-BD13 | AI105: @LK-FTK-BD13 | AJ105: @LK-FWE-BD13 | AK105: @LK-DAG-BD13 | AL105: @LK-DAT-BD13 | AM105: @LK-DAB-BD13 | AN105: @LK-DBR-BD13 | AO105: @LK-DBG-BD13 | AP105: @LK-DBW-BD13 | AQ105: @LK-DCS-BD13 | AR105: @LK-DDM-BD13 | AS105: @LK-DDR-BD13 | AT105: @LK-DDG-BD13 | AU105: @LK-DGP-BD13 | AV105: @LK-DHG-BD13 | AW105: @LK-DIN-BD13 | AX105: @LK-DIV-BD13 | AY105: @LK-DLR-BD13 | AZ105: @LK-DLG-BD13 | BA105: @LK-DMW-BD13 | BB105: @LK-DMN-BD13 | BC105: @LK-DMU-BD13 | BD105: @LK-DOV-BD13 | BE105: @LK-DPT-BD13 | BF105: @LK-DPE-BD13 | BG105: @LK-DPG-BD13 | BH105: @LK-DPN-BD13 | BI105: @LK-DSG-BD13 | BJ105: @LK-DSP-BD13 | BK105: @LK-DSB-BD13 | BL105: @LK-DSO-BD13 | BM105: @LK-DSY-BD13 | BN105: @LK-DST-BD13 | BO105: @LK-DTP-BD13 | BP105: @LK-DTK-BD13 | BQ105: @LK-DWE-BD13
A106: BD52 | B106: 500 2 Pan Drw Unit | C106: BD52 | D106: Not Available | E106: Not Available | F106: Not Available | G106: Not Available | H106: Not Available | I106: Not Available | J106: Not Available | K106: Not Available | L106: Not Available | M106: Not Available | N106: Not Available | O106: Not Available | P106: Not Available | Q106: Not Available | R106: Not Available | S106: Not Available | T106: Not Available | U106: Not Available | V106: Not Available | W106: Not Available | X106: Not Available | Y106: Not Available | Z106: Not Available | AA106: Not Available | AB106: Not Available | AC106: Not Available | AD106: Not Available | AE106: Not Available | AF106: Not Available | AG106: Not Available | AH106: Not Available | AI106: Not Available | AJ106: Not Available | AK106: @LK-DAG-BD52 | AL106: @LK-DAT-BD52 | AM106: @LK-DAB-BD52 | AN106: @LK-DBR-BD52 | AO106: @LK-DBG-BD52 | AP106: @LK-DBW-BD52 | AQ106: @LK-DCS-BD52 | AR106: @LK-DDM-BD52 | AS106: @LK-DDR-BD52 | AT106: @LK-DDG-BD52 | AU106: @LK-DGP-BD52 | AV106: @LK-DHG-BD52 | AW106: @LK-DIN-BD52 | AX106: @LK-DIV-BD52 | AY106: @LK-DLR-BD52 | AZ106: @LK-DLG-BD52 | BA106: @LK-DMW-BD52 | BB106: @LK-DMN-BD52 | BC106: @LK-DMU-BD52 | BD106: @LK-DOV-BD52 | BE106: @LK-DPT-BD52 | BF106: @LK-DPE-BD52 | BG106: @LK-DPG-BD52 | BH106: @LK-DPN-BD52 | BI106: @LK-DSG-BD52 | BJ106: @LK-DSP-BD52 | BK106: @LK-DSB-BD52 | BL106: @LK-DSO-BD52 | BM106: @LK-DSY-BD52 | BN106: @LK-DST-BD52 | BO106: @LK-DTP-BD52 | BP106: @LK-DTK-BD52 | BQ106: @LK-DWE-BD52
A107: BD62 | B107: 600 2 Pan Drw Unit | C107: BD62 | D107: @LK-FAG-BD62 | E107: @LK-FAT-BD62 | F107: @LK-FAB-BD62 | G107: @LK-FBR-BD62 | H107: @LK-FBG-BD62 | I107: @LK-FBW-BD62 | J107: @LK-FCS-BD62 | K107: @LK-FDM-BD62 | L107: @LK-FDP-BD62 | M107: @LK-FDS-BD62 | N107: @LK-FGP-BD62 | O107: @LK-FHG-BD62 | P107: @LK-FIN-BD62 | Q107: @LK-FIV-BD62 | R107: @LK-FLR-BD62 | S107: @LK-FLG-BD62 | T107: @LK-FME-BD62 | U107: @LK-FMN-BD62 | V107: @LK-FMU-BD62 | W107: @LK-FOV-BD62 | X107: @LK-FPT-BD62 | Y107: @LK-FPE-BD62 | Z107: @LK-FPG-BD62 | AA107: @LK-FPN-BD62 | AB107: @LK-FSG-BD62 | AC107: @LK-FSP-BD62 | AD107: @LK-FSB-BD62 | AE107: @LK-FSO-BD62 | AF107: @LK-FSY-BD62 | AG107: @LK-FST-BD62 | AH107: @LK-FTP-BD62 | AI107: @LK-FTK-BD62 | AJ107: @LK-FWE-BD62 | AK107: @LK-DAG-BD62 | AL107: @LK-DAT-BD62 | AM107: @LK-DAB-BD62 | AN107: @LK-DBR-BD62 | AO107: @LK-DBG-BD62 | AP107: @LK-DBW-BD62 | AQ107: @LK-DCS-BD62 | AR107: @LK-DDM-BD62 | AS107: @LK-DDR-BD62 | AT107: @LK-DDG-BD62 | AU107: @LK-DGP-BD62 | AV107: @LK-DHG-BD62 | AW107: @LK-DIN-BD62 | AX107: @LK-DIV-BD62 | AY107: @LK-DLR-BD62 | AZ107: @LK-DLG-BD62 | BA107: @LK-DMW-BD62 | BB107: @LK-DMN-BD62 | BC107: @LK-DMU-BD62 | BD107: @LK-DOV-BD62 | BE107: @LK-DPT-BD62 | BF107: @LK-DPE-BD62 | BG107: @LK-DPG-BD62 | BH107: @LK-DPN-BD62 | BI107: @LK-DSG-BD62 | BJ107: @LK-DSP-BD62 | BK107: @LK-DSB-BD62 | BL107: @LK-DSO-BD62 | BM107: @LK-DSY-BD62 | BN107: @LK-DST-BD62 | BO107: @LK-DTP-BD62 | BP107: @LK-DTK-BD62 | BQ107: @LK-DWE-BD62
A108: BD82 | B108: 800 2 Pan Drw Unit | C108: BD82 | D108: @LK-FAG-BD82 | E108: @LK-FAT-BD82 | F108: @LK-FAB-BD82 | G108: @LK-FBR-BD82 | H108: @LK-FBG-BD82 | I108: @LK-FBW-BD82 | J108: @LK-FCS-BD82 | K108: @LK-FDM-BD82 | L108: @LK-FDP-BD82 | M108: @LK-FDS-BD82 | N108: @LK-FGP-BD82 | O108: @LK-FHG-BD82 | P108: @LK-FIN-BD82 | Q108: @LK-FIV-BD82 | R108: @LK-FLR-BD82 | S108: @LK-FLG-BD82 | T108: @LK-FME-BD82 | U108: @LK-FMN-BD82 | V108: @LK-FMU-BD82 | W108: @LK-FOV-BD82 | X108: @LK-FPT-BD82 | Y108: @LK-FPE-BD82 | Z108: @LK-FPG-BD82 | AA108: @LK-FPN-BD82 | AB108: @LK-FSG-BD82 | AC108: @LK-FSP-BD82 | AD108: @LK-FSB-BD82 | AE108: @LK-FSO-BD82 | AF108: @LK-FSY-BD82 | AG108: @LK-FST-BD82 | AH108: @LK-FTP-BD82 | AI108: @LK-FTK-BD82 | AJ108: @LK-FWE-BD82 | AK108: @LK-DAG-BD82 | AL108: @LK-DAT-BD82 | AM108: @LK-DAB-BD82 | AN108: @LK-DBR-BD82 | AO108: @LK-DBG-BD82 | AP108: @LK-DBW-BD82 | AQ108: @LK-DCS-BD82 | AR108: @LK-DDM-BD82 | AS108: @LK-DDR-BD82 | AT108: @LK-DDG-BD82 | AU108: @LK-DGP-BD82 | AV108: @LK-DHG-BD82 | AW108: @LK-DIN-BD82 | AX108: @LK-DIV-BD82 | AY108: @LK-DLR-BD82 | AZ108: @LK-DLG-BD82 | BA108: @LK-DMW-BD82 | BB108: @LK-DMN-BD82 | BC108: @LK-DMU-BD82 | BD108: @LK-DOV-BD82 | BE108: @LK-DPT-BD82 | BF108: @LK-DPE-BD82 | BG108: @LK-DPG-BD82 | BH108: @LK-DPN-BD82 | BI108: @LK-DSG-BD82 | BJ108: @LK-DSP-BD82 | BK108: @LK-DSB-BD82 | BL108: @LK-DSO-BD82 | BM108: @LK-DSY-BD82 | BN108: @LK-DST-BD82 | BO108: @LK-DTP-BD82 | BP108: @LK-DTK-BD82 | BQ108: @LK-DWE-BD82
A109: BD92 | B109: 900 2 Pan Drw Unit | C109: BD92 | D109: @LK-FAG-BD92 | E109: @LK-FAT-BD92 | F109: @LK-FAB-BD92 | G109: @LK-FBR-BD92 | H109: @LK-FBG-BD92 | I109: @LK-FBW-BD92 | J109: @LK-FCS-BD92 | K109: @LK-FDM-BD92 | L109: @LK-FDP-BD92 | M109: @LK-FDS-BD92 | N109: @LK-FGP-BD92 | O109: @LK-FHG-BD92 | P109: @LK-FIN-BD92 | Q109: @LK-FIV-BD92 | R109: @LK-FLR-BD92 | S109: @LK-FLG-BD92 | T109: @LK-FME-BD92 | U109: @LK-FMN-BD92 | V109: @LK-FMU-BD92 | W109: @LK-FOV-BD92 | X109: @LK-FPT-BD92 | Y109: @LK-FPE-BD92 | Z109: @LK-FPG-BD92 | AA109: @LK-FPN-BD92 | AB109: @LK-FSG-BD92 | AC109: @LK-FSP-BD92 | AD109: @LK-FSB-BD92 | AE109: @LK-FSO-BD92 | AF109: @LK-FSY-BD92 | AG109: @LK-FST-BD92 | AH109: @LK-FTP-BD92 | AI109: @LK-FTK-BD92 | AJ109: @LK-FWE-BD92 | AK109: @LK-DAG-BD92 | AL109: @LK-DAT-BD92 | AM109: @LK-DAB-BD92 | AN109: @LK-DBR-BD92 | AO109: @LK-DBG-BD92 | AP109: @LK-DBW-BD92 | AQ109: @LK-DCS-BD92 | AR109: @LK-DDM-BD92 | AS109: @LK-DDR-BD92 | AT109: @LK-DDG-BD92 | AU109: @LK-DGP-BD92 | AV109: @LK-DHG-BD92 | AW109: @LK-DIN-BD92 | AX109: @LK-DIV-BD92 | AY109: @LK-DLR-BD92 | AZ109: @LK-DLG-BD92 | BA109: @LK-DMW-BD92 | BB109: @LK-DMN-BD92 | BC109: @LK-DMU-BD92 | BD109: @LK-DOV-BD92 | BE109: @LK-DPT-BD92 | BF109: @LK-DPE-BD92 | BG109: @LK-DPG-BD92 | BH109: @LK-DPN-BD92 | BI109: @LK-DSG-BD92 | BJ109: @LK-DSP-BD92 | BK109: @LK-DSB-BD92 | BL109: @LK-DSO-BD92 | BM109: @LK-DSY-BD92 | BN109: @LK-DST-BD92 | BO109: @LK-DTP-BD92 | BP109: @LK-DTK-BD92 | BQ109: @LK-DWE-BD92
A110: BD12 | B110: 1000 2 Pan Drw Unit | C110: BD12 | D110: @LK-FAG-BD12 | E110: @LK-FAT-BD12 | F110: @LK-FAB-BD12 | G110: @LK-FBR-BD12 | H110: @LK-FBG-BD12 | I110: @LK-FBW-BD12 | J110: @LK-FCS-BD12 | K110: @LK-FDM-BD12 | L110: @LK-FDP-BD12 | M110: @LK-FDS-BD12 | N110: @LK-FGP-BD12 | O110: @LK-FHG-BD12 | P110: @LK-FIN-BD12 | Q110: @LK-FIV-BD12 | R110: @LK-FLR-BD12 | S110: @LK-FLG-BD12 | T110: @LK-FME-BD12 | U110: @LK-FMN-BD12 | V110: @LK-FMU-BD12 | W110: @LK-FOV-BD12 | X110: @LK-FPT-BD12 | Y110: @LK-FPE-BD12 | Z110: @LK-FPG-BD12 | AA110: @LK-FPN-BD12 | AB110: @LK-FSG-BD12 | AC110: @LK-FSP-BD12 | AD110: @LK-FSB-BD12 | AE110: @LK-FSO-BD12 | AF110: @LK-FSY-BD12 | AG110: @LK-FST-BD12 | AH110: @LK-FTP-BD12 | AI110: @LK-FTK-BD12 | AJ110: @LK-FWE-BD12 | AK110: @LK-DAG-BD12 | AL110: @LK-DAT-BD12 | AM110: @LK-DAB-BD12 | AN110: @LK-DBR-BD12 | AO110: @LK-DBG-BD12 | AP110: @LK-DBW-BD12 | AQ110: @LK-DCS-BD12 | AR110: @LK-DDM-BD12 | AS110: @LK-DDR-BD12 | AT110: @LK-DDG-BD12 | AU110: @LK-DGP-BD12 | AV110: @LK-DHG-BD12 | AW110: @LK-DIN-BD12 | AX110: @LK-DIV-BD12 | AY110: @LK-DLR-BD12 | AZ110: @LK-DLG-BD12 | BA110: @LK-DMW-BD12 | BB110: @LK-DMN-BD12 | BC110: @LK-DMU-BD12 | BD110: @LK-DOV-BD12 | BE110: @LK-DPT-BD12 | BF110: @LK-DPE-BD12 | BG110: @LK-DPG-BD12 | BH110: @LK-DPN-BD12 | BI110: @LK-DSG-BD12 | BJ110: @LK-DSP-BD12 | BK110: @LK-DSB-BD12 | BL110: @LK-DSO-BD12 | BM110: @LK-DSY-BD12 | BN110: @LK-DST-BD12 | BO110: @LK-DTP-BD12 | BP110: @LK-DTK-BD12 | BQ110: @LK-DWE-BD12
A111: BD62I | B111: 600 2 Pan Drw Unit + 1 Internal | C111: BD62I | D111: @LK-FAG-BD62I | E111: @LK-FAT-BD62I | F111: @LK-FAB-BD62I | G111: @LK-FBR-BD62I | H111: @LK-FBG-BD62I | I111: @LK-FBW-BD62I | J111: @LK-FCS-BD62I | K111: @LK-FDM-BD62I | L111: @LK-FDP-BD62I | M111: @LK-FDS-BD62I | N111: @LK-FGP-BD62I | O111: @LK-FHG-BD62I | P111: @LK-FIN-BD62I | Q111: @LK-FIV-BD62I | R111: @LK-FLR-BD62I | S111: @LK-FLG-BD62I | T111: @LK-FME-BD62I | U111: @LK-FMN-BD62I | V111: @LK-FMU-BD62I | W111: @LK-FOV-BD62I | X111: @LK-FPT-BD62I | Y111: @LK-FPE-BD62I | Z111: @LK-FPG-BD62I | AA111: @LK-FPN-BD62I | AB111: @LK-FSG-BD62I | AC111: @LK-FSP-BD62I | AD111: @LK-FSB-BD62I | AE111: @LK-FSO-BD62I | AF111: @LK-FSY-BD62I | AG111: @LK-FST-BD62I | AH111: @LK-FTP-BD62I | AI111: @LK-FTK-BD62I | AJ111: @LK-FWE-BD62I | AK111: Not Available | AL111: Not Available | AM111: Not Available | AN111: Not Available | AO111: Not Available | AP111: Not Available | AQ111: Not Available | AR111: Not Available | AS111: Not Available | AT111: Not Available | AU111: Not Available | AV111: Not Available | AW111: Not Available | AX111: Not Available | AY111: Not Available | AZ111: Not Available | BA111: Not Available | BB111: Not Available | BC111: Not Available | BD111: Not Available | BE111: Not Available | BF111: Not Available | BG111: Not Available | BH111: Not Available | BI111: Not Available | BJ111: Not Available | BK111: Not Available | BL111: Not Available | BM111: Not Available | BN111: Not Available | BO111: Not Available | BP111: Not Available | BQ111: Not Available
A112: BD82I | B112: 800 2 Pan Drw Unit + 1 Internal | C112: BD82I | D112: @LK-FAG-BD82I | E112: @LK-FAT-BD82I | F112: @LK-FAB-BD82I | G112: @LK-FBR-BD82I | H112: @LK-FBG-BD82I | I112: @LK-FBW-BD82I | J112: @LK-FCS-BD82I | K112: @LK-FDM-BD82I | L112: @LK-FDP-BD82I | M112: @LK-FDS-BD82I | N112: @LK-FGP-BD82I | O112: @LK-FHG-BD82I | P112: @LK-FIN-BD82I | Q112: @LK-FIV-BD82I | R112: @LK-FLR-BD82I | S112: @LK-FLG-BD82I | T112: @LK-FME-BD82I | U112: @LK-FMN-BD82I | V112: @LK-FMU-BD82I | W112: @LK-FOV-BD82I | X112: @LK-FPT-BD82I | Y112: @LK-FPE-BD82I | Z112: @LK-FPG-BD82I | AA112: @LK-FPN-BD82I | AB112: @LK-FSG-BD82I | AC112: @LK-FSP-BD82I | AD112: @LK-FSB-BD82I | AE112: @LK-FSO-BD82I | AF112: @LK-FSY-BD82I | AG112: @LK-FST-BD82I | AH112: @LK-FTP-BD82I | AI112: @LK-FTK-BD82I | AJ112: @LK-FWE-BD82I | AK112: Not Available | AL112: Not Available | AM112: Not Available | AN112: Not Available | AO112: Not Available | AP112: Not Available | AQ112: Not Available | AR112: Not Available | AS112: Not Available | AT112: Not Available | AU112: Not Available | AV112: Not Available | AW112: Not Available | AX112: Not Available | AY112: Not Available | AZ112: Not Available | BA112: Not Available | BB112: Not Available | BC112: Not Available | BD112: Not Available | BE112: Not Available | BF112: Not Available | BG112: Not Available | BH112: Not Available | BI112: Not Available | BJ112: Not Available | BK112: Not Available | BL112: Not Available | BM112: Not Available | BN112: Not Available | BO112: Not Available | BP112: Not Available | BQ112: Not Available
A113: BD92I | B113: 900 2 Pan Drw Unit + 1 Internal | C113: BD92I | D113: @LK-FAG-BD92I | E113: @LK-FAT-BD92I | F113: @LK-FAB-BD92I | G113: @LK-FBR-BD92I | H113: @LK-FBG-BD92I | I113: @LK-FBW-BD92I | J113: @LK-FCS-BD92I | K113: @LK-FDM-BD92I | L113: @LK-FDP-BD92I | M113: @LK-FDS-BD92I | N113: @LK-FGP-BD92I | O113: @LK-FHG-BD92I | P113: @LK-FIN-BD92I | Q113: @LK-FIV-BD92I | R113: @LK-FLR-BD92I | S113: @LK-FLG-BD92I | T113: @LK-FME-BD92I | U113: @LK-FMN-BD92I | V113: @LK-FMU-BD92I | W113: @LK-FOV-BD92I | X113: @LK-FPT-BD92I | Y113: @LK-FPE-BD92I | Z113: @LK-FPG-BD92I | AA113: @LK-FPN-BD92I | AB113: @LK-FSG-BD92I | AC113: @LK-FSP-BD92I | AD113: @LK-FSB-BD92I | AE113: @LK-FSO-BD92I | AF113: @LK-FSY-BD92I | AG113: @LK-FST-BD92I | AH113: @LK-FTP-BD92I | AI113: @LK-FTK-BD92I | AJ113: @LK-FWE-BD92I | AK113: Not Available | AL113: Not Available | AM113: Not Available | AN113: Not Available | AO113: Not Available | AP113: Not Available | AQ113: Not Available | AR113: Not Available | AS113: Not Available | AT113: Not Available | AU113: Not Available | AV113: Not Available | AW113: Not Available | AX113: Not Available | AY113: Not Available | AZ113: Not Available | BA113: Not Available | BB113: Not Available | BC113: Not Available | BD113: Not Available | BE113: Not Available | BF113: Not Available | BG113: Not Available | BH113: Not Available | BI113: Not Available | BJ113: Not Available | BK113: Not Available | BL113: Not Available | BM113: Not Available | BN113: Not Available | BO113: Not Available | BP113: Not Available | BQ113: Not Available
A114: BD12I | B114: 1000 2 Pan Drw Unit + 1 Internal | C114: BD12I | D114: @LK-FAG-BD12I | E114: @LK-FAT-BD12I | F114: @LK-FAB-BD12I | G114: @LK-FBR-BD12I | H114: @LK-FBG-BD12I | I114: @LK-FBW-BD12I | J114: @LK-FCS-BD12I | K114: @LK-FDM-BD12I | L114: @LK-FDP-BD12I | M114: @LK-FDS-BD12I | N114: @LK-FGP-BD12I | O114: @LK-FHG-BD12I | P114: @LK-FIN-BD12I | Q114: @LK-FIV-BD12I | R114: @LK-FLR-BD12I | S114: @LK-FLG-BD12I | T114: @LK-FME-BD12I | U114: @LK-FMN-BD12I | V114: @LK-FMU-BD12I | W114: @LK-FOV-BD12I | X114: @LK-FPT-BD12I | Y114: @LK-FPE-BD12I | Z114: @LK-FPG-BD12I | AA114: @LK-FPN-BD12I | AB114: @LK-FSG-BD12I | AC114: @LK-FSP-BD12I | AD114: @LK-FSB-BD12I | AE114: @LK-FSO-BD12I | AF114: @LK-FSY-BD12I | AG114: @LK-FST-BD12I | AH114: @LK-FTP-BD12I | AI114: @LK-FTK-BD12I | AJ114: @LK-FWE-BD12I | AK114: Not Available | AL114: Not Available | AM114: Not Available | AN114: Not Available | AO114: Not Available | AP114: Not Available | AQ114: Not Available | AR114: Not Available | AS114: Not Available | AT114: Not Available | AU114: Not Available | AV114: Not Available | AW114: Not Available | AX114: Not Available | AY114: Not Available | AZ114: Not Available | BA114: Not Available | BB114: Not Available | BC114: Not Available | BD114: Not Available | BE114: Not Available | BF114: Not Available | BG114: Not Available | BH114: Not Available | BI114: Not Available | BJ114: Not Available | BK114: Not Available | BL114: Not Available | BM114: Not Available | BN114: Not Available | BO114: Not Available | BP114: Not Available | BQ114: Not Available
A115: BD635L | B115: 600 Low Single Drawer unit 360 high | C115: BD635L | D115: @LK-FAG-BD635L | E115: @LK-FAT-BD635L | F115: @LK-FAB-BD635L | G115: @LK-FBR-BD635L | H115: @LK-FBG-BD635L | I115: @LK-FBW-BD635L | J115: @LK-FCS-BD635L | K115: @LK-FDM-BD635L | L115: @LK-FDP-BD635L | M115: @LK-FDS-BD635L | N115: @LK-FGP-BD635L | O115: @LK-FHG-BD635L | P115: @LK-FIN-BD635L | Q115: @LK-FIV-BD635L | R115: @LK-FLR-BD635L | S115: @LK-FLG-BD635L | T115: @LK-FME-BD635L | U115: @LK-FMN-BD635L | V115: @LK-FMU-BD635L | W115: @LK-FOV-BD635L | X115: @LK-FPT-BD635L | Y115: @LK-FPE-BD635L | Z115: @LK-FPG-BD635L | AA115: @LK-FPN-BD635L | AB115: @LK-FSG-BD635L | AC115: @LK-FSP-BD635L | AD115: @LK-FSB-BD635L | AE115: @LK-FSO-BD635L | AF115: @LK-FSY-BD635L | AG115: @LK-FST-BD635L | AH115: @LK-FTP-BD635L | AI115: @LK-FTK-BD635L | AJ115: @LK-FWE-BD635L | AK115: Not Available | AL115: Not Available | AM115: Not Available | AN115: Not Available | AO115: Not Available | AP115: Not Available | AQ115: Not Available | AR115: Not Available | AS115: Not Available | AT115: Not Available | AU115: Not Available | AV115: Not Available | AW115: Not Available | AX115: Not Available | AY115: Not Available | AZ115: Not Available | BA115: Not Available | BB115: Not Available | BC115: Not Available | BD115: Not Available | BE115: Not Available | BF115: Not Available | BG115: Not Available | BH115: Not Available | BI115: Not Available | BJ115: Not Available | BK115: Not Available | BL115: Not Available | BM115: Not Available | BN115: Not Available | BO115: Not Available | BP115: Not Available | BQ115: Not Available
A116: W357L | B116: 300 Wall Unit (575mm High) LHH | C116: W357L | D116: @LK-FAG-W357L | E116: @LK-FAT-W357L | F116: @LK-FAB-W357L | G116: @LK-FBR-W357L | H116: @LK-FBG-W357L | I116: @LK-FBW-W357L | J116: @LK-FCS-W357L | K116: @LK-FDM-W357L | L116: @LK-FDP-W357L | M116: @LK-FDS-W357L | N116: @LK-FGP-W357L | O116: @LK-FHG-W357L | P116: @LK-FIN-W357L | Q116: @LK-FIV-W357L | R116: @LK-FLR-W357L | S116: @LK-FLG-W357L | T116: @LK-FME-W357L | U116: @LK-FMN-W357L | V116: @LK-FMU-W357L | W116: @LK-FOV-W357L | X116: @LK-FPT-W357L | Y116: @LK-FPE-W357L | Z116: @LK-FPG-W357L | AA116: @LK-FPN-W357L | AB116: @LK-FSG-W357L | AC116: @LK-FSP-W357L | AD116: @LK-FSB-W357L | AE116: @LK-FSO-W357L | AF116: @LK-FSY-W357L | AG116: @LK-FST-W357L | AH116: @LK-FTP-W357L | AI116: @LK-FTK-W357L | AJ116: @LK-FWE-W357L | AK116: Not Available | AL116: Not Available | AM116: Not Available | AN116: Not Available | AO116: Not Available | AP116: Not Available | AQ116: Not Available | AR116: Not Available | AS116: Not Available | AT116: Not Available | AU116: Not Available | AV116: Not Available | AW116: Not Available | AX116: Not Available | AY116: Not Available | AZ116: Not Available | BA116: Not Available | BB116: Not Available | BC116: Not Available | BD116: Not Available | BE116: Not Available | BF116: Not Available | BG116: Not Available | BH116: Not Available | BI116: Not Available | BJ116: Not Available | BK116: Not Available | BL116: Not Available | BM116: Not Available | BN116: Not Available | BO116: Not Available | BP116: Not Available | BQ116: Not Available
A117: W357R | B117: 300 Wall Unit (575mm High) RHH | C117: W357R | D117: @LK-FAG-W357R | E117: @LK-FAT-W357R | F117: @LK-FAB-W357R | G117: @LK-FBR-W357R | H117: @LK-FBG-W357R | I117: @LK-FBW-W357R | J117: @LK-FCS-W357R | K117: @LK-FDM-W357R | L117: @LK-FDP-W357R | M117: @LK-FDS-W357R | N117: @LK-FGP-W357R | O117: @LK-FHG-W357R | P117: @LK-FIN-W357R | Q117: @LK-FIV-W357R | R117: @LK-FLR-W357R | S117: @LK-FLG-W357R | T117: @LK-FME-W357R | U117: @LK-FMN-W357R | V117: @LK-FMU-W357R | W117: @LK-FOV-W357R | X117: @LK-FPT-W357R | Y117: @LK-FPE-W357R | Z117: @LK-FPG-W357R | AA117: @LK-FPN-W357R | AB117: @LK-FSG-W357R | AC117: @LK-FSP-W357R | AD117: @LK-FSB-W357R | AE117: @LK-FSO-W357R | AF117: @LK-FSY-W357R | AG117: @LK-FST-W357R | AH117: @LK-FTP-W357R | AI117: @LK-FTK-W357R | AJ117: @LK-FWE-W357R | AK117: Not Available | AL117: Not Available | AM117: Not Available | AN117: Not Available | AO117: Not Available | AP117: Not Available | AQ117: Not Available | AR117: Not Available | AS117: Not Available | AT117: Not Available | AU117: Not Available | AV117: Not Available | AW117: Not Available | AX117: Not Available | AY117: Not Available | AZ117: Not Available | BA117: Not Available | BB117: Not Available | BC117: Not Available | BD117: Not Available | BE117: Not Available | BF117: Not Available | BG117: Not Available | BH117: Not Available | BI117: Not Available | BJ117: Not Available | BK117: Not Available | BL117: Not Available | BM117: Not Available | BN117: Not Available | BO117: Not Available | BP117: Not Available | BQ117: Not Available
A118: W457L | B118: 400 Wall Unit (575mm High) LHH | C118: W457L | D118: @LK-FAG-W457L | E118: @LK-FAT-W457L | F118: @LK-FAB-W457L | G118: @LK-FBR-W457L | H118: @LK-FBG-W457L | I118: @LK-FBW-W457L | J118: @LK-FCS-W457L | K118: @LK-FDM-W457L | L118: @LK-FDP-W457L | M118: @LK-FDS-W457L | N118: @LK-FGP-W457L | O118: @LK-FHG-W457L | P118: @LK-FIN-W457L | Q118: @LK-FIV-W457L | R118: @LK-FLR-W457L | S118: @LK-FLG-W457L | T118: @LK-FME-W457L | U118: @LK-FMN-W457L | V118: @LK-FMU-W457L | W118: @LK-FOV-W457L | X118: @LK-FPT-W457L | Y118: @LK-FPE-W457L | Z118: @LK-FPG-W457L | AA118: @LK-FPN-W457L | AB118: @LK-FSG-W457L | AC118: @LK-FSP-W457L | AD118: @LK-FSB-W457L | AE118: @LK-FSO-W457L | AF118: @LK-FSY-W457L | AG118: @LK-FST-W457L | AH118: @LK-FTP-W457L | AI118: @LK-FTK-W457L | AJ118: @LK-FWE-W457L | AK118: Not Available | AL118: Not Available | AM118: Not Available | AN118: Not Available | AO118: Not Available | AP118: Not Available | AQ118: Not Available | AR118: Not Available | AS118: Not Available | AT118: Not Available | AU118: Not Available | AV118: Not Available | AW118: Not Available | AX118: Not Available | AY118: Not Available | AZ118: Not Available | BA118: Not Available | BB118: Not Available | BC118: Not Available | BD118: Not Available | BE118: Not Available | BF118: Not Available | BG118: Not Available | BH118: Not Available | BI118: Not Available | BJ118: Not Available | BK118: Not Available | BL118: Not Available | BM118: Not Available | BN118: Not Available | BO118: Not Available | BP118: Not Available | BQ118: Not Available
